Workbook

Sheet Range names (hidden)
A1: Range Name | B1: RefersTo | C1: Scope | D1: Parent
A2: _xlfn.COUNTIFS | B2: =#NAME? ->  | C2: Workbook | D2: LTFP_General_Main_Workfile.xlsm
A3: _xlfn.SUMIFS | B3: =#NAME? ->  | C3: Workbook | D3: LTFP_General_Main_Workfile.xlsm
A4: asset_class_list_general | B4: =OFFSET('IPP&E Reconciliation'!$A$5,0,0,COUNTA('IPP&E Reconciliation'!$A$5:$A$35)-COUNTBLANK('IPP&E Reconciliation'!$A$5:$A$35),1) ->  | C4: Workbook | D4: LTFP_General_Main_Workfile.xlsm
A5: balance_sheet_general_main | B5: ='Balance Sheet'!$A$3 -> BALANCE SHEET - GENERAL FUND | C5: Workbook | D5: LTFP_General_Main_Workfile.xlsm
A6: balance_sheet_list_general | B6: ='IS-BS table general'!$R$5:$R$21 -> Receivables | C6: Workbook | D6: LTFP_General_Main_Workfile.xlsm
A7: balance_sheet_workings_general_main | B7: ='BS workings'!$A$3 -> BALANCE SHEET - GENERAL FUND - WORKINGS | C7: Workbook | D7: LTFP_General_Main_Workfile.xlsm
A8: BS_area_1_general | B8: ='Balance Sheet'!$6:$70 -> 0 | C8: Workbook | D8: LTFP_General_Main_Workfile.xlsm
A9: BS_area_10_general | B9: ='BS workings'!$474:$488 ->  | C9: Workbook | D9: LTFP_General_Main_Workfile.xlsm
A10: BS_area_11_general | B10: ='BS workings'!$489:$504 ->  | C10: Workbook | D10: LTFP_General_Main_Workfile.xlsm
A11: BS_area_12_general | B11: ='BS workings'!$505:$782 ->  | C11: Workbook | D11: LTFP_General_Main_Workfile.xlsm
A12: BS_area_14_general | B12: ='BS workings'!$783:$948 ->  | C12: Workbook | D12: LTFP_General_Main_Workfile.xlsm
A13: BS_area_16_general | B13: ='Balance Sheet'!$152:$376 ->  | C13: Workbook | D13: LTFP_General_Main_Workfile.xlsm
A14: BS_area_3_general | B14: ='BS workings'!$358:$370 ->  | C14: Workbook | D14: LTFP_General_Main_Workfile.xlsm
A15: BS_area_5_general | B15: ='BS workings'!$373:$390 ->  | C15: Workbook | D15: LTFP_General_Main_Workfile.xlsm
A16: BS_area_6_general | B16: ='BS workings'!$391:$405 ->  | C16: Workbook | D16: LTFP_General_Main_Workfile.xlsm
A17: BS_area_7_general | B17: ='BS workings'!$406:$522 ->  | C17: Workbook | D17: LTFP_General_Main_Workfile.xlsm
A18: BS_area_8_general | B18: ='BS workings'!$457:$458 ->  | C18: Workbook | D18: LTFP_General_Main_Workfile.xlsm
A19: BS_area_9_general | B19: ='BS workings'!$459:$473 ->  | C19: Workbook | D19: LTFP_General_Main_Workfile.xlsm
A20: BS_workings_area_1_general | B20: ='BS workings'!$B$6:$P$63 -> 0 | C20: Workbook | D20: LTFP_General_Main_Workfile.xlsm
A21: BS_workings_area_10_general | B21: ='BS workings'!$C$160:$P$176 ->  | C21: Workbook | D21: LTFP_General_Main_Workfile.xlsm
A22: BS_workings_area_11_general | B22: ='BS workings'!$C$178:$P$180 ->  | C22: Workbook | D22: LTFP_General_Main_Workfile.xlsm
A23: BS_workings_area_12_general | B23: ='BS workings'!$C$183:$P$222 ->  | C23: Workbook | D23: LTFP_General_Main_Workfile.xlsm
A24: BS_workings_area_13_general | B24: ='BS workings'!$C$224:$P$226 ->  | C24: Workbook | D24: LTFP_General_Main_Workfile.xlsm
A25: BS_workings_area_14_general | B25: ='BS workings'!$C$229:$P$251 ->  | C25: Workbook | D25: LTFP_General_Main_Workfile.xlsm
A26: BS_workings_area_15_general | B26: ='BS workings'!$C$252:$P$332 ->  | C26: Workbook | D26: LTFP_General_Main_Workfile.xlsm
A27: BS_workings_area_16_general | B27: ='BS workings'!$C$334:$P$339 ->  | C27: Workbook | D27: LTFP_General_Main_Workfile.xlsm
A28: BS_workings_area_17_general | B28: ='BS workings'!$C$342:$P$373 ->  | C28: Workbook | D28: LTFP_General_Main_Workfile.xlsm
A29: BS_workings_area_18_general | B29: ='BS workings'!$C$375:$P$380 ->  | C29: Workbook | D29: LTFP_General_Main_Workfile.xlsm
A30: BS_workings_area_19_general | B30: ='BS workings'!$C$383:$P$391 ->  | C30: Workbook | D30: LTFP_General_Main_Workfile.xlsm
A31: BS_workings_area_2_general | B31: ='BS workings'!$C$66:$P$84 ->  | C31: Workbook | D31: LTFP_General_Main_Workfile.xlsm
A32: BS_workings_area_20_general | B32: ='BS workings'!$C$393:$P$395 ->  | C32: Workbook | D32: LTFP_General_Main_Workfile.xlsm
A33: BS_workings_area_21_general | B33: ='BS workings'!$C$398:$P$406 ->  | C33: Workbook | D33: LTFP_General_Main_Workfile.xlsm
A34: BS_workings_area_22_general | B34: ='BS workings'!$C$408:$P$410 ->  | C34: Workbook | D34: LTFP_General_Main_Workfile.xlsm
A35: BS_workings_area_23_general | B35: ='BS workings'!$C$413:$P$429 ->  | C35: Workbook | D35: LTFP_General_Main_Workfile.xlsm
A36: BS_workings_area_24_general | B36: ='BS workings'!$C$432:$P$459 ->  | C36: Workbook | D36: LTFP_General_Main_Workfile.xlsm
A37: BS_workings_area_25_general | B37: ='BS workings'!$C$461:$P$463 ->  | C37: Workbook | D37: LTFP_General_Main_Workfile.xlsm
A38: BS_workings_area_26_general | B38: ='BS workings'!$C$466:$P$478 ->  | C38: Workbook | D38: LTFP_General_Main_Workfile.xlsm
A39: BS_workings_area_27_general | B39: ='BS workings'!$C$481:$P$488 ->  | C39: Workbook | D39: LTFP_General_Main_Workfile.xlsm
A40: BS_workings_area_28_general | B40: ='BS workings'!$C$491:$P$493 ->  | C40: Workbook | D40: LTFP_General_Main_Workfile.xlsm
A41: BS_workings_area_29_general | B41: ='BS workings'!$C$496:$P$505 ->  | C41: Workbook | D41: LTFP_General_Main_Workfile.xlsm
A42: BS_workings_area_3_general | B42: ='BS workings'!$C$86:$P$88 ->  | C42: Workbook | D42: LTFP_General_Main_Workfile.xlsm
A43: BS_workings_area_30_general | B43: ='BS workings'!$C$507:$P$512 ->  | C43: Workbook | D43: LTFP_General_Main_Workfile.xlsm
A44: BS_workings_area_31_general | B44: ='BS workings'!$C$515:$P$542 ->  | C44: Workbook | D44: LTFP_General_Main_Workfile.xlsm
A45: BS_workings_area_32_general | B45: ='BS workings'!$C$545:$P$642 ->  | C45: Workbook | D45: LTFP_General_Main_Workfile.xlsm
A46: BS_workings_area_33_general | B46: ='BS workings'!$C$644:$P$646 ->  | C46: Workbook | D46: LTFP_General_Main_Workfile.xlsm
A47: BS_workings_area_34_general | B47: ='BS workings'!$C$649:$P$657 ->  | C47: Workbook | D47: LTFP_General_Main_Workfile.xlsm
A48: BS_workings_area_35_general | B48: ='BS workings'!$C$659:$P$661 ->  | C48: Workbook | D48: LTFP_General_Main_Workfile.xlsm
A49: BS_workings_area_36_general | B49: ='BS workings'!$C$664:$P$797 ->  | C49: Workbook | D49: LTFP_General_Main_Workfile.xlsm
A50: BS_workings_area_37_general | B50: ='BS workings'!$C$799:$P$801 ->  | C50: Workbook | D50: LTFP_General_Main_Workfile.xlsm
A51: BS_workings_area_38_general | B51: ='BS workings'!$C$671:$P$672 ->  | C51: Workbook | D51: LTFP_General_Main_Workfile.xlsm
A52: BS_workings_area_39_general | B52: ='BS workings'!$C$674:$P$676 ->  | C52: Workbook | D52: LTFP_General_Main_Workfile.xlsm
A53: BS_workings_area_4_general | B53: ='BS workings'!$C$91:$P$107 ->  | C53: Workbook | D53: LTFP_General_Main_Workfile.xlsm
A54: BS_workings_area_40_general | B54: ='BS workings'!$C$679:$P$687 ->  | C54: Workbook | D54: LTFP_General_Main_Workfile.xlsm
A55: BS_workings_area_41_general | B55: ='BS workings'!$C$689:$P$691 ->  | C55: Workbook | D55: LTFP_General_Main_Workfile.xlsm
A56: BS_workings_area_42_general | B56: ='BS workings'!$C$694:$P$702 ->  | C56: Workbook | D56: LTFP_General_Main_Workfile.xlsm
A57: BS_workings_area_43_general | B57: ='BS workings'!$C$704:$P$706 ->  | C57: Workbook | D57: LTFP_General_Main_Workfile.xlsm
A58: BS_workings_area_44_general | B58: ='BS workings'!$C$709:$P$753 ->  | C58: Workbook | D58: LTFP_General_Main_Workfile.xlsm
A59: BS_workings_area_45_general | B59: ='BS workings'!$C$756:$P$764 ->  | C59: Workbook | D59: LTFP_General_Main_Workfile.xlsm
A60: BS_workings_area_46_general | B60: ='BS workings'!$C$766:$P$771 ->  | C60: Workbook | D60: LTFP_General_Main_Workfile.xlsm
A61: BS_workings_area_47_general | B61: ='BS workings'!$C$774:$P$870 ->  | C61: Workbook | D61: LTFP_General_Main_Workfile.xlsm
A62: BS_workings_area_48_general | B62: ='BS workings'!$C$873:$P$904 ->  | C62: Workbook | D62: LTFP_General_Main_Workfile.xlsm
... 77 more rows

Sheet Check Range names (hidden)

Sheet Cover Page
A3: ='[1]Cover Page'!$A$3 -> Burwood Council
A5: ='[1]Cover Page'!$A$5 -> 10 Year Financial Plan for the Years ending 30 June 2029
C11: Scenario Name: | E11: Burwood Council - SRV Scenario - 2% above Rate Peg for 4years
C13: Fund Name: | E13: ='[1]Cover Page'!$C$13 -> General Fund
K16: hide this column
K19: =IF(K20=2,TRUE,FALSE) -> TRUE
K20: 2
K22: FALSE
K27: 1
K40: TRUE
K42: TRUE
K44: TRUE
K46: TRUE
K48: TRUE
K50: TRUE
K52: TRUE

Sheet year (hidden)
C5: Starting Year: | E5: =[1]!Starting_year -> 2019

Sheet Checklist
C1: Overall | D1: =Starting_year_general-1&"/"&RIGHT(Starting_year_general,2) -> 2018/19 | E1: =Starting_year_general&"/"&RIGHT(Starting_year_general+1,2) -> 2019/20 | F1: =Starting_year_general+1&"/"&RIGHT(Starting_year_general+2,2) -> 2020/21 | G1: =Starting_year_general+2&"/"&RIGHT(Starting_year_general+3,2) -> 2021/22 | H1: =Starting_year_general+3&"/"&RIGHT(Starting_year_general+4,2) -> 2022/23 | I1: =Starting_year_general+4&"/"&RIGHT(Starting_year_general+5,2) -> 2023/24 | J1: =Starting_year_general+5&"/"&RIGHT(Starting_year_general+6,2) -> 2024/25 | K1: =Starting_year_general+6&"/"&RIGHT(Starting_year_general+7,2) -> 2025/26 | L1: =Starting_year_general+7&"/"&RIGHT(Starting_year_general+8,2) -> 2026/27 | M1: =Starting_year_general+8&"/"&RIGHT(Starting_year_general+9,2) -> 2027/28 | N1: =Starting_year_general+9&"/"&RIGHT(Starting_year_general+10,2) -> 2028/29 | AA1: hide | AB1: hide | AC1: hide | AD1: hide | AE1: hide | AF1: hide | AG1: hide | AH1: hide | AI1: hide | AJ1: hide | AK1: hide | AL1: hide | AM1: hide | AN1: hide | AO1: hide | AP1: hide | AQ1: hide | AR1: hide | AS1: hide | AT1: hide | AU1: hide | AV1: hide | AW1: hide | AX1: hide | AY1: hide | AZ1: hide | BA1: hide | BB1: hide | BC1: hide | BD1: hide | BE1: hide | BF1: hide | BG1: hide | BH1: hide | BI1: hide | BJ1: hide | BK1: hide | BL1: hide | BM1: hide | BN1: hide | BO1: hide | BP1: hide | BQ1: hide | BR1: hide | BS1: hide | BT1: hide | BU1: hide | BV1: hide | BW1: hide | BX1: hide | BY1: hide | BZ1: hide | CA1: hide | CB1: hide | CC1: hide | CD1: hide | CE1: hide | CF1: hide | CG1: hide | CH1: hide | CI1: hide | CJ1: hide | CK1: hide | CL1: hide | CM1: hide | CN1: hide | CO1: hide | CP1: hide | CQ1: hide | CR1: hide | CS1: hide | CT1: hide | CU1: hide | CV1: hide | CW1: hide | CX1: hide | CY1: hide | CZ1: hide | DA1: hide | DB1: hide | DC1: hide | DD1: hide | DE1: hide | DF1: hide | DG1: hide | DH1: hide | DI1: hide | DJ1: hide | DK1: hide | DL1: hide | DM1: hide | DN1: hide | DO1: hide | DP1: hide | DQ1: hide | DR1: hide | DS1: hide | DT1: hide | DU1: hide | DV1: hide | DW1: hide | DX1: hide | DY1: hide | DZ1: hide | EA1: hide | EB1: hide | EC1: hide | ED1: hide | EE1: hide | EF1: hide | EG1: hide | EH1: hide | EI1: hide | EJ1: hide | EK1: hide | EL1: hide | EM1: hide | EN1: hide | EO1: hide | EP1: hide | EQ1: hide | ER1: hide | ES1: hide | ET1: hide | EU1: hide | EV1: hide | EW1: hide | EX1: hide | EY1: hide | EZ1: hide | FA1: hide | FB1: hide | FC1: hide | FD1: hide | FE1: hide | FF1: hide | FG1: hide | FH1: hide | FI1: hide | FJ1: hide | FK1: hide | FL1: hide | FM1: hide | FN1: hide | FO1: hide | FP1: hide | FQ1: hide | FR1: hide | FS1: hide | FT1: hide | FU1: hide | FV1: hide | FW1: hide | FX1: hide | FY1: hide | FZ1: hide | GA1: hide | GB1: hide | GC1: hide | GD1: hide | GE1: hide | GF1: hide | GG1: hide | GH1: hide | GI1: hide | GJ1: hide | GK1: hide | GL1: hide | GM1: hide | GN1: hide | GO1: hide | GP1: hide | GQ1: hide | GR1: hide | GS1: hide | GT1: hide | GU1: hide | GV1: hide | GW1: hide | GX1: hide | GY1: hide | GZ1: hide | HA1: hide | HB1: hide | HC1: hide | HD1: hide | HE1: hide | HF1: hide | HG1: hide | HH1: hide | HI1: hide | HJ1: hide | HK1: hide | HL1: hide | HM1: hide | HN1: hide | HO1: hide | HP1: hide | HQ1: hide | HR1: hide | HS1: hide | HT1: hide | HU1: hide | HV1: hide | HW1: hide | HX1: hide | HY1: hide | HZ1: hide | IA1: hide | IB1: hide | IC1: hide | ID1: hide | IE1: hide | IF1: hide | IG1: hide | IH1: hide | II1: hide | IJ1: hide | IK1: hide | IL1: hide | IM1: hide | IN1: hide | IO1: hide | IP1: hide | IQ1: hide | IR1: hide | IS1: hide | IT1: hide | IU1: hide | IV1: hide | IW1: hide | IX1: hide | IY1: hide | IZ1: hide | JA1: hide | JB1: hide | JC1: hide | JD1: hide | JE1: hide | JF1: hide | JG1: hide | JH1: hide | JI1: hide | JJ1: hide | JK1: hide | JL1: hide | JM1: hide | JN1: hide | JO1: hide | JP1: hide | JQ1: hide | JR1: hide | JS1: hide | JT1: hide | JU1: hide | JV1: hide | JW1: hide | JX1: hide | JY1: hide | JZ1: hide | KA1: hide | KB1: hide | KC1: hide | KD1: hide | KE1: hide | KF1: hide | KG1: hide | KH1: hide | KI1: hide | KJ1: hide | KK1: hide | KL1: hide | KM1: hide | KN1: hide | KO1: hide | KP1: hide | KQ1: hide | KR1: hide | KS1: hide | KT1: hide | KU1: hide | KV1: hide | KW1: hide | KX1: hide | KY1: hide | KZ1: hide | LA1: hide | LB1: hide | LC1: hide | LD1: hide | LE1: hide | LF1: hide | LG1: hide | LH1: hide | LI1: hide | LJ1: hide | LK1: hide | LL1: hide | LM1: hide | LN1: hide | LO1: hide | LP1: hide | LQ1: hide | LR1: hide | LS1: hide | LT1: hide | LU1: hide | LV1: hide | LW1: hide | LX1: hide | LY1: hide | LZ1: hide
A3: =PROPER(general_fund_name)&" - Database updated & Data Integrity" -> General Fund - Database updated & Data Integrity
A5: =PROPER(general_fund_name)&" workfile" -> General Fund workfile | B5: =PROPER(general_fund_name)&" Database has been updated" -> General Fund Database has been updated | C5: 1 | D5: =IF(C5=1,"","Changes have been made to the database ("&PROPER(general_fund_name)&") but has not been updated.") -> 
D6: =IF(C5=1,"","To update the database go to worksheet """&IF(ISERROR(sheetname_general(general_database_unique_key))=TRUE,"<activate macros>",sheetname_general(general_database_unique_key))&""" and click on the") -> 
D7: =IF(C5=1,"","button ""Update database"" to update database and the LTFP.") -> 
A9: =PROPER(general_fund_name)&" workfile" -> General Fund workfile | B9: Integrity Check has been run | C9: 1 | D9: =IF(C9=1,"","The last time a Data Integrity Check has been run, errors have ocurred.") -> 
D10: =IF(C9=1,"","Go to worksheet """&IF(ISERROR(sheetname_general(writing_errors_general))=TRUE,"<activate macros>",sheetname_general(writing_errors_general))&""", view all errors and fix errors.") -> 
D11: =IF(C9=1,"","After errors have been fixed, run the Data Integrity Check again to ensure all errors have been fixed.") -> 
A13: =PROPER(general_fund_name)&" workfile" -> General Fund workfile | B13: G/L Table has been updated | C13: 1 | D13: =IF(C13=1,"","Changes have been made to the G/L Table but it has not been updated.") -> 
D14: =IF(C13=1,"","To update the G/L Table click on the button ""Update G/L Table"".") -> 
D15: =IF(C13=1,"","") -> 
A17: =PROPER(general_fund_name)&" workfile" -> General Fund workfile | B17: COA Tables have been updated | C17: 1 | D17: =IF(C17=1,"","Changes have been made to the COA Tables but they have not been updated.") -> 
D18: =IF(C17=1,"","To update the COA Tables click on the button ""Update COA Tables"".") -> 
D19: =IF(C17=1,"","") -> 
A21: =PROPER(general_fund_name)&" workfile" -> General Fund workfile | B21: Reserve Schedules have been updated | C21: =IF(OR(MAX([1]!reserves_external_data_time,[1]!reserves_internal_data_time)>reserve_schedule_general_updated,[1]!internal_reserve_schedule_update_consol<>"",[1]!external_reserve_schedule_update_consol<>""),-2,1) -> 1 | D21: =IF(C21=1,"","Changes have been made to the Reserve Schedules in the Consolidated") -> 
D22: =IF(C21=1,"",IF(OR([1]!internal_reserve_schedule_update_consol<>"",[1]!external_reserve_schedule_update_consol<>""),"working file but the Schedules have not been updated in the consolidated file.","working file but the Schedules have not been updated in this fund file.")) -> 
D23: =IF(C21=1,"",IF(OR([1]!internal_reserve_schedule_update_consol<>"",[1]!external_reserve_schedule_update_consol<>""),"Update first the Schedules in the consolidated file and then in this fund file.","To update the Schedules click on the button ""Update Reserve Schedules"".")) -> 
A25: =PROPER(general_fund_name)&" workfile" -> General Fund workfile | B25: Global changes % in matrix agree to database (i.e. database has been updated for global changes %). | C25: =IF(SUM('Global Indexation'!AB428:AK428)<>0,-2,1) -> 1 | D25: =IF(C25=1,"","The database has not been updated for global changes %.") -> 
D26: =IF(C25=1,"","To update the database click on the button .") -> 
A28: =PROPER(general_fund_name)&" workfile" -> General Fund workfile | B28: Population changes % in matrix agree to database (i.e. database has been updated for population changes %). | C28: =IF(SUM('Population Indexation'!Y173:AH173)<>0,-2,1) -> 1 | D28: =IF(C28=1,"","The database has not been updated for population changes %.") -> 
D29: =IF(C28=1,"","To update the database click on the button .") -> 
A33: Consolidated Workfile
A35: Consolidated Workfile | B35: =[1]Checklist!$B194 -> Global changes have been entered | C35: =[1]Checklist!$C194 -> NO | E35: =[1]Checklist!E194 -> NO | F35: =[1]Checklist!F194 -> NO | G35: =[1]Checklist!G194 -> NO | H35: =[1]Checklist!H194 -> NO | I35: =[1]Checklist!I194 -> NO | J35: =[1]Checklist!J194 -> NO | K35: =[1]Checklist!K194 -> NO | L35: =[1]Checklist!L194 -> NO | M35: =[1]Checklist!M194 -> NO | N35: =[1]Checklist!N194 -> NO
D36: =IF(C35="NO","","To ensure this is correct, go to worksheet ""Global Indexation"" in the ""Consolidated Main"" workfile.") -> 
A38: Consolidated Workfile | B38: =[1]Checklist!$B197 -> Population changes have been entered | C38: =[1]Checklist!$C197 -> NO | E38: =[1]Checklist!E197 -> NO | F38: =[1]Checklist!F197 -> NO | G38: =[1]Checklist!G197 -> NO | H38: =[1]Checklist!H197 -> NO | I38: =[1]Checklist!I197 -> NO | J38: =[1]Checklist!J197 -> NO | K38: =[1]Checklist!K197 -> NO | L38: =[1]Checklist!L197 -> NO | M38: =[1]Checklist!M197 -> NO | N38: =[1]Checklist!N197 -> NO
D39: =IF(C38="NO","","To ensure this is correct, go to worksheet ""Population Indexation"" in the ""Consolidated Main"" workfile.") -> 
A43: ="This workfile - "&PROPER(general_fund_name)&" workfile" -> This workfile - General Fund workfile
A45: Database | B45: Individual changes have been entered in the database | D45: Indiv %: | E45: =IF(COUNTA(Database!BP:BP)>1,1,"NO") -> NO | F45: =IF(COUNTA(Database!BW:BW)>1,1,"NO") -> 1 | G45: =IF(COUNTA(Database!CD:CD)>1,1,"NO") -> NO | H45: =IF(COUNTA(Database!CK:CK)>1,1,"NO") -> NO | I45: =IF(COUNTA(Database!CR:CR)>1,1,"NO") -> NO | J45: =IF(COUNTA(Database!CY:CY)>1,1,"NO") -> NO | K45: =IF(COUNTA(Database!DF:DF)>1,1,"NO") -> NO | L45: =IF(COUNTA(Database!DM:DM)>1,1,"NO") -> NO | M45: =IF(COUNTA(Database!DT:DT)>1,1,"NO") -> NO | N45: =IF(COUNTA(Database!EA:EA)>1,1,"NO") -> NO
D46: $ recurrent: | E46: =IF(COUNTA(Database!BQ:BQ)>2,1,"NO") -> 1 | F46: =IF(COUNTA(Database!BX:BX)>2,1,"NO") -> 1 | G46: =IF(COUNTA(Database!CE:CE)>2,1,"NO") -> 1 | H46: =IF(COUNTA(Database!CL:CL)>2,1,"NO") -> 1 | I46: =IF(COUNTA(Database!CS:CS)>2,1,"NO") -> 1 | J46: =IF(COUNTA(Database!CZ:CZ)>2,1,"NO") -> 1 | K46: =IF(COUNTA(Database!DG:DG)>2,1,"NO") -> 1 | L46: =IF(COUNTA(Database!DN:DN)>2,1,"NO") -> 1 | M46: =IF(COUNTA(Database!DU:DU)>2,1,"NO") -> 1 | N46: =IF(COUNTA(Database!EB:EB)>2,1,"NO") -> 1
D47: $ one-off: | E47: =IF(COUNTA(Database!BR:BR)>2,1,"NO") -> 1 | F47: =IF(COUNTA(Database!BY:BY)>2,1,"NO") -> 1 | G47: =IF(COUNTA(Database!CF:CF)>2,1,"NO") -> 1 | H47: =IF(COUNTA(Database!CM:CM)>2,1,"NO") -> 1 | I47: =IF(COUNTA(Database!CT:CT)>2,1,"NO") -> 1 | J47: =IF(COUNTA(Database!DA:DA)>2,1,"NO") -> 1 | K47: =IF(COUNTA(Database!DH:DH)>2,1,"NO") -> 1 | L47: =IF(COUNTA(Database!DO:DO)>2,1,"NO") -> 1 | M47: =IF(COUNTA(Database!DV:DV)>2,1,"NO") -> 1 | N47: =IF(COUNTA(Database!EC:EC)>2,1,"NO") -> 1
A49: Global % Changes | B49: Global changes have been entered | E49: =IF('Global Indexation'!D438=0,"NO","YES") -> YES | F49: =IF('Global Indexation'!E438=0,"NO","YES") -> YES | G49: =IF('Global Indexation'!F438=0,"NO","YES") -> YES | H49: =IF('Global Indexation'!G438=0,"NO","YES") -> YES | I49: =IF('Global Indexation'!H438=0,"NO","YES") -> YES | J49: =IF('Global Indexation'!I438=0,"NO","YES") -> YES | K49: =IF('Global Indexation'!J438=0,"NO","YES") -> YES | L49: =IF('Global Indexation'!K438=0,"NO","YES") -> YES | M49: =IF('Global Indexation'!L438=0,"NO","YES") -> YES | N49: =IF('Global Indexation'!M438=0,"NO","YES") -> YES
A54: Income Statement | B54: Rate for Investment Revenues entered | D54: =IF('Target %'!G11="",0,1) -> 1 | E54: =IF('Target %'!H11="",0,1) -> 1 | F54: =IF('Target %'!I11="",0,1) -> 1 | G54: =IF('Target %'!J11="",0,1) -> 1 | H54: =IF('Target %'!K11="",0,1) -> 1 | I54: =IF('Target %'!L11="",0,1) -> 1 | J54: =IF('Target %'!M11="",0,1) -> 1 | K54: =IF('Target %'!N11="",0,1) -> 1 | L54: =IF('Target %'!O11="",0,1) -> 1 | M54: =IF('Target %'!P11="",0,1) -> 1 | N54: =IF('Target %'!Q11="",0,1) -> 1
B55: Rate for S94 Interest entered | D55: =IF('Target %'!G12="",0,1) -> 0 | E55: =IF('Target %'!H12="",0,1) -> 0 | F55: =IF('Target %'!I12="",0,1) -> 0 | G55: =IF('Target %'!J12="",0,1) -> 0 | H55: =IF('Target %'!K12="",0,1) -> 0 | I55: =IF('Target %'!L12="",0,1) -> 0 | J55: =IF('Target %'!M12="",0,1) -> 0 | K55: =IF('Target %'!N12="",0,1) -> 0 | L55: =IF('Target %'!O12="",0,1) -> 0 | M55: =IF('Target %'!P12="",0,1) -> 0 | N55: =IF('Target %'!Q12="",0,1) -> 0
B56: Rate for S94 Interest is not larger than Rate for Investment Revenues | D56: =IF('Target %'!G12>'Target %'!G11,0,1) -> 1 | E56: =IF('Target %'!H12>'Target %'!H11,0,1) -> 1 | F56: =IF('Target %'!I12>'Target %'!I11,0,1) -> 1 | G56: =IF('Target %'!J12>'Target %'!J11,0,1) -> 1 | H56: =IF('Target %'!K12>'Target %'!K11,0,1) -> 1 | I56: =IF('Target %'!L12>'Target %'!L11,0,1) -> 1 | J56: =IF('Target %'!M12>'Target %'!M11,0,1) -> 1 | K56: =IF('Target %'!N12>'Target %'!N11,0,1) -> 1 | L56: =IF('Target %'!O12>'Target %'!O11,0,1) -> 1 | M56: =IF('Target %'!P12>'Target %'!P11,0,1) -> 1 | N56: =IF('Target %'!Q12>'Target %'!Q11,0,1) -> 1
A58: Balance Sheet | B58: Net Assets balance to Equity | D58: =IF('Balance Sheet'!E59=0,1,-2) -> 1 | E58: =IF('Balance Sheet'!G59=0,1,-2) -> 1 | F58: =IF('Balance Sheet'!H59=0,1,-2) -> 1 | G58: =IF('Balance Sheet'!I59=0,1,-2) -> 1 | H58: =IF('Balance Sheet'!J59=0,1,-2) -> 1 | I58: =IF('Balance Sheet'!K59=0,1,-2) -> 1 | J58: =IF('Balance Sheet'!L59=0,1,-2) -> 1 | K58: =IF('Balance Sheet'!M59=0,1,-2) -> 1 | L58: =IF('Balance Sheet'!N59=0,1,-2) -> 1 | M58: =IF('Balance Sheet'!O59=0,1,-2) -> 1 | N58: =IF('Balance Sheet'!P59=0,1,-2) -> 1
B59: No Bank Overdraft amount in Balance Sheet | D59: =IF('Balance Sheet'!E32=0,1,-2) -> 1 | E59: =IF('Balance Sheet'!G32=0,1,-2) -> 1 | F59: =IF('Balance Sheet'!H32=0,1,-2) -> 1 | G59: =IF('Balance Sheet'!I32=0,1,-2) -> 1 | H59: =IF('Balance Sheet'!J32=0,1,-2) -> 1 | I59: =IF('Balance Sheet'!K32=0,1,-2) -> 1 | J59: =IF('Balance Sheet'!L32=0,1,-2) -> 1 | K59: =IF('Balance Sheet'!M32=0,1,-2) -> 1 | L59: =IF('Balance Sheet'!N32=0,1,-2) -> 1 | M59: =IF('Balance Sheet'!O32=0,1,-2) -> 1 | N59: =IF('Balance Sheet'!P32=0,1,-2) -> 1
B61: Ensure no Balance Sheet amounts are negative:
B62: Cash & Cash Equivalents - current | D62: =IF('Balance Sheet'!E8<0,-2,1) -> 1 | E62: =IF('Balance Sheet'!G8<0,-2,1) -> 1 | F62: =IF('Balance Sheet'!H8<0,-2,1) -> 1 | G62: =IF('Balance Sheet'!I8<0,-2,1) -> 1 | H62: =IF('Balance Sheet'!J8<0,-2,1) -> 1 | I62: =IF('Balance Sheet'!K8<0,-2,1) -> 1 | J62: =IF('Balance Sheet'!L8<0,-2,1) -> 1 | K62: =IF('Balance Sheet'!M8<0,-2,1) -> 1 | L62: =IF('Balance Sheet'!N8<0,-2,1) -> 1 | M62: =IF('Balance Sheet'!O8<0,-2,1) -> 1 | N62: =IF('Balance Sheet'!P8<0,-2,1) -> 1 | O62: =IF(COUNT(D62:N62)-COUNTIF(D62:N62,"=1")=0,"","Refer worksheet """&IF(ISERROR(sheetname_general(balance_sheet_workings_general_main))=TRUE,"<activate macros>",sheetname_general(balance_sheet_workings_general_main))&""" rows """&ROW('BS workings'!A$8)&""" to """&ROW('BS workings'!A$51)&""".") -> 
... 65 more rows

Sheet Income Statement
A1: hide | B1: ='Cover Page'!$A$3 -> Burwood Council | R1: hide | S1: hide | T1: hide | U1: hide | V1: hide | W1: hide | X1: hide | Y1: hide | Z1: hide | AA1: hide | AB1: hide | AC1: hide | AD1: hide | AE1: hide | AF1: hide | AG1: hide | AH1: hide | AI1: hide | AJ1: hide | AK1: hide | AL1: hide | AM1: hide | AN1: hide | AO1: hide | AP1: hide | AQ1: hide | AR1: hide | AS1: hide | AT1: hide | AU1: hide | AV1: hide | AW1: hide | AX1: hide | AY1: hide | AZ1: hide | BA1: hide | BB1: hide | BC1: hide | BD1: hide | BE1: hide | BF1: hide | BG1: hide | BH1: hide | BI1: hide | BJ1: hide | BK1: hide | BL1: hide | BM1: hide | BN1: hide | BO1: hide | BP1: hide | BQ1: hide | BR1: hide | BS1: hide | BT1: hide | BU1: hide | BV1: hide | BW1: hide | BX1: hide | BY1: hide | BZ1: hide | CA1: hide | CB1: hide | CC1: hide | CD1: hide | CE1: hide | CF1: hide | CG1: hide | CH1: hide | CI1: hide | CJ1: hide | CK1: hide | CL1: hide | CM1: hide | CN1: hide | CO1: hide | CP1: hide | CQ1: hide | CR1: hide | CS1: hide | CT1: hide | CU1: hide | CV1: hide | CW1: hide | CX1: hide | CY1: hide | CZ1: hide | DA1: hide | DB1: hide | DC1: hide | DD1: hide | DE1: hide | DF1: hide | DG1: hide | DH1: hide | DI1: hide | DJ1: hide | DK1: hide | DL1: hide | DM1: hide | DN1: hide | DO1: hide | DP1: hide | DQ1: hide | DR1: hide | DS1: hide | DT1: hide | DU1: hide | DV1: hide | DW1: hide | DX1: hide | DY1: hide | DZ1: hide
B2: ='Cover Page'!$A$5 -> 10 Year Financial Plan for the Years ending 30 June 2029 | DZ2: end
B3: ="INCOME STATEMENT - "&UPPER(general_fund_name) -> INCOME STATEMENT - GENERAL FUND | D3: Actuals | F3: Current Year | H3: Projected Years | AG3: Forecasted Income | DZ3: end
B4: ="Scenario: "&general_scenario_name -> Scenario: Burwood Council - SRV Scenario - 2% above Rate Peg for 4years | D4: =Starting_year_general-2&"/"&RIGHT(Starting_year_general-1,2) -> 2017/18 | F4: =Starting_year_general-1&"/"&RIGHT(Starting_year_general,2) -> 2018/19 | H4: =Starting_year_general&"/"&RIGHT(Starting_year_general+1,2) -> 2019/20 | I4: =Starting_year_general+1&"/"&RIGHT(Starting_year_general+2,2) -> 2020/21 | J4: =Starting_year_general+2&"/"&RIGHT(Starting_year_general+3,2) -> 2021/22 | K4: =Starting_year_general+3&"/"&RIGHT(Starting_year_general+4,2) -> 2022/23 | L4: =Starting_year_general+4&"/"&RIGHT(Starting_year_general+5,2) -> 2023/24 | M4: =Starting_year_general+5&"/"&RIGHT(Starting_year_general+6,2) -> 2024/25 | N4: =Starting_year_general+6&"/"&RIGHT(Starting_year_general+7,2) -> 2025/26 | O4: =Starting_year_general+7&"/"&RIGHT(Starting_year_general+8,2) -> 2026/27 | P4: =Starting_year_general+8&"/"&RIGHT(Starting_year_general+9,2) -> 2027/28 | Q4: =Starting_year_general+9&"/"&RIGHT(Starting_year_general+10,2) -> 2028/29 | U4: =F4 -> 2018/19 | V4: =H4 -> 2019/20 | W4: 2020/21 | X4: 2021/22 | Y4: 2022/23 | Z4: 2023/24 | AA4: 2024/25 | AB4: 2025/26 | AC4: 2026/27 | AD4: 2027/28 | AE4: 2028/29 | AG4: =LEFT(Q4,4)+1&"/"&RIGHT(LEFT(Q4,4)+2,2) -> 2029/30 | AH4: =LEFT(AG4,4)+1&"/"&RIGHT(LEFT(AG4,4)+2,2) -> 2030/31 | AI4: 2031/32 | AJ4: 2032/33 | AK4: 2033/34 | AL4: 2034/35 | AM4: 2035/36 | AN4: 2036/37 | AO4: 2037/38 | AP4: 2038/39 | BD4: Non-cash Income | CD4: Cash Income | DD4: Cash Receivables | DZ4: end
D5: =IF('Cover Page'!$K$19=TRUE,"$","$'000") -> $ | F5: =IF('Cover Page'!$K$19=TRUE,"$","$'000") -> $ | H5: =IF('Cover Page'!$K$19=TRUE,"$","$'000") -> $ | I5: =IF('Cover Page'!$K$19=TRUE,"$","$'000") -> $ | J5: =IF('Cover Page'!$K$19=TRUE,"$","$'000") -> $ | K5: =IF('Cover Page'!$K$19=TRUE,"$","$'000") -> $ | L5: =IF('Cover Page'!$K$19=TRUE,"$","$'000") -> $ | M5: =IF('Cover Page'!$K$19=TRUE,"$","$'000") -> $ | N5: =IF('Cover Page'!$K$19=TRUE,"$","$'000") -> $ | O5: =IF('Cover Page'!$K$19=TRUE,"$","$'000") -> $ | P5: =IF('Cover Page'!$K$19=TRUE,"$","$'000") -> $ | Q5: =IF('Cover Page'!$K$19=TRUE,"$","$'000") -> $ | BD5: =F4 -> 2018/19 | BE5: =H4 -> 2019/20 | BF5: 2020/21 | BG5: 2021/22 | BH5: 2022/23 | BI5: 2023/24 | BJ5: 2024/25 | BK5: 2025/26 | BL5: 2026/27 | BM5: 2027/28 | BN5: 2028/29 | BO5: =AG4 -> 2029/30 | BP5: =AH4 -> 2030/31 | BQ5: 2031/32 | BR5: 2032/33 | BS5: 2033/34 | BT5: 2034/35 | BU5: 2035/36 | BV5: 2036/37 | BW5: 2037/38 | BX5: 2038/39 | CD5: =BD5 -> 2018/19 | CE5: =BE5 -> 2019/20 | CF5: 2020/21 | CG5: 2021/22 | CH5: 2022/23 | CI5: 2023/24 | CJ5: 2024/25 | CK5: 2025/26 | CL5: 2026/27 | CM5: 2027/28 | CN5: 2028/29 | CO5: 2029/30 | CP5: 2030/31 | CQ5: 2031/32 | CR5: =BR5 -> 2032/33 | CS5: =BS5 -> 2033/34 | CT5: =BT5 -> 2034/35 | CU5: =BU5 -> 2035/36 | CV5: =BV5 -> 2036/37 | CW5: =BW5 -> 2037/38 | CX5: 2038/39 | DD5: =CD5 -> 2018/19 | DE5: =CE5 -> 2019/20 | DF5: 2020/21 | DG5: 2021/22 | DH5: 2022/23 | DI5: 2023/24 | DJ5: 2024/25 | DK5: 2025/26 | DL5: 2026/27 | DM5: 2027/28 | DN5: 2028/29 | DO5: 2029/30 | DP5: 2030/31 | DQ5: 2031/32 | DR5: 2032/33 | DS5: 2033/34 | DT5: 2034/35 | DU5: 2035/36 | DV5: =CV5 -> 2036/37 | DW5: =CW5 -> 2037/38 | DX5: 2038/39 | DZ5: end
B6: Income from Continuing Operations | DZ6: end
A7: Code | B7: Revenue: | DZ7: end
A8: =B8 -> Rates & Annual Charges | B8: Rates & Annual Charges | D8: =SUM('Historical Data'!C642)*1000 -> 26708000 | F8: ='IS Workings'!E19 -> 27854675 | H8: ='IS Workings'!G19 -> 29153993 | I8: ='IS Workings'!H19 -> 30663690.21 | J8: ='IS Workings'!I19 -> 32201375.7 | K8: ='IS Workings'!J19 -> 33796285.04 | L8: ='IS Workings'!K19 -> 34972995.02 | M8: ='IS Workings'!L19 -> 36002518.84 | N8: ='IS Workings'!M19 -> 37373517.11 | O8: ='IS Workings'!N19 -> 38474387.76 | P8: ='IS Workings'!O19 -> 39780513.41 | Q8: ='IS Workings'!P19 -> 40952970.92 | S8: yes | U8: =IF($S8="yes",F8-BD8,0) -> 27854675 | V8: =IF($S8="yes",H8-BE8,0) -> 29153993 | W8: 30663690.21 | X8: 32201375.7 | Y8: 33796285.04 | Z8: 34972995.02 | AA8: 36002518.84 | AB8: 37373517.11 | AC8: 38474387.76 | AD8: 39780513.41 | AE8: 40952970.92 | BD8: =SUMIF('Budget Summary 1'!$C:$C,$A8,'Budget Summary 1'!BC:BC) -> 0 | BE8: =SUMIF('Budget Summary 1'!$C:$C,$A8,'Budget Summary 1'!BD:BD) -> 0 | BF8: =SUMIF('Budget Summary 1'!$C:$C,$A8,'Budget Summary 1'!BE:BE) -> 0 | BG8: =SUMIF('Budget Summary 1'!$C:$C,$A8,'Budget Summary 1'!BF:BF) -> 0 | BH8: =SUMIF('Budget Summary 1'!$C:$C,$A8,'Budget Summary 1'!BG:BG) -> 0 | BI8: =SUMIF('Budget Summary 1'!$C:$C,$A8,'Budget Summary 1'!BH:BH) -> 0 | BJ8: =SUMIF('Budget Summary 1'!$C:$C,$A8,'Budget Summary 1'!BI:BI) -> 0 | BK8: =SUMIF('Budget Summary 1'!$C:$C,$A8,'Budget Summary 1'!BJ:BJ) -> 0 | BL8: =SUMIF('Budget Summary 1'!$C:$C,$A8,'Budget Summary 1'!BK:BK) -> 0 | BM8: =SUMIF('Budget Summary 1'!$C:$C,$A8,'Budget Summary 1'!BL:BL) -> 0 | BN8: =SUMIF('Budget Summary 1'!$C:$C,$A8,'Budget Summary 1'!BM:BM) -> 0 | CD8: =F8-BD8 -> 27854675 | CE8: =H8-BE8 -> 29153993 | CF8: 30663690.21 | CG8: 32201375.7 | CH8: 33796285.04 | CI8: 34972995.02 | CJ8: 36002518.84 | CK8: 37373517.11 | CL8: 38474387.76 | CM8: 39780513.41 | CN8: 40952970.92 | DD8: =IF($S8="yes",CD8,0) -> 27854675 | DE8: =IF($S8="yes",CE8,0) -> 29153993 | DF8: 30663690.21 | DG8: 32201375.7 | DH8: 33796285.04 | DI8: 34972995.02 | DJ8: 36002518.84 | DK8: 37373517.11 | DL8: 38474387.76 | DM8: 39780513.41 | DN8: 40952970.92 | DZ8: end
A9: =B9 -> User Charges & Fees | B9: User Charges & Fees | D9: =SUM('Historical Data'!C643)*1000 -> 11622000 | F9: ='IS Workings'!E38 -> 10843515 | H9: ='IS Workings'!G38 -> 10638128 | I9: ='IS Workings'!H38 -> 11046659.34 | J9: ='IS Workings'!I38 -> 11452568.83 | K9: ='IS Workings'!J38 -> 11769968.34 | L9: ='IS Workings'!K38 -> 12090518.4 | M9: ='IS Workings'!L38 -> 12480033.97 | N9: ='IS Workings'!M38 -> 12810271.03 | O9: ='IS Workings'!N38 -> 13160037.86 | P9: ='IS Workings'!O38 -> 13519606.9 | Q9: ='IS Workings'!P38 -> 13889258.37 | S9: yes | U9: =IF($S9="yes",F9-BD9,0) -> 10843515 | V9: 10638128 | W9: 11046659.34 | X9: 11452568.83 | Y9: 11769968.34 | Z9: 12090518.4 | AA9: 12480033.97 | AB9: 12810271.03 | AC9: 13160037.86 | AD9: 13519606.9 | AE9: 13889258.37 | BD9: =SUMIF('Budget Summary 1'!$C:$C,$A9,'Budget Summary 1'!BC:BC) -> 0 | BE9: =SUMIF('Budget Summary 1'!$C:$C,$A9,'Budget Summary 1'!BD:BD) -> 0 | BF9: =SUMIF('Budget Summary 1'!$C:$C,$A9,'Budget Summary 1'!BE:BE) -> 0 | BG9: =SUMIF('Budget Summary 1'!$C:$C,$A9,'Budget Summary 1'!BF:BF) -> 0 | BH9: =SUMIF('Budget Summary 1'!$C:$C,$A9,'Budget Summary 1'!BG:BG) -> 0 | BI9: =SUMIF('Budget Summary 1'!$C:$C,$A9,'Budget Summary 1'!BH:BH) -> 0 | BJ9: =SUMIF('Budget Summary 1'!$C:$C,$A9,'Budget Summary 1'!BI:BI) -> 0 | BK9: =SUMIF('Budget Summary 1'!$C:$C,$A9,'Budget Summary 1'!BJ:BJ) -> 0 | BL9: =SUMIF('Budget Summary 1'!$C:$C,$A9,'Budget Summary 1'!BK:BK) -> 0 | BM9: =SUMIF('Budget Summary 1'!$C:$C,$A9,'Budget Summary 1'!BL:BL) -> 0 | BN9: =SUMIF('Budget Summary 1'!$C:$C,$A9,'Budget Summary 1'!BM:BM) -> 0 | CD9: =F9-BD9 -> 10843515 | CE9: =H9-BE9 -> 10638128 | CF9: =I9-BF9 -> 11046659.34 | CG9: =J9-BG9 -> 11452568.83 | CH9: =K9-BH9 -> 11769968.34 | CI9: =L9-BI9 -> 12090518.4 | CJ9: =M9-BJ9 -> 12480033.97 | CK9: =N9-BK9 -> 12810271.03 | CL9: =O9-BL9 -> 13160037.86 | CM9: =P9-BM9 -> 13519606.9 | CN9: =Q9-BN9 -> 13889258.37 | DD9: =IF($S9="yes",CD9,0) -> 10843515 | DE9: 10638128 | DF9: 11046659.34 | DG9: 11452568.83 | DH9: 11769968.34 | DI9: 12090518.4 | DJ9: 12480033.97 | DK9: 12810271.03 | DL9: 13160037.86 | DM9: 13519606.9 | DN9: 13889258.37 | DZ9: end
A10: =IF(R10="","Interest & Investment Revenues - Other","Interest & Investment Revenue") -> Interest & Investment Revenue | B10: Interest & Investment Revenue | D10: =SUM('Historical Data'!C644)*1000 -> 1392000 | F10: ='IS Workings'!E58 -> 1300000 | H10: ='IS Workings'!G58 -> 1430000 | I10: ='IS Workings'!H58 -> 1656000 | J10: ='IS Workings'!I58 -> 1837000 | K10: ='IS Workings'!J58 -> 1988000 | L10: ='IS Workings'!K58 -> 2039000 | M10: ='IS Workings'!L58 -> 2145000 | N10: ='IS Workings'!M58 -> 2170000 | O10: ='IS Workings'!N58 -> 2206000 | P10: ='IS Workings'!O58 -> 2232000 | Q10: ='IS Workings'!P58 -> 2233000 | R10: rc | S10: yes | U10: 1300000 | V10: 1430000 | W10: 1656000 | X10: 1837000 | Y10: 1988000 | Z10: 2039000 | AA10: 2145000 | AB10: 2170000 | AC10: 2206000 | AD10: 2232000 | AE10: 2233000 | BD10: =SUMIF('Budget Summary 1'!$C:$C,$A10,'Budget Summary 1'!BC:BC) -> 0 | BE10: =SUMIF('Budget Summary 1'!$C:$C,$A10,'Budget Summary 1'!BD:BD) -> 0 | BF10: =SUMIF('Budget Summary 1'!$C:$C,$A10,'Budget Summary 1'!BE:BE) -> 0 | BG10: =SUMIF('Budget Summary 1'!$C:$C,$A10,'Budget Summary 1'!BF:BF) -> 0 | BH10: =SUMIF('Budget Summary 1'!$C:$C,$A10,'Budget Summary 1'!BG:BG) -> 0 | BI10: =SUMIF('Budget Summary 1'!$C:$C,$A10,'Budget Summary 1'!BH:BH) -> 0 | BJ10: =SUMIF('Budget Summary 1'!$C:$C,$A10,'Budget Summary 1'!BI:BI) -> 0 | BK10: =SUMIF('Budget Summary 1'!$C:$C,$A10,'Budget Summary 1'!BJ:BJ) -> 0 | BL10: =SUMIF('Budget Summary 1'!$C:$C,$A10,'Budget Summary 1'!BK:BK) -> 0 | BM10: =SUMIF('Budget Summary 1'!$C:$C,$A10,'Budget Summary 1'!BL:BL) -> 0 | BN10: =SUMIF('Budget Summary 1'!$C:$C,$A10,'Budget Summary 1'!BM:BM) -> 0 | CD10: =+SUMIF('Budget Summary 1'!$C:$C,$A10,'Budget Summary 1'!J:J)-BD10 -> 1300000 | CE10: =+SUMIF('Budget Summary 1'!$C:$C,$A10,'Budget Summary 1'!L:L)-BE10 -> 1430000 | CF10: =+SUMIF('Budget Summary 1'!$C:$C,$A10,'Budget Summary 1'!M:M)-BF10 -> 1656000 | CG10: =+SUMIF('Budget Summary 1'!$C:$C,$A10,'Budget Summary 1'!N:N)-BG10 -> 1837000 | CH10: =+SUMIF('Budget Summary 1'!$C:$C,$A10,'Budget Summary 1'!O:O)-BH10 -> 1988000 | CI10: =+SUMIF('Budget Summary 1'!$C:$C,$A10,'Budget Summary 1'!P:P)-BI10 -> 2039000 | CJ10: =+SUMIF('Budget Summary 1'!$C:$C,$A10,'Budget Summary 1'!Q:Q)-BJ10 -> 2145000 | CK10: =+SUMIF('Budget Summary 1'!$C:$C,$A10,'Budget Summary 1'!R:R)-BK10 -> 2170000 | CL10: =+SUMIF('Budget Summary 1'!$C:$C,$A10,'Budget Summary 1'!S:S)-BL10 -> 2206000 | CM10: =+SUMIF('Budget Summary 1'!$C:$C,$A10,'Budget Summary 1'!T:T)-BM10 -> 2232000 | CN10: =+SUMIF('Budget Summary 1'!$C:$C,$A10,'Budget Summary 1'!U:U)-BN10 -> 2233000 | DD10: 1300000 | DE10: 1430000 | DF10: 1656000 | DG10: 1837000 | DH10: 1988000 | DI10: 2039000 | DJ10: 2145000 | DK10: 2170000 | DL10: 2206000 | DM10: 2232000 | DN10: 2233000 | DZ10: end
A11: =B11 -> Other Revenues | B11: Other Revenues | D11: =SUM('Historical Data'!C645)*1000 -> 5620000 | F11: ='IS Workings'!E79 -> 4706813 | H11: ='IS Workings'!G79 -> 4723116 | I11: ='IS Workings'!H79 -> 4817578.32 | J11: ='IS Workings'!I79 -> 4913929.89 | K11: ='IS Workings'!J79 -> 5012208.48 | L11: ='IS Workings'!K79 -> 5112452.65 | M11: ='IS Workings'!L79 -> 5214701.66 | N11: ='IS Workings'!M79 -> 5318995.68 | O11: ='IS Workings'!N79 -> 5425375.58 | P11: ='IS Workings'!O79 -> 5533883.08 | Q11: ='IS Workings'!P79 -> 5644560.77 | S11: yes | U11: 4706813 | V11: 4723116 | W11: 4817578.32 | X11: 4913929.89 | Y11: 5012208.48 | Z11: 5112452.65 | AA11: 5214701.66 | AB11: 5318995.68 | AC11: 5425375.58 | AD11: 5533883.08 | AE11: 5644560.77 | BD11: =SUMIF('Budget Summary 1'!$C:$C,$A11,'Budget Summary 1'!BC:BC) -> 0 | BE11: =SUMIF('Budget Summary 1'!$C:$C,$A11,'Budget Summary 1'!BD:BD) -> 0 | BF11: =SUMIF('Budget Summary 1'!$C:$C,$A11,'Budget Summary 1'!BE:BE) -> 0 | BG11: =SUMIF('Budget Summary 1'!$C:$C,$A11,'Budget Summary 1'!BF:BF) -> 0 | BH11: =SUMIF('Budget Summary 1'!$C:$C,$A11,'Budget Summary 1'!BG:BG) -> 0 | BI11: =SUMIF('Budget Summary 1'!$C:$C,$A11,'Budget Summary 1'!BH:BH) -> 0 | BJ11: =SUMIF('Budget Summary 1'!$C:$C,$A11,'Budget Summary 1'!BI:BI) -> 0 | BK11: =SUMIF('Budget Summary 1'!$C:$C,$A11,'Budget Summary 1'!BJ:BJ) -> 0 | BL11: =SUMIF('Budget Summary 1'!$C:$C,$A11,'Budget Summary 1'!BK:BK) -> 0 | BM11: =SUMIF('Budget Summary 1'!$C:$C,$A11,'Budget Summary 1'!BL:BL) -> 0 | BN11: =SUMIF('Budget Summary 1'!$C:$C,$A11,'Budget Summary 1'!BM:BM) -> 0 | CD11: 4706813 | CE11: 4723116 | CF11: 4817578.32 | CG11: 4913929.89 | CH11: 5012208.48 | CI11: 5112452.65 | CJ11: 5214701.66 | CK11: 5318995.68 | CL11: 5425375.58 | CM11: 5533883.08 | CN11: 5644560.77 | DD11: 4706813 | DE11: 4723116 | DF11: 4817578.32 | DG11: 4913929.89 | DH11: 5012208.48 | DI11: 5112452.65 | DJ11: 5214701.66 | DK11: 5318995.68 | DL11: 5425375.58 | DM11: 5533883.08 | DN11: 5644560.77 | DZ11: end
A12: =B12 -> Grants & Contributions provided for Operating Purposes | B12: Grants & Contributions provided for Operating Purposes | D12: =SUM('Historical Data'!C646)*1000 -> 3465000 | F12: ='IS Workings'!E95 -> 3392042 | H12: ='IS Workings'!G95 -> 3517168 | I12: ='IS Workings'!H95 -> 3606949.04 | J12: ='IS Workings'!I95 -> 3699255.5 | K12: ='IS Workings'!J95 -> 3798412.5 | L12: ='IS Workings'!K95 -> 3901599.83 | M12: ='IS Workings'!L95 -> 4010684.65 | N12: ='IS Workings'!M95 -> 4123663.05 | O12: ='IS Workings'!N95 -> 4239883.95 | P12: ='IS Workings'!O95 -> 4359441.72 | Q12: ='IS Workings'!P95 -> 4482433.44 | S12: yes | U12: 3392042 | V12: 3517168 | W12: 3606949.04 | X12: 3699255.5 | Y12: 3798412.5 | Z12: 3901599.83 | AA12: 4010684.65 | AB12: 4123663.05 | AC12: 4239883.95 | AD12: 4359441.72 | AE12: 4482433.44 | BD12: =SUMIF('Budget Summary 1'!$C:$C,$A12,'Budget Summary 1'!BC:BC) -> 0 | BE12: =SUMIF('Budget Summary 1'!$C:$C,$A12,'Budget Summary 1'!BD:BD) -> 0 | BF12: =SUMIF('Budget Summary 1'!$C:$C,$A12,'Budget Summary 1'!BE:BE) -> 0 | BG12: =SUMIF('Budget Summary 1'!$C:$C,$A12,'Budget Summary 1'!BF:BF) -> 0 | BH12: =SUMIF('Budget Summary 1'!$C:$C,$A12,'Budget Summary 1'!BG:BG) -> 0 | BI12: =SUMIF('Budget Summary 1'!$C:$C,$A12,'Budget Summary 1'!BH:BH) -> 0 | BJ12: =SUMIF('Budget Summary 1'!$C:$C,$A12,'Budget Summary 1'!BI:BI) -> 0 | BK12: =SUMIF('Budget Summary 1'!$C:$C,$A12,'Budget Summary 1'!BJ:BJ) -> 0 | BL12: =SUMIF('Budget Summary 1'!$C:$C,$A12,'Budget Summary 1'!BK:BK) -> 0 | BM12: =SUMIF('Budget Summary 1'!$C:$C,$A12,'Budget Summary 1'!BL:BL) -> 0 | BN12: =SUMIF('Budget Summary 1'!$C:$C,$A12,'Budget Summary 1'!BM:BM) -> 0 | CD12: 3392042 | CE12: 3517168 | CF12: 3606949.04 | CG12: 3699255.5 | CH12: 3798412.5 | CI12: 3901599.83 | CJ12: 4010684.65 | CK12: 4123663.05 | CL12: 4239883.95 | CM12: 4359441.72 | CN12: 4482433.44 | DD12: 3392042 | DE12: 3517168 | DF12: 3606949.04 | DG12: 3699255.5 | DH12: 3798412.5 | DI12: 3901599.83 | DJ12: 4010684.65 | DK12: 4123663.05 | DL12: 4239883.95 | DM12: 4359441.72 | DN12: 4482433.44 | DZ12: end
A13: =B13 -> Grants & Contributions provided for Capital Purposes | B13: Grants & Contributions provided for Capital Purposes | D13: =SUM('Historical Data'!C647)*1000 -> 14164000 | F13: ='IS Workings'!E116 -> 14757088 | H13: ='IS Workings'!G116 -> 7530000 | I13: ='IS Workings'!H116 -> 7540000 | J13: ='IS Workings'!I116 -> 7075920 | K13: ='IS Workings'!J116 -> 5617179.2 | L13: ='IS Workings'!K116 -> 5713821 | M13: ='IS Workings'!L116 -> 5850830.21 | N13: ='IS Workings'!M116 -> 6038208.52 | O13: ='IS Workings'!N116 -> 5875960.61 | P13: ='IS Workings'!O116 -> 5919120.22 | Q13: ='IS Workings'!P116 -> 5962711.42 | S13: yes | U13: 14757088 | V13: 7530000 | W13: 7540000 | X13: 7075920 | Y13: 5617179.2 | Z13: 5713821 | AA13: 5850830.21 | AB13: 6038208.52 | AC13: 5875960.61 | AD13: 5919120.22 | AE13: 5962711.42 | BD13: =SUMIF('Budget Summary 1'!$C:$C,$A13,'Budget Summary 1'!BC:BC) -> 0 | BE13: =SUMIF('Budget Summary 1'!$C:$C,$A13,'Budget Summary 1'!BD:BD) -> 0 | BF13: =SUMIF('Budget Summary 1'!$C:$C,$A13,'Budget Summary 1'!BE:BE) -> 0 | BG13: =SUMIF('Budget Summary 1'!$C:$C,$A13,'Budget Summary 1'!BF:BF) -> 0 | BH13: =SUMIF('Budget Summary 1'!$C:$C,$A13,'Budget Summary 1'!BG:BG) -> 0 | BI13: =SUMIF('Budget Summary 1'!$C:$C,$A13,'Budget Summary 1'!BH:BH) -> 0 | BJ13: =SUMIF('Budget Summary 1'!$C:$C,$A13,'Budget Summary 1'!BI:BI) -> 0 | BK13: =SUMIF('Budget Summary 1'!$C:$C,$A13,'Budget Summary 1'!BJ:BJ) -> 0 | BL13: =SUMIF('Budget Summary 1'!$C:$C,$A13,'Budget Summary 1'!BK:BK) -> 0 | BM13: =SUMIF('Budget Summary 1'!$C:$C,$A13,'Budget Summary 1'!BL:BL) -> 0 | BN13: =SUMIF('Budget Summary 1'!$C:$C,$A13,'Budget Summary 1'!BM:BM) -> 0 | CD13: 14757088 | CE13: 7530000 | CF13: 7540000 | CG13: 7075920 | CH13: 5617179.2 | CI13: 5713821 | CJ13: 5850830.21 | CK13: 6038208.52 | CL13: 5875960.61 | CM13: 5919120.22 | CN13: 5962711.42 | DD13: 14757088 | DE13: 7530000 | DF13: 7540000 | DG13: 7075920 | DH13: 5617179.2 | DI13: 5713821 | DJ13: 5850830.21 | DK13: 6038208.52 | DL13: 5875960.61 | DM13: 5919120.22 | DN13: 5962711.42 | DZ13: end
B14: Other Income: | DZ14: end
A15: =B15 -> Net gains from the disposal of assets | B15: Net gains from the disposal of assets | D15: =SUM('Historical Data'!C649)*1000 -> 0 | F15: ='IS Workings'!E143 -> 0 | H15: ='IS Workings'!G143 -> 0 | I15: ='IS Workings'!H143 -> 0 | J15: ='IS Workings'!I143 -> 0 | K15: ='IS Workings'!J143 -> 0 | L15: ='IS Workings'!K143 -> 0 | M15: ='IS Workings'!L143 -> 0 | N15: ='IS Workings'!M143 -> 0 | O15: ='IS Workings'!N143 -> 0 | P15: ='IS Workings'!O143 -> 0 | Q15: ='IS Workings'!P143 -> 0 | S15: yes | U15: 0 | V15: =IF($S15="yes",H15-BE15,0) -> 0 | W15: =IF($S15="yes",I15-BF15,0) -> 0 | X15: =IF($S15="yes",J15-BG15,0) -> 0 | Y15: =IF($S15="yes",K15-BH15,0) -> 0 | Z15: =IF($S15="yes",L15-BI15,0) -> 0 | AA15: =IF($S15="yes",M15-BJ15,0) -> 0 | AB15: =IF($S15="yes",N15-BK15,0) -> 0 | AC15: =IF($S15="yes",O15-BL15,0) -> 0 | AD15: =IF($S15="yes",P15-BM15,0) -> 0 | AE15: =IF($S15="yes",Q15-BN15,0) -> 0 | BB15: different formula | BD15: =F15 -> 0 | BE15: =H15 -> 0 | BF15: =I15 -> 0 | BG15: 0 | BH15: 0 | BI15: 0 | BJ15: 0 | BK15: 0 | BL15: 0 | BM15: 0 | BN15: 0 | CD15: =F15-BD15 -> 0 | CE15: =H15-BE15 -> 0 | CF15: =I15-BF15 -> 0 | CG15: =J15-BG15 -> 0 | CH15: =K15-BH15 -> 0 | CI15: =L15-BI15 -> 0 | CJ15: =M15-BJ15 -> 0 | CK15: =N15-BK15 -> 0 | CL15: =O15-BL15 -> 0 | CM15: =P15-BM15 -> 0 | CN15: =Q15-BN15 -> 0 | DD15: =IF($S15="yes",CD15,0) -> 0 | DE15: =IF($S15="yes",CE15,0) -> 0 | DF15: 0 | DG15: 0 | DH15: 0 | DI15: 0 | DJ15: 0 | DK15: 0 | DL15: 0 | DM15: 0 | DN15: 0 | DZ15: end
A16: =B16&" - Gain" -> Joint Ventures & Associated Entities - Gain | B16: Joint Ventures & Associated Entities | D16: =SUM('Historical Data'!C650)*1000 -> 104000 | F16: ='IS Workings'!E162 -> 0 | H16: ='IS Workings'!G162 -> 0 | I16: ='IS Workings'!H162 -> 0 | J16: ='IS Workings'!I162 -> 0 | K16: ='IS Workings'!J162 -> 0 | L16: ='IS Workings'!K162 -> 0 | M16: ='IS Workings'!L162 -> 0 | N16: ='IS Workings'!M162 -> 0 | O16: ='IS Workings'!N162 -> 0 | P16: ='IS Workings'!O162 -> 0 | Q16: ='IS Workings'!P162 -> 0 | S16: yes | U16: 0 | V16: 0 | W16: 0 | X16: 0 | Y16: 0 | Z16: 0 | AA16: 0 | AB16: 0 | AC16: 0 | AD16: 0 | AE16: 0 | BB16: different formula | BD16: =F16 -> 0 | BE16: =H16 -> 0 | BF16: =I16 -> 0 | BG16: =J16 -> 0 | BH16: =K16 -> 0 | BI16: =L16 -> 0 | BJ16: =M16 -> 0 | BK16: =N16 -> 0 | BL16: =O16 -> 0 | BM16: =P16 -> 0 | BN16: =Q16 -> 0 | CD16: =F16-BD16 -> 0 | CE16: =H16-BE16 -> 0 | CF16: =I16-BF16 -> 0 | CG16: =J16-BG16 -> 0 | CH16: =K16-BH16 -> 0 | CI16: =L16-BI16 -> 0 | CJ16: =M16-BJ16 -> 0 | CK16: =N16-BK16 -> 0 | CL16: =O16-BL16 -> 0 | CM16: =P16-BM16 -> 0 | CN16: =Q16-BN16 -> 0 | DD16: =IF($S16="yes",CD16,0) -> 0 | DE16: 0 | DF16: 0 | DG16: 0 | DH16: 0 | DI16: 0 | DJ16: 0 | DK16: 0 | DL16: 0 | DM16: 0 | DN16: 0 | DZ16: end
B17: Total Income from Continuing Operations | D17: =SUM(D7:D16) -> 63075000 | F17: 62854133 | H17: 56992405 | I17: 59330876.91 | J17: 61180049.92 | K17: 61982053.56 | L17: 63830386.9 | M17: 65703769.33 | N17: 67834655.39 | O17: 69381645.76 | P17: 71344565.33 | Q17: 73164934.92 | U17: =SUM(U8:U16) -> 62854133 | V17: =SUM(V8:V16) -> 56992405 | W17: =SUM(W8:W16) -> 59330876.91 | X17: 61180049.92 | Y17: 61982053.56 | Z17: 63830386.9 | AA17: 65703769.33 | AB17: 67834655.39 | AC17: 69381645.76 | AD17: 71344565.33 | AE17: 73164934.92 | BD17: =SUM(BD7:BD16) -> 0 | BE17: 0 | BF17: 0 | BG17: 0 | BH17: 0 | BI17: 0 | BJ17: 0 | BK17: 0 | BL17: 0 | BM17: 0 | BN17: 0 | CD17: =SUM(CD7:CD16) -> 62854133 | CE17: 56992405 | CF17: 59330876.91 | CG17: 61180049.92 | CH17: 61982053.56 | CI17: 63830386.9 | CJ17: 65703769.33 | CK17: 67834655.39 | CL17: 69381645.76 | CM17: 71344565.33 | CN17: 73164934.92 | DD17: =SUM(DD7:DD16) -> 62854133 | DE17: 56992405 | DF17: 59330876.91 | DG17: 61180049.92 | DH17: 61982053.56 | DI17: 63830386.9 | DJ17: 65703769.33 | DK17: 67834655.39 | DL17: 69381645.76 | DM17: 71344565.33 | DN17: 73164934.92 | DZ17: end
DZ18: end
B19: Expenses from Continuing Operations | AF19: Forecasted Expenditure | BD19: Non-cash Expenditure | CD19: Cash Expenditure | DD19: Cash Payables | DZ19: end
A20: =B20 -> Employee Benefits & On-Costs | B20: Employee Benefits & On-Costs | D20: =SUM('Historical Data'!C654)*1000 -> 17885000 | F20: ='IS Workings'!E187 -> 19976704 | H20: ='IS Workings'!G187 -> 21690552 | I20: ='IS Workings'!H187 -> 22181294.88 | J20: ='IS Workings'!I187 -> 22735826.98 | K20: ='IS Workings'!J187 -> 23354222.79 | L20: ='IS Workings'!K187 -> 24028349.25 | M20: ='IS Workings'!L187 -> 24723449.83 | N20: ='IS Workings'!M187 -> 25465153.1 | O20: ='IS Workings'!N187 -> 26229107.85 | P20: ='IS Workings'!O187 -> 27015981.54 | Q20: ='IS Workings'!P187 -> 27826460.81 | S20: yes | BD20: =SUMIF('Budget Summary 1'!$C:$C,$A20,'Budget Summary 1'!BC:BC) -> 0 | BE20: =SUMIF('Budget Summary 1'!$C:$C,$A20,'Budget Summary 1'!BD:BD) -> 0 | BF20: =SUMIF('Budget Summary 1'!$C:$C,$A20,'Budget Summary 1'!BE:BE) -> 0 | BG20: =SUMIF('Budget Summary 1'!$C:$C,$A20,'Budget Summary 1'!BF:BF) -> 0 | BH20: =SUMIF('Budget Summary 1'!$C:$C,$A20,'Budget Summary 1'!BG:BG) -> 0 | BI20: =SUMIF('Budget Summary 1'!$C:$C,$A20,'Budget Summary 1'!BH:BH) -> 0 | BJ20: =SUMIF('Budget Summary 1'!$C:$C,$A20,'Budget Summary 1'!BI:BI) -> 0 | BK20: =SUMIF('Budget Summary 1'!$C:$C,$A20,'Budget Summary 1'!BJ:BJ) -> 0 | BL20: =SUMIF('Budget Summary 1'!$C:$C,$A20,'Budget Summary 1'!BK:BK) -> 0 | BM20: =SUMIF('Budget Summary 1'!$C:$C,$A20,'Budget Summary 1'!BL:BL) -> 0 | BN20: =SUMIF('Budget Summary 1'!$C:$C,$A20,'Budget Summary 1'!BM:BM) -> 0 | CD20: =F20-BD20 -> 19976704 | CE20: =H20-BE20 -> 21690552 | CF20: =I20-BF20 -> 22181294.88 | CG20: =J20-BG20 -> 22735826.98 | CH20: =K20-BH20 -> 23354222.79 | CI20: =L20-BI20 -> 24028349.25 | CJ20: =M20-BJ20 -> 24723449.83 | CK20: =N20-BK20 -> 25465153.1 | CL20: =O20-BL20 -> 26229107.85 | CM20: =P20-BM20 -> 27015981.54 | CN20: =Q20-BN20 -> 27826460.81 | DD20: =IF($S20="yes",CD20,0) -> 19976704 | DE20: =IF($S20="yes",CE20,0) -> 21690552 | DF20: 22181294.88 | DG20: 22735826.98 | DH20: 23354222.79 | DI20: 24028349.25 | DJ20: 24723449.83 | DK20: 25465153.1 | DL20: 26229107.85 | DM20: 27015981.54 | DN20: 27826460.81 | DZ20: end
A21: =B21 -> Borrowing Costs | B21: Borrowing Costs | D21: =SUM('Historical Data'!C655)*1000 -> 325000 | F21: ='IS Workings'!E211 -> 330273 | H21: ='IS Workings'!G211 -> 331922.2181 | I21: ='IS Workings'!H211 -> 307065.5973 | J21: ='IS Workings'!I211 -> 280897.3322 | K21: ='IS Workings'!J211 -> 259314.1938 | L21: ='IS Workings'!K211 -> 238593.8454 | M21: ='IS Workings'!L211 -> 223429.8387 | N21: ='IS Workings'!M211 -> 217913.6101 | O21: ='IS Workings'!N211 -> 208278.477 | P21: ='IS Workings'!O211 -> 206540.6338 | Q21: ='IS Workings'!P211 -> 219585.1478 | S21: yes | BD21: =SUMIF('Budget Summary 1'!$C:$C,$A21,'Budget Summary 1'!BC:BC) -> 0 | BE21: =SUMIF('Budget Summary 1'!$C:$C,$A21,'Budget Summary 1'!BD:BD) -> 0 | BF21: =SUMIF('Budget Summary 1'!$C:$C,$A21,'Budget Summary 1'!BE:BE) -> 0 | BG21: =SUMIF('Budget Summary 1'!$C:$C,$A21,'Budget Summary 1'!BF:BF) -> 0 | BH21: =SUMIF('Budget Summary 1'!$C:$C,$A21,'Budget Summary 1'!BG:BG) -> 0 | BI21: =SUMIF('Budget Summary 1'!$C:$C,$A21,'Budget Summary 1'!BH:BH) -> 0 | BJ21: =SUMIF('Budget Summary 1'!$C:$C,$A21,'Budget Summary 1'!BI:BI) -> 0 | BK21: =SUMIF('Budget Summary 1'!$C:$C,$A21,'Budget Summary 1'!BJ:BJ) -> 0 | BL21: =SUMIF('Budget Summary 1'!$C:$C,$A21,'Budget Summary 1'!BK:BK) -> 0 | BM21: =SUMIF('Budget Summary 1'!$C:$C,$A21,'Budget Summary 1'!BL:BL) -> 0 | BN21: =SUMIF('Budget Summary 1'!$C:$C,$A21,'Budget Summary 1'!BM:BM) -> 0 | CD21: =F21-BD21 -> 330273 | CE21: =H21-BE21 -> 331922.2181 | CF21: =I21-BF21 -> 307065.5973 | CG21: =J21-BG21 -> 280897.3322 | CH21: =K21-BH21 -> 259314.1938 | CI21: =L21-BI21 -> 238593.8454 | CJ21: =M21-BJ21 -> 223429.8387 | CK21: =N21-BK21 -> 217913.6101 | CL21: =O21-BL21 -> 208278.477 | CM21: =P21-BM21 -> 206540.6338 | CN21: =Q21-BN21 -> 219585.1478 | DD21: =IF($S21="yes",CD21,0) -> 330273 | DE21: 331922.2181 | DF21: 307065.5973 | DG21: 280897.3322 | DH21: 259314.1938 | DI21: 238593.8454 | DJ21: 223429.8387 | DK21: 217913.6101 | DL21: 208278.477 | DM21: 206540.6338 | DN21: 219585.1478 | DZ21: end
A22: Materials & Contracts | B22: Materials & Contracts | D22: =SUM('Historical Data'!C656)*1000 -> 11796000 | F22: ='IS Workings'!E240 -> 12626864 | H22: ='IS Workings'!G240 -> 11040916 | I22: ='IS Workings'!H240 -> 11507405.02 | J22: ='IS Workings'!I240 -> 11555245.27 | K22: ='IS Workings'!J240 -> 11994842.2 | L22: ='IS Workings'!K240 -> 12357046.22 | M22: ='IS Workings'!L240 -> 13077371.25 | N22: ='IS Workings'!M240 -> 13831276.1 | O22: ='IS Workings'!N240 -> 14055276.54 | P22: ='IS Workings'!O240 -> 14507859.52 | Q22: ='IS Workings'!P240 -> 14784369.57 | S22: yes | BD22: =SUMIF('Budget Summary 1'!$C:$C,$A22,'Budget Summary 1'!BC:BC) -> 0 | BE22: =SUMIF('Budget Summary 1'!$C:$C,$A22,'Budget Summary 1'!BD:BD) -> 0 | BF22: =SUMIF('Budget Summary 1'!$C:$C,$A22,'Budget Summary 1'!BE:BE) -> 0 | BG22: =SUMIF('Budget Summary 1'!$C:$C,$A22,'Budget Summary 1'!BF:BF) -> 0 | BH22: =SUMIF('Budget Summary 1'!$C:$C,$A22,'Budget Summary 1'!BG:BG) -> 0 | BI22: =SUMIF('Budget Summary 1'!$C:$C,$A22,'Budget Summary 1'!BH:BH) -> 0 | BJ22: =SUMIF('Budget Summary 1'!$C:$C,$A22,'Budget Summary 1'!BI:BI) -> 0 | BK22: =SUMIF('Budget Summary 1'!$C:$C,$A22,'Budget Summary 1'!BJ:BJ) -> 0 | BL22: =SUMIF('Budget Summary 1'!$C:$C,$A22,'Budget Summary 1'!BK:BK) -> 0 | BM22: =SUMIF('Budget Summary 1'!$C:$C,$A22,'Budget Summary 1'!BL:BL) -> 0 | BN22: =SUMIF('Budget Summary 1'!$C:$C,$A22,'Budget Summary 1'!BM:BM) -> 0 | CD22: 12626864 | CE22: 11040916 | CF22: 11507405.02 | CG22: 11555245.27 | CH22: 11994842.2 | CI22: 12357046.22 | CJ22: 13077371.25 | CK22: 13831276.1 | CL22: 14055276.54 | CM22: 14507859.52 | CN22: 14784369.57 | DD22: 12626864 | DE22: 11040916 | DF22: 11507405.02 | DG22: 11555245.27 | DH22: 11994842.2 | DI22: 12357046.22 | DJ22: 13077371.25 | DK22: 13831276.1 | DL22: 14055276.54 | DM22: 14507859.52 | DN22: 14784369.57 | DZ22: end
A23: Depreciation & Amortisation | B23: Depreciation & Amortisation | D23: =SUM('Historical Data'!C657)*1000 -> 6969000 | F23: ='IS Workings'!E260 -> 7175000 | H23: ='IS Workings'!G260 -> 7335000 | I23: ='IS Workings'!H260 -> 7408350 | J23: ='IS Workings'!I260 -> 7482433.5 | K23: ='IS Workings'!J260 -> 7557257.87 | L23: ='IS Workings'!K260 -> 7632830.45 | M23: ='IS Workings'!L260 -> 7709158.77 | N23: ='IS Workings'!M260 -> 7786250.34 | O23: ='IS Workings'!N260 -> 7864112.85 | P23: ='IS Workings'!O260 -> 7942753.97 | Q23: ='IS Workings'!P260 -> 8022181.52 | S23: yes | BD23: =SUMIF('Budget Summary 1'!$C:$C,$A23,'Budget Summary 1'!BC:BC) -> 7175000 | BE23: =SUMIF('Budget Summary 1'!$C:$C,$A23,'Budget Summary 1'!BD:BD) -> 7335000 | BF23: =SUMIF('Budget Summary 1'!$C:$C,$A23,'Budget Summary 1'!BE:BE) -> 7408350 | BG23: =SUMIF('Budget Summary 1'!$C:$C,$A23,'Budget Summary 1'!BF:BF) -> 7482433.5 | BH23: =SUMIF('Budget Summary 1'!$C:$C,$A23,'Budget Summary 1'!BG:BG) -> 7557257.87 | BI23: =SUMIF('Budget Summary 1'!$C:$C,$A23,'Budget Summary 1'!BH:BH) -> 7632830.45 | BJ23: =SUMIF('Budget Summary 1'!$C:$C,$A23,'Budget Summary 1'!BI:BI) -> 7709158.77 | BK23: =SUMIF('Budget Summary 1'!$C:$C,$A23,'Budget Summary 1'!BJ:BJ) -> 7786250.34 | BL23: =SUMIF('Budget Summary 1'!$C:$C,$A23,'Budget Summary 1'!BK:BK) -> 7864112.85 | BM23: =SUMIF('Budget Summary 1'!$C:$C,$A23,'Budget Summary 1'!BL:BL) -> 7942753.97 | BN23: =SUMIF('Budget Summary 1'!$C:$C,$A23,'Budget Summary 1'!BM:BM) -> 8022181.52 | CD23: 0 | CE23: 0 | CF23: 0 | CG23: 0 | CH23: 0 | CI23: 0 | CJ23: 0 | CK23: 0 | CL23: 0 | CM23: 0 | CN23: 0 | DD23: 0 | DE23: 0 | DF23: 0 | DG23: 0 | DH23: 0 | DI23: 0 | DJ23: 0 | DK23: 0 | DL23: 0 | DM23: 0 | DN23: 0 | DZ23: end
A24: Impairment | B24: Impairment | D24: =SUM('Historical Data'!C658)*1000 -> 0 | F24: ='IS Workings'!E276 -> 0 | H24: =SUMIF('Budget Summary 1'!$C:$C,$A24,'Budget Summary 1'!L:L)+'Budget Summary 1'!L168 -> 0 | I24: =SUMIF('Budget Summary 1'!$C:$C,$A24,'Budget Summary 1'!M:M)+'Budget Summary 1'!M168 -> 0 | J24: =SUMIF('Budget Summary 1'!$C:$C,$A24,'Budget Summary 1'!N:N)+'Budget Summary 1'!N168 -> 0 | K24: =SUMIF('Budget Summary 1'!$C:$C,$A24,'Budget Summary 1'!O:O)+'Budget Summary 1'!O168 -> 0 | L24: =SUMIF('Budget Summary 1'!$C:$C,$A24,'Budget Summary 1'!P:P)+'Budget Summary 1'!P168 -> 0 | M24: =SUMIF('Budget Summary 1'!$C:$C,$A24,'Budget Summary 1'!Q:Q)+'Budget Summary 1'!Q168 -> 0 | N24: =SUMIF('Budget Summary 1'!$C:$C,$A24,'Budget Summary 1'!R:R)+'Budget Summary 1'!R168 -> 0 | O24: =SUMIF('Budget Summary 1'!$C:$C,$A24,'Budget Summary 1'!S:S)+'Budget Summary 1'!S168 -> 0 | P24: =SUMIF('Budget Summary 1'!$C:$C,$A24,'Budget Summary 1'!T:T)+'Budget Summary 1'!T168 -> 0 | Q24: =SUMIF('Budget Summary 1'!$C:$C,$A24,'Budget Summary 1'!U:U)+'Budget Summary 1'!U168 -> 0 | S24: yes | BD24: =SUMIF('Budget Summary 1'!$C:$C,$A24,'Budget Summary 1'!BC:BC) -> 0 | BE24: =SUMIF('Budget Summary 1'!$C:$C,$A24,'Budget Summary 1'!BD:BD) -> 0 | BF24: =SUMIF('Budget Summary 1'!$C:$C,$A24,'Budget Summary 1'!BE:BE) -> 0 | BG24: =SUMIF('Budget Summary 1'!$C:$C,$A24,'Budget Summary 1'!BF:BF) -> 0 | BH24: =SUMIF('Budget Summary 1'!$C:$C,$A24,'Budget Summary 1'!BG:BG) -> 0 | BI24: =SUMIF('Budget Summary 1'!$C:$C,$A24,'Budget Summary 1'!BH:BH) -> 0 | BJ24: =SUMIF('Budget Summary 1'!$C:$C,$A24,'Budget Summary 1'!BI:BI) -> 0 | BK24: =SUMIF('Budget Summary 1'!$C:$C,$A24,'Budget Summary 1'!BJ:BJ) -> 0 | BL24: =SUMIF('Budget Summary 1'!$C:$C,$A24,'Budget Summary 1'!BK:BK) -> 0 | BM24: =SUMIF('Budget Summary 1'!$C:$C,$A24,'Budget Summary 1'!BL:BL) -> 0 | BN24: =SUMIF('Budget Summary 1'!$C:$C,$A24,'Budget Summary 1'!BM:BM) -> 0 | CD24: 0 | CE24: 0 | CF24: 0 | CG24: 0 | CH24: 0 | CI24: 0 | CJ24: 0 | CK24: 0 | CL24: 0 | CM24: 0 | CN24: 0 | DD24: 0 | DE24: 0 | DF24: 0 | DG24: 0 | DH24: 0 | DI24: 0 | DJ24: 0 | DK24: 0 | DL24: 0 | DM24: 0 | DN24: 0 | DZ24: end
A25: Other Expenses | B25: Other Expenses | D25: =SUM('Historical Data'!C659)*1000 -> 8232000 | F25: ='IS Workings'!E298 -> 9694802 | H25: ='IS Workings'!G298 -> 9740252 | I25: ='IS Workings'!H298 -> 9985824.89 | J25: ='IS Workings'!I298 -> 10273509.3 | K25: ='IS Workings'!J298 -> 10592089.04 | L25: ='IS Workings'!K298 -> 10826024.14 | M25: ='IS Workings'!L298 -> 11060290.85 | N25: ='IS Workings'!M298 -> 11387572.12 | O25: ='IS Workings'!N298 -> 11645620.24 | P25: ='IS Workings'!O298 -> 11979938.47 | Q25: ='IS Workings'!P298 -> 12361273.91 | S25: yes | BD25: =SUMIF('Budget Summary 1'!$C:$C,$A25,'Budget Summary 1'!BC:BC) -> 0 | BE25: =SUMIF('Budget Summary 1'!$C:$C,$A25,'Budget Summary 1'!BD:BD) -> 0 | BF25: =SUMIF('Budget Summary 1'!$C:$C,$A25,'Budget Summary 1'!BE:BE) -> 0 | BG25: =SUMIF('Budget Summary 1'!$C:$C,$A25,'Budget Summary 1'!BF:BF) -> 0 | BH25: =SUMIF('Budget Summary 1'!$C:$C,$A25,'Budget Summary 1'!BG:BG) -> 0 | BI25: =SUMIF('Budget Summary 1'!$C:$C,$A25,'Budget Summary 1'!BH:BH) -> 0 | BJ25: =SUMIF('Budget Summary 1'!$C:$C,$A25,'Budget Summary 1'!BI:BI) -> 0 | BK25: =SUMIF('Budget Summary 1'!$C:$C,$A25,'Budget Summary 1'!BJ:BJ) -> 0 | BL25: =SUMIF('Budget Summary 1'!$C:$C,$A25,'Budget Summary 1'!BK:BK) -> 0 | BM25: =SUMIF('Budget Summary 1'!$C:$C,$A25,'Budget Summary 1'!BL:BL) -> 0 | BN25: =SUMIF('Budget Summary 1'!$C:$C,$A25,'Budget Summary 1'!BM:BM) -> 0 | CD25: 9694802 | CE25: 9740252 | CF25: 9985824.89 | CG25: 10273509.3 | CH25: 10592089.04 | CI25: 10826024.14 | CJ25: 11060290.85 | CK25: 11387572.12 | CL25: 11645620.24 | CM25: 11979938.47 | CN25: 12361273.91 | DD25: 9694802 | DE25: 9740252 | DF25: 9985824.89 | DG25: 10273509.3 | DH25: 10592089.04 | DI25: 10826024.14 | DJ25: 11060290.85 | DK25: 11387572.12 | DL25: 11645620.24 | DM25: 11979938.47 | DN25: 12361273.91 | DZ25: end
A26: Interest & Investment Losses | B26: Interest & Investment Losses | D26: =SUM('Historical Data'!C660)*1000 -> 0 | F26: ='IS Workings'!E60 -> 0 | H26: ='IS Workings'!G60 -> 0 | I26: ='IS Workings'!H60 -> 0 | J26: ='IS Workings'!I60 -> 0 | K26: ='IS Workings'!J60 -> 0 | L26: ='IS Workings'!K60 -> 0 | M26: ='IS Workings'!L60 -> 0 | N26: ='IS Workings'!M60 -> 0 | O26: ='IS Workings'!N60 -> 0 | P26: ='IS Workings'!O60 -> 0 | Q26: ='IS Workings'!P60 -> 0 | S26: yes | BD26: =SUMIF('Budget Summary 1'!$C:$C,$A26,'Budget Summary 1'!BC:BC) -> 0 | BE26: =SUMIF('Budget Summary 1'!$C:$C,$A26,'Budget Summary 1'!BD:BD) -> 0 | BF26: =SUMIF('Budget Summary 1'!$C:$C,$A26,'Budget Summary 1'!BE:BE) -> 0 | BG26: =SUMIF('Budget Summary 1'!$C:$C,$A26,'Budget Summary 1'!BF:BF) -> 0 | BH26: =SUMIF('Budget Summary 1'!$C:$C,$A26,'Budget Summary 1'!BG:BG) -> 0 | BI26: =SUMIF('Budget Summary 1'!$C:$C,$A26,'Budget Summary 1'!BH:BH) -> 0 | BJ26: =SUMIF('Budget Summary 1'!$C:$C,$A26,'Budget Summary 1'!BI:BI) -> 0 | BK26: =SUMIF('Budget Summary 1'!$C:$C,$A26,'Budget Summary 1'!BJ:BJ) -> 0 | BL26: =SUMIF('Budget Summary 1'!$C:$C,$A26,'Budget Summary 1'!BK:BK) -> 0 | BM26: =SUMIF('Budget Summary 1'!$C:$C,$A26,'Budget Summary 1'!BL:BL) -> 0 | BN26: =SUMIF('Budget Summary 1'!$C:$C,$A26,'Budget Summary 1'!BM:BM) -> 0 | CD26: 0 | CE26: 0 | CF26: 0 | CG26: 0 | CH26: 0 | CI26: 0 | CJ26: 0 | CK26: 0 | CL26: 0 | CM26: 0 | CN26: 0 | DD26: 0 | DE26: 0 | DF26: 0 | DG26: 0 | DH26: 0 | DI26: 0 | DJ26: 0 | DK26: 0 | DL26: 0 | DM26: 0 | DN26: 0 | DZ26: end
A27: Net Losses from the Disposal of Assets | B27: Net Losses from the Disposal of Assets | D27: =SUM('Historical Data'!C661)*1000 -> 1386000 | F27: ='IS Workings'!E145 -> 0 | H27: ='IS Workings'!G145 -> 0 | I27: ='IS Workings'!H145 -> 0 | J27: ='IS Workings'!I145 -> 0 | K27: ='IS Workings'!J145 -> 0 | L27: ='IS Workings'!K145 -> 0 | M27: ='IS Workings'!L145 -> 0 | N27: ='IS Workings'!M145 -> 0 | O27: ='IS Workings'!N145 -> 0 | P27: ='IS Workings'!O145 -> 0 | Q27: ='IS Workings'!P145 -> 0 | S27: yes | BB27: different formula | BD27: =F27 -> 0 | BE27: =H27 -> 0 | BF27: =I27 -> 0 | BG27: =J27 -> 0 | BH27: =K27 -> 0 | BI27: =L27 -> 0 | BJ27: =M27 -> 0 | BK27: =N27 -> 0 | BL27: =O27 -> 0 | BM27: =P27 -> 0 | BN27: =Q27 -> 0 | CD27: 0 | CE27: 0 | CF27: 0 | CG27: 0 | CH27: 0 | CI27: 0 | CJ27: 0 | CK27: 0 | CL27: 0 | CM27: 0 | CN27: 0 | DD27: 0 | DE27: 0 | DF27: 0 | DG27: 0 | DH27: 0 | DI27: 0 | DJ27: 0 | DK27: 0 | DL27: 0 | DM27: 0 | DN27: 0 | DZ27: end
A28: =B28&" - Loss" -> Joint Ventures & Associated Entities - Loss | B28: Joint Ventures & Associated Entities | D28: =SUM('Historical Data'!C662)*1000 -> 0 | F28: ='IS Workings'!E164 -> 0 | H28: ='IS Workings'!G164 -> 0 | I28: ='IS Workings'!H164 -> 0 | J28: ='IS Workings'!I164 -> 0 | K28: ='IS Workings'!J164 -> 0 | L28: ='IS Workings'!K164 -> 0 | M28: ='IS Workings'!L164 -> 0 | N28: ='IS Workings'!M164 -> 0 | O28: ='IS Workings'!N164 -> 0 | P28: ='IS Workings'!O164 -> 0 | Q28: ='IS Workings'!P164 -> 0 | S28: yes | BB28: different formula | BD28: =F28 -> 0 | BE28: =H28 -> 0 | BF28: =I28 -> 0 | BG28: =J28 -> 0 | BH28: =K28 -> 0 | BI28: =L28 -> 0 | BJ28: =M28 -> 0 | BK28: =N28 -> 0 | BL28: =O28 -> 0 | BM28: =P28 -> 0 | BN28: =Q28 -> 0 | CD28: 0 | CE28: 0 | CF28: 0 | CG28: 0 | CH28: 0 | CI28: 0 | CJ28: 0 | CK28: 0 | CL28: 0 | CM28: 0 | CN28: 0 | DD28: 0 | DE28: 0 | DF28: 0 | DG28: 0 | DH28: 0 | DI28: 0 | DJ28: 0 | DK28: 0 | DL28: 0 | DM28: 0 | DN28: 0 | DZ28: end
B29: Total Expenses from Continuing Operations | D29: =SUM(D20:D28) -> 46593000 | F29: =SUM(F20:F28) -> 49803643 | H29: =SUM(H20:H28) -> 50138642.22 | I29: =SUM(I20:I28) -> 51389940.39 | J29: =SUM(J20:J28) -> 52327912.38 | K29: 53757726.09 | L29: 55082843.91 | M29: 56793700.54 | N29: 58688165.27 | O29: 60002395.96 | P29: 61653074.13 | Q29: 63213870.96 | U29: =SUMIF($S20:$S28,"yes",F20:F28) -> 49803643 | V29: =SUMIF($S20:$S28,"yes",H20:H28) -> 50138642.22 | W29: =SUMIF($S20:$S28,"yes",I20:I28) -> 51389940.39 | X29: 52327912.38 | Y29: 53757726.09 | Z29: 55082843.91 | AA29: 56793700.54 | AB29: 58688165.27 | AC29: 60002395.96 | AD29: 61653074.13 | AE29: 63213870.96 | BD29: =SUM(BD20:BD28) -> 7175000 | BE29: 7335000 | BF29: =SUM(BF20:BF28) -> 7408350 | BG29: 7482433.5 | BH29: =SUM(BH20:BH28) -> 7557257.87 | BI29: 7632830.45 | BJ29: =SUM(BJ20:BJ28) -> 7709158.77 | BK29: 7786250.34 | BL29: 7864112.85 | BM29: 7942753.97 | BN29: 8022181.52 | CD29: =SUM(CD20:CD28) -> 42628643 | CE29: 42803642.22 | CF29: 43981590.39 | CG29: 44845478.88 | CH29: 46200468.22 | CI29: 47450013.46 | CJ29: 49084541.77 | CK29: 50901914.93 | CL29: 52138283.11 | CM29: 53710320.16 | CN29: 55191689.44 | DD29: =SUM(DD20:DD28) -> 42628643 | DE29: 42803642.22 | DF29: 43981590.39 | DG29: 44845478.88 | DH29: 46200468.22 | DI29: 47450013.46 | DJ29: 49084541.77 | DK29: 50901914.93 | DL29: 52138283.11 | DM29: 53710320.16 | DN29: 55191689.44 | DZ29: end
DZ30: end
B31: Operating Result from Continuing Operations | D31: =D17-D29 -> 16482000 | F31: =F17-F29 -> 13050490 | H31: =H17-H29 -> 6853762.782 | I31: 7940936.523 | J31: 8852137.538 | K31: 8224327.466 | L31: 8747542.995 | M31: 8910068.791 | N31: 9146490.12 | O31: 9379249.803 | P31: 9691491.196 | Q31: 9951063.962 | BD31: =BD17-BD29 -> -7175000 | BE31: -7335000 | BF31: =BF17-BF29 -> -7408350 | BG31: -7482433.5 | BH31: =BH17-BH29 -> -7557257.87 | BI31: -7632830.45 | BJ31: =BJ17-BJ29 -> -7709158.77 | BK31: -7786250.34 | BL31: -7864112.85 | BM31: -7942753.97 | BN31: -8022181.52 | CD31: =CD17-CD29 -> 20225490 | CE31: 14188762.78 | CF31: 15349286.52 | CG31: 16334571.04 | CH31: 15781585.34 | CI31: 16380373.44 | CJ31: 16619227.56 | CK31: 16932740.46 | CL31: 17243362.65 | CM31: 17634245.17 | CN31: 17973245.48 | DZ31: end
DZ32: end
A33: Discontinued Operations | B33: Discontinued Operations - Profit/(Loss) | D33: =SUM('Historical Data'!C667)*1000 -> 0 | F33: ='IS Workings'!E313 -> 0 | H33: ='IS Workings'!G313 -> 0 | I33: ='IS Workings'!H313 -> 0 | J33: ='IS Workings'!I313 -> 0 | K33: ='IS Workings'!J313 -> 0 | L33: ='IS Workings'!K313 -> 0 | M33: ='IS Workings'!L313 -> 0 | N33: ='IS Workings'!M313 -> 0 | O33: ='IS Workings'!N313 -> 0 | P33: ='IS Workings'!O313 -> 0 | Q33: ='IS Workings'!P313 -> 0 | BD33: 0 | BE33: 0 | BF33: 0 | BG33: 0 | BH33: 0 | BI33: 0 | BJ33: 0 | BK33: 0 | BL33: 0 | BM33: 0 | BN33: 0 | CD33: =F33-BD33 -> 0 | CE33: =H33-BE33 -> 0 | CF33: =I33-BF33 -> 0 | CG33: =J33-BG33 -> 0 | CH33: =K33-BH33 -> 0 | CI33: =L33-BI33 -> 0 | CJ33: =M33-BJ33 -> 0 | CK33: =N33-BK33 -> 0 | CL33: =O33-BL33 -> 0 | CM33: =P33-BM33 -> 0 | CN33: =Q33-BN33 -> 0 | DZ33: end
B34: Net Profit/(Loss) from Discontinued Operations | D34: =D33 -> 0 | F34: =F33 -> 0 | H34: =H33 -> 0 | I34: =I33 -> 0 | J34: 0 | K34: 0 | L34: 0 | M34: 0 | N34: 0 | O34: 0 | P34: 0 | Q34: 0 | BD34: =BD33 -> 0 | BE34: 0 | BF34: =BF33 -> 0 | BG34: 0 | BH34: =BH33 -> 0 | BI34: 0 | BJ34: =BJ33 -> 0 | BK34: 0 | BL34: 0 | BM34: 0 | BN34: 0 | CD34: =CD33 -> 0 | CE34: 0 | CF34: 0 | CG34: 0 | CH34: 0 | CI34: 0 | CJ34: 0 | CK34: 0 | CL34: 0 | CM34: 0 | CN34: 0 | DZ34: end
DZ35: end
B36: Net Operating Result for the Year | D36: =D34+D31 -> 16482000 | F36: =F34+F31 -> 13050490 | H36: =H34+H31 -> 6853762.782 | I36: 7940936.523 | J36: 8852137.538 | K36: 8224327.466 | L36: 8747542.995 | M36: 8910068.791 | N36: 9146490.12 | O36: 9379249.803 | P36: 9691491.196 | Q36: 9951063.962 | BD36: =BD34+BD31 -> -7175000 | BE36: -7335000 | BF36: =BF34+BF31 -> -7408350 | BG36: -7482433.5 | BH36: =BH34+BH31 -> -7557257.87 | BI36: -7632830.45 | BJ36: =BJ34+BJ31 -> -7709158.77 | BK36: -7786250.34 | BL36: -7864112.85 | BM36: -7942753.97 | BN36: -8022181.52 | CD36: =CD34+CD31 -> 20225490 | CE36: 14188762.78 | CF36: 15349286.52 | CG36: 16334571.04 | CH36: 15781585.34 | CI36: 16380373.44 | CJ36: 16619227.56 | CK36: 16932740.46 | CL36: 17243362.65 | CM36: 17634245.17 | CN36: 17973245.48 | DZ36: end
DZ37: end
B38: Net Operating Result before Grants and Contributions provided for | DZ38: end
B39: Capital Purposes | D39: =D36-D13 -> 2318000 | F39: =F36-F13 -> -1706598 | H39: =H36-H13 -> -676237.2181 | I39: 400936.5227 | J39: 1776217.538 | K39: 2607148.266 | L39: 3033721.995 | M39: 3059238.581 | N39: 3108281.6 | O39: 3503289.193 | P39: 3772370.976 | Q39: 3988352.542 | BD39: =BD36-BD13 -> -7175000 | BE39: -7335000 | BF39: =BF36-BF13 -> -7408350 | BG39: -7482433.5 | BH39: =BH36-BH13 -> -7557257.87 | BI39: -7632830.45 | BJ39: =BJ36-BJ13 -> -7709158.77 | BK39: -7786250.34 | BL39: -7864112.85 | BM39: -7942753.97 | BN39: -8022181.52 | CD39: =CD36-CD13 -> 5468402 | CE39: 6658762.782 | CF39: 7809286.523 | CG39: 9258651.038 | CH39: 10164406.14 | CI39: 10666552.44 | CJ39: 10768397.35 | CK39: 10894531.94 | CL39: 11367402.04 | CM39: 11715124.95 | CN39: 12010534.06 | DZ39: end
DZ40: end
C41: hide row | DZ41: end
C42: hide row | DZ42: end
C43: hide row | DZ43: end
B44: Net Internal Surplus | C44: hide row | F44: =IF('Budget Summary 1'!J659>0,'Budget Summary 1'!J659,0) -> 0 | H44: =IF('Budget Summary 1'!L659>0,'Budget Summary 1'!L659,0) -> 0 | I44: =IF('Budget Summary 1'!M659>0,'Budget Summary 1'!M659,0) -> 0 | J44: =IF('Budget Summary 1'!N659>0,'Budget Summary 1'!N659,0) -> 0 | K44: =IF('Budget Summary 1'!O659>0,'Budget Summary 1'!O659,0) -> 0 | L44: =IF('Budget Summary 1'!P659>0,'Budget Summary 1'!P659,0) -> 0 | M44: =IF('Budget Summary 1'!Q659>0,'Budget Summary 1'!Q659,0) -> 0 | N44: =IF('Budget Summary 1'!R659>0,'Budget Summary 1'!R659,0) -> 0 | O44: =IF('Budget Summary 1'!S659>0,'Budget Summary 1'!S659,0) -> 0 | P44: =IF('Budget Summary 1'!T659>0,'Budget Summary 1'!T659,0) -> 0 | Q44: =IF('Budget Summary 1'!U659>0,'Budget Summary 1'!U659,0) -> 0 | DZ44: end
B45: Net Internal Deficit | C45: hide row | F45: =IF('Budget Summary 1'!J659<0,-'Budget Summary 1'!J659,0) -> 0 | H45: =IF('Budget Summary 1'!L659<0,-'Budget Summary 1'!L659,0) -> 0 | I45: =IF('Budget Summary 1'!M659<0,-'Budget Summary 1'!M659,0) -> 0 | J45: =IF('Budget Summary 1'!N659<0,-'Budget Summary 1'!N659,0) -> 0 | K45: =IF('Budget Summary 1'!O659<0,-'Budget Summary 1'!O659,0) -> 0 | L45: =IF('Budget Summary 1'!P659<0,-'Budget Summary 1'!P659,0) -> 0 | M45: =IF('Budget Summary 1'!Q659<0,-'Budget Summary 1'!Q659,0) -> 0 | N45: =IF('Budget Summary 1'!R659<0,-'Budget Summary 1'!R659,0) -> 0 | O45: =IF('Budget Summary 1'!S659<0,-'Budget Summary 1'!S659,0) -> 0 | P45: =IF('Budget Summary 1'!T659<0,-'Budget Summary 1'!T659,0) -> 0 | Q45: =IF('Budget Summary 1'!U659<0,-'Budget Summary 1'!U659,0) -> 0 | DZ45: end
C46: hide row | DZ46: end
B47: Interest receivable on Internal Loans | C47: hide row | F47: =+'Loans Receivable - Internal'!J44 -> 0 | H47: =+'Loans Receivable - Internal'!K44 -> 0 | I47: =+'Loans Receivable - Internal'!L44 -> 0 | J47: =+'Loans Receivable - Internal'!M44 -> 0 | K47: =+'Loans Receivable - Internal'!N44 -> 0 | L47: =+'Loans Receivable - Internal'!O44 -> 0 | M47: =+'Loans Receivable - Internal'!P44 -> 0 | N47: =+'Loans Receivable - Internal'!Q44 -> 0 | O47: =+'Loans Receivable - Internal'!R44 -> 0 | P47: =+'Loans Receivable - Internal'!S44 -> 0 | Q47: =+'Loans Receivable - Internal'!T44 -> 0 | DZ47: end
B48: Interest payable on Internal Loans | C48: hide row | F48: =+'Loans Payable - Internal'!J44 -> 0 | H48: =+'Loans Payable - Internal'!K44 -> 0 | I48: =+'Loans Payable - Internal'!L44 -> 0 | J48: =+'Loans Payable - Internal'!M44 -> 0 | K48: =+'Loans Payable - Internal'!N44 -> 0 | L48: =+'Loans Payable - Internal'!O44 -> 0 | M48: =+'Loans Payable - Internal'!P44 -> 0 | N48: =+'Loans Payable - Internal'!Q44 -> 0 | O48: =+'Loans Payable - Internal'!R44 -> 0 | P48: =+'Loans Payable - Internal'!S44 -> 0 | Q48: =+'Loans Payable - Internal'!T44 -> 0 | DZ48: end
C49: hide row | DZ49: end
C50: hide row | DZ50: end
C51: hide row | F51: 1 | H51: =F51+1 -> 2 | I51: =H51+1 -> 3 | J51: 4 | K51: 5 | L51: 6 | M51: 7 | N51: 8 | O51: 9 | P51: 10 | Q51: 11 | AG51: =Q51+1 -> 12 | AH51: =AG51+1 -> 13 | AI51: 14 | AJ51: 15 | AK51: 16 | AL51: 17 | AM51: 18 | AN51: 19 | AO51: 20 | AP51: 21 | BO51: =Q51+1 -> 12 | BP51: =BO51+1 -> 13 | BQ51: =BP51+1 -> 14 | BR51: =BQ51+1 -> 15 | BS51: =BR51+1 -> 16 | BT51: =BS51+1 -> 17 | BU51: =BT51+1 -> 18 | BV51: =BU51+1 -> 19 | BW51: =BV51+1 -> 20 | BX51: =BW51+1 -> 21 | DZ51: end
C52: hide row | DZ52: end
B53: Reconciliation of Budget Result (from Recurrent Operations) | C53: hide row | DZ53: end
B54: Net Operating Result for the Year | C54: hide row | F54: =F36 -> 13050490 | H54: =H36 -> 6853762.782 | I54: 7940936.523 | J54: 8852137.538 | K54: 8224327.466 | L54: 8747542.995 | M54: 8910068.791 | N54: 9146490.12 | O54: 9379249.803 | P54: 9691491.196 | Q54: 9951063.962 | DZ54: end
B55: Less: Grants & Contributions provided for Capital Purposes | C55: hide row | DZ55: end
B56: Plus: Depreciation & Amortisation | C56: hide row | F56: =F23-SUMIF('Budget Summary 1'!$C:$C,$A23,'Budget Summary 1'!J:J) -> 0 | H56: =H23-SUMIF('Budget Summary 1'!$C:$C,$A23,'Budget Summary 1'!L:L) -> 0 | I56: =I23-SUMIF('Budget Summary 1'!$C:$C,$A23,'Budget Summary 1'!M:M) -> 0 | J56: =J23-SUMIF('Budget Summary 1'!$C:$C,$A23,'Budget Summary 1'!N:N) -> 0 | K56: =K23-SUMIF('Budget Summary 1'!$C:$C,$A23,'Budget Summary 1'!O:O) -> 0 | L56: =L23-SUMIF('Budget Summary 1'!$C:$C,$A23,'Budget Summary 1'!P:P) -> 0 | M56: =M23-SUMIF('Budget Summary 1'!$C:$C,$A23,'Budget Summary 1'!Q:Q) -> 0 | N56: =N23-SUMIF('Budget Summary 1'!$C:$C,$A23,'Budget Summary 1'!R:R) -> 0 | O56: =O23-SUMIF('Budget Summary 1'!$C:$C,$A23,'Budget Summary 1'!S:S) -> 0 | P56: =P23-SUMIF('Budget Summary 1'!$C:$C,$A23,'Budget Summary 1'!T:T) -> 0 | Q56: =Q23-SUMIF('Budget Summary 1'!$C:$C,$A23,'Budget Summary 1'!U:U) -> 0 | DZ56: end
B57: Plus/(Less) Net Reserve Transfer | C57: hide row | F57: ='Budget Summary 1'!J141 -> -890969 | H57: ='Budget Summary 1'!L141 -> -1656000 | I57: ='Budget Summary 1'!M141 -> -1707000 | J57: ='Budget Summary 1'!N141 -> -4088570 | K57: ='Budget Summary 1'!O141 -> -4275486 | L57: ='Budget Summary 1'!P141 -> -4527791 | M57: ='Budget Summary 1'!Q141 -> -4555469 | N57: ='Budget Summary 1'!R141 -> -4543524 | O57: ='Budget Summary 1'!S141 -> -4596959 | P57: ='Budget Summary 1'!T141 -> -4630809 | Q57: ='Budget Summary 1'!U141 -> -4705809 | DZ57: end
B58: Plus/(Less) Investment Revenue variance (Model vs BU's) | C58: hide row | F58: =(-F10+SUMIF('Budget Summary 1'!$C:$C,"Interest & Investment Revenue",'Budget Summary 1'!J:J)-F59) -> 0 | H58: =(-H10+SUMIF('Budget Summary 1'!$C:$C,"Interest & Investment Revenue",'Budget Summary 1'!L:L)-H59) -> 0 | I58: =(-I10+SUMIF('Budget Summary 1'!$C:$C,"Interest & Investment Revenue",'Budget Summary 1'!M:M)-I59) -> 0 | J58: =(-J10+SUMIF('Budget Summary 1'!$C:$C,"Interest & Investment Revenue",'Budget Summary 1'!N:N)-J59) -> 0 | K58: =(-K10+SUMIF('Budget Summary 1'!$C:$C,"Interest & Investment Revenue",'Budget Summary 1'!O:O)-K59) -> 0 | L58: =(-L10+SUMIF('Budget Summary 1'!$C:$C,"Interest & Investment Revenue",'Budget Summary 1'!P:P)-L59) -> 0 | M58: =(-M10+SUMIF('Budget Summary 1'!$C:$C,"Interest & Investment Revenue",'Budget Summary 1'!Q:Q)-M59) -> 0 | N58: =(-N10+SUMIF('Budget Summary 1'!$C:$C,"Interest & Investment Revenue",'Budget Summary 1'!R:R)-N59) -> 0 | O58: =(-O10+SUMIF('Budget Summary 1'!$C:$C,"Interest & Investment Revenue",'Budget Summary 1'!S:S)-O59) -> 0 | P58: =(-P10+SUMIF('Budget Summary 1'!$C:$C,"Interest & Investment Revenue",'Budget Summary 1'!T:T)-P59) -> 0 | Q58: =(-Q10+SUMIF('Budget Summary 1'!$C:$C,"Interest & Investment Revenue",'Budget Summary 1'!U:U)-Q59) -> 0 | DZ58: end
B59: Plus/(Less): Investment (Revenues)/Deficit applicable to Section 94 | C59: hide row | DZ59: end
B60: Plus/(Less) User Charges & Fees variance (Model vs BU's) | C60: hide row | F60: =-(+'RE Dev Summary'!E43+'RE Dev Summary'!E48+'Major Projects summary'!E84+'Major Projects summary'!E89) -> 0 | H60: =-(+'RE Dev Summary'!G43+'RE Dev Summary'!G48+'Major Projects summary'!G84+'Major Projects summary'!G89) -> 0 | I60: =-(+'RE Dev Summary'!H43+'RE Dev Summary'!H48+'Major Projects summary'!H84+'Major Projects summary'!H89) -> 0 | J60: =-(+'RE Dev Summary'!I43+'RE Dev Summary'!I48+'Major Projects summary'!I84+'Major Projects summary'!I89) -> 0 | K60: =-(+'RE Dev Summary'!J43+'RE Dev Summary'!J48+'Major Projects summary'!J84+'Major Projects summary'!J89) -> 0 | L60: =-(+'RE Dev Summary'!K43+'RE Dev Summary'!K48+'Major Projects summary'!K84+'Major Projects summary'!K89) -> 0 | M60: =-(+'RE Dev Summary'!L43+'RE Dev Summary'!L48+'Major Projects summary'!L84+'Major Projects summary'!L89) -> 0 | N60: =-(+'RE Dev Summary'!M43+'RE Dev Summary'!M48+'Major Projects summary'!M84+'Major Projects summary'!M89) -> 0 | O60: =-(+'RE Dev Summary'!N43+'RE Dev Summary'!N48+'Major Projects summary'!N84+'Major Projects summary'!N89) -> 0 | P60: =-(+'RE Dev Summary'!O43+'RE Dev Summary'!O48+'Major Projects summary'!O84+'Major Projects summary'!O89) -> 0 | Q60: =-(+'RE Dev Summary'!P43+'RE Dev Summary'!P48+'Major Projects summary'!P84+'Major Projects summary'!P89) -> 0 | DZ60: end
B61: Plus/(Less) Other Revenue variance (Model vs BU's) | C61: hide row | F61: =-(+'RE Dev Summary'!E44+'RE Dev Summary'!E49+'Major Projects summary'!E85+'Major Projects summary'!E90) -> 0 | H61: =-(+'RE Dev Summary'!G44+'RE Dev Summary'!G49+'Major Projects summary'!G85+'Major Projects summary'!G90) -> 0 | I61: =-(+'RE Dev Summary'!H44+'RE Dev Summary'!H49+'Major Projects summary'!H85+'Major Projects summary'!H90) -> 0 | J61: =-(+'RE Dev Summary'!I44+'RE Dev Summary'!I49+'Major Projects summary'!I85+'Major Projects summary'!I90) -> 0 | K61: =-(+'RE Dev Summary'!J44+'RE Dev Summary'!J49+'Major Projects summary'!J85+'Major Projects summary'!J90) -> 0 | L61: =-(+'RE Dev Summary'!K44+'RE Dev Summary'!K49+'Major Projects summary'!K85+'Major Projects summary'!K90) -> 0 | M61: =-(+'RE Dev Summary'!L44+'RE Dev Summary'!L49+'Major Projects summary'!L85+'Major Projects summary'!L90) -> 0 | N61: =-(+'RE Dev Summary'!M44+'RE Dev Summary'!M49+'Major Projects summary'!M85+'Major Projects summary'!M90) -> 0 | O61: =-(+'RE Dev Summary'!N44+'RE Dev Summary'!N49+'Major Projects summary'!N85+'Major Projects summary'!N90) -> 0 | P61: =-(+'RE Dev Summary'!O44+'RE Dev Summary'!O49+'Major Projects summary'!O85+'Major Projects summary'!O90) -> 0 | Q61: =-(+'RE Dev Summary'!P44+'RE Dev Summary'!P49+'Major Projects summary'!P85+'Major Projects summary'!P90) -> 0 | DZ61: end
B62: Plus/(Less) Capital Grants & Contribution variance (Model vs BU's) | C62: hide row | F62: =-(+'CAPEX Summary'!E10+'CAPEX Summary'!E35+'Major Projects summary'!E11) -> 0 | H62: =-(+'CAPEX Summary'!G10+'CAPEX Summary'!G35+'Major Projects summary'!G11) -> 0 | I62: =-(+'CAPEX Summary'!H10+'CAPEX Summary'!H35+'Major Projects summary'!H11) -> 0 | J62: =-(+'CAPEX Summary'!I10+'CAPEX Summary'!I35+'Major Projects summary'!I11) -> 0 | K62: =-(+'CAPEX Summary'!J10+'CAPEX Summary'!J35+'Major Projects summary'!J11) -> 0 | L62: =-(+'CAPEX Summary'!K10+'CAPEX Summary'!K35+'Major Projects summary'!K11) -> 0 | M62: =-(+'CAPEX Summary'!L10+'CAPEX Summary'!L35+'Major Projects summary'!L11) -> 0 | N62: =-(+'CAPEX Summary'!M10+'CAPEX Summary'!M35+'Major Projects summary'!M11) -> 0 | O62: =-(+'CAPEX Summary'!N10+'CAPEX Summary'!N35+'Major Projects summary'!N11) -> 0 | P62: =-(+'CAPEX Summary'!O10+'CAPEX Summary'!O35+'Major Projects summary'!O11) -> 0 | Q62: =-(+'CAPEX Summary'!P10+'CAPEX Summary'!P35+'Major Projects summary'!P11) -> 0 | DZ62: end
... 70 more rows

Sheet IS Workings
A1: ='Cover Page'!$A$3 -> Burwood Council
A2: ='Cover Page'!$A$5 -> 10 Year Financial Plan for the Years ending 30 June 2029
A3: ="INCOME STATEMENT - "&UPPER(general_fund_name)&" - WORKINGS" -> INCOME STATEMENT - GENERAL FUND - WORKINGS | E3: Current Year | G3: Projected Years
A4: ="Scenario: "&general_scenario_name -> Scenario: Burwood Council - SRV Scenario - 2% above Rate Peg for 4years | E4: =Starting_year_general-1&"/"&RIGHT(Starting_year_general,2) -> 2018/19 | G4: =Starting_year_general&"/"&RIGHT(Starting_year_general+1,2) -> 2019/20 | H4: =Starting_year_general+1&"/"&RIGHT(Starting_year_general+2,2) -> 2020/21 | I4: =Starting_year_general+2&"/"&RIGHT(Starting_year_general+3,2) -> 2021/22 | J4: =Starting_year_general+3&"/"&RIGHT(Starting_year_general+4,2) -> 2022/23 | K4: =Starting_year_general+4&"/"&RIGHT(Starting_year_general+5,2) -> 2023/24 | L4: =Starting_year_general+5&"/"&RIGHT(Starting_year_general+6,2) -> 2024/25 | M4: =Starting_year_general+6&"/"&RIGHT(Starting_year_general+7,2) -> 2025/26 | N4: =Starting_year_general+7&"/"&RIGHT(Starting_year_general+8,2) -> 2026/27 | O4: =Starting_year_general+8&"/"&RIGHT(Starting_year_general+9,2) -> 2027/28 | P4: =Starting_year_general+9&"/"&RIGHT(Starting_year_general+10,2) -> 2028/29
E5: =IF('Cover Page'!$K$19=TRUE,"$","$") -> $ | G5: =IF('Cover Page'!$K$19=TRUE,"$","$") -> $ | H5: =IF('Cover Page'!$K$19=TRUE,"$","$") -> $ | I5: =IF('Cover Page'!$K$19=TRUE,"$","$") -> $ | J5: =IF('Cover Page'!$K$19=TRUE,"$","$") -> $ | K5: =IF('Cover Page'!$K$19=TRUE,"$","$") -> $ | L5: =IF('Cover Page'!$K$19=TRUE,"$","$") -> $ | M5: =IF('Cover Page'!$K$19=TRUE,"$","$") -> $ | N5: =IF('Cover Page'!$K$19=TRUE,"$","$") -> $ | O5: =IF('Cover Page'!$K$19=TRUE,"$","$") -> $ | P5: =IF('Cover Page'!$K$19=TRUE,"$","$") -> $
A8: Rates & Annual Charges
A10: Budgeted in database
A11: Rates & Annual Charges | E11: =SUMIF('Budget Summary 1'!$C:$C,$A11,'Budget Summary 1'!J:J) -> 27854675 | G11: =SUMIF('Budget Summary 1'!$C:$C,$A11,'Budget Summary 1'!L:L) -> 29153993 | H11: =SUMIF('Budget Summary 1'!$C:$C,$A11,'Budget Summary 1'!M:M) -> 30663690.21 | I11: =SUMIF('Budget Summary 1'!$C:$C,$A11,'Budget Summary 1'!N:N) -> 32201375.7 | J11: =SUMIF('Budget Summary 1'!$C:$C,$A11,'Budget Summary 1'!O:O) -> 33796285.04 | K11: =SUMIF('Budget Summary 1'!$C:$C,$A11,'Budget Summary 1'!P:P) -> 34972995.02 | L11: =SUMIF('Budget Summary 1'!$C:$C,$A11,'Budget Summary 1'!Q:Q) -> 36002518.84 | M11: =SUMIF('Budget Summary 1'!$C:$C,$A11,'Budget Summary 1'!R:R) -> 37373517.11 | N11: =SUMIF('Budget Summary 1'!$C:$C,$A11,'Budget Summary 1'!S:S) -> 38474387.76 | O11: =SUMIF('Budget Summary 1'!$C:$C,$A11,'Budget Summary 1'!T:T) -> 39780513.41 | P11: =SUMIF('Budget Summary 1'!$C:$C,$A11,'Budget Summary 1'!U:U) -> 40952970.92
A12: Internal Income - included in Rates & Annual Charges | E12: =+'Budget Summary 1'!J149 -> 0 | G12: =+'Budget Summary 1'!L149 -> 0 | H12: =+'Budget Summary 1'!M149 -> 0 | I12: =+'Budget Summary 1'!N149 -> 0 | J12: =+'Budget Summary 1'!O149 -> 0 | K12: =+'Budget Summary 1'!P149 -> 0 | L12: =+'Budget Summary 1'!Q149 -> 0 | M12: =+'Budget Summary 1'!R149 -> 0 | N12: =+'Budget Summary 1'!S149 -> 0 | O12: =+'Budget Summary 1'!T149 -> 0 | P12: =+'Budget Summary 1'!U149 -> 0
A13: Subtotal - Budgeted | E13: =SUM(E11:E12) -> 27854675 | G13: =SUM(G11:G12) -> 29153993 | H13: =SUM(H11:H12) -> 30663690.21 | I13: 32201375.7 | J13: 33796285.04 | K13: 34972995.02 | L13: 36002518.84 | M13: 37373517.11 | N13: 38474387.76 | O13: 39780513.41 | P13: 40952970.92
A15: LTFP Adjustments
A16: NIL
A17: Subtotal - LTFP Adjustments | E17: =SUM(E15:E16) -> 0 | G17: =SUM(G15:G16) -> 0 | H17: =SUM(H15:H16) -> 0 | I17: 0 | J17: 0 | K17: 0 | L17: 0 | M17: 0 | N17: 0 | O17: 0 | P17: 0
A19: Total Rates & Annual Charges | E19: =E13+E17 -> 27854675 | G19: =G13+G17 -> 29153993 | H19: =H13+H17 -> 30663690.21 | I19: 32201375.7 | J19: 33796285.04 | K19: 34972995.02 | L19: 36002518.84 | M19: 37373517.11 | N19: 38474387.76 | O19: 39780513.41 | P19: 40952970.92
A24: User Charges & Fees
A26: Budgeted in database
A27: User Charges & Fees | E27: =SUMIF('Budget Summary 1'!$C:$C,$A27,'Budget Summary 1'!J:J) -> 10843515 | G27: =SUMIF('Budget Summary 1'!$C:$C,$A27,'Budget Summary 1'!L:L) -> 10638128 | H27: =SUMIF('Budget Summary 1'!$C:$C,$A27,'Budget Summary 1'!M:M) -> 11046659.34 | I27: =SUMIF('Budget Summary 1'!$C:$C,$A27,'Budget Summary 1'!N:N) -> 11452568.83 | J27: =SUMIF('Budget Summary 1'!$C:$C,$A27,'Budget Summary 1'!O:O) -> 11769968.34 | K27: =SUMIF('Budget Summary 1'!$C:$C,$A27,'Budget Summary 1'!P:P) -> 12090518.4 | L27: =SUMIF('Budget Summary 1'!$C:$C,$A27,'Budget Summary 1'!Q:Q) -> 12480033.97 | M27: =SUMIF('Budget Summary 1'!$C:$C,$A27,'Budget Summary 1'!R:R) -> 12810271.03 | N27: =SUMIF('Budget Summary 1'!$C:$C,$A27,'Budget Summary 1'!S:S) -> 13160037.86 | O27: =SUMIF('Budget Summary 1'!$C:$C,$A27,'Budget Summary 1'!T:T) -> 13519606.9 | P27: =SUMIF('Budget Summary 1'!$C:$C,$A27,'Budget Summary 1'!U:U) -> 13889258.37
A28: Internal Income - included in User Charges & Fees | E28: =+'Budget Summary 1'!J150 -> 0 | G28: =+'Budget Summary 1'!L150 -> 0 | H28: =+'Budget Summary 1'!M150 -> 0 | I28: =+'Budget Summary 1'!N150 -> 0 | J28: =+'Budget Summary 1'!O150 -> 0 | K28: =+'Budget Summary 1'!P150 -> 0 | L28: =+'Budget Summary 1'!Q150 -> 0 | M28: =+'Budget Summary 1'!R150 -> 0 | N28: =+'Budget Summary 1'!S150 -> 0 | O28: =+'Budget Summary 1'!T150 -> 0 | P28: =+'Budget Summary 1'!U150 -> 0
A29: Subtotal - Budgeted | E29: =SUM(E27:E28) -> 10843515 | G29: =SUM(G27:G28) -> 10638128 | H29: =SUM(H27:H28) -> 11046659.34 | I29: =SUM(I27:I28) -> 11452568.83 | J29: =SUM(J27:J28) -> 11769968.34 | K29: =SUM(K27:K28) -> 12090518.4 | L29: =SUM(L27:L28) -> 12480033.97 | M29: =SUM(M27:M28) -> 12810271.03 | N29: =SUM(N27:N28) -> 13160037.86 | O29: =SUM(O27:O28) -> 13519606.9 | P29: =SUM(P27:P28) -> 13889258.37
A31: LTFP Adjustments
A32: Recurring Income associated with Real Estate | B32: RE Dev Summary | E32: =+'RE Dev Summary'!E43 -> 0 | G32: =+'RE Dev Summary'!G43 -> 0 | H32: =+'RE Dev Summary'!H43 -> 0 | I32: =+'RE Dev Summary'!I43 -> 0 | J32: =+'RE Dev Summary'!J43 -> 0 | K32: =+'RE Dev Summary'!K43 -> 0 | L32: =+'RE Dev Summary'!L43 -> 0 | M32: =+'RE Dev Summary'!M43 -> 0 | N32: =+'RE Dev Summary'!N43 -> 0 | O32: =+'RE Dev Summary'!O43 -> 0 | P32: =+'RE Dev Summary'!P43 -> 0
A33: Recurring Income Reduction associated with Real Estate | B33: RE Dev Summary | E33: =+'RE Dev Summary'!E48 -> 0 | G33: =+'RE Dev Summary'!G48 -> 0 | H33: =+'RE Dev Summary'!H48 -> 0 | I33: =+'RE Dev Summary'!I48 -> 0 | J33: =+'RE Dev Summary'!J48 -> 0 | K33: =+'RE Dev Summary'!K48 -> 0 | L33: =+'RE Dev Summary'!L48 -> 0 | M33: =+'RE Dev Summary'!M48 -> 0 | N33: =+'RE Dev Summary'!N48 -> 0 | O33: =+'RE Dev Summary'!O48 -> 0 | P33: =+'RE Dev Summary'!P48 -> 0
A34: Recurring Income associated with Major Projects | B34: Major Projects Summary | E34: =+'Major Projects summary'!E84 -> 0 | G34: =+'Major Projects summary'!G84 -> 0 | H34: =+'Major Projects summary'!H84 -> 0 | I34: =+'Major Projects summary'!I84 -> 0 | J34: =+'Major Projects summary'!J84 -> 0 | K34: =+'Major Projects summary'!K84 -> 0 | L34: =+'Major Projects summary'!L84 -> 0 | M34: =+'Major Projects summary'!M84 -> 0 | N34: =+'Major Projects summary'!N84 -> 0 | O34: =+'Major Projects summary'!O84 -> 0 | P34: =+'Major Projects summary'!P84 -> 0
A35: Recurring Income Reduction associated with Major Projects | B35: Major Projects Summary | E35: =+'Major Projects summary'!E89 -> 0 | G35: =+'Major Projects summary'!G89 -> 0 | H35: =+'Major Projects summary'!H89 -> 0 | I35: =+'Major Projects summary'!I89 -> 0 | J35: =+'Major Projects summary'!J89 -> 0 | K35: =+'Major Projects summary'!K89 -> 0 | L35: =+'Major Projects summary'!L89 -> 0 | M35: =+'Major Projects summary'!M89 -> 0 | N35: =+'Major Projects summary'!N89 -> 0 | O35: =+'Major Projects summary'!O89 -> 0 | P35: =+'Major Projects summary'!P89 -> 0
A36: Subtotal - LTFP Adjustments | E36: =SUM(E31:E35) -> 0 | G36: =SUM(G31:G35) -> 0 | H36: =SUM(H31:H35) -> 0 | I36: 0 | J36: 0 | K36: 0 | L36: 0 | M36: 0 | N36: 0 | O36: 0 | P36: 0
A38: Total User Charges & Fees | E38: =E29+E36 -> 10843515 | G38: =G29+G36 -> 10638128 | H38: =H29+H36 -> 11046659.34 | I38: 11452568.83 | J38: 11769968.34 | K38: 12090518.4 | L38: 12480033.97 | M38: 12810271.03 | N38: 13160037.86 | O38: 13519606.9 | P38: 13889258.37
A43: Interest & Investment Revenue
A45: Budgeted in database
A46: Interest & Investment Revenue | E46: =SUMIF('Budget Summary 1'!$C:$C,$A46,'Budget Summary 1'!J:J) -> 1300000 | G46: =SUMIF('Budget Summary 1'!$C:$C,$A46,'Budget Summary 1'!L:L) -> 1430000 | H46: =SUMIF('Budget Summary 1'!$C:$C,$A46,'Budget Summary 1'!M:M) -> 1656000 | I46: =SUMIF('Budget Summary 1'!$C:$C,$A46,'Budget Summary 1'!N:N) -> 1837000 | J46: =SUMIF('Budget Summary 1'!$C:$C,$A46,'Budget Summary 1'!O:O) -> 1988000 | K46: =SUMIF('Budget Summary 1'!$C:$C,$A46,'Budget Summary 1'!P:P) -> 2039000 | L46: =SUMIF('Budget Summary 1'!$C:$C,$A46,'Budget Summary 1'!Q:Q) -> 2145000 | M46: =SUMIF('Budget Summary 1'!$C:$C,$A46,'Budget Summary 1'!R:R) -> 2170000 | N46: =SUMIF('Budget Summary 1'!$C:$C,$A46,'Budget Summary 1'!S:S) -> 2206000 | O46: =SUMIF('Budget Summary 1'!$C:$C,$A46,'Budget Summary 1'!T:T) -> 2232000 | P46: =SUMIF('Budget Summary 1'!$C:$C,$A46,'Budget Summary 1'!U:U) -> 2233000
A47: Internal Income - included in Interest & Investment Revenue | E47: =+'Budget Summary 1'!J151 -> 0 | G47: =+'Budget Summary 1'!L151 -> 0 | H47: =+'Budget Summary 1'!M151 -> 0 | I47: =+'Budget Summary 1'!N151 -> 0 | J47: =+'Budget Summary 1'!O151 -> 0 | K47: =+'Budget Summary 1'!P151 -> 0 | L47: =+'Budget Summary 1'!Q151 -> 0 | M47: =+'Budget Summary 1'!R151 -> 0 | N47: =+'Budget Summary 1'!S151 -> 0 | O47: =+'Budget Summary 1'!T151 -> 0 | P47: =+'Budget Summary 1'!U151 -> 0
A48: Internal Loans - Interest Income (rec'd from other Funds) | E48: ='Budget Summary 1'!J145 -> 0 | G48: ='Budget Summary 1'!L145 -> 0 | H48: ='Budget Summary 1'!M145 -> 0 | I48: ='Budget Summary 1'!N145 -> 0 | J48: ='Budget Summary 1'!O145 -> 0 | K48: ='Budget Summary 1'!P145 -> 0 | L48: ='Budget Summary 1'!Q145 -> 0 | M48: ='Budget Summary 1'!R145 -> 0 | N48: ='Budget Summary 1'!S145 -> 0 | O48: ='Budget Summary 1'!T145 -> 0 | P48: ='Budget Summary 1'!U145 -> 0
A49: Subtotal - Budgeted | E49: =SUM(E46:E48) -> 1300000 | G49: =SUM(G46:G48) -> 1430000 | H49: =SUM(H46:H48) -> 1656000 | I49: 1837000 | J49: 1988000 | K49: 2039000 | L49: 2145000 | M49: 2170000 | N49: 2206000 | O49: 2232000 | P49: 2233000
A51: LTFP Adjustments
A52: Less: Internal Loans - Interest Income (rec'd from other Funds) | B52: per database | E52: =-E48 -> 0 | G52: =-G48 -> 0 | H52: =-H48 -> 0 | I52: 0 | J52: 0 | K52: 0 | L52: 0 | M52: 0 | N52: 0 | O52: 0 | P52: 0
A53: Internal Loans - Interest Income (rec'd from other Funds) | B53: Internal Loans Receivable Summary | E53: =+'Loans Receivable - Internal'!J44 -> 0 | G53: =+'Loans Receivable - Internal'!K44 -> 0 | H53: =+'Loans Receivable - Internal'!L44 -> 0 | I53: =+'Loans Receivable - Internal'!M44 -> 0 | J53: =+'Loans Receivable - Internal'!N44 -> 0 | K53: =+'Loans Receivable - Internal'!O44 -> 0 | L53: =+'Loans Receivable - Internal'!P44 -> 0 | M53: =+'Loans Receivable - Internal'!Q44 -> 0 | N53: =+'Loans Receivable - Internal'!R44 -> 0 | O53: =+'Loans Receivable - Internal'!S44 -> 0 | P53: =+'Loans Receivable - Internal'!T44 -> 0
A54: Subtotal - LTFP Adjustments | E54: =SUM(E51:E53) -> 0 | G54: =SUM(G51:G53) -> 0 | H54: =SUM(H51:H53) -> 0 | I54: 0 | J54: 0 | K54: 0 | L54: 0 | M54: 0 | N54: 0 | O54: 0 | P54: 0
A56: Total Interest & Investment Revenue | E56: =E49+E54 -> 1300000 | G56: =G49+G54 -> 1430000 | H56: =H49+H54 -> 1656000 | I56: 1837000 | J56: 1988000 | K56: 2039000 | L56: 2145000 | M56: 2170000 | N56: 2206000 | O56: 2232000 | P56: 2233000
A58: Total Interest & Investment Revenue | E58: =IF(E56>0,E56,0) -> 1300000 | G58: =IF(G56>0,G56,0) -> 1430000 | H58: =IF(H56>0,H56,0) -> 1656000 | I58: 1837000 | J58: 1988000 | K58: 2039000 | L58: 2145000 | M58: 2170000 | N58: 2206000 | O58: 2232000 | P58: 2233000
A60: Total Interest & Investment Losses | E60: =IF(E56<0,-E56,0) -> 0 | G60: =IF(G56<0,-G56,0) -> 0 | H60: =IF(H56<0,-H56,0) -> 0 | I60: 0 | J60: 0 | K60: 0 | L60: 0 | M60: 0 | N60: 0 | O60: 0 | P60: 0
... 46 more rows

Sheet Balance Sheet
A1: ='Cover Page'!$A$3 -> Burwood Council
A2: ='Cover Page'!$A$5 -> 10 Year Financial Plan for the Years ending 30 June 2029
A3: ="BALANCE SHEET - "&UPPER(general_fund_name) -> BALANCE SHEET - GENERAL FUND | C3: Actuals | E3: Current Year | G3: Projected Years
A4: ="Scenario: "&general_scenario_name -> Scenario: Burwood Council - SRV Scenario - 2% above Rate Peg for 4years | C4: =Starting_year_general-2&"/"&RIGHT(Starting_year_general-1,2) -> 2017/18 | E4: =Starting_year_general-1&"/"&RIGHT(Starting_year_general,2) -> 2018/19 | G4: =Starting_year_general&"/"&RIGHT(Starting_year_general+1,2) -> 2019/20 | H4: =Starting_year_general+1&"/"&RIGHT(Starting_year_general+2,2) -> 2020/21 | I4: =Starting_year_general+2&"/"&RIGHT(Starting_year_general+3,2) -> 2021/22 | J4: =Starting_year_general+3&"/"&RIGHT(Starting_year_general+4,2) -> 2022/23 | K4: =Starting_year_general+4&"/"&RIGHT(Starting_year_general+5,2) -> 2023/24 | L4: =Starting_year_general+5&"/"&RIGHT(Starting_year_general+6,2) -> 2024/25 | M4: =Starting_year_general+6&"/"&RIGHT(Starting_year_general+7,2) -> 2025/26 | N4: =Starting_year_general+7&"/"&RIGHT(Starting_year_general+8,2) -> 2026/27 | O4: =Starting_year_general+8&"/"&RIGHT(Starting_year_general+9,2) -> 2027/28 | P4: =Starting_year_general+9&"/"&RIGHT(Starting_year_general+10,2) -> 2028/29
C5: =IF('Cover Page'!$K$19=TRUE,"$","$'000") -> $ | E5: =IF('Cover Page'!$K$19=TRUE,"$","$'000") -> $ | G5: =IF('Cover Page'!$K$19=TRUE,"$","$'000") -> $ | H5: =IF('Cover Page'!$K$19=TRUE,"$","$'000") -> $ | I5: =IF('Cover Page'!$K$19=TRUE,"$","$'000") -> $ | J5: =IF('Cover Page'!$K$19=TRUE,"$","$'000") -> $ | K5: =IF('Cover Page'!$K$19=TRUE,"$","$'000") -> $ | L5: =IF('Cover Page'!$K$19=TRUE,"$","$'000") -> $ | M5: =IF('Cover Page'!$K$19=TRUE,"$","$'000") -> $ | N5: =IF('Cover Page'!$K$19=TRUE,"$","$'000") -> $ | O5: =IF('Cover Page'!$K$19=TRUE,"$","$'000") -> $ | P5: =IF('Cover Page'!$K$19=TRUE,"$","$'000") -> $
A6: ASSETS
A7: Current Assets
A8: Cash & Cash Equivalents | C8: =SUM('Historical Data'!C682)*1000 -> 7187000 | E8: ='BS workings'!E48 -> 9744742.51 | G8: ='BS workings'!G48 -> 11472249.04 | H8: ='BS workings'!H48 -> 13274866.23 | I8: ='BS workings'!I48 -> 17362539.29 | J8: ='BS workings'!J48 -> 21772027.63 | K8: ='BS workings'!K48 -> 26381821.81 | L8: ='BS workings'!L48 -> 31055105.3 | M8: ='BS workings'!M48 -> 35769454.67 | N8: ='BS workings'!N48 -> 40469823 | O8: ='BS workings'!O48 -> 45208442.17 | P8: ='BS workings'!P48 -> 50071529.7
A9: Investments | C9: =SUM('Historical Data'!C683)*1000 -> 40000000 | E9: ='BS workings'!E67 -> 47500000 | G9: ='BS workings'!G67 -> 47500000 | H9: ='BS workings'!H67 -> 47500000 | I9: ='BS workings'!I67 -> 47500000 | J9: ='BS workings'!J67 -> 47500000 | K9: ='BS workings'!K67 -> 47500000 | L9: ='BS workings'!L67 -> 47500000 | M9: ='BS workings'!M67 -> 47500000 | N9: ='BS workings'!N67 -> 47500000 | O9: ='BS workings'!O67 -> 47500000 | P9: ='BS workings'!P67 -> 47500000
A10: Receivables | C10: =SUM('Historical Data'!C684)*1000 -> 4268000 | E10: ='BS workings'!E359 -> 3698313.771 | G10: ='BS workings'!G359 -> 3302083.803 | H10: ='BS workings'!H359 -> 3404310.993 | I10: ='BS workings'!I359 -> 3490459.863 | J10: ='BS workings'!J359 -> 3514574.455 | K10: ='BS workings'!K359 -> 3625656.805 | L10: ='BS workings'!L359 -> 3740167.989 | M10: ='BS workings'!M359 -> 3863937.235 | N10: ='BS workings'!N359 -> 3960730.243 | O10: ='BS workings'!O359 -> 4077163.278 | P10: ='BS workings'!P359 -> 4192005.009
A11: Inventories | C11: =SUM('Historical Data'!C685)*1000 -> 0 | E11: ='BS workings'!E445 -> 0 | G11: ='BS workings'!G445 -> 0 | H11: ='BS workings'!H445 -> 0 | I11: ='BS workings'!I445 -> 0 | J11: ='BS workings'!J445 -> 0 | K11: ='BS workings'!K445 -> 0 | L11: ='BS workings'!L445 -> 0 | M11: ='BS workings'!M445 -> 0 | N11: ='BS workings'!N445 -> 0 | O11: ='BS workings'!O445 -> 0 | P11: ='BS workings'!P445 -> 0
A12: Other | C12: =SUM('Historical Data'!C686)*1000 -> 456000 | E12: ='BS workings'!E524 -> 454873.1638 | G12: ='BS workings'!G524 -> 423480.74 | H12: ='BS workings'!H524 -> 437991.2095 | I12: ='BS workings'!I524 -> 444828.5649 | J12: ='BS workings'!J524 -> 460278.7656 | K12: ='BS workings'!K524 -> 472426.9488 | L12: ='BS workings'!L524 -> 491879.7157 | M12: ='BS workings'!M524 -> 513912.2356 | N12: ='BS workings'!N524 -> 523735.4698 | O12: ='BS workings'!O524 -> 539771.0221 | P12: ='BS workings'!P524 -> 553176.664
A13: Non-current assets classified as "held for sale" | C13: =SUM('Historical Data'!C687)*1000 -> 0 | E13: ='BS workings'!E546 -> 0 | G13: ='BS workings'!G546 -> 0 | H13: ='BS workings'!H546 -> 0 | I13: ='BS workings'!I546 -> 0 | J13: ='BS workings'!J546 -> 0 | K13: ='BS workings'!K546 -> 0 | L13: ='BS workings'!L546 -> 0 | M13: ='BS workings'!M546 -> 0 | N13: ='BS workings'!N546 -> 0 | O13: ='BS workings'!O546 -> 0 | P13: ='BS workings'!P546 -> 0
A14: Rounding adjustment (keep line always hidden!!!!!) | C14: =-C65 -> 0 | E14: 0 | G14: 0 | H14: 0 | I14: 0 | J14: 0 | K14: 0 | L14: 0 | M14: 0 | N14: 0 | O14: 0 | P14: 0
A15: Total Current Assets | C15: =SUM(C6:C14) -> 51911000 | E15: 61397929.44 | G15: 62697813.59 | H15: 64617168.43 | I15: 68797827.71 | J15: 73246880.85 | K15: 77979905.57 | L15: 82787153.01 | M15: 87647304.14 | N15: 92454288.71 | O15: 97325376.47 | P15: 102316711.4
A17: Non-Current Assets
A18: Investments | C18: =SUM('Historical Data'!C691)*1000 -> 10000000 | E18: ='BS workings'!E68 -> 2500000 | G18: ='BS workings'!G68 -> 2500000 | H18: ='BS workings'!H68 -> 2500000 | I18: ='BS workings'!I68 -> 2500000 | J18: ='BS workings'!J68 -> 2500000 | K18: ='BS workings'!K68 -> 2500000 | L18: ='BS workings'!L68 -> 2500000 | M18: ='BS workings'!M68 -> 2500000 | N18: ='BS workings'!N68 -> 2500000 | O18: ='BS workings'!O68 -> 2500000 | P18: ='BS workings'!P68 -> 2500000
A19: Receivables | C19: =SUM('Historical Data'!C692)*1000 -> 0 | E19: ='BS workings'!E360 -> 0 | G19: ='BS workings'!G360 -> 0 | H19: ='BS workings'!H360 -> 0 | I19: ='BS workings'!I360 -> 0 | J19: ='BS workings'!J360 -> 0 | K19: ='BS workings'!K360 -> 0 | L19: ='BS workings'!L360 -> 0 | M19: ='BS workings'!M360 -> 0 | N19: ='BS workings'!N360 -> 0 | O19: ='BS workings'!O360 -> 0 | P19: ='BS workings'!P360 -> 0
A20: Inventories | C20: =SUM('Historical Data'!C693)*1000 -> 0 | E20: ='BS workings'!E446 -> 0 | G20: ='BS workings'!G446 -> 0 | H20: ='BS workings'!H446 -> 0 | I20: ='BS workings'!I446 -> 0 | J20: ='BS workings'!J446 -> 0 | K20: ='BS workings'!K446 -> 0 | L20: ='BS workings'!L446 -> 0 | M20: ='BS workings'!M446 -> 0 | N20: ='BS workings'!N446 -> 0 | O20: ='BS workings'!O446 -> 0 | P20: ='BS workings'!P446 -> 0
A21: Infrastructure, Property, Plant & Equipment | C21: =SUM('Historical Data'!C694)*1000 -> 457041000 | E21: ='BS workings'!E576 -> 469542748 | G21: ='BS workings'!G576 -> 473991096 | H21: ='BS workings'!H576 -> 479462843 | I21: ='BS workings'!I576 -> 483494393.5 | J21: ='BS workings'!J576 -> 486752687.6 | K21: ='BS workings'!K576 -> 490297702.2 | L21: ='BS workings'!L576 -> 494161834.4 | M21: ='BS workings'!M576 -> 498338610.1 | N21: ='BS workings'!N576 -> 502695576.2 | O21: ='BS workings'!O576 -> 507339804.2 | P21: ='BS workings'!P576 -> 512261393.7
A22: Investments Accounted for using the equity method | C22: =SUM('Historical Data'!C695)*1000 -> 134000 | E22: =IF('BS workings'!E613>0,'BS workings'!E613,0) -> 134000 | G22: =IF('BS workings'!G613>0,'BS workings'!G613,0) -> 134000 | H22: =IF('BS workings'!H613>0,'BS workings'!H613,0) -> 134000 | I22: =IF('BS workings'!I613>0,'BS workings'!I613,0) -> 134000 | J22: =IF('BS workings'!J613>0,'BS workings'!J613,0) -> 134000 | K22: =IF('BS workings'!K613>0,'BS workings'!K613,0) -> 134000 | L22: =IF('BS workings'!L613>0,'BS workings'!L613,0) -> 134000 | M22: =IF('BS workings'!M613>0,'BS workings'!M613,0) -> 134000 | N22: =IF('BS workings'!N613>0,'BS workings'!N613,0) -> 134000 | O22: =IF('BS workings'!O613>0,'BS workings'!O613,0) -> 134000 | P22: =IF('BS workings'!P613>0,'BS workings'!P613,0) -> 134000
A23: Investment Property | C23: =SUM('Historical Data'!C696)*1000 -> 3820000 | E23: ='BS workings'!E596 -> 3820000 | G23: ='BS workings'!G596 -> 3820000 | H23: ='BS workings'!H596 -> 3820000 | I23: ='BS workings'!I596 -> 3820000 | J23: ='BS workings'!J596 -> 3820000 | K23: ='BS workings'!K596 -> 3820000 | L23: ='BS workings'!L596 -> 3820000 | M23: ='BS workings'!M596 -> 3820000 | N23: ='BS workings'!N596 -> 3820000 | O23: ='BS workings'!O596 -> 3820000 | P23: ='BS workings'!P596 -> 3820000
A24: Intangible Assets | C24: =SUM('Historical Data'!C697)*1000 -> 0 | E24: ='BS workings'!E628 -> 0 | G24: ='BS workings'!G628 -> 0 | H24: ='BS workings'!H628 -> 0 | I24: ='BS workings'!I628 -> 0 | J24: ='BS workings'!J628 -> 0 | K24: ='BS workings'!K628 -> 0 | L24: ='BS workings'!L628 -> 0 | M24: ='BS workings'!M628 -> 0 | N24: ='BS workings'!N628 -> 0 | O24: ='BS workings'!O628 -> 0 | P24: ='BS workings'!P628 -> 0
A25: Non-current assets classified as "held for sale" | C25: =SUM('Historical Data'!C698)*1000 -> 0 | E25: ='BS workings'!E547 -> 0 | G25: ='BS workings'!G547 -> 0 | H25: ='BS workings'!H547 -> 0 | I25: ='BS workings'!I547 -> 0 | J25: ='BS workings'!J547 -> 0 | K25: ='BS workings'!K547 -> 0 | L25: ='BS workings'!L547 -> 0 | M25: ='BS workings'!M547 -> 0 | N25: ='BS workings'!N547 -> 0 | O25: ='BS workings'!O547 -> 0 | P25: ='BS workings'!P547 -> 0
A26: Other | C26: =SUM('Historical Data'!C699)*1000 -> 0 | E26: ='BS workings'!E525 -> 0 | G26: ='BS workings'!G525 -> 0 | H26: ='BS workings'!H525 -> 0 | I26: ='BS workings'!I525 -> 0 | J26: ='BS workings'!J525 -> 0 | K26: ='BS workings'!K525 -> 0 | L26: ='BS workings'!L525 -> 0 | M26: ='BS workings'!M525 -> 0 | N26: ='BS workings'!N525 -> 0 | O26: ='BS workings'!O525 -> 0 | P26: ='BS workings'!P525 -> 0
A27: Total Non-Current Assets | C27: =SUM(C17:C26) -> 470995000 | E27: 475996748 | G27: 480445096 | H27: 485916843 | I27: 489948393.5 | J27: 493206687.6 | K27: 496751702.2 | L27: 500615834.4 | M27: 504792610.1 | N27: 509149576.2 | O27: 513793804.2 | P27: 518715393.7
A28: TOTAL ASSETS | C28: =C27+C15 -> 522906000 | E28: 537394677.4 | G28: 543142909.6 | H28: 550534011.4 | I28: 558746221.2 | J28: 566453568.5 | K28: 574731607.7 | L28: 583402987.4 | M28: 592439914.2 | N28: 601603864.9 | O28: 611119180.7 | P28: 621032105.1
A30: LIABILITIES
A31: Current Liabilities
A32: Bank Overdraft | C32: =SUM('Historical Data'!C1145)*1000 -> 0 | E32: =+'BS workings'!E49 -> 0 | G32: =+'BS workings'!G49 -> 0 | H32: =+'BS workings'!H49 -> 0 | I32: =+'BS workings'!I49 -> 0 | J32: =+'BS workings'!J49 -> 0 | K32: =+'BS workings'!K49 -> 0 | L32: =+'BS workings'!L49 -> 0 | M32: =+'BS workings'!M49 -> 0 | N32: =+'BS workings'!N49 -> 0 | O32: =+'BS workings'!O49 -> 0 | P32: =+'BS workings'!P49 -> 0
A33: Payables | C33: =SUM('Historical Data'!C705)*1000 -> 8447000 | E33: ='BS workings'!E783 -> 9832706.028 | G33: ='BS workings'!G783 -> 9446648.408 | H33: ='BS workings'!H783 -> 9606604.294 | I33: ='BS workings'!I783 -> 9639552.311 | J33: ='BS workings'!J783 -> 9759274.676 | K33: ='BS workings'!K783 -> 9887532.969 | L33: ='BS workings'!L783 -> 10073119.75 | M33: ='BS workings'!M783 -> 10279448.67 | N33: ='BS workings'!N783 -> 10390426.37 | O33: ='BS workings'!O783 -> 10551891.99 | P33: ='BS workings'!P783 -> 10694353.42
A34: Income received in advance | C34: =SUM('Historical Data'!C706)*1000 -> 1266000 | E34: ='BS workings'!E805 -> 932781.9389 | G34: ='BS workings'!G805 -> 921439.7897 | H34: ='BS workings'!H805 -> 951611.7193 | I34: ='BS workings'!I805 -> 981739.7041 | J34: ='BS workings'!J805 -> 1006674.035 | K34: ='BS workings'!K805 -> 1031915.255 | L34: ='BS workings'!L805 -> 1061413.612 | M34: ='BS workings'!M805 -> 1087478.833 | N34: ='BS workings'!N805 -> 1114840.663 | O34: ='BS workings'!O805 -> 1142918.1 | P34: ='BS workings'!P805 -> 1171730.506
A35: Borrowings | C35: =SUM('Historical Data'!C707)*1000-C32 -> 574000 | E35: ='BS workings'!E881 -> 708130.8713 | G35: ='BS workings'!G881 -> 739962.4921 | H35: ='BS workings'!H881 -> 703003.7573 | I35: ='BS workings'!I881 -> 661636.8956 | J35: ='BS workings'!J881 -> 623003.244 | K35: ='BS workings'!K881 -> 453774.2507 | L35: ='BS workings'!L881 -> 341957.4794 | M35: ='BS workings'!M881 -> 353638.6124 | N35: ='BS workings'!N881 -> 365718.4556 | O35: ='BS workings'!O881 -> 209413.4193 | P35: ='BS workings'!P881 -> 127464
A36: Provisions | C36: =SUM('Historical Data'!C708)*1000 -> 6772000 | E36: ='BS workings'!E951 -> 6712090.046 | G36: ='BS workings'!G951 -> 6712090.046 | H36: ='BS workings'!H951 -> 6712090.046 | I36: ='BS workings'!I951 -> 6712090.046 | J36: ='BS workings'!J951 -> 6712090.046 | K36: ='BS workings'!K951 -> 6712090.046 | L36: ='BS workings'!L951 -> 6712090.046 | M36: ='BS workings'!M951 -> 6712090.046 | N36: ='BS workings'!N951 -> 6712090.046 | O36: ='BS workings'!O951 -> 6712090.046 | P36: ='BS workings'!P951 -> 6712090.046
A37: Liabilities associated with assets classified as "held for sale" | C37: =SUM('Historical Data'!C709)*1000 -> 0 | E37: ='BS workings'!E968 -> 0 | G37: ='BS workings'!G968 -> 0 | H37: ='BS workings'!H968 -> 0 | I37: ='BS workings'!I968 -> 0 | J37: ='BS workings'!J968 -> 0 | K37: ='BS workings'!K968 -> 0 | L37: ='BS workings'!L968 -> 0 | M37: ='BS workings'!M968 -> 0 | N37: ='BS workings'!N968 -> 0 | O37: ='BS workings'!O968 -> 0 | P37: ='BS workings'!P968 -> 0
A38: Total Current Liabilities | C38: =SUM(C30:C37) -> 17059000 | E38: 18185708.88 | G38: 17820140.74 | H38: 17973309.82 | I38: 17995018.96 | J38: 18101042 | K38: 18085312.52 | L38: 18188580.88 | M38: 18432656.16 | N38: 18583075.54 | O38: 18616313.55 | P38: 18705637.98
A40: Non-Current Liabilities
A41: Payables | C41: =SUM('Historical Data'!C713)*1000 -> 0 | E41: ='BS workings'!E784 -> 0 | G41: ='BS workings'!G784 -> 0 | H41: ='BS workings'!H784 -> 0 | I41: ='BS workings'!I784 -> 0 | J41: ='BS workings'!J784 -> 0 | K41: ='BS workings'!K784 -> 0 | L41: ='BS workings'!L784 -> 0 | M41: ='BS workings'!M784 -> 0 | N41: ='BS workings'!N784 -> 0 | O41: ='BS workings'!O784 -> 0 | P41: ='BS workings'!P784 -> 0
A42: Income received in advance | C42: =SUM('Historical Data'!C714)*1000 -> 0 | E42: ='BS workings'!E806 -> 0 | G42: ='BS workings'!G806 -> 0 | H42: ='BS workings'!H806 -> 0 | I42: ='BS workings'!I806 -> 0 | J42: ='BS workings'!J806 -> 0 | K42: ='BS workings'!K806 -> 0 | L42: ='BS workings'!L806 -> 0 | M42: ='BS workings'!M806 -> 0 | N42: ='BS workings'!N806 -> 0 | O42: ='BS workings'!O806 -> 0 | P42: ='BS workings'!P806 -> 0
A43: Borrowings | C43: =SUM('Historical Data'!C715)*1000 -> 5920000 | E43: ='BS workings'!E882 -> 6171568.606 | G43: ='BS workings'!G882 -> 5431606.114 | H43: ='BS workings'!H882 -> 4728602.357 | I43: ='BS workings'!I882 -> 4066965.461 | J43: ='BS workings'!J882 -> 3443962.217 | K43: ='BS workings'!K882 -> 2990187.967 | L43: ='BS workings'!L882 -> 2648230.487 | M43: ='BS workings'!M882 -> 2294591.875 | N43: ='BS workings'!N882 -> 1928873.419 | O43: ='BS workings'!O882 -> 1719460 | P43: ='BS workings'!P882 -> 1591996
A44: Provisions | C44: =SUM('Historical Data'!C716)*1000 -> 102000 | E44: ='BS workings'!E952 -> 161909.9536 | G44: ='BS workings'!G952 -> 161909.9536 | H44: ='BS workings'!H952 -> 161909.9536 | I44: ='BS workings'!I952 -> 161909.9536 | J44: ='BS workings'!J952 -> 161909.9536 | K44: ='BS workings'!K952 -> 161909.9536 | L44: ='BS workings'!L952 -> 161909.9536 | M44: ='BS workings'!M952 -> 161909.9536 | N44: ='BS workings'!N952 -> 161909.9536 | O44: ='BS workings'!O952 -> 161909.9536 | P44: ='BS workings'!P952 -> 161909.9536
A45: Investments Accounted for using the equity method | C45: =SUM('Historical Data'!C717)*1000 -> 0 | E45: =IF('BS workings'!E613<0,-'BS workings'!E613,0) -> 0 | G45: =IF('BS workings'!G613<0,-'BS workings'!G613,0) -> 0 | H45: =IF('BS workings'!H613<0,-'BS workings'!H613,0) -> 0 | I45: =IF('BS workings'!I613<0,-'BS workings'!I613,0) -> 0 | J45: =IF('BS workings'!J613<0,-'BS workings'!J613,0) -> 0 | K45: =IF('BS workings'!K613<0,-'BS workings'!K613,0) -> 0 | L45: =IF('BS workings'!L613<0,-'BS workings'!L613,0) -> 0 | M45: =IF('BS workings'!M613<0,-'BS workings'!M613,0) -> 0 | N45: =IF('BS workings'!N613<0,-'BS workings'!N613,0) -> 0 | O45: =IF('BS workings'!O613<0,-'BS workings'!O613,0) -> 0 | P45: =IF('BS workings'!P613<0,-'BS workings'!P613,0) -> 0
A46: Liabilities associated with assets classified as "held for sale" | C46: =SUM('Historical Data'!C718)*1000 -> 0 | E46: ='BS workings'!E969 -> 0 | G46: ='BS workings'!G969 -> 0 | H46: ='BS workings'!H969 -> 0 | I46: ='BS workings'!I969 -> 0 | J46: ='BS workings'!J969 -> 0 | K46: ='BS workings'!K969 -> 0 | L46: ='BS workings'!L969 -> 0 | M46: ='BS workings'!M969 -> 0 | N46: ='BS workings'!N969 -> 0 | O46: ='BS workings'!O969 -> 0 | P46: ='BS workings'!P969 -> 0
A47: Total Non-Current Liabilities | C47: =SUM(C40:C46) -> 6022000 | E47: =SUM(E40:E46) -> 6333478.56 | G47: =SUM(G40:G46) -> 5593516.068 | H47: 4890512.311 | I47: 4228875.415 | J47: 3605872.171 | K47: 3152097.92 | L47: 2810140.441 | M47: 2456501.828 | N47: 2090783.373 | O47: 1881369.954 | P47: 1753905.954
A48: TOTAL LIABILITIES | C48: =C47+C38 -> 23081000 | E48: =E47+E38 -> 24519187.44 | G48: =G47+G38 -> 23413656.8 | H48: 22863822.13 | I48: 22223894.37 | J48: 21706914.17 | K48: 21237410.44 | L48: 20998721.32 | M48: 20889157.99 | N48: 20673858.91 | O48: 20497683.51 | P48: 20459543.93
A49: Net Assets | C49: =C28-C48 -> 499825000 | E49: =E28-E48 -> 512875490 | G49: =G28-G48 -> 519729252.8 | H49: 527670189.3 | I49: 536522326.8 | J49: 544746654.3 | K49: 553494197.3 | L49: 562404266.1 | M49: 571550756.2 | N49: 580930006 | O49: 590621497.2 | P49: 600572561.2
A51: EQUITY
A52: Retained Earnings | C52: =SUM('Historical Data'!C724)*1000 -> 213341000 | E52: ='BS workings'!E981 -> 226391490 | G52: ='BS workings'!G981 -> 233245252.8 | H52: ='BS workings'!H981 -> 241186189.3 | I52: ='BS workings'!I981 -> 250038326.8 | J52: ='BS workings'!J981 -> 258262654.3 | K52: ='BS workings'!K981 -> 267010197.3 | L52: ='BS workings'!L981 -> 275920266.1 | M52: ='BS workings'!M981 -> 285066756.2 | N52: ='BS workings'!N981 -> 294446006 | O52: ='BS workings'!O981 -> 304137497.2 | P52: ='BS workings'!P981 -> 314088561.2
A53: Revaluation Reserves | C53: =SUM('Historical Data'!C725)*1000 -> 286484000 | E53: ='BS workings'!E992 -> 286484000 | G53: ='BS workings'!G992 -> 286484000 | H53: ='BS workings'!H992 -> 286484000 | I53: ='BS workings'!I992 -> 286484000 | J53: ='BS workings'!J992 -> 286484000 | K53: ='BS workings'!K992 -> 286484000 | L53: ='BS workings'!L992 -> 286484000 | M53: ='BS workings'!M992 -> 286484000 | N53: ='BS workings'!N992 -> 286484000 | O53: ='BS workings'!O992 -> 286484000 | P53: ='BS workings'!P992 -> 286484000
A54: Council Equity Interest | C54: =SUM('Historical Data'!C726)*1000 -> 499825000 | E54: =SUM(E52:E53) -> 512875490 | G54: 519729252.8 | H54: 527670189.3 | I54: 536522326.8 | J54: 544746654.3 | K54: 553494197.3 | L54: 562404266.1 | M54: 571550756.2 | N54: 580930006 | O54: 590621497.2 | P54: 600572561.2
A55: Minority Equity Interest | C55: =SUM('Historical Data'!C727)*1000 -> 0 | E55: 0 | G55: 0 | H55: 0 | I55: 0 | J55: 0 | K55: 0 | L55: 0 | M55: 0 | N55: 0 | O55: 0 | P55: 0
A56: Total Equity | C56: =C52+C53+C55 -> 499825000 | E56: 512875490 | G56: 519729252.8 | H56: 527670189.3 | I56: 536522326.8 | J56: 544746654.3 | K56: 553494197.3 | L56: 562404266.1 | M56: 571550756.2 | N56: 580930006 | O56: 590621497.2 | P56: 600572561.2
A59: Variance Net assets to Total Equity | C59: =ROUND(C49,0)-ROUND(C56,0) -> 0 | E59: 0 | G59: 0 | H59: 0 | I59: 0 | J59: 0 | K59: 0 | L59: 0 | M59: 0 | N59: 0 | O59: 0 | P59: 0
A60: Check that variance above is NIL | C60: =IF(C59<>0,C4,"") ->  | E60: =IF(E59<>0,IF(C60="",E$4,C60&", "&E$4),C60) ->  | G60: =IF(G59<>0,IF(E60="",G$4,E60&", "&G$4),E60) ->  | H60: =IF(H59<>0,IF(G60="",H$4,G60&", "&H$4),G60) -> 
E62: 1 | G62: =E62+1 -> 2 | H62: =G62+1 -> 3 | I62: 4 | J62: 5 | K62: 6 | L62: 7 | M62: 8 | N62: 9 | O62: 10 | P62: 11
A64: Variance Net assets to Total Equity (excluding rounding adjustment) | C64: =ROUND(SUM(C8:C13)+C27-C48,0)-ROUND(C56,0) -> 0 | E64: =ROUND(SUM(E8:E13)+E27-E48,0)-ROUND(E56,0) -> 0 | G64: =ROUND(SUM(G8:G13)+G27-G48,0)-ROUND(G56,0) -> 0 | H64: 0 | I64: 0 | J64: 0 | K64: 0 | L64: 0 | M64: 0 | N64: 0 | O64: 0 | P64: 0
A65: Rounding adjustment required | C65: =IF(AND(ABS(C64)>0,OR(ABS(C64)<1,ABS(C64)=1)),SUM(C8:C13)+C27-C48-C56,0) -> 0 | E65: =IF(AND(ABS(E64)>0,OR(ABS(E64)<1,ABS(E64)=1)),SUM(E8:E13)+E27-E48-E56,0) -> 0 | G65: =IF(AND(ABS(G64)>0,OR(ABS(G64)<1,ABS(G64)=1)),SUM(G8:G13)+G27-G48-G56,0) -> 0 | H65: 0 | I65: 0 | J65: 0 | K65: 0 | L65: 0 | M65: 0 | N65: 0 | O65: 0 | P65: 0
A71: Internal Loans receivable - Current | C71: =SUM('Historical Data'!C926)*1000 -> 0 | E71: ='BS workings'!E276 -> 0 | G71: ='BS workings'!G276 -> 0 | H71: ='BS workings'!H276 -> 0 | I71: ='BS workings'!I276 -> 0 | J71: ='BS workings'!J276 -> 0 | K71: ='BS workings'!K276 -> 0 | L71: ='BS workings'!L276 -> 0 | M71: ='BS workings'!M276 -> 0 | N71: ='BS workings'!N276 -> 0 | O71: ='BS workings'!O276 -> 0 | P71: ='BS workings'!P276 -> 0
A72: Internal Loans receivable - Non-current | C72: =SUM('Historical Data'!C927)*1000 -> 0 | E72: ='BS workings'!E277 -> 0 | G72: ='BS workings'!G277 -> 0 | H72: ='BS workings'!H277 -> 0 | I72: ='BS workings'!I277 -> 0 | J72: ='BS workings'!J277 -> 0 | K72: ='BS workings'!K277 -> 0 | L72: ='BS workings'!L277 -> 0 | M72: ='BS workings'!M277 -> 0 | N72: ='BS workings'!N277 -> 0 | O72: ='BS workings'!O277 -> 0 | P72: ='BS workings'!P277 -> 0
A74: Internal Loans payable - Current | C74: =SUM('Historical Data'!C1148)*1000 -> 0 | E74: ='BS workings'!E839 -> 0 | G74: ='BS workings'!G839 -> 0 | H74: ='BS workings'!H839 -> 0 | I74: ='BS workings'!I839 -> 0 | J74: ='BS workings'!J839 -> 0 | K74: ='BS workings'!K839 -> 0 | L74: ='BS workings'!L839 -> 0 | M74: ='BS workings'!M839 -> 0 | N74: ='BS workings'!N839 -> 0 | O74: ='BS workings'!O839 -> 0 | P74: ='BS workings'!P839 -> 0
A75: Internal Loans payable - Non-current | C75: =SUM('Historical Data'!C1149)*1000 -> 0 | E75: ='BS workings'!E840 -> 0 | G75: ='BS workings'!G840 -> 0 | H75: ='BS workings'!H840 -> 0 | I75: ='BS workings'!I840 -> 0 | J75: ='BS workings'!J840 -> 0 | K75: ='BS workings'!K840 -> 0 | L75: ='BS workings'!L840 -> 0 | M75: ='BS workings'!M840 -> 0 | N75: ='BS workings'!N840 -> 0 | O75: ='BS workings'!O840 -> 0 | P75: ='BS workings'!P840 -> 0
A77: Debit Balance | E77: ='BS workings'!E48 -> 9744742.51 | G77: ='BS workings'!G48 -> 11472249.04 | H77: ='BS workings'!H48 -> 13274866.23 | I77: ='BS workings'!I48 -> 17362539.29 | J77: ='BS workings'!J48 -> 21772027.63 | K77: ='BS workings'!K48 -> 26381821.81 | L77: ='BS workings'!L48 -> 31055105.3 | M77: ='BS workings'!M48 -> 35769454.67 | N77: ='BS workings'!N48 -> 40469823 | O77: ='BS workings'!O48 -> 45208442.17 | P77: ='BS workings'!P48 -> 50071529.7
A78: Overdraft Balance | E78: ='BS workings'!E49 -> 0 | G78: ='BS workings'!G49 -> 0 | H78: ='BS workings'!H49 -> 0 | I78: ='BS workings'!I49 -> 0 | J78: ='BS workings'!J49 -> 0 | K78: ='BS workings'!K49 -> 0 | L78: ='BS workings'!L49 -> 0 | M78: ='BS workings'!M49 -> 0 | N78: ='BS workings'!N49 -> 0 | O78: ='BS workings'!O49 -> 0 | P78: ='BS workings'!P49 -> 0
A83: end | B83: end | C83: end | D83: end | E83: end | F83: end | G83: end | H83: end | I83: end | J83: end | K83: end | L83: end | M83: end | N83: end | O83: end | P83: end

Sheet BS workings
A1: ='Cover Page'!$A$3 -> Burwood Council
A2: ='Cover Page'!$A$5 -> 10 Year Financial Plan for the Years ending 30 June 2029
A3: ="BALANCE SHEET - "&UPPER(general_fund_name)&" - WORKINGS" -> BALANCE SHEET - GENERAL FUND - WORKINGS | C3: Actuals | E3: Current Year | G3: Projected Years
A4: ="Scenario: "&general_scenario_name -> Scenario: Burwood Council - SRV Scenario - 2% above Rate Peg for 4years | C4: =Starting_year_general-2&"/"&RIGHT(Starting_year_general-1,2) -> 2017/18 | E4: =Starting_year_general-1&"/"&RIGHT(Starting_year_general,2) -> 2018/19 | G4: =Starting_year_general&"/"&RIGHT(Starting_year_general+1,2) -> 2019/20 | H4: =Starting_year_general+1&"/"&RIGHT(Starting_year_general+2,2) -> 2020/21 | I4: =Starting_year_general+2&"/"&RIGHT(Starting_year_general+3,2) -> 2021/22 | J4: =Starting_year_general+3&"/"&RIGHT(Starting_year_general+4,2) -> 2022/23 | K4: =Starting_year_general+4&"/"&RIGHT(Starting_year_general+5,2) -> 2023/24 | L4: =Starting_year_general+5&"/"&RIGHT(Starting_year_general+6,2) -> 2024/25 | M4: =Starting_year_general+6&"/"&RIGHT(Starting_year_general+7,2) -> 2025/26 | N4: =Starting_year_general+7&"/"&RIGHT(Starting_year_general+8,2) -> 2026/27 | O4: =Starting_year_general+8&"/"&RIGHT(Starting_year_general+9,2) -> 2027/28 | P4: =Starting_year_general+9&"/"&RIGHT(Starting_year_general+10,2) -> 2028/29
C5: =IF('Cover Page'!$K$19=TRUE,"$","$") -> $ | E5: =IF('Cover Page'!$K$19=TRUE,"$","$") -> $ | G5: =IF('Cover Page'!$K$19=TRUE,"$","$") -> $ | H5: =IF('Cover Page'!$K$19=TRUE,"$","$") -> $ | I5: =IF('Cover Page'!$K$19=TRUE,"$","$") -> $ | J5: =IF('Cover Page'!$K$19=TRUE,"$","$") -> $ | K5: =IF('Cover Page'!$K$19=TRUE,"$","$") -> $ | L5: =IF('Cover Page'!$K$19=TRUE,"$","$") -> $ | M5: =IF('Cover Page'!$K$19=TRUE,"$","$") -> $ | N5: =IF('Cover Page'!$K$19=TRUE,"$","$") -> $ | O5: =IF('Cover Page'!$K$19=TRUE,"$","$") -> $ | P5: =IF('Cover Page'!$K$19=TRUE,"$","$") -> $
A8: Cash & Cash Equivalents
A9: Opening Balance | E9: =(SUM('Historical Data'!C682)-SUM('Historical Data'!C1145))*1000 -> 7187000 | G9: =E46 -> 9744742.51 | H9: =G46 -> 11472249.04 | I9: 13274866.23 | J9: 17362539.29 | K9: 21772027.63 | L9: 26381821.81 | M9: 31055105.3 | N9: 35769454.67 | O9: 40469823 | P9: 45208442.17
A10: Add: Operating Result | E10: ='Income Statement'!F36 -> 13050490 | G10: ='Income Statement'!H36 -> 6853762.782 | H10: ='Income Statement'!I36 -> 7940936.523 | I10: ='Income Statement'!J36 -> 8852137.538 | J10: ='Income Statement'!K36 -> 8224327.466 | K10: ='Income Statement'!L36 -> 8747542.995 | L10: ='Income Statement'!M36 -> 8910068.791 | M10: ='Income Statement'!N36 -> 9146490.12 | N10: ='Income Statement'!O36 -> 9379249.803 | O10: ='Income Statement'!P36 -> 9691491.196 | P10: ='Income Statement'!Q36 -> 9951063.962
A11: Less: non-cash Income | E11: =-'Budget Summary 1'!BC34-'Budget Summary 1'!BC103-'Income Statement'!BD15-'Income Statement'!BD16+SUM('Budget Summary 1'!BC26:BC33)-'Budget Summary 1'!BC114 -> 0 | G11: =-'Budget Summary 1'!BD34-'Budget Summary 1'!BD103-'Income Statement'!BE15-'Income Statement'!BE16+SUM('Budget Summary 1'!BD26:BD33)-'Budget Summary 1'!BD114 -> 0 | H11: =-'Budget Summary 1'!BE34-'Budget Summary 1'!BE103-'Income Statement'!BF15-'Income Statement'!BF16+SUM('Budget Summary 1'!BE26:BE33)-'Budget Summary 1'!BE114 -> 0 | I11: =-'Budget Summary 1'!BF34-'Budget Summary 1'!BF103-'Income Statement'!BG15-'Income Statement'!BG16+SUM('Budget Summary 1'!BF26:BF33)-'Budget Summary 1'!BF114 -> 0 | J11: =-'Budget Summary 1'!BG34-'Budget Summary 1'!BG103-'Income Statement'!BH15-'Income Statement'!BH16+SUM('Budget Summary 1'!BG26:BG33)-'Budget Summary 1'!BG114 -> 0 | K11: =-'Budget Summary 1'!BH34-'Budget Summary 1'!BH103-'Income Statement'!BI15-'Income Statement'!BI16+SUM('Budget Summary 1'!BH26:BH33)-'Budget Summary 1'!BH114 -> 0 | L11: =-'Budget Summary 1'!BI34-'Budget Summary 1'!BI103-'Income Statement'!BJ15-'Income Statement'!BJ16+SUM('Budget Summary 1'!BI26:BI33)-'Budget Summary 1'!BI114 -> 0 | M11: =-'Budget Summary 1'!BJ34-'Budget Summary 1'!BJ103-'Income Statement'!BK15-'Income Statement'!BK16+SUM('Budget Summary 1'!BJ26:BJ33)-'Budget Summary 1'!BJ114 -> 0 | N11: =-'Budget Summary 1'!BK34-'Budget Summary 1'!BK103-'Income Statement'!BL15-'Income Statement'!BL16+SUM('Budget Summary 1'!BK26:BK33)-'Budget Summary 1'!BK114 -> 0 | O11: =-'Budget Summary 1'!BL34-'Budget Summary 1'!BL103-'Income Statement'!BM15-'Income Statement'!BM16+SUM('Budget Summary 1'!BL26:BL33)-'Budget Summary 1'!BL114 -> 0 | P11: =-'Budget Summary 1'!BM34-'Budget Summary 1'!BM103-'Income Statement'!BN15-'Income Statement'!BN16+SUM('Budget Summary 1'!BM26:BM33)-'Budget Summary 1'!BM114 -> 0
A12: Add: Depreciation & Impairment | E12: =('Income Statement'!F23+'Income Statement'!F24) -> 7175000 | G12: =('Income Statement'!H23+'Income Statement'!H24) -> 7335000 | H12: =('Income Statement'!I23+'Income Statement'!I24) -> 7408350 | I12: =('Income Statement'!J23+'Income Statement'!J24) -> 7482433.5 | J12: =('Income Statement'!K23+'Income Statement'!K24) -> 7557257.87 | K12: =('Income Statement'!L23+'Income Statement'!L24) -> 7632830.45 | L12: =('Income Statement'!M23+'Income Statement'!M24) -> 7709158.77 | M12: =('Income Statement'!N23+'Income Statement'!N24) -> 7786250.34 | N12: =('Income Statement'!O23+'Income Statement'!O24) -> 7864112.85 | O12: =('Income Statement'!P23+'Income Statement'!P24) -> 7942753.97 | P12: =('Income Statement'!Q23+'Income Statement'!Q24) -> 8022181.52
A13: Add: Depreciation - capitalised
A14: Add: other non-cash Expenditure | E14: ='Income Statement'!BD29-'Income Statement'!BD23-'Income Statement'!BD24 -> 0 | G14: ='Income Statement'!BE29-'Income Statement'!BE23-'Income Statement'!BE24 -> 0 | H14: ='Income Statement'!BF29-'Income Statement'!BF23-'Income Statement'!BF24 -> 0 | I14: ='Income Statement'!BG29-'Income Statement'!BG23-'Income Statement'!BG24 -> 0 | J14: ='Income Statement'!BH29-'Income Statement'!BH23-'Income Statement'!BH24 -> 0 | K14: ='Income Statement'!BI29-'Income Statement'!BI23-'Income Statement'!BI24 -> 0 | L14: ='Income Statement'!BJ29-'Income Statement'!BJ23-'Income Statement'!BJ24 -> 0 | M14: ='Income Statement'!BK29-'Income Statement'!BK23-'Income Statement'!BK24 -> 0 | N14: ='Income Statement'!BL29-'Income Statement'!BL23-'Income Statement'!BL24 -> 0 | O14: ='Income Statement'!BM29-'Income Statement'!BM23-'Income Statement'!BM24 -> 0 | P14: ='Income Statement'!BN29-'Income Statement'!BN23-'Income Statement'!BN24 -> 0
A15: Add: Change in Receivables | E15: =-E363 -> 569686.229 | G15: =-G363 -> 396229.9682 | H15: =-H363 -> -102227.1906 | I15: =-I363 -> -86148.86998 | J15: -24114.59155 | K15: -111082.3501 | L15: -114511.1836 | M15: -123769.2459 | N15: -96793.00801 | O15: -116433.035 | P15: -114841.7317
A16: Less: Additions in Real Estate Assets | E16: =-E422+'Budget Summary 1'!BC116 -> 0 | G16: =-G422+'Budget Summary 1'!BD116 -> 0 | H16: =-H422+'Budget Summary 1'!BE116 -> 0 | I16: =-I422+'Budget Summary 1'!BF116 -> 0 | J16: =-J422+'Budget Summary 1'!BG116 -> 0 | K16: =-K422+'Budget Summary 1'!BH116 -> 0 | L16: =-L422+'Budget Summary 1'!BI116 -> 0 | M16: =-M422+'Budget Summary 1'!BJ116 -> 0 | N16: =-N422+'Budget Summary 1'!BK116 -> 0 | O16: =-O422+'Budget Summary 1'!BL116 -> 0 | P16: =-P422+'Budget Summary 1'!BM116 -> 0
A17: Add: Disposals in Real Estate Assets | E17: =E440 -> 0 | G17: =G440 -> 0 | H17: =H440 -> 0 | I17: 0 | J17: 0 | K17: 0 | L17: 0 | M17: 0 | N17: 0 | O17: 0 | P17: 0
A18: Add: Change in Inventories | E18: =-E449 -> 0 | G18: =-G449 -> 0 | H18: =-H449 -> 0 | I18: 0 | J18: 0 | K18: 0 | L18: 0 | M18: 0 | N18: 0 | O18: 0 | P18: 0
A19: Add: Change in Other Assets | E19: =-E528 -> 1126.836238 | G19: =-G528 -> 31392.4238 | H19: =-H528 -> -14510.46951 | I19: -6837.355402 | J19: -15450.20074 | K19: -12148.18318 | L19: -19452.76687 | M19: -22032.51993 | N19: -9823.234232 | O19: -16035.55232 | P19: -13405.64182
A20: Less: Additions in IPP&E | E20: =-E561 -> -20376748 | G20: =-G561 -> -12733348 | H20: =-H561 -> -13840097 | I20: -12483984 | J20: -11800552 | K20: -12177845 | L20: -12603291 | M20: -12993026 | N20: -13266079 | O20: -13646982 | P20: -14003771
A21: Add: Disposals in IPP&E (Proceeds) | E21: =E580 -> 700000 | G21: =G580 -> 950000 | H21: 960000 | I21: 970000 | J21: 985000 | K21: 1000000 | L21: 1030000 | M21: 1030000 | N21: 1045000 | O21: 1060000 | P21: 1060000
A22: Add: Assets "held for sale" sold | E22: =E550 -> 0 | G22: =G550 -> 0 | H22: =H550 -> 0 | I22: 0 | J22: 0 | K22: 0 | L22: 0 | M22: 0 | N22: 0 | O22: 0 | P22: 0
A23: Less: Additions in Investment property | E23: =-E588+'Budget Summary 1'!BC115 -> 0 | G23: =-G588+'Budget Summary 1'!BD115 -> 0 | H23: =-H588+'Budget Summary 1'!BE115 -> 0 | I23: =-I588+'Budget Summary 1'!BF115 -> 0 | J23: =-J588+'Budget Summary 1'!BG115 -> 0 | K23: =-K588+'Budget Summary 1'!BH115 -> 0 | L23: =-L588+'Budget Summary 1'!BI115 -> 0 | M23: =-M588+'Budget Summary 1'!BJ115 -> 0 | N23: =-N588+'Budget Summary 1'!BK115 -> 0 | O23: =-O588+'Budget Summary 1'!BL115 -> 0 | P23: =-P588+'Budget Summary 1'!BM115 -> 0
A24: Add: Disposals in Investment property | E24: =E598 -> 0 | G24: =G598 -> 0 | H24: =H598 -> 0 | I24: 0 | J24: 0 | K24: 0 | L24: 0 | M24: 0 | N24: 0 | O24: 0 | P24: 0
A25: Add: Disposals in Investments | E25: =E74 -> 0 | G25: =G74 -> 0 | H25: =H74 -> 0 | I25: 0 | J25: 0 | K25: 0 | L25: 0 | M25: 0 | N25: 0 | O25: 0 | P25: 0
A26: Add: Change in Investments Accounted for using the equity method | E26: =E608-E613+E609+E611 -> 0 | G26: =G608-G613+G609+G611 -> 0 | H26: =H608-H613+H609+H611 -> 0 | I26: 0 | J26: 0 | K26: 0 | L26: 0 | M26: 0 | N26: 0 | O26: 0 | P26: 0
A27: Add: Change in Intangible Assets | E27: =E634 -> 0 | G27: =G634 -> 0 | H27: =H634 -> 0 | I27: 0 | J27: 0 | K27: 0 | L27: 0 | M27: 0 | N27: 0 | O27: 0 | P27: 0
A28: Less: Change in Payables | E28: =E787 -> 1385706.028 | G28: =G787 -> -386057.6196 | H28: =H787 -> 159955.8859 | I28: 32948.01716 | J28: 119722.3642 | K28: 128258.2936 | L28: 185586.7767 | M28: 206328.9267 | N28: 110977.6993 | O28: 161465.6169 | P28: 142461.4347
A29: Less: Change in Income received in advance | E29: =E808 -> -333218.0611 | G29: =G808 -> -11342.14919 | H29: =H808 -> 30171.92958 | I29: 30127.98478 | J29: 24934.33091 | K29: 25241.22049 | L29: 29498.35646 | M29: 26065.22147 | N29: 27361.83 | O29: 28077.43621 | P29: 28812.40609
A30: Less: Change in Provisions | E30: =(E951+E952)-(C903+C920+C937)-E896-E916-E899-E902-E918-E919-E935 -> 0 | G30: =(G951+G952)-(E903+E920+E937)-G896-G916-G899-G902-G918-G919-G935 -> 0 | H30: =(H951+H952)-(G903+G920+G937)-H896-H916-H899-H902-H918-H919-H935 -> 0 | I30: =(I951+I952)-(H903+H920+H937)-I896-I916-I899-I902-I918-I919-I935 -> 0 | J30: 0 | K30: 0 | L30: 0 | M30: 0 | N30: 0 | O30: 0 | P30: 0
A31: Less: Change in Borrowings | E31: =E880-C880-E861-E820-E855 -> 385699.4776 | G31: =G880-E880-G861-G820-G855 -> -708130.8713 | H31: =H880-G880-H861-H820-H855 -> -739962.4921 | I31: =I880-H880-I861-I820-I855 -> -703003.7573 | J31: =J880-I880-J861-J820-J855 -> -661636.8956 | K31: -623003.244 | L31: -453774.2507 | M31: -341957.4794 | N31: -353638.6124 | O31: -365718.4556 | P31: -209413.4193
A32: Less: Change in Liabilities associated with assets classified as "held for sale" | E32: =E963 -> 0 | G32: 0 | H32: 0 | I32: 0 | J32: 0 | K32: 0 | L32: 0 | M32: 0 | N32: 0 | O32: 0 | P32: 0
A33: Add/(Less): manual adjustments on Investments | E33: =-E61 -> 0 | G33: =-G61 -> 0 | H33: 0 | I33: 0 | J33: 0 | K33: 0 | L33: 0 | M33: 0 | N33: 0 | O33: 0 | P33: 0
A34: Add: Deferred Debtor repayments | E34: =-E247-E249-E270-E272 -> 0 | G34: =-G247-G249-G270-G272 -> 0 | H34: =-H247-H249-H270-H272 -> 0 | I34: 0 | J34: 0 | K34: 0 | L34: 0 | M34: 0 | N34: 0 | O34: 0 | P34: 0
A35: Less: New Deferred Debtors | E35: =-E246-E248-E269-E271 -> 0 | G35: =-G246-G248-G269-G271 -> 0 | H35: =-H246-H248-H269-H271 -> 0 | I35: 0 | J35: 0 | K35: 0 | L35: 0 | M35: 0 | N35: 0 | O35: 0 | P35: 0
A36: Add/(Less): manual adjustments on Other Assets
A37: (Less): manual adjustments Provisions | E37: =E899+E902+E918+E919 -> 0 | G37: =G899+G902+G918+G919 -> 0 | H37: =H899+H902+H918+H919 -> 0 | I37: =I899+I902+I918+I919 -> 0 | J37: 0 | K37: 0 | L37: 0 | M37: 0 | N37: 0 | O37: 0 | P37: 0
A38: Add: FV Change mapped as cash | E38: ='Budget Summary 1'!CC63-'Budget Summary 1'!CC19 -> 0 | G38: ='Budget Summary 1'!CD63-'Budget Summary 1'!CD19 -> 0 | H38: ='Budget Summary 1'!CE63-'Budget Summary 1'!CE19 -> 0 | I38: ='Budget Summary 1'!CF63-'Budget Summary 1'!CF19 -> 0 | J38: ='Budget Summary 1'!CG63-'Budget Summary 1'!CG19 -> 0 | K38: ='Budget Summary 1'!CH63-'Budget Summary 1'!CH19 -> 0 | L38: ='Budget Summary 1'!CI63-'Budget Summary 1'!CI19 -> 0 | M38: ='Budget Summary 1'!CJ63-'Budget Summary 1'!CJ19 -> 0 | N38: ='Budget Summary 1'!CK63-'Budget Summary 1'!CK19 -> 0 | O38: ='Budget Summary 1'!CL63-'Budget Summary 1'!CL19 -> 0 | P38: ='Budget Summary 1'!CM63-'Budget Summary 1'!CM19 -> 0
A41: Closing Balance | E41: =SUM(E9:E40) -> 9744742.51 | G41: =SUM(G9:G40) -> 11472249.04 | H41: 13274866.23 | I41: 17362539.29 | J41: 21772027.63 | K41: 26381821.81 | L41: 31055105.3 | M41: 35769454.67 | N41: 40469823 | O41: 45208442.17 | P41: 50071529.7
A43: Minimum Level of Cash & Cash Equivalents (in $) | E43: =IF('Target %'!G5="",IF('Target %'!G6="","",'Target %'!G6*E51),'Target %'!G5) ->  | G43: =IF('Target %'!H5="",IF('Target %'!H6="","",'Target %'!H6*G51),'Target %'!H5) ->  | H43: =IF('Target %'!I5="",IF('Target %'!I6="","",'Target %'!I6*H51),'Target %'!I5) ->  | I43: =IF('Target %'!J5="",IF('Target %'!J6="","",'Target %'!J6*I51),'Target %'!J5) ->  | J43: =IF('Target %'!K5="",IF('Target %'!K6="","",'Target %'!K6*J51),'Target %'!K5) ->  | K43: =IF('Target %'!L5="",IF('Target %'!L6="","",'Target %'!L6*K51),'Target %'!L5) ->  | L43: =IF('Target %'!M5="",IF('Target %'!M6="","",'Target %'!M6*L51),'Target %'!M5) ->  | M43: =IF('Target %'!N5="",IF('Target %'!N6="","",'Target %'!N6*M51),'Target %'!N5) ->  | N43: =IF('Target %'!O5="",IF('Target %'!O6="","",'Target %'!O6*N51),'Target %'!O5) ->  | O43: =IF('Target %'!P5="",IF('Target %'!P6="","",'Target %'!P6*O51),'Target %'!P5) ->  | P43: =IF('Target %'!Q5="",IF('Target %'!Q6="","",'Target %'!Q6*P51),'Target %'!Q5) -> 
A44: Maximum Level of Cash & Cash Equivalents (in $) | E44: =IF('Target %'!G8="",IF('Target %'!G9="","",'Target %'!G9*E51),'Target %'!G8) ->  | G44: =IF('Target %'!H8="",IF('Target %'!H9="","",'Target %'!H9*G51),'Target %'!H8) ->  | H44: =IF('Target %'!I8="",IF('Target %'!I9="","",'Target %'!I9*H51),'Target %'!I8) ->  | I44: =IF('Target %'!J8="",IF('Target %'!J9="","",'Target %'!J9*I51),'Target %'!J8) ->  | J44: =IF('Target %'!K8="",IF('Target %'!K9="","",'Target %'!K9*J51),'Target %'!K8) ->  | K44: =IF('Target %'!L8="",IF('Target %'!L9="","",'Target %'!L9*K51),'Target %'!L8) ->  | L44: =IF('Target %'!M8="",IF('Target %'!M9="","",'Target %'!M9*L51),'Target %'!M8) ->  | M44: =IF('Target %'!N8="",IF('Target %'!N9="","",'Target %'!N9*M51),'Target %'!N8) ->  | N44: =IF('Target %'!O8="",IF('Target %'!O9="","",'Target %'!O9*N51),'Target %'!O8) ->  | O44: =IF('Target %'!P8="",IF('Target %'!P9="","",'Target %'!P9*O51),'Target %'!P8) ->  | P44: =IF('Target %'!Q8="",IF('Target %'!Q9="","",'Target %'!Q9*P51),'Target %'!Q8) -> 
A45: Auto adjustment from/(to) Investments | E45: =IF(SUM(E56:E59)=0,0,IF(SUM(E43)>E41,IF(SUM(E56:E59)>SUM(E43)-E41,SUM(E43)-E41,SUM(E56:E59)),IF(AND(E44<>0,E44<>"",E41>SUM(E44)),SUM(E44)-E41,IF(SUM(E56:E59)<0,SUM(E56:E59),0)))) -> 0 | G45: =IF(SUM(G56:G59)=0,0,IF(SUM(G43)>G41,IF(SUM(G56:G59)>SUM(G43)-G41,SUM(G43)-G41,SUM(G56:G59)),IF(AND(G44<>0,G44<>"",G41>SUM(G44)),SUM(G44)-G41,IF(SUM(G56:G59)<0,SUM(G56:G59),0)))) -> 0 | H45: =IF(SUM(H56:H59)=0,0,IF(SUM(H43)>H41,IF(SUM(H56:H59)>SUM(H43)-H41,SUM(H43)-H41,SUM(H56:H59)),IF(AND(H44<>0,H44<>"",H41>SUM(H44)),SUM(H44)-H41,IF(SUM(H56:H59)<0,SUM(H56:H59),0)))) -> 0 | I45: =IF(SUM(I56:I59)=0,0,IF(SUM(I43)>I41,IF(SUM(I56:I59)>SUM(I43)-I41,SUM(I43)-I41,SUM(I56:I59)),IF(AND(I44<>0,I44<>"",I41>SUM(I44)),SUM(I44)-I41,IF(SUM(I56:I59)<0,SUM(I56:I59),0)))) -> 0 | J45: =IF(SUM(J56:J59)=0,0,IF(SUM(J43)>J41,IF(SUM(J56:J59)>SUM(J43)-J41,SUM(J43)-J41,SUM(J56:J59)),IF(AND(J44<>0,J44<>"",J41>SUM(J44)),SUM(J44)-J41,IF(SUM(J56:J59)<0,SUM(J56:J59),0)))) -> 0 | K45: =IF(SUM(K56:K59)=0,0,IF(SUM(K43)>K41,IF(SUM(K56:K59)>SUM(K43)-K41,SUM(K43)-K41,SUM(K56:K59)),IF(AND(K44<>0,K44<>"",K41>SUM(K44)),SUM(K44)-K41,IF(SUM(K56:K59)<0,SUM(K56:K59),0)))) -> 0 | L45: 0 | M45: 0 | N45: 0 | O45: 0 | P45: 0
A46: Closing Balance | E46: =E41+E45 -> 9744742.51 | G46: 11472249.04 | H46: 13274866.23 | I46: 17362539.29 | J46: 21772027.63 | K46: 26381821.81 | L46: 31055105.3 | M46: 35769454.67 | N46: 40469823 | O46: 45208442.17 | P46: 50071529.7
A48: Debit Balance | E48: =IF(E46>0,E46,0) -> 9744742.51 | G48: 11472249.04 | H48: 13274866.23 | I48: 17362539.29 | J48: 21772027.63 | K48: 26381821.81 | L48: 31055105.3 | M48: 35769454.67 | N48: 40469823 | O48: 45208442.17 | P48: 50071529.7
A49: Overdraft Balance | E49: =IF(E46<0,-E46,0) -> 0 | G49: 0 | H49: 0 | I49: 0 | J49: 0 | K49: 0 | L49: 0 | M49: 0 | N49: 0 | O49: 0 | P49: 0
A51: Closing Balance Cash, Cash Equivalents & Investments | E51: =E41+E56+E57 -> 59744742.51 | G51: 61472249.04 | H51: 63274866.23 | I51: 67362539.29 | J51: 71772027.63 | K51: 76381821.81 | L51: 81055105.3 | M51: 85769454.67 | N51: 90469823 | O51: 95208442.17 | P51: 100071529.7
A55: Investments
A56: Opening Balance | E56: =(SUM('Historical Data'!C683)+SUM('Historical Data'!C691))*1000 -> 50000000 | G56: =E62 -> 50000000 | H56: =G62 -> 50000000 | I56: 50000000 | J56: 50000000 | K56: 50000000 | L56: 50000000 | M56: 50000000 | N56: 50000000 | O56: 50000000 | P56: 50000000
A57: Non-cash movement | E57: ='Budget Summary 1'!J194 -> 0 | G57: ='Budget Summary 1'!L194 -> 0 | H57: ='Budget Summary 1'!M194 -> 0 | I57: ='Budget Summary 1'!N194 -> 0 | J57: ='Budget Summary 1'!O194 -> 0 | K57: ='Budget Summary 1'!P194 -> 0 | L57: ='Budget Summary 1'!Q194 -> 0 | M57: ='Budget Summary 1'!R194 -> 0 | N57: ='Budget Summary 1'!S194 -> 0 | O57: ='Budget Summary 1'!T194 -> 0 | P57: ='Budget Summary 1'!U194 -> 0
A58: Capital Disposals (WDV) | E58: =E72 -> 0 | G58: =G72 -> 0 | H58: =H72 -> 0 | I58: 0 | J58: 0 | K58: 0 | L58: 0 | M58: 0 | N58: 0 | O58: 0 | P58: 0
A59: Less: Impairment | E59: =-'Budget Summary 1'!J58 -> 0 | G59: =-'Budget Summary 1'!L58 -> 0 | H59: =-'Budget Summary 1'!M58 -> 0 | I59: =-'Budget Summary 1'!N58 -> 0 | J59: =-'Budget Summary 1'!O58 -> 0 | K59: =-'Budget Summary 1'!P58 -> 0 | L59: =-'Budget Summary 1'!Q58 -> 0 | M59: =-'Budget Summary 1'!R58 -> 0 | N59: =-'Budget Summary 1'!S58 -> 0 | O59: =-'Budget Summary 1'!T58 -> 0 | P59: =-'Budget Summary 1'!U58 -> 0
A60: Auto adjustment from/(to) Cash | E60: =-E45 -> 0 | G60: 0 | H60: 0 | I60: 0 | J60: 0 | K60: 0 | L60: 0 | M60: 0 | N60: 0 | O60: 0 | P60: 0
A61: Add/(Less): manual adjustments against cash (in $)
A62: Closing Balance | E62: =SUM(E56:E61) -> 50000000 | G62: 50000000 | H62: 50000000 | I62: 50000000 | J62: 50000000 | K62: 50000000 | L62: 50000000 | M62: 50000000 | N62: 50000000 | O62: 50000000 | P62: 50000000
... 38 more rows

Sheet Target %
A1: ='Cover Page'!$A$3 -> Burwood Council
A2: ='Cover Page'!$A$5 -> 10 Year Financial Plan for the Years ending 30 June 2029
A3: ="Target % for Balance sheet amounts & ratios - "&PROPER(general_fund_name) -> Target % for Balance sheet amounts & ratios - General Fund
A4: ="Scenario: "&general_scenario_name -> Scenario: Burwood Council - SRV Scenario - 2% above Rate Peg for 4years | C4: =Starting_year_general-5&"/"&RIGHT(Starting_year_general-4,2) -> 2014/15 | D4: =Starting_year_general-4&"/"&RIGHT(Starting_year_general-3,2) -> 2015/16 | E4: =Starting_year_general-3&"/"&RIGHT(Starting_year_general-2,2) -> 2016/17 | F4: =Starting_year_general-2&"/"&RIGHT(Starting_year_general-1,2) -> 2017/18 | G4: =Starting_year_general-1&"/"&RIGHT(Starting_year_general,2) -> 2018/19 | H4: =Starting_year_general&"/"&RIGHT(Starting_year_general+1,2) -> 2019/20 | I4: =Starting_year_general+1&"/"&RIGHT(Starting_year_general+2,2) -> 2020/21 | J4: =Starting_year_general+2&"/"&RIGHT(Starting_year_general+3,2) -> 2021/22 | K4: =Starting_year_general+3&"/"&RIGHT(Starting_year_general+4,2) -> 2022/23 | L4: =Starting_year_general+4&"/"&RIGHT(Starting_year_general+5,2) -> 2023/24 | M4: =Starting_year_general+5&"/"&RIGHT(Starting_year_general+6,2) -> 2024/25 | N4: =Starting_year_general+6&"/"&RIGHT(Starting_year_general+7,2) -> 2025/26 | O4: =Starting_year_general+7&"/"&RIGHT(Starting_year_general+8,2) -> 2026/27 | P4: =Starting_year_general+8&"/"&RIGHT(Starting_year_general+9,2) -> 2027/28 | Q4: =Starting_year_general+9&"/"&RIGHT(Starting_year_general+10,2) -> 2028/29
A5: Minimum Level of Cash & Cash Equivalents (in $) | D5: Note: the $ field takes precedent if both are entered
A6: Minimum Level of Cash & Cash Equivalents (in % of all cash, cash equivalents & investments)
A8: Maximum Level of Cash & Cash Equivalents (in $) | D8: Note: the $ field takes precedent if both are entered
A9: Maximum Level of Cash & Cash Equivalents (in % of all cash, cash equivalents & investments)
A11: Investment Revenue / Interest Rate (applicable to calculate Investment Revenues) | G11: 0.025 | H11: 0.025 | I11: 0.03 | J11: 0.03 | K11: 0.03 | L11: 0.035 | M11: 0.035 | N11: 0.035 | O11: 0.04 | P11: 0.04 | Q11: 0.04
A12: Investment Revenue / Interest Rate (applicable to Section 94)
A15: Current and Non-Current Ratios
A17: Investments - Current | B17: Historical / Average of historical | C17: ='Historical Data'!U$683 -> 1 | D17: ='Historical Data'!T$683 -> 1 | E17: ='Historical Data'!S$683 -> 1 | F17: ='Historical Data'!R$683 -> 0.8 | G17: ='Historical Data'!V$683 -> 0.95 | H17: =$G17 -> 0.95 | I17: 0.95 | J17: 0.95 | K17: 0.95 | L17: 0.95 | M17: 0.95 | N17: 0.95 | O17: 0.95 | P17: 0.95 | Q17: 0.95
B18: Target
B19: Used in Model | G19: =IF(G18="",G17,G18) -> 0.95 | H19: =IF(H18="",H17,H18) -> 0.95 | I19: 0.95 | J19: 0.95 | K19: 0.95 | L19: 0.95 | M19: 0.95 | N19: 0.95 | O19: 0.95 | P19: 0.95 | Q19: 0.95
A21: Receivables
A22: ='Historical Data'!A906 -> Rates & Annual Charges - Current | B22: Historical / Average of historical | C22: ='Historical Data'!U$906 -> 1 | D22: ='Historical Data'!T$906 -> 1 | E22: ='Historical Data'!S$906 -> 1 | F22: ='Historical Data'!R$906 -> 1 | G22: ='Historical Data'!V$906 -> 1 | H22: =$G22 -> 1 | I22: 1 | J22: 1 | K22: 1 | L22: 1 | M22: 1 | N22: 1 | O22: 1 | P22: 1 | Q22: 1
B23: Target
B24: Used in Model | G24: =IF(G23="",G22,G23) -> 1 | H24: =IF(H23="",H22,H23) -> 1 | I24: 1 | J24: 1 | K24: 1 | L24: 1 | M24: 1 | N24: 1 | O24: 1 | P24: 1 | Q24: 1
A26: ='Historical Data'!A908 -> Interest & Extra Charges - Current | B26: Historical / Average of historical | C26: ='Historical Data'!U$908 -> 1 | D26: ='Historical Data'!T$908 -> 1 | E26: ='Historical Data'!S$908 -> 1 | F26: ='Historical Data'!R$908 -> 1 | G26: ='Historical Data'!V$908 -> 1 | H26: =$G26 -> 1 | I26: 1 | J26: 1 | K26: 1 | L26: 1 | M26: 1 | N26: 1 | O26: 1 | P26: 1 | Q26: 1
B27: Target
B28: Used in Model | G28: =IF(G27="",G26,G27) -> 1 | H28: =IF(H27="",H26,H27) -> 1 | I28: 1 | J28: 1 | K28: 1 | L28: 1 | M28: 1 | N28: 1 | O28: 1 | P28: 1 | Q28: 1
A30: ='Historical Data'!A910 -> User Charges & Fees and Private Works - Current | B30: Historical / Average of historical | C30: ='Historical Data'!U$910 -> 1 | D30: ='Historical Data'!T$910 -> 1 | E30: ='Historical Data'!S$910 -> 1 | F30: ='Historical Data'!R$910 -> 1 | G30: ='Historical Data'!V$910 -> 1 | H30: =$G30 -> 1 | I30: 1 | J30: 1 | K30: 1 | L30: 1 | M30: 1 | N30: 1 | O30: 1 | P30: 1 | Q30: 1
B31: Target
B32: Used in Model | G32: =IF(G31="",G30,G31) -> 1 | H32: =IF(H31="",H30,H31) -> 1 | I32: 1 | J32: 1 | K32: 1 | L32: 1 | M32: 1 | N32: 1 | O32: 1 | P32: 1 | Q32: 1
A34: ='Historical Data'!A912 -> Grants & Contributions - Current | B34: Historical / Average of historical | C34: ='Historical Data'!U$912 -> 1 | D34: ='Historical Data'!T$912 -> 1 | E34: ='Historical Data'!S$912 -> 1 | F34: ='Historical Data'!R$912 -> 1 | G34: ='Historical Data'!V$912 -> 1 | H34: =$G34 -> 1 | I34: 1 | J34: 1 | K34: 1 | L34: 1 | M34: 1 | N34: 1 | O34: 1 | P34: 1 | Q34: 1
B35: Target
B36: Used in Model | G36: =IF(G35="",G34,G35) -> 1 | H36: =IF(H35="",H34,H35) -> 1 | I36: 1 | J36: 1 | K36: 1 | L36: 1 | M36: 1 | N36: 1 | O36: 1 | P36: 1 | Q36: 1
A38: ='Historical Data'!A914 -> Accrued Interest - Current | B38: Historical / Average of historical | C38: ='Historical Data'!U$914 -> 1 | D38: ='Historical Data'!T$914 -> 1 | E38: ='Historical Data'!S$914 -> 1 | F38: ='Historical Data'!R$914 -> 1 | G38: ='Historical Data'!V$914 -> 1 | H38: =$G38 -> 1 | I38: 1 | J38: 1 | K38: 1 | L38: 1 | M38: 1 | N38: 1 | O38: 1 | P38: 1 | Q38: 1
B39: Target
B40: Used in Model | G40: =IF(G39="",G38,G39) -> 1 | H40: =IF(H39="",H38,H39) -> 1 | I40: 1 | J40: 1 | K40: 1 | L40: 1 | M40: 1 | N40: 1 | O40: 1 | P40: 1 | Q40: 1
A42: ='Historical Data'!A916 -> Other Accrued Revenue - Current | B42: Historical / Average of historical | C42: ='Historical Data'!U$916 -> 1 | D42: ='Historical Data'!T$916 -> 1 | E42: ='Historical Data'!S$916 -> 1 | F42: ='Historical Data'!R$916 -> 1 | G42: ='Historical Data'!V$916 -> 1 | H42: =$G42 -> 1 | I42: 1 | J42: 1 | K42: 1 | L42: 1 | M42: 1 | N42: 1 | O42: 1 | P42: 1 | Q42: 1
B43: Target
B44: Used in Model | G44: =IF(G43="",G42,G43) -> 1 | H44: =IF(H43="",H42,H43) -> 1 | I44: 1 | J44: 1 | K44: 1 | L44: 1 | M44: 1 | N44: 1 | O44: 1 | P44: 1 | Q44: 1
A46: ='Historical Data'!A918 -> Capital Debtors - Current | B46: Historical / Average of historical | C46: ='Historical Data'!U$918 ->  | D46: ='Historical Data'!T$918 ->  | E46: ='Historical Data'!S$918 ->  | F46: ='Historical Data'!R$918 ->  | G46: ='Historical Data'!V$918 -> 0 | H46: =$G46 -> 0 | I46: 0 | J46: 0 | K46: 0 | L46: 0 | M46: 0 | N46: 0 | O46: 0 | P46: 0 | Q46: 0
B47: Target
B48: Used in Model | G48: =IF(G47="",G46,G47) -> 0 | H48: =IF(H47="",H46,H47) -> 0 | I48: 0 | J48: 0 | K48: 0 | L48: 0 | M48: 0 | N48: 0 | O48: 0 | P48: 0 | Q48: 0
A50: ='Historical Data'!A920 -> Deferred Debtors - Current | B50: Historical / Average of historical | C50: ='Historical Data'!U$920 ->  | D50: ='Historical Data'!T$920 ->  | E50: ='Historical Data'!S$920 ->  | F50: ='Historical Data'!R$920 ->  | G50: ='Historical Data'!V$920 -> 0 | H50: =$G50 -> 0 | I50: 0 | J50: 0 | K50: 0 | L50: 0 | M50: 0 | N50: 0 | O50: 0 | P50: 0 | Q50: 0
B51: Target
B52: Used in Model | G52: =IF(G51="",G50,G51) -> 0 | H52: =IF(H51="",H50,H51) -> 0 | I52: 0 | J52: 0 | K52: 0 | L52: 0 | M52: 0 | N52: 0 | O52: 0 | P52: 0 | Q52: 0
A54: ='Historical Data'!A922 -> GST Receivable - Current | B54: Historical / Average of historical | C54: ='Historical Data'!U$922 -> 1 | D54: ='Historical Data'!T$922 -> 1 | E54: ='Historical Data'!S$922 -> 1 | F54: ='Historical Data'!R$922 -> 1 | G54: ='Historical Data'!V$922 -> 1 | H54: =$G54 -> 1 | I54: 1 | J54: 1 | K54: 1 | L54: 1 | M54: 1 | N54: 1 | O54: 1 | P54: 1 | Q54: 1
B55: Target
B56: Used in Model | G56: =IF(G55="",G54,G55) -> 1 | H56: =IF(H55="",H54,H55) -> 1 | I56: 1 | J56: 1 | K56: 1 | L56: 1 | M56: 1 | N56: 1 | O56: 1 | P56: 1 | Q56: 1
A58: ='Historical Data'!A924 -> Due from other Councils - Current | B58: Historical / Average of historical | C58: ='Historical Data'!U$924 ->  | D58: ='Historical Data'!T$924 ->  | E58: ='Historical Data'!S$924 ->  | F58: ='Historical Data'!R$924 ->  | G58: ='Historical Data'!V$924 -> 0 | H58: =$G58 -> 0 | I58: 0 | J58: 0 | K58: 0 | L58: 0 | M58: 0 | N58: 0 | O58: 0 | P58: 0 | Q58: 0
B59: Target
B60: Used in Model | G60: =IF(G59="",G58,G59) -> 0 | H60: =IF(H59="",H58,H59) -> 0 | I60: 0 | J60: 0 | K60: 0 | L60: 0 | M60: 0 | N60: 0 | O60: 0 | P60: 0 | Q60: 0
A62: ='Historical Data'!A928 -> Other Debtors - Current | B62: Historical / Average of historical | C62: ='Historical Data'!U$928 -> 1 | D62: ='Historical Data'!T$928 -> 1 | E62: ='Historical Data'!S$928 -> 1 | F62: ='Historical Data'!R$928 -> 1 | G62: ='Historical Data'!V$928 -> 1 | H62: =$G62 -> 1 | I62: 1 | J62: 1 | K62: 1 | L62: 1 | M62: 1 | N62: 1 | O62: 1 | P62: 1 | Q62: 1
... 39 more rows

Sheet Cash Flow
A1: ='Cover Page'!$A$3 -> Burwood Council | Q1: end | R1: end | S1: end | T1: end | U1: end | V1: end | W1: end | X1: end | Y1: end | Z1: end | AA1: end | AB1: end | AC1: end | AD1: end | AE1: end | AF1: end | AG1: end | AH1: end | AI1: end | AJ1: end | AK1: end | AL1: end | AM1: end | AN1: end | AO1: end | AP1: end | AQ1: end | AR1: end | AS1: end | AT1: end | AU1: end | AV1: end | AW1: end | AX1: end | AY1: end | AZ1: end
A2: ='Cover Page'!$A$5 -> 10 Year Financial Plan for the Years ending 30 June 2029 | AZ2: end
A3: ="CASH FLOW STATEMENT - "&UPPER(general_fund_name) -> CASH FLOW STATEMENT - GENERAL FUND | C3: Actuals | E3: Current Year | G3: Projected Years | AZ3: end
A4: ="Scenario: "&general_scenario_name -> Scenario: Burwood Council - SRV Scenario - 2% above Rate Peg for 4years | C4: =Starting_year_general-2&"/"&RIGHT(Starting_year_general-1,2) -> 2017/18 | E4: =Starting_year_general-1&"/"&RIGHT(Starting_year_general,2) -> 2018/19 | G4: =Starting_year_general&"/"&RIGHT(Starting_year_general+1,2) -> 2019/20 | H4: =Starting_year_general+1&"/"&RIGHT(Starting_year_general+2,2) -> 2020/21 | I4: =Starting_year_general+2&"/"&RIGHT(Starting_year_general+3,2) -> 2021/22 | J4: =Starting_year_general+3&"/"&RIGHT(Starting_year_general+4,2) -> 2022/23 | K4: =Starting_year_general+4&"/"&RIGHT(Starting_year_general+5,2) -> 2023/24 | L4: =Starting_year_general+5&"/"&RIGHT(Starting_year_general+6,2) -> 2024/25 | M4: =Starting_year_general+6&"/"&RIGHT(Starting_year_general+7,2) -> 2025/26 | N4: =Starting_year_general+7&"/"&RIGHT(Starting_year_general+8,2) -> 2026/27 | O4: =Starting_year_general+8&"/"&RIGHT(Starting_year_general+9,2) -> 2027/28 | P4: =Starting_year_general+9&"/"&RIGHT(Starting_year_general+10,2) -> 2028/29 | V4: =E4 -> 2018/19 | W4: =G4 -> 2019/20 | X4: 2020/21 | Y4: 2021/22 | Z4: 2022/23 | AA4: 2023/24 | AB4: 2024/25 | AC4: 2025/26 | AD4: 2026/27 | AE4: 2027/28 | AF4: 2028/29 | AZ4: end
C5: =IF('Cover Page'!$K$19=TRUE,"$","$'000") -> $ | E5: =IF('Cover Page'!$K$19=TRUE,"$","$'000") -> $ | G5: =IF('Cover Page'!$K$19=TRUE,"$","$'000") -> $ | H5: =IF('Cover Page'!$K$19=TRUE,"$","$'000") -> $ | I5: =IF('Cover Page'!$K$19=TRUE,"$","$'000") -> $ | J5: =IF('Cover Page'!$K$19=TRUE,"$","$'000") -> $ | K5: =IF('Cover Page'!$K$19=TRUE,"$","$'000") -> $ | L5: =IF('Cover Page'!$K$19=TRUE,"$","$'000") -> $ | M5: =IF('Cover Page'!$K$19=TRUE,"$","$'000") -> $ | N5: =IF('Cover Page'!$K$19=TRUE,"$","$'000") -> $ | O5: =IF('Cover Page'!$K$19=TRUE,"$","$'000") -> $ | P5: =IF('Cover Page'!$K$19=TRUE,"$","$'000") -> $ | AZ5: end
A6: Cash Flows from Operating Activities | AZ6: end
A7: Receipts: | R7: Allocate Income Line items here | AZ7: end
A8: Rates & Annual Charges | C8: =SUM('Historical Data'!C763)*1000 -> 26625000 | E8: ='CF workings'!E16 -> 27848462.68 | G8: ='CF workings'!G16 -> 29123383.11 | H8: ='CF workings'!H16 -> 30628124.12 | I8: ='CF workings'!I16 -> 32165150.25 | J8: ='CF workings'!J16 -> 33758711.49 | K8: ='CF workings'!K16 -> 34945273.58 | L8: ='CF workings'!L16 -> 35978264.88 | M8: ='CF workings'!M16 -> 37341218.55 | N8: ='CF workings'!N16 -> 38448452.98 | O8: ='CF workings'!O16 -> 39749743.14 | P8: ='CF workings'!P16 -> 40925349.67 | R8: Rates & Annual Charges | AZ8: end
A9: User Charges & Fees | C9: =SUM('Historical Data'!C764)*1000 -> 12496000 | E9: ='CF workings'!E24 -> 10727270.72 | G9: ='CF workings'!G24 -> 10643246.7 | H9: ='CF workings'!H24 -> 11036477.84 | I9: ='CF workings'!I24 -> 11442452.67 | J9: ='CF workings'!J24 -> 11762058.05 | K9: ='CF workings'!K24 -> 12082529.59 | L9: ='CF workings'!L24 -> 12470326.38 | M9: ='CF workings'!M24 -> 12802040.79 | N9: ='CF workings'!N24 -> 13151320.9 | O9: ='CF workings'!O24 -> 13510645.65 | P9: ='CF workings'!P24 -> 13880045.84 | R9: User Charges & Fees | AZ9: end
A10: Interest & Investment Revenue Received | C10: =SUM('Historical Data'!C765)*1000 -> 1235000 | E10: ='CF workings'!E32 -> 1338132.819 | G10: ='CF workings'!G32 -> 1413893.828 | H10: ='CF workings'!H32 -> 1636671.709 | I10: ='CF workings'!I32 -> 1805816.016 | J10: ='CF workings'!J32 -> 1954828.169 | K10: ='CF workings'!K32 -> 2004616.5 | L10: ='CF workings'!L32 -> 2111141.516 | M10: ='CF workings'!M32 -> 2134920.943 | N10: ='CF workings'!N32 -> 2171973.783 | O10: ='CF workings'!O32 -> 2196862.967 | P10: ='CF workings'!P32 -> 2197531.655 | R10: Interest & Investment Revenue | AZ10: end
A11: Grants & Contributions | C11: =SUM('Historical Data'!C766)*1000 -> 16549000 | E11: ='CF workings'!E40 -> 18813067.93 | G11: ='CF workings'!G40 -> 11323849.47 | H11: ='CF workings'!H40 -> 11143061.72 | I11: ='CF workings'!I40 -> 10789659.22 | J11: ='CF workings'!J40 -> 9468558.985 | K11: ='CF workings'!K40 -> 9607635.796 | L11: ='CF workings'!L40 -> 9851927.417 | M11: ='CF workings'!M40 -> 10150170.14 | N11: ='CF workings'!N40 -> 10117637.7 | O11: ='CF workings'!O40 -> 10272222.72 | P11: ='CF workings'!P40 -> 10438655.05 | R11: Grants & Contributions provided for Operating Purposes | S11: Grants & Contributions provided for Capital Purposes | AZ11: end
A12: Bonds & Deposits Received | C12: =SUM('Historical Data'!C767)*1000 -> 1574000 | E12: ='CF workings'!E46 -> 0 | G12: ='CF workings'!G46 -> 0 | H12: ='CF workings'!H46 -> 0 | I12: ='CF workings'!I46 -> 0 | J12: ='CF workings'!J46 -> 0 | K12: ='CF workings'!K46 -> 0 | L12: ='CF workings'!L46 -> 0 | M12: ='CF workings'!M46 -> 0 | N12: ='CF workings'!N46 -> 0 | O12: ='CF workings'!O46 -> 0 | P12: ='CF workings'!P46 -> 0 | AZ12: end
A13: Other | C13: =SUM('Historical Data'!C768)*1000 -> 7303000 | E13: ='CF workings'!E60-SUM(E32)-E52-E34+E93 -> 4363667.024 | G13: ='CF workings'!G60-SUM(G32)-G52-G34+G93 -> 4872919.713 | H13: ='CF workings'!H60-SUM(H32)-H52-H34+H93 -> 4814486.257 | I13: ='CF workings'!I60-SUM(I32)-I52-I34+I93 -> 4920950.876 | J13: ='CF workings'!J60-SUM(J32)-J52-J34+J93 -> 5038716.615 | K13: ='CF workings'!K60-SUM(K32)-K52-K34+K93 -> 5104490.305 | L13: ='CF workings'!L60-SUM(L32)-L52-L34+L93 -> 5207096.308 | M13: ='CF workings'!M60-SUM(M32)-M52-M34+M93 -> 5308600.943 | N13: ='CF workings'!N60-SUM(N32)-N52-N34+N93 -> 5422829.218 | O13: ='CF workings'!O60-SUM(O32)-O52-O34+O93 -> 5526735.25 | P13: ='CF workings'!P60-SUM(P32)-P52-P34+P93 -> 5637323.386 | R13: Other Revenues | AZ13: end
A14: Payments: | AZ14: end
A15: Employee Benefits & On-Costs | C15: =SUM('Historical Data'!C771)*1000 -> -17943000 | E15: =-'CF workings'!E76 -> -19908335.58 | G15: =-'CF workings'!G76 -> -21632996.52 | H15: =-'CF workings'!H76 -> -22165790.29 | I15: =-'CF workings'!I76 -> -22718063.36 | J15: =-'CF workings'!J76 -> -23334660.43 | K15: =-'CF workings'!K76 -> -24007414.62 | L15: =-'CF workings'!L76 -> -24701860.05 | M15: =-'CF workings'!M76 -> -25441984.73 | N15: =-'CF workings'!N76 -> -26206379.47 | O15: =-'CF workings'!O76 -> -26992626.55 | P15: =-'CF workings'!P76 -> -27802463.01 | R15: Employee Benefits & On-Costs | AZ15: end
A16: Materials & Contracts | C16: =SUM('Historical Data'!C772)*1000 -> -14036000 | E16: =-'CF workings'!E91 -> -10440447.39 | G16: =-'CF workings'!G91 -> -11225051.58 | H16: =-'CF workings'!H91 -> -11408129.38 | I16: =-'CF workings'!I91 -> -11504812.69 | J16: =-'CF workings'!J91 -> -11888061.48 | K16: =-'CF workings'!K91 -> -12271285.55 | L16: =-'CF workings'!L91 -> -12944140.51 | M16: =-'CF workings'!M91 -> -13680718.54 | N16: =-'CF workings'!N91 -> -13983936.61 | O16: =-'CF workings'!O91 -> -14396027.08 | P16: =-'CF workings'!P91 -> -14689278.93 | R16: Materials & Contracts | AZ16: end
A17: Borrowing Costs | C17: =SUM('Historical Data'!C773)*1000 -> -320000 | E17: =-'CF workings'!E100 -> -331992.8398 | G17: =-'CF workings'!G100 -> -333906.7346 | H17: =-'CF workings'!H100 -> -309139.3209 | I17: =-'CF workings'!I100 -> -282867.48 | J17: =-'CF workings'!J100 -> -261168.4122 | K17: =-'CF workings'!K100 -> -240339.7941 | L17: =-'CF workings'!L100 -> -224701.528 | M17: =-'CF workings'!M100 -> -218871.9361 | N17: =-'CF workings'!N100 -> -209269.539 | O17: =-'CF workings'!O100 -> -207565.5493 | P17: =-'CF workings'!P100 -> -220172.0229 | R17: Borrowing Costs | AZ17: end
A18: Bonds & Deposits Refunded | C18: =SUM('Historical Data'!C774)*1000 -> -1244000 | E18: =-'CF workings'!E106 -> 0 | G18: =-'CF workings'!G106 -> 0 | H18: =-'CF workings'!H106 -> 0 | I18: =-'CF workings'!I106 -> 0 | J18: =-'CF workings'!J106 -> 0 | K18: =-'CF workings'!K106 -> 0 | L18: =-'CF workings'!L106 -> 0 | M18: =-'CF workings'!M106 -> 0 | N18: =-'CF workings'!N106 -> 0 | O18: =-'CF workings'!O106 -> 0 | P18: =-'CF workings'!P106 -> 0 | AZ18: end
A19: Other | C19: =SUM('Historical Data'!C775)*1000 -> -9111000 | E19: =-'CF workings'!E118-SUM(E44)-SUM(E57)+E94+'BS workings'!E919 -> -9694802 | G19: =-'CF workings'!G118-SUM(G44)-SUM(G57)+G94+'BS workings'!G919 -> -9740252 | H19: =-'CF workings'!H118-SUM(H44)-SUM(H57)+H94+'BS workings'!H919 -> -9985824.89 | I19: =-'CF workings'!I118-SUM(I44)-SUM(I57)+I94+'BS workings'!I919 -> -10273509.3 | J19: =-'CF workings'!J118-SUM(J44)-SUM(J57)+J94+'BS workings'!J919 -> -10592089.04 | K19: =-'CF workings'!K118-SUM(K44)-SUM(K57)+K94+'BS workings'!K919 -> -10826024.14 | L19: =-'CF workings'!L118-SUM(L44)-SUM(L57)+L94+'BS workings'!L919 -> -11060290.85 | M19: =-'CF workings'!M118-SUM(M44)-SUM(M57)+M94+'BS workings'!M919 -> -11387572.12 | N19: =-'CF workings'!N118-SUM(N44)-SUM(N57)+N94+'BS workings'!N919 -> -11645620.24 | O19: =-'CF workings'!O118-SUM(O44)-SUM(O57)+O94+'BS workings'!O919 -> -11979938.47 | P19: =-'CF workings'!P118-SUM(P44)-SUM(P57)+P94+'BS workings'!P919 -> -12361273.91 | R19: =-'CF workings'!R118-SUM(R57)+R94+'BS workings'!R918+'BS workings'!R919 ->  | AZ19: end
AZ20: end
A21: Net Cash provided (or used in) Operating Activities | C21: =SUM(C7:C20) -> 23128000 | E21: =SUM(E7:E20) -> 22715023.36 | G21: =SUM(G7:G20) -> 14445085.98 | H21: 15389937.77 | I21: 16344776.2 | J21: 15906893.94 | K21: 16399481.66 | L21: 16687763.56 | M21: 17007804.03 | N21: 17267008.72 | O21: 17680052.08 | P21: 18005717.72 | AZ21: end
AZ22: end
A23: Cash Flows from Investing Activities | AZ23: end
A24: Receipts: | AZ24: end
A25: Sale of Investment Securities | C25: =SUM('Historical Data'!C784)*1000 -> 50000000 | E25: ='CF workings'!E127 -> 0 | G25: ='CF workings'!G127 -> 0 | H25: ='CF workings'!H127 -> 0 | I25: ='CF workings'!I127 -> 0 | J25: ='CF workings'!J127 -> 0 | K25: ='CF workings'!K127 -> 0 | L25: ='CF workings'!L127 -> 0 | M25: ='CF workings'!M127 -> 0 | N25: ='CF workings'!N127 -> 0 | O25: ='CF workings'!O127 -> 0 | P25: ='CF workings'!P127 -> 0 | AZ25: end
A26: Sale of Investment Property | C26: =SUM('Historical Data'!C785)*1000 -> 0 | E26: ='CF workings'!E132 -> 0 | G26: ='CF workings'!G132 -> 0 | H26: ='CF workings'!H132 -> 0 | I26: ='CF workings'!I132 -> 0 | J26: ='CF workings'!J132 -> 0 | K26: ='CF workings'!K132 -> 0 | L26: ='CF workings'!L132 -> 0 | M26: ='CF workings'!M132 -> 0 | N26: ='CF workings'!N132 -> 0 | O26: ='CF workings'!O132 -> 0 | P26: ='CF workings'!P132 -> 0 | AZ26: end
A27: Sale of Real Estate Assets | C27: =SUM('Historical Data'!C786)*1000 -> 0 | E27: ='CF workings'!E138 -> 0 | G27: ='CF workings'!G138 -> 0 | H27: ='CF workings'!H138 -> 0 | I27: ='CF workings'!I138 -> 0 | J27: ='CF workings'!J138 -> 0 | K27: ='CF workings'!K138 -> 0 | L27: ='CF workings'!L138 -> 0 | M27: ='CF workings'!M138 -> 0 | N27: ='CF workings'!N138 -> 0 | O27: ='CF workings'!O138 -> 0 | P27: ='CF workings'!P138 -> 0 | AZ27: end
A28: Sale of Infrastructure, Property, Plant & Equipment | C28: =SUM('Historical Data'!C787)*1000 -> 442000 | E28: ='CF workings'!E147 -> 700000 | G28: ='CF workings'!G147 -> 950000 | H28: ='CF workings'!H147 -> 960000 | I28: ='CF workings'!I147 -> 970000 | J28: ='CF workings'!J147 -> 985000 | K28: ='CF workings'!K147 -> 1000000 | L28: ='CF workings'!L147 -> 1030000 | M28: ='CF workings'!M147 -> 1030000 | N28: ='CF workings'!N147 -> 1045000 | O28: ='CF workings'!O147 -> 1060000 | P28: ='CF workings'!P147 -> 1060000 | AZ28: end
A29: Sale of Interests in Joint Ventures & Associates | C29: =(SUM('Historical Data'!C788)+SUM('Historical Data'!C789))*1000 -> 0 | E29: ='CF workings'!E152 -> 0 | G29: ='CF workings'!G152 -> 0 | H29: ='CF workings'!H152 -> 0 | I29: ='CF workings'!I152 -> 0 | J29: ='CF workings'!J152 -> 0 | K29: ='CF workings'!K152 -> 0 | L29: ='CF workings'!L152 -> 0 | M29: ='CF workings'!M152 -> 0 | N29: ='CF workings'!N152 -> 0 | O29: ='CF workings'!O152 -> 0 | P29: ='CF workings'!P152 -> 0 | AZ29: end
A30: Sale of Intangible Assets | C30: 0 | E30: ='CF workings'!E157 -> 0 | G30: ='CF workings'!G157 -> 0 | H30: ='CF workings'!H157 -> 0 | I30: ='CF workings'!I157 -> 0 | J30: ='CF workings'!J157 -> 0 | K30: ='CF workings'!K157 -> 0 | L30: ='CF workings'!L157 -> 0 | M30: ='CF workings'!M157 -> 0 | N30: ='CF workings'!N157 -> 0 | O30: ='CF workings'!O157 -> 0 | P30: ='CF workings'!P157 -> 0 | AZ30: end
A31: Deferred Debtors Receipts | C31: =SUM('Historical Data'!C791)*1000 -> 0 | E31: ='CF workings'!E162 -> 0 | G31: ='CF workings'!G162 -> 0 | H31: ='CF workings'!H162 -> 0 | I31: ='CF workings'!I162 -> 0 | J31: ='CF workings'!J162 -> 0 | K31: ='CF workings'!K162 -> 0 | L31: ='CF workings'!L162 -> 0 | M31: ='CF workings'!M162 -> 0 | N31: ='CF workings'!N162 -> 0 | O31: ='CF workings'!O162 -> 0 | P31: ='CF workings'!P162 -> 0 | AZ31: end
A32: Sale of Disposal Groups | C32: =SUM('Historical Data'!C790)*1000 -> 0 | AZ32: end
A33: Distributions Received from Joint Ventures & Associates | C33: =SUM('Historical Data'!C792)*1000 -> 0 | E33: ='CF workings'!E167 -> 0 | G33: ='CF workings'!G167 -> 0 | H33: ='CF workings'!H167 -> 0 | I33: ='CF workings'!I167 -> 0 | J33: ='CF workings'!J167 -> 0 | K33: ='CF workings'!K167 -> 0 | L33: ='CF workings'!L167 -> 0 | M33: ='CF workings'!M167 -> 0 | N33: ='CF workings'!N167 -> 0 | O33: ='CF workings'!O167 -> 0 | P33: ='CF workings'!P167 -> 0 | AZ33: end
A34: Other Investing Activity Receipts | C34: =SUM('Historical Data'!C793)*1000 -> 0
A35: Payments: | AZ35: end
A36: Purchase of Investment Securities | C36: =SUM('Historical Data'!C796)*1000 -> -60250000 | E36: ='CF workings'!E172 -> 0 | G36: ='CF workings'!G172 -> 0 | H36: ='CF workings'!H172 -> 0 | I36: ='CF workings'!I172 -> 0 | J36: ='CF workings'!J172 -> 0 | K36: ='CF workings'!K172 -> 0 | L36: ='CF workings'!L172 -> 0 | M36: ='CF workings'!M172 -> 0 | N36: ='CF workings'!N172 -> 0 | O36: ='CF workings'!O172 -> 0 | P36: ='CF workings'!P172 -> 0 | AZ36: end
A37: Purchase of Investment Property | C37: =SUM('Historical Data'!C797)*1000 -> 0 | E37: =-'CF workings'!E177 -> 0 | G37: =-'CF workings'!G177 -> 0 | H37: =-'CF workings'!H177 -> 0 | I37: =-'CF workings'!I177 -> 0 | J37: =-'CF workings'!J177 -> 0 | K37: =-'CF workings'!K177 -> 0 | L37: =-'CF workings'!L177 -> 0 | M37: =-'CF workings'!M177 -> 0 | N37: =-'CF workings'!N177 -> 0 | O37: =-'CF workings'!O177 -> 0 | P37: =-'CF workings'!P177 -> 0 | AZ37: end
A38: Purchase of Infrastructure, Property, Plant & Equipment | C38: =SUM('Historical Data'!C798)*1000 -> -12994000 | E38: =-'CF workings'!E186 -> -21242980.32 | G38: =-'CF workings'!G186 -> -12959448.58 | H38: =-'CF workings'!H186 -> -13807358.09 | I38: =-'CF workings'!I186 -> -12524099.38 | J38: =-'CF workings'!J186 -> -11820768.71 | K38: =-'CF workings'!K186 -> -12166684.24 | L38: =-'CF workings'!L186 -> -12590705.82 | M38: =-'CF workings'!M186 -> -12981497.19 | N38: =-'CF workings'!N186 -> -13258001.78 | O38: =-'CF workings'!O186 -> -13635714.45 | P38: =-'CF workings'!P186 -> -13993216.77 | AZ38: end
A39: Purchase of Real Estate Assets | C39: =SUM('Historical Data'!C799)*1000 -> 0 | E39: =-'CF workings'!E191 -> 0 | G39: =-'CF workings'!G191 -> 0 | H39: =-'CF workings'!H191 -> 0 | I39: =-'CF workings'!I191 -> 0 | J39: =-'CF workings'!J191 -> 0 | K39: =-'CF workings'!K191 -> 0 | L39: =-'CF workings'!L191 -> 0 | M39: =-'CF workings'!M191 -> 0 | N39: =-'CF workings'!N191 -> 0 | O39: =-'CF workings'!O191 -> 0 | P39: =-'CF workings'!P191 -> 0 | AZ39: end
A40: Purchase of Intangible Assets | C40: 0 | E40: =-'CF workings'!E196 -> 0 | G40: =-'CF workings'!G196 -> 0 | H40: =-'CF workings'!H196 -> 0 | I40: =-'CF workings'!I196 -> 0 | J40: =-'CF workings'!J196 -> 0 | K40: =-'CF workings'!K196 -> 0 | L40: =-'CF workings'!L196 -> 0 | M40: =-'CF workings'!M196 -> 0 | N40: =-'CF workings'!N196 -> 0 | O40: =-'CF workings'!O196 -> 0 | P40: =-'CF workings'!P196 -> 0 | AZ40: end
A41: Deferred Debtors & Advances Made | C41: =SUM('Historical Data'!C802)*1000 -> 0 | E41: =-'CF workings'!E201 -> 0 | G41: =-'CF workings'!G201 -> 0 | H41: =-'CF workings'!H201 -> 0 | I41: =-'CF workings'!I201 -> 0 | J41: =-'CF workings'!J201 -> 0 | K41: =-'CF workings'!K201 -> 0 | L41: =-'CF workings'!L201 -> 0 | M41: =-'CF workings'!M201 -> 0 | N41: =-'CF workings'!N201 -> 0 | O41: =-'CF workings'!O201 -> 0 | P41: =-'CF workings'!P201 -> 0 | AZ41: end
A42: Purchase of Interests in Joint Ventures & Associates | C42: =(SUM('Historical Data'!C800)+SUM('Historical Data'!C801))*1000 -> 0 | E42: =-'CF workings'!E206 -> 0 | G42: =-'CF workings'!G206 -> 0 | H42: =-'CF workings'!H206 -> 0 | I42: =-'CF workings'!I206 -> 0 | J42: =-'CF workings'!J206 -> 0 | K42: =-'CF workings'!K206 -> 0 | L42: =-'CF workings'!L206 -> 0 | M42: =-'CF workings'!M206 -> 0 | N42: =-'CF workings'!N206 -> 0 | O42: =-'CF workings'!O206 -> 0 | P42: =-'CF workings'!P206 -> 0 | AZ42: end
A43: Contributions Paid to Joint Ventures & Associates | C43: =SUM('Historical Data'!C803)*1000 -> 0 | E43: =-'CF workings'!E211 -> 0 | G43: =-'CF workings'!G211 -> 0 | H43: =-'CF workings'!H211 -> 0 | I43: =-'CF workings'!I211 -> 0 | J43: =-'CF workings'!J211 -> 0 | K43: =-'CF workings'!K211 -> 0 | L43: =-'CF workings'!L211 -> 0 | M43: =-'CF workings'!M211 -> 0 | N43: =-'CF workings'!N211 -> 0 | O43: =-'CF workings'!O211 -> 0 | P43: =-'CF workings'!P211 -> 0 | AZ43: end
A44: Other Investing Activity Payments | C44: =SUM('Historical Data'!C804)*1000 -> 0
AZ45: end
A46: Net Cash provided (or used in) Investing Activities | C46: =SUM(C24:C45) -> -22802000 | E46: -20542980.32 | G46: =SUM(G24:G45) -> -12009448.58 | H46: -12847358.09 | I46: -11554099.38 | J46: -10835768.71 | K46: -11166684.24 | L46: -11560705.82 | M46: -11951497.19 | N46: -12213001.78 | O46: -12575714.45 | P46: -12933216.77 | AZ46: end
AZ47: end
A48: Cash Flows from Financing Activities | AZ48: end
A49: Receipts: | AZ49: end
A50: Proceeds from Borrowings & Advances | C50: =SUM('Historical Data'!C811)*1000 -> 1000000 | E50: ='Loans - External'!J58+IF('BS workings'!E867>0,'BS workings'!E867,0)+'Loans Payable - Internal'!J42+'BS workings'!E865 -> 1000000 | G50: ='Loans - External'!K58+IF('BS workings'!G867>0,'BS workings'!G867,0)+'Loans Payable - Internal'!K42+'BS workings'!G865 -> 0 | H50: ='Loans - External'!L58+IF('BS workings'!H867>0,'BS workings'!H867,0)+'Loans Payable - Internal'!L42+'BS workings'!H865 -> 0 | I50: ='Loans - External'!M58+IF('BS workings'!I867>0,'BS workings'!I867,0)+'Loans Payable - Internal'!M42+'BS workings'!I865 -> 0 | J50: ='Loans - External'!N58+IF('BS workings'!J867>0,'BS workings'!J867,0)+'Loans Payable - Internal'!N42+'BS workings'!J865 -> 0 | K50: ='Loans - External'!O58+IF('BS workings'!K867>0,'BS workings'!K867,0)+'Loans Payable - Internal'!O42+'BS workings'!K865 -> 0 | L50: ='Loans - External'!P58+IF('BS workings'!L867>0,'BS workings'!L867,0)+'Loans Payable - Internal'!P42+'BS workings'!L865 -> 0 | M50: ='Loans - External'!Q58+IF('BS workings'!M867>0,'BS workings'!M867,0)+'Loans Payable - Internal'!Q42+'BS workings'!M865 -> 0 | N50: ='Loans - External'!R58+IF('BS workings'!N867>0,'BS workings'!N867,0)+'Loans Payable - Internal'!R42+'BS workings'!N865 -> 0 | O50: ='Loans - External'!S58+IF('BS workings'!O867>0,'BS workings'!O867,0)+'Loans Payable - Internal'!S42+'BS workings'!O865 -> 0 | P50: ='Loans - External'!T58+IF('BS workings'!P867>0,'BS workings'!P867,0)+'Loans Payable - Internal'!T42+'BS workings'!P865 -> 0 | AZ50: end
A51: Proceeds from Finance Leases | C51: =SUM('Historical Data'!C812)*1000 -> 0 | E51: ='Finance Leases'!J42 -> 0 | G51: ='Finance Leases'!K42 -> 0 | H51: ='Finance Leases'!L42 -> 0 | I51: ='Finance Leases'!M42 -> 0 | J51: ='Finance Leases'!N42 -> 0 | K51: ='Finance Leases'!O42 -> 0 | L51: ='Finance Leases'!P42 -> 0 | M51: ='Finance Leases'!Q42 -> 0 | N51: ='Finance Leases'!R42 -> 0 | O51: ='Finance Leases'!S42 -> 0 | P51: ='Finance Leases'!T42 -> 0 | AZ51: end
A52: Other Financing Activity Receipts | C52: =SUM('Historical Data'!C813)*1000 -> 0 | AZ52: end
A53: Payments: | AZ53: end
A54: Repayment of Borrowings & Advances | C54: =SUM('Historical Data'!C816)*1000 -> -466000 | E54: =-'Loans - External'!J59+IF('BS workings'!E867>0,0,'BS workings'!E867)-'Loans Payable - Internal'!J43+'BS workings'!C862+'BS workings'!C863+'BS workings'!E866 -> -614300.5224 | G54: =-'Loans - External'!K59+IF('BS workings'!G867>0,0,'BS workings'!G867)-'Loans Payable - Internal'!K43+'BS workings'!G866 -> -708130.8713 | H54: =-'Loans - External'!L59+IF('BS workings'!H867>0,0,'BS workings'!H867)-'Loans Payable - Internal'!L43+'BS workings'!H866 -> -739962.4921 | I54: =-'Loans - External'!M59+IF('BS workings'!I867>0,0,'BS workings'!I867)-'Loans Payable - Internal'!M43+'BS workings'!I866 -> -703003.7573 | J54: =-'Loans - External'!N59+IF('BS workings'!J867>0,0,'BS workings'!J867)-'Loans Payable - Internal'!N43+'BS workings'!J866 -> -661636.8956 | K54: =-'Loans - External'!O59+IF('BS workings'!K867>0,0,'BS workings'!K867)-'Loans Payable - Internal'!O43+'BS workings'!K866 -> -623003.244 | L54: =-'Loans - External'!P59+IF('BS workings'!L867>0,0,'BS workings'!L867)-'Loans Payable - Internal'!P43+'BS workings'!L866 -> -453774.2507 | M54: =-'Loans - External'!Q59+IF('BS workings'!M867>0,0,'BS workings'!M867)-'Loans Payable - Internal'!Q43+'BS workings'!M866 -> -341957.4794 | N54: =-'Loans - External'!R59+IF('BS workings'!N867>0,0,'BS workings'!N867)-'Loans Payable - Internal'!R43+'BS workings'!N866 -> -353638.6124 | O54: =-'Loans - External'!S59+IF('BS workings'!O867>0,0,'BS workings'!O867)-'Loans Payable - Internal'!S43+'BS workings'!O866 -> -365718.4556 | P54: =-'Loans - External'!T59+IF('BS workings'!P867>0,0,'BS workings'!P867)-'Loans Payable - Internal'!T43+'BS workings'!P866 -> -209413.4193 | AZ54: end
A55: Repayment of Finance Lease Liabilities | C55: =SUM('Historical Data'!C817)*1000 -> 0 | E55: =-'Finance Leases'!J43+'BS workings'!C864 -> 0 | G55: =-'Finance Leases'!K43 -> 0 | H55: =-'Finance Leases'!L43 -> 0 | I55: =-'Finance Leases'!M43 -> 0 | J55: =-'Finance Leases'!N43 -> 0 | K55: =-'Finance Leases'!O43 -> 0 | L55: =-'Finance Leases'!P43 -> 0 | M55: =-'Finance Leases'!Q43 -> 0 | N55: =-'Finance Leases'!R43 -> 0 | O55: =-'Finance Leases'!S43 -> 0 | P55: =-'Finance Leases'!T43 -> 0 | AZ55: end
A56: Distributions to Minority Interests | C56: =SUM('Historical Data'!C818)*1000 -> 0 | E56: =-'Budget Summary 1'!J126 -> 0 | G56: =-'Budget Summary 1'!L126 -> 0 | H56: =-'Budget Summary 1'!M126 -> 0 | I56: =-'Budget Summary 1'!N126 -> 0 | J56: =-'Budget Summary 1'!O126 -> 0 | K56: =-'Budget Summary 1'!P126 -> 0 | L56: =-'Budget Summary 1'!Q126 -> 0 | M56: =-'Budget Summary 1'!R126 -> 0 | N56: =-'Budget Summary 1'!S126 -> 0 | O56: =-'Budget Summary 1'!T126 -> 0 | P56: =-'Budget Summary 1'!U126 -> 0 | AZ56: end
A57: Other Financing Activity Payments | C57: =SUM('Historical Data'!C819)*1000 -> 0 | AZ57: end
AZ58: end
A59: Net Cash Flow provided (used in) Financing Activities | C59: =SUM(C49:C58) -> 534000 | E59: 385699.4776 | G59: =SUM(G49:G58) -> -708130.8713 | H59: -739962.4921 | I59: -703003.7573 | J59: -661636.8956 | K59: -623003.244 | L59: -453774.2507 | M59: -341957.4794 | N59: -353638.6124 | O59: -365718.4556 | P59: -209413.4193 | AZ59: end
AZ60: end
A61: Net Increase/(Decrease) in Cash & Cash Equivalents | C61: =C21+C46+C59 -> 860000 | E61: =E21+E46+E59 -> 2557742.51 | G61: =G21+G46+G59 -> 1727506.534 | H61: 1802617.186 | I61: 4087673.057 | J61: 4409488.343 | K61: 4609794.181 | L61: 4673283.493 | M61: 4714349.363 | N61: 4700368.328 | O61: 4738619.176 | P61: 4863087.53 | AZ61: end
AZ62: end
A63: plus: Cash, Cash Equivalents & Investments - beginning of year | C63: =SUM('Historical Data'!C827)*1000 -> 6327000 | E63: =(SUM('Historical Data'!C682)-SUM('Historical Data'!C1145))*1000 -> 7187000 | G63: =E65 -> 9744742.51 | H63: =G65 -> 11472249.04 | I63: 13274866.23 | J63: 17362539.29 | K63: 21772027.63 | L63: 26381821.81 | M63: 31055105.3 | N63: 35769454.67 | O63: 40469823 | P63: 45208442.17 | AZ63: end
AZ64: end
A65: Cash & Cash Equivalents - end of the year | C65: =SUM('Historical Data'!C830)*1000 -> 7187000 | E65: =E61+E63 -> 9744742.51 | G65: =G61+G63 -> 11472249.04 | H65: 13274866.23 | I65: 17362539.29 | J65: 21772027.63 | K65: 26381821.81 | L65: 31055105.3 | M65: 35769454.67 | N65: 40469823 | O65: 45208442.17 | P65: 50071529.7 | AZ65: end
AZ66: end
AZ67: end
AZ68: end
A69: Cash & Cash Equivalents - end of the year | C69: =C65 -> 7187000 | E69: =E65 -> 9744742.51 | G69: =G65 -> 11472249.04 | H69: =H65 -> 13274866.23 | I69: 17362539.29 | J69: 21772027.63 | K69: 26381821.81 | L69: 31055105.3 | M69: 35769454.67 | N69: 40469823 | O69: 45208442.17 | P69: 50071529.7 | AZ69: end
A70: Investments - end of the year | C70: ='Balance Sheet'!C9+'Balance Sheet'!C18 -> 50000000 | E70: ='Balance Sheet'!E9+'Balance Sheet'!E18 -> 50000000 | G70: ='Balance Sheet'!G9+'Balance Sheet'!G18 -> 50000000 | H70: ='Balance Sheet'!H9+'Balance Sheet'!H18 -> 50000000 | I70: ='Balance Sheet'!I9+'Balance Sheet'!I18 -> 50000000 | J70: ='Balance Sheet'!J9+'Balance Sheet'!J18 -> 50000000 | K70: ='Balance Sheet'!K9+'Balance Sheet'!K18 -> 50000000 | L70: ='Balance Sheet'!L9+'Balance Sheet'!L18 -> 50000000 | M70: ='Balance Sheet'!M9+'Balance Sheet'!M18 -> 50000000 | N70: ='Balance Sheet'!N9+'Balance Sheet'!N18 -> 50000000 | O70: ='Balance Sheet'!O9+'Balance Sheet'!O18 -> 50000000 | P70: ='Balance Sheet'!P9+'Balance Sheet'!P18 -> 50000000 | AZ70: end
A71: Cash, Cash Equivalents & Investments - end of the year | C71: =C69+C70 -> 57187000 | E71: =E69+E70 -> 59744742.51 | G71: =G69+G70 -> 61472249.04 | H71: =H69+H70 -> 63274866.23 | I71: 67362539.29 | J71: 71772027.63 | K71: 76381821.81 | L71: 81055105.3 | M71: 85769454.67 | N71: 90469823 | O71: 95208442.17 | P71: 100071529.7 | AZ71: end
AZ72: end
A73: Representing: | AZ73: end
A74: - External Restrictions | C74: =('External Reserves'!C38) -> 22673000 | E74: =('External Reserves'!F38) -> 26309671 | G74: =('External Reserves'!I38) -> 30125671 | H74: =('External Reserves'!K38) -> 34037671 | I74: ='External Reserves'!M38 -> 37986241 | J74: ='External Reserves'!O38 -> 41976727 | K74: ='External Reserves'!Q38 -> 46004518 | L74: ='External Reserves'!S38 -> 50069987 | M74: ='External Reserves'!U38 -> 54023511 | N74: ='External Reserves'!W38 -> 57965470 | O74: ='External Reserves'!Y38 -> 61951279 | P74: ='External Reserves'!AA38 -> 65937088 | AZ74: end
A75: - Internal Restricitons | C75: ='Internal Reserves'!C109 -> 28701000 | E75: ='Internal Reserves'!F109 -> 25955298 | G75: ='Internal Reserves'!I109 -> 23795298 | H75: ='Internal Reserves'!K109 -> 21590298 | I75: ='Internal Reserves'!M109 -> 21730298 | J75: ='Internal Reserves'!O109 -> 22015298 | K75: ='Internal Reserves'!Q109 -> 22515298 | L75: ='Internal Reserves'!S109 -> 23005298 | M75: ='Internal Reserves'!U109 -> 23595298 | N75: ='Internal Reserves'!W109 -> 24250298 | O75: ='Internal Reserves'!Y109 -> 24895298 | P75: ='Internal Reserves'!AA109 -> 25615298 | AZ75: end
A76: - Unrestricted | C76: =C71-C74-C75 -> 5813000 | E76: =E71-E74-E75 -> 7479773.51 | G76: =G71-G74-G75 -> 7551280.043 | H76: =H71-H74-H75 -> 7646897.229 | I76: 7646000.287 | J76: 7780002.63 | K76: 7862005.811 | L76: 7979820.305 | M76: 8150645.668 | N76: 8254054.995 | O76: 8361865.172 | P76: 8519143.702 | AZ76: end
C77: =SUM(C73:C76) -> 57187000 | E77: =SUM(E73:E76) -> 59744742.51 | G77: =SUM(G73:G76) -> 61472249.04 | H77: 63274866.23 | I77: 67362539.29 | J77: 71772027.63 | K77: 76381821.81 | L77: 81055105.3 | M77: 85769454.67 | N77: 90469823 | O77: 95208442.17 | P77: 100071529.7 | AZ77: end
AZ78: end
AZ79: end
AZ80: end
A81: Cash & Investments per Balance Sheet | E81: =('BS workings'!E48-'BS workings'!E49) -> 9744742.51 | G81: =('BS workings'!G48-'BS workings'!G49) -> 11472249.04 | H81: =('BS workings'!H48-'BS workings'!H49) -> 13274866.23 | I81: =('BS workings'!I48-'BS workings'!I49) -> 17362539.29 | J81: =('BS workings'!J48-'BS workings'!J49) -> 21772027.63 | K81: =('BS workings'!K48-'BS workings'!K49) -> 26381821.81 | L81: =('BS workings'!L48-'BS workings'!L49) -> 31055105.3 | M81: =('BS workings'!M48-'BS workings'!M49) -> 35769454.67 | N81: =('BS workings'!N48-'BS workings'!N49) -> 40469823 | O81: =('BS workings'!O48-'BS workings'!O49) -> 45208442.17 | P81: =('BS workings'!P48-'BS workings'!P49) -> 50071529.7 | AZ81: end
A82: Variance per Balance Sheet to Cash Flow | E82: =ROUND(E81-E65,0) -> 0 | G82: =ROUND(G81-G65,0) -> 0 | H82: 0 | I82: 0 | J82: 0 | K82: 0 | L82: 0 | M82: 0 | N82: 0 | O82: 0 | P82: 0 | AZ82: end
A83: Check that variance above is not greater than $2000 | E83: =IF(ABS(ROUND(E82,0))>2000,E$4,"") ->  | G83: =IF(ABS(ROUND(G82,0))>2000,IF(E83="",G$4,E83&", "&G$4),E83) ->  | H83: =IF(ABS(ROUND(H82,0))>2000,IF(G83="",H$4,G83&", "&H$4),G83) ->  | I83: =IF(ABS(ROUND(I82,0))>2000,IF(H83="",I$4,H83&", "&I$4),H83) ->  | AZ83: end
AZ84: end
A85: Other Cash adjustments | AZ85: end
A86: Change in other assets | AZ86: end
A87: Change in Inventories | AZ87: end
A88: Change in Liabilities associated with assets classified as "held for sale" | E88: ='BS workings'!E32 -> 0 | G88: ='BS workings'!G32 -> 0 | H88: ='BS workings'!H32 -> 0 | I88: ='BS workings'!I32 -> 0 | J88: ='BS workings'!J32 -> 0 | K88: ='BS workings'!K32 -> 0 | L88: ='BS workings'!L32 -> 0 | M88: ='BS workings'!M32 -> 0 | N88: ='BS workings'!N32 -> 0 | O88: ='BS workings'!O32 -> 0 | P88: ='BS workings'!P32 -> 0 | AZ88: end
AZ89: end
AZ90: end
E91: =SUM(E86:E90) -> 0 | G91: =SUM(G86:G90) -> 0 | H91: 0 | I91: 0 | J91: 0 | K91: 0 | L91: 0 | M91: 0 | N91: 0 | O91: 0 | P91: 0 | AZ91: end
AZ92: end
A93: Adjustment Other receipts | E93: =IF(E91>0,E91,0) -> 0 | G93: =IF(G91>0,G91,0) -> 0 | H93: 0 | I93: 0 | J93: 0 | K93: 0 | L93: 0 | M93: 0 | N93: 0 | O93: 0 | P93: 0 | AZ93: end
A94: Adjustment Other payments | E94: =IF(E91<0,E91,0) -> 0 | G94: =IF(G91<0,G91,0) -> 0 | H94: 0 | I94: 0 | J94: 0 | K94: 0 | L94: 0 | M94: 0 | N94: 0 | O94: 0 | P94: 0 | AZ94: end
AZ95: end
AZ96: end
AZ97: end
A98: New Internal Loans provided | E98: =+'Loans Receivable - Internal'!J42 -> 0 | G98: =+'Loans Receivable - Internal'!K42 -> 0 | H98: =+'Loans Receivable - Internal'!L42 -> 0 | I98: =+'Loans Receivable - Internal'!M42 -> 0 | J98: =+'Loans Receivable - Internal'!N42 -> 0 | K98: =+'Loans Receivable - Internal'!O42 -> 0 | L98: =+'Loans Receivable - Internal'!P42 -> 0 | M98: =+'Loans Receivable - Internal'!Q42 -> 0 | N98: =+'Loans Receivable - Internal'!R42 -> 0 | O98: =+'Loans Receivable - Internal'!S42 -> 0 | P98: =+'Loans Receivable - Internal'!T42 -> 0 | AZ98: end
A99: New Internal Loans taken up | E99: =+'Loans Payable - Internal'!J42 -> 0 | G99: =+'Loans Payable - Internal'!K42 -> 0 | H99: =+'Loans Payable - Internal'!L42 -> 0 | I99: =+'Loans Payable - Internal'!M42 -> 0 | J99: =+'Loans Payable - Internal'!N42 -> 0 | K99: =+'Loans Payable - Internal'!O42 -> 0 | L99: =+'Loans Payable - Internal'!P42 -> 0 | M99: =+'Loans Payable - Internal'!Q42 -> 0 | N99: =+'Loans Payable - Internal'!R42 -> 0 | O99: =+'Loans Payable - Internal'!S42 -> 0 | P99: =+'Loans Payable - Internal'!T42 -> 0 | AZ99: end
A100: Internal Loans Principal received | E100: =+'Loans Receivable - Internal'!J43 -> 0 | G100: =+'Loans Receivable - Internal'!K43 -> 0 | H100: =+'Loans Receivable - Internal'!L43 -> 0 | I100: =+'Loans Receivable - Internal'!M43 -> 0 | J100: =+'Loans Receivable - Internal'!N43 -> 0 | K100: =+'Loans Receivable - Internal'!O43 -> 0 | L100: =+'Loans Receivable - Internal'!P43 -> 0 | M100: =+'Loans Receivable - Internal'!Q43 -> 0 | N100: =+'Loans Receivable - Internal'!R43 -> 0 | O100: =+'Loans Receivable - Internal'!S43 -> 0 | P100: =+'Loans Receivable - Internal'!T43 -> 0 | AZ100: end
A101: Internal Loans Principal paid | E101: =+'Loans Payable - Internal'!J43 -> 0 | G101: =+'Loans Payable - Internal'!K43 -> 0 | H101: =+'Loans Payable - Internal'!L43 -> 0 | I101: =+'Loans Payable - Internal'!M43 -> 0 | J101: =+'Loans Payable - Internal'!N43 -> 0 | K101: =+'Loans Payable - Internal'!O43 -> 0 | L101: =+'Loans Payable - Internal'!P43 -> 0 | M101: =+'Loans Payable - Internal'!Q43 -> 0 | N101: =+'Loans Payable - Internal'!R43 -> 0 | O101: =+'Loans Payable - Internal'!S43 -> 0 | P101: =+'Loans Payable - Internal'!T43 -> 0 | AZ101: end
AZ102: end
AZ103: end
AZ104: end
AZ105: end
A106: end | B106: end | C106: end | D106: end | E106: end | F106: end | G106: end | H106: end | I106: end | J106: end | K106: end | L106: end | M106: end | N106: end | O106: end | P106: end | Q106: end | R106: end | S106: end | T106: end | U106: end | V106: end | W106: end | X106: end | Y106: end | Z106: end | AA106: end | AB106: end | AC106: end | AD106: end | AE106: end | AF106: end | AG106: end | AH106: end | AI106: end | AJ106: end | AK106: end | AL106: end | AM106: end | AN106: end | AO106: end | AP106: end | AQ106: end | AR106: end | AS106: end | AT106: end | AU106: end | AV106: end | AW106: end | AX106: end | AY106: end | AZ106: end

Sheet CF workings
A1: ='Cover Page'!$A$3 -> Burwood Council
A2: ='Cover Page'!$A$5 -> 10 Year Financial Plan for the Years ending 30 June 2029
A3: ="CASH FLOW - "&UPPER(general_fund_name)&" - WORKINGS" -> CASH FLOW - GENERAL FUND - WORKINGS | C3: Actuals | E3: Current Year | G3: Projected Years
A4: ="Scenario: "&general_scenario_name -> Scenario: Burwood Council - SRV Scenario - 2% above Rate Peg for 4years | C4: =Starting_year_general-2&"/"&RIGHT(Starting_year_general-1,2) -> 2017/18 | E4: =Starting_year_general-1&"/"&RIGHT(Starting_year_general,2) -> 2018/19 | G4: =Starting_year_general&"/"&RIGHT(Starting_year_general+1,2) -> 2019/20 | H4: =Starting_year_general+1&"/"&RIGHT(Starting_year_general+2,2) -> 2020/21 | I4: =Starting_year_general+2&"/"&RIGHT(Starting_year_general+3,2) -> 2021/22 | J4: =Starting_year_general+3&"/"&RIGHT(Starting_year_general+4,2) -> 2022/23 | K4: =Starting_year_general+4&"/"&RIGHT(Starting_year_general+5,2) -> 2023/24 | L4: =Starting_year_general+5&"/"&RIGHT(Starting_year_general+6,2) -> 2024/25 | M4: =Starting_year_general+6&"/"&RIGHT(Starting_year_general+7,2) -> 2025/26 | N4: =Starting_year_general+7&"/"&RIGHT(Starting_year_general+8,2) -> 2026/27 | O4: =Starting_year_general+8&"/"&RIGHT(Starting_year_general+9,2) -> 2027/28 | P4: =Starting_year_general+9&"/"&RIGHT(Starting_year_general+10,2) -> 2028/29
C5: =IF('Cover Page'!$K$19=TRUE,"$","$") -> $ | E5: =IF('Cover Page'!$K$19=TRUE,"$","$") -> $ | G5: =IF('Cover Page'!$K$19=TRUE,"$","$") -> $ | H5: =IF('Cover Page'!$K$19=TRUE,"$","$") -> $ | I5: =IF('Cover Page'!$K$19=TRUE,"$","$") -> $ | J5: =IF('Cover Page'!$K$19=TRUE,"$","$") -> $ | K5: =IF('Cover Page'!$K$19=TRUE,"$","$") -> $ | L5: =IF('Cover Page'!$K$19=TRUE,"$","$") -> $ | M5: =IF('Cover Page'!$K$19=TRUE,"$","$") -> $ | N5: =IF('Cover Page'!$K$19=TRUE,"$","$") -> $ | O5: =IF('Cover Page'!$K$19=TRUE,"$","$") -> $ | P5: =IF('Cover Page'!$K$19=TRUE,"$","$") -> $
A7: Cash Flows from Operating Activities
A9: Receipts
A11: Rates & Annual Charges
A12: Income per Income Statement | E12: ='Income Statement'!F8 -> 27854675 | G12: ='Income Statement'!H8 -> 29153993 | H12: ='Income Statement'!I8 -> 30663690.21 | I12: ='Income Statement'!J8 -> 32201375.7 | J12: ='Income Statement'!K8 -> 33796285.04 | K12: ='Income Statement'!L8 -> 34972995.02 | L12: ='Income Statement'!M8 -> 36002518.84 | M12: ='Income Statement'!N8 -> 37373517.11 | N12: ='Income Statement'!O8 -> 38474387.76 | O12: ='Income Statement'!P8 -> 39780513.41 | P12: ='Income Statement'!Q8 -> 40952970.92
A13: Less: Non-cash Income | E13: =-'Income Statement'!BD8 -> 0 | G13: =-'Income Statement'!BE8 -> 0 | H13: =-'Income Statement'!BF8 -> 0 | I13: =-'Income Statement'!BG8 -> 0 | J13: =-'Income Statement'!BH8 -> 0 | K13: =-'Income Statement'!BI8 -> 0 | L13: =-'Income Statement'!BJ8 -> 0 | M13: =-'Income Statement'!BK8 -> 0 | N13: =-'Income Statement'!BL8 -> 0 | O13: =-'Income Statement'!BM8 -> 0 | P13: =-'Income Statement'!BN8 -> 0
A14: Less: Closing Balance Net Receivables per Balance Sheet workings | E14: =-'BS workings'!E100-'BS workings'!E101 -> -656212.3223 | G14: =-'BS workings'!G100-'BS workings'!G101 -> -686822.2103 | H14: =-'BS workings'!H100-'BS workings'!H101 -> -722388.3015 | I14: =-'BS workings'!I100-'BS workings'!I101 -> -758613.7526 | J14: =-'BS workings'!J100-'BS workings'!J101 -> -796187.3075 | K14: =-'BS workings'!K100-'BS workings'!K101 -> -823908.7435 | L14: =-'BS workings'!L100-'BS workings'!L101 -> -848162.705 | M14: =-'BS workings'!M100-'BS workings'!M101 -> -880461.2674 | N14: =-'BS workings'!N100-'BS workings'!N101 -> -906396.0481 | O14: =-'BS workings'!O100-'BS workings'!O101 -> -937166.3136 | P14: =-'BS workings'!P100-'BS workings'!P101 -> -964787.568
A15: Add: Opening Balance Net Receivables | E15: =+'BS workings'!C87+'BS workings'!C95 -> 650000 | G15: =-E14 -> 656212.3223 | H15: =-G14 -> 686822.2103 | I15: =-H14 -> 722388.3015 | J15: 758613.7526 | K15: 796187.3075 | L15: 823908.7435 | M15: 848162.705 | N15: 880461.2674 | O15: 906396.0481 | P15: 937166.3136
A16: Cash Receipt of Income | E16: =SUM(E11:E15) -> 27848462.68 | G16: =SUM(G11:G15) -> 29123383.11 | H16: =SUM(H11:H15) -> 30628124.12 | I16: 32165150.25 | J16: 33758711.49 | K16: 34945273.58 | L16: 35978264.88 | M16: 37341218.55 | N16: 38448452.98 | O16: 39749743.14 | P16: 40925349.67
A19: User Charges & Fees
A20: Income per Income Statement | E20: ='Income Statement'!F9 -> 10843515 | G20: ='Income Statement'!H9 -> 10638128 | H20: ='Income Statement'!I9 -> 11046659.34 | I20: ='Income Statement'!J9 -> 11452568.83 | J20: ='Income Statement'!K9 -> 11769968.34 | K20: ='Income Statement'!L9 -> 12090518.4 | L20: ='Income Statement'!M9 -> 12480033.97 | M20: ='Income Statement'!N9 -> 12810271.03 | N20: ='Income Statement'!O9 -> 13160037.86 | O20: ='Income Statement'!P9 -> 13519606.9 | P20: ='Income Statement'!Q9 -> 13889258.37
A21: Less: Non-cash Income | E21: =-'Income Statement'!BD9 -> 0 | G21: =-'Income Statement'!BE9 -> 0 | H21: =-'Income Statement'!BF9 -> 0 | I21: =-'Income Statement'!BG9 -> 0 | J21: =-'Income Statement'!BH9 -> 0 | K21: =-'Income Statement'!BI9 -> 0 | L21: =-'Income Statement'!BJ9 -> 0 | M21: =-'Income Statement'!BK9 -> 0 | N21: =-'Income Statement'!BL9 -> 0 | O21: =-'Income Statement'!BM9 -> 0 | P21: =-'Income Statement'!BN9 -> 0
A22: Less: Closing Balance Net Receivables per Balance Sheet workings | E22: =-'BS workings'!E146-'BS workings'!E147 -> -270244.2811 | G22: =-'BS workings'!G146-'BS workings'!G147 -> -265125.5847 | H22: =-'BS workings'!H146-'BS workings'!H147 -> -275307.0856 | I22: =-'BS workings'!I146-'BS workings'!I147 -> -285423.2443 | J22: =-'BS workings'!J146-'BS workings'!J147 -> -293333.5393 | K22: =-'BS workings'!K146-'BS workings'!K147 -> -301322.3529 | L22: =-'BS workings'!L146-'BS workings'!L147 -> -311029.939 | M22: =-'BS workings'!M146-'BS workings'!M147 -> -319260.174 | N22: =-'BS workings'!N146-'BS workings'!N147 -> -327977.1339 | O22: =-'BS workings'!O146-'BS workings'!O147 -> -336938.3865 | P22: =-'BS workings'!P146-'BS workings'!P147 -> -346150.9154
A23: Add: Opening Balance Net Receivables | E23: ='BS workings'!C133+'BS workings'!C141 -> 154000 | G23: =-E22 -> 270244.2811 | H23: =-G22 -> 265125.5847 | I23: =-H22 -> 275307.0856 | J23: 285423.2443 | K23: 293333.5393 | L23: 301322.3529 | M23: 311029.939 | N23: 319260.174 | O23: 327977.1339 | P23: 336938.3865
A24: Cash Receipt of Income | E24: =SUM(E19:E23) -> 10727270.72 | G24: =SUM(G19:G23) -> 10643246.7 | H24: =SUM(H19:H23) -> 11036477.84 | I24: =SUM(I19:I23) -> 11442452.67 | J24: =SUM(J19:J23) -> 11762058.05 | K24: =SUM(K19:K23) -> 12082529.59 | L24: =SUM(L19:L23) -> 12470326.38 | M24: =SUM(M19:M23) -> 12802040.79 | N24: =SUM(N19:N23) -> 13151320.9 | O24: =SUM(O19:O23) -> 13510645.65 | P24: =SUM(P19:P23) -> 13880045.84
A27: Interest & Investment Revenue Received
A28: Income per Income Statement | E28: ='Income Statement'!F10-'Income Statement'!F26 -> 1300000 | G28: ='Income Statement'!H10-'Income Statement'!H26 -> 1430000 | H28: ='Income Statement'!I10-'Income Statement'!I26 -> 1656000 | I28: ='Income Statement'!J10-'Income Statement'!J26 -> 1837000 | J28: ='Income Statement'!K10-'Income Statement'!K26 -> 1988000 | K28: ='Income Statement'!L10-'Income Statement'!L26 -> 2039000 | L28: ='Income Statement'!M10-'Income Statement'!M26 -> 2145000 | M28: ='Income Statement'!N10-'Income Statement'!N26 -> 2170000 | N28: ='Income Statement'!O10-'Income Statement'!O26 -> 2206000 | O28: ='Income Statement'!P10-'Income Statement'!P26 -> 2232000 | P28: ='Income Statement'!Q10-'Income Statement'!Q26 -> 2233000
A29: Less: Non-cash Income | E29: =-'Income Statement'!BD10 -> 0 | G29: =-'Income Statement'!BE10 -> 0 | H29: =-'Income Statement'!BF10 -> 0 | I29: =-'Income Statement'!BG10 -> 0 | J29: =-'Income Statement'!BH10 -> 0 | K29: =-'Income Statement'!BI10 -> 0 | L29: =-'Income Statement'!BJ10 -> 0 | M29: =-'Income Statement'!BK10 -> 0 | N29: =-'Income Statement'!BL10 -> 0 | O29: =-'Income Statement'!BM10 -> 0 | P29: =-'Income Statement'!BN10 -> 0
A30: Less: Closing Balance Net Receivables per Balance Sheet workings | E30: =-'BS workings'!E192-'BS workings'!E193-'BS workings'!E123-'BS workings'!E124 -> -467867.1813 | G30: =-'BS workings'!G192-'BS workings'!G193-'BS workings'!G123-'BS workings'!G124 -> -483973.353 | H30: =-'BS workings'!H192-'BS workings'!H193-'BS workings'!H123-'BS workings'!H124 -> -503301.6439 | I30: =-'BS workings'!I192-'BS workings'!I193-'BS workings'!I123-'BS workings'!I124 -> -534485.6282 | J30: =-'BS workings'!J192-'BS workings'!J193-'BS workings'!J123-'BS workings'!J124 -> -567657.459 | K30: =-'BS workings'!K192-'BS workings'!K193-'BS workings'!K123-'BS workings'!K124 -> -602040.9594 | L30: =-'BS workings'!L192-'BS workings'!L193-'BS workings'!L123-'BS workings'!L124 -> -635899.4439 | M30: =-'BS workings'!M192-'BS workings'!M193-'BS workings'!M123-'BS workings'!M124 -> -670978.5005 | N30: =-'BS workings'!N192-'BS workings'!N193-'BS workings'!N123-'BS workings'!N124 -> -705004.7172 | O30: =-'BS workings'!O192-'BS workings'!O193-'BS workings'!O123-'BS workings'!O124 -> -740141.7502 | P30: =-'BS workings'!P192-'BS workings'!P193-'BS workings'!P123-'BS workings'!P124 -> -775610.0956
A31: Add: Opening Balance Net Receivables | E31: ='BS workings'!C179+'BS workings'!C187+'BS workings'!C110+'BS workings'!C118 -> 506000 | G31: =-E30 -> 467867.1813 | H31: =-G30 -> 483973.353 | I31: =-H30 -> 503301.6439 | J31: 534485.6282 | K31: 567657.459 | L31: 602040.9594 | M31: 635899.4439 | N31: 670978.5005 | O31: 705004.7172 | P31: 740141.7502
A32: Cash Receipt of Income | E32: =SUM(E27:E31) -> 1338132.819 | G32: =SUM(G27:G31) -> 1413893.828 | H32: =SUM(H27:H31) -> 1636671.709 | I32: =SUM(I27:I31) -> 1805816.016 | J32: =SUM(J27:J31) -> 1954828.169 | K32: =SUM(K27:K31) -> 2004616.5 | L32: =SUM(L27:L31) -> 2111141.516 | M32: =SUM(M27:M31) -> 2134920.943 | N32: =SUM(N27:N31) -> 2171973.783 | O32: =SUM(O27:O31) -> 2196862.967 | P32: =SUM(P27:P31) -> 2197531.655
A35: Grants & Contributions
A36: Income per Income Statement | E36: ='Income Statement'!F12+'Income Statement'!F13 -> 18149130 | G36: ='Income Statement'!H12+'Income Statement'!H13 -> 11047168 | H36: ='Income Statement'!I12+'Income Statement'!I13 -> 11146949.04 | I36: ='Income Statement'!J12+'Income Statement'!J13 -> 10775175.5 | J36: ='Income Statement'!K12+'Income Statement'!K13 -> 9415591.7 | K36: ='Income Statement'!L12+'Income Statement'!L13 -> 9615420.83 | L36: ='Income Statement'!M12+'Income Statement'!M13 -> 9861514.86 | M36: ='Income Statement'!N12+'Income Statement'!N13 -> 10161871.57 | N36: ='Income Statement'!O12+'Income Statement'!O13 -> 10115844.56 | O36: ='Income Statement'!P12+'Income Statement'!P13 -> 10278561.94 | P36: ='Income Statement'!Q12+'Income Statement'!Q13 -> 10445144.86
A37: Less: Non-cash Income | E37: =-'Income Statement'!BD12-'Income Statement'!BD13 -> 0 | G37: =-'Income Statement'!BE12-'Income Statement'!BE13 -> 0 | H37: =-'Income Statement'!BF12-'Income Statement'!BF13 -> 0 | I37: =-'Income Statement'!BG12-'Income Statement'!BG13 -> 0 | J37: =-'Income Statement'!BH12-'Income Statement'!BH13 -> 0 | K37: =-'Income Statement'!BI12-'Income Statement'!BI13 -> 0 | L37: =-'Income Statement'!BJ12-'Income Statement'!BJ13 -> 0 | M37: =-'Income Statement'!BK12-'Income Statement'!BK13 -> 0 | N37: =-'Income Statement'!BL12-'Income Statement'!BL13 -> 0 | O37: =-'Income Statement'!BM12-'Income Statement'!BM13 -> 0 | P37: =-'Income Statement'!BN12-'Income Statement'!BN13 -> 0
A38: Less: Closing Balance Net Receivables per Balance Sheet workings | E38: =-'BS workings'!E169-'BS workings'!E170 -> -707062.0713 | G38: =-'BS workings'!G169-'BS workings'!G170 -> -430380.6016 | H38: =-'BS workings'!H169-'BS workings'!H170 -> -434267.9168 | I38: =-'BS workings'!I169-'BS workings'!I170 -> -419784.1939 | J38: =-'BS workings'!J169-'BS workings'!J170 -> -366816.9091 | K38: =-'BS workings'!K169-'BS workings'!K170 -> -374601.9434 | L38: =-'BS workings'!L169-'BS workings'!L170 -> -384189.3867 | M38: =-'BS workings'!M169-'BS workings'!M170 -> -395890.8201 | N38: =-'BS workings'!N169-'BS workings'!N170 -> -394097.6789 | O38: =-'BS workings'!O169-'BS workings'!O170 -> -400436.8967 | P38: =-'BS workings'!P169-'BS workings'!P170 -> -406926.71
A39: Add: Opening Balance Net Receivables | E39: ='BS workings'!C156+'BS workings'!C164 -> 1371000 | G39: =-E38 -> 707062.0713 | H39: =-G38 -> 430380.6016 | I39: =-H38 -> 434267.9168 | J39: 419784.1939 | K39: 366816.9091 | L39: 374601.9434 | M39: 384189.3867 | N39: 395890.8201 | O39: 394097.6789 | P39: 400436.8967
A40: Cash Receipt of Income | E40: =SUM(E35:E39) -> 18813067.93 | G40: =SUM(G35:G39) -> 11323849.47 | H40: =SUM(H35:H39) -> 11143061.72 | I40: =SUM(I35:I39) -> 10789659.22 | J40: =SUM(J35:J39) -> 9468558.985 | K40: =SUM(K35:K39) -> 9607635.796 | L40: =SUM(L35:L39) -> 9851927.417 | M40: =SUM(M35:M39) -> 10150170.14 | N40: =SUM(N35:N39) -> 10117637.7 | O40: =SUM(O35:O39) -> 10272222.72 | P40: =SUM(P35:P39) -> 10438655.05
A43: Bonds & Deposits Received
A44: Receipt per Budget Summary | E44: ='Budget Summary 1'!J95 -> 0 | G44: ='Budget Summary 1'!L95 -> 0 | H44: ='Budget Summary 1'!M95 -> 0 | I44: ='Budget Summary 1'!N95 -> 0 | J44: ='Budget Summary 1'!O95 -> 0 | K44: ='Budget Summary 1'!P95 -> 0 | L44: ='Budget Summary 1'!Q95 -> 0 | M44: ='Budget Summary 1'!R95 -> 0 | N44: ='Budget Summary 1'!S95 -> 0 | O44: ='Budget Summary 1'!T95 -> 0 | P44: ='Budget Summary 1'!U95 -> 0
A45: Receipt per Balance Sheet workings (manual adjustment) | E45: ='BS workings'!E750 -> 0 | G45: ='BS workings'!G750 -> 0 | H45: ='BS workings'!H750 -> 0 | I45: ='BS workings'!I750 -> 0 | J45: ='BS workings'!J750 -> 0 | K45: ='BS workings'!K750 -> 0 | L45: ='BS workings'!L750 -> 0 | M45: ='BS workings'!M750 -> 0 | N45: ='BS workings'!N750 -> 0 | O45: ='BS workings'!O750 -> 0 | P45: ='BS workings'!P750 -> 0
A46: Cash Receipt of Income | E46: =SUM(E43:E45) -> 0 | G46: =SUM(G43:G45) -> 0 | H46: 0 | I46: 0 | J46: 0 | K46: 0 | L46: 0 | M46: 0 | N46: 0 | O46: 0 | P46: 0
A49: Other
A50: Income per Income Statement | E50: ='Income Statement'!F11 -> 4706813 | G50: ='Income Statement'!H11 -> 4723116 | H50: ='Income Statement'!I11 -> 4817578.32 | I50: ='Income Statement'!J11 -> 4913929.89 | J50: ='Income Statement'!K11 -> 5012208.48 | K50: ='Income Statement'!L11 -> 5112452.65 | L50: ='Income Statement'!M11 -> 5214701.66 | M50: ='Income Statement'!N11 -> 5318995.68 | N50: ='Income Statement'!O11 -> 5425375.58 | O50: ='Income Statement'!P11 -> 5533883.08 | P50: ='Income Statement'!Q11 -> 5644560.77
A51: Net Gain on Discontinued Operations | E51: =IF('Income Statement'!F33>0,'Income Statement'!F33,0) -> 0 | G51: =IF('Income Statement'!H33>0,'Income Statement'!H33,0) -> 0 | H51: =IF('Income Statement'!I33>0,'Income Statement'!I33,0) -> 0 | I51: =IF('Income Statement'!J33>0,'Income Statement'!J33,0) -> 0 | J51: =IF('Income Statement'!K33>0,'Income Statement'!K33,0) -> 0 | K51: =IF('Income Statement'!L33>0,'Income Statement'!L33,0) -> 0 | L51: =IF('Income Statement'!M33>0,'Income Statement'!M33,0) -> 0 | M51: =IF('Income Statement'!N33>0,'Income Statement'!N33,0) -> 0 | N51: =IF('Income Statement'!O33>0,'Income Statement'!O33,0) -> 0 | O51: =IF('Income Statement'!P33>0,'Income Statement'!P33,0) -> 0 | P51: =IF('Income Statement'!Q33>0,'Income Statement'!Q33,0) -> 0
A52: Less: Non-cash Income | E52: =-'Income Statement'!BD11-'Budget Summary 1'!CC19 -> 0 | G52: =-'Income Statement'!BE11-'Budget Summary 1'!CD19 -> 0 | H52: =-'Income Statement'!BF11-'Budget Summary 1'!CE19 -> 0 | I52: =-'Income Statement'!BG11-'Budget Summary 1'!CF19 -> 0 | J52: =-'Income Statement'!BH11-'Budget Summary 1'!CG19 -> 0 | K52: =-'Income Statement'!BI11-'Budget Summary 1'!CH19 -> 0 | L52: =-'Income Statement'!BJ11-'Budget Summary 1'!CI19 -> 0 | M52: =-'Income Statement'!BK11-'Budget Summary 1'!CJ19 -> 0 | N52: =-'Income Statement'!BL11-'Budget Summary 1'!CK19 -> 0 | O52: =-'Income Statement'!BM11-'Budget Summary 1'!CL19 -> 0 | P52: =-'Income Statement'!BN11-'Budget Summary 1'!CM19 -> 0
A53: Less: Closing Balance Net Receivables per Balance Sheet workings | E53: =-'BS workings'!E215-'BS workings'!E216-'BS workings'!E302-'BS workings'!E303-'BS workings'!E351-'BS workings'!E352 -> -1596927.915 | G53: =-'BS workings'!G215-'BS workings'!G216-'BS workings'!G302-'BS workings'!G303-'BS workings'!G351-'BS workings'!G352 -> -1435782.053 | H53: =-'BS workings'!H215-'BS workings'!H216-'BS workings'!H302-'BS workings'!H303-'BS workings'!H351-'BS workings'!H352 -> -1469046.045 | I53: =-'BS workings'!I215-'BS workings'!I216-'BS workings'!I302-'BS workings'!I303-'BS workings'!I351-'BS workings'!I352 -> -1492153.044 | J53: =-'BS workings'!J215-'BS workings'!J216-'BS workings'!J302-'BS workings'!J303-'BS workings'!J351-'BS workings'!J352 -> -1490579.24 | K53: =-'BS workings'!K215-'BS workings'!K216-'BS workings'!K302-'BS workings'!K303-'BS workings'!K351-'BS workings'!K352 -> -1523782.806 | L53: =-'BS workings'!L215-'BS workings'!L216-'BS workings'!L302-'BS workings'!L303-'BS workings'!L351-'BS workings'!L352 -> -1560886.514 | M53: =-'BS workings'!M215-'BS workings'!M216-'BS workings'!M302-'BS workings'!M303-'BS workings'!M351-'BS workings'!M352 -> -1597346.472 | N53: =-'BS workings'!N215-'BS workings'!N216-'BS workings'!N302-'BS workings'!N303-'BS workings'!N351-'BS workings'!N352 -> -1627254.664 | O53: =-'BS workings'!O215-'BS workings'!O216-'BS workings'!O302-'BS workings'!O303-'BS workings'!O351-'BS workings'!O352 -> -1662479.931 | P53: =-'BS workings'!P215-'BS workings'!P216-'BS workings'!P302-'BS workings'!P303-'BS workings'!P351-'BS workings'!P352 -> -1698529.72
A54: Add: Opening Balance Net Receivables | E54: ='BS workings'!C202+'BS workings'!C210+'BS workings'!C289+'BS workings'!C297+'BS workings'!C335+'BS workings'!C346 -> 1587000 | G54: =-E53 -> 1596927.915 | H54: =-G53 -> 1435782.053 | I54: =-H53 -> 1469046.045 | J54: 1492153.044 | K54: 1490579.24 | L54: 1523782.806 | M54: 1560886.514 | N54: 1597346.472 | O54: 1627254.664 | P54: 1662479.931
A55: Add: Closing Balance Payments rec'ed in advance per Balance Sheet workings | E55: ='BS workings'!E800 -> 932781.9389 | G55: ='BS workings'!G800 -> 921439.7897 | H55: ='BS workings'!H800 -> 951611.7193 | I55: ='BS workings'!I800 -> 981739.7041 | J55: ='BS workings'!J800 -> 1006674.035 | K55: ='BS workings'!K800 -> 1031915.255 | L55: ='BS workings'!L800 -> 1061413.612 | M55: ='BS workings'!M800 -> 1087478.833 | N55: ='BS workings'!N800 -> 1114840.663 | O55: ='BS workings'!O800 -> 1142918.1 | P55: ='BS workings'!P800 -> 1171730.506
A56: (Less): Opening Balance Payments rec'ed in advance | E56: =-'BS workings'!C800 -> -1266000 | G56: =-E55 -> -932781.9389 | H56: =-G55 -> -921439.7897 | I56: =-H55 -> -951611.7193 | J56: =-I55 -> -981739.7041 | K56: =-J55 -> -1006674.035 | L56: =-K55 -> -1031915.255 | M56: =-L55 -> -1061413.612 | N56: =-M55 -> -1087478.833 | O56: =-N55 -> -1114840.663 | P56: =-O55 -> -1142918.1
A57: ELE Provision Receipt (from other Councils) | E57: ='BS workings'!E897 -> 0 | G57: ='BS workings'!G897 -> 0 | H57: ='BS workings'!H897 -> 0 | I57: ='BS workings'!I897 -> 0 | J57: ='BS workings'!J897 -> 0 | K57: ='BS workings'!K897 -> 0 | L57: ='BS workings'!L897 -> 0 | M57: ='BS workings'!M897 -> 0 | N57: ='BS workings'!N897 -> 0 | O57: ='BS workings'!O897 -> 0 | P57: ='BS workings'!P897 -> 0
A58: Other Provisions - Receipt | E58: ='BS workings'!E933 -> 0 | G58: ='BS workings'!G933 -> 0 | H58: ='BS workings'!H933 -> 0 | I58: ='BS workings'!I933 -> 0 | J58: ='BS workings'!J933 -> 0 | K58: ='BS workings'!K933 -> 0 | L58: ='BS workings'!L933 -> 0 | M58: ='BS workings'!M933 -> 0 | N58: ='BS workings'!N933 -> 0 | O58: ='BS workings'!O933 -> 0 | P58: ='BS workings'!P933 -> 0
A59: (Less)/Add: Non-Cash movements per Budget Summary (cumulative) | E59: ='BS workings'!E336 -> 0 | G59: ='BS workings'!G336 -> 0 | H59: ='BS workings'!H336 -> 0 | I59: ='BS workings'!I336 -> 0 | J59: ='BS workings'!J336 -> 0 | K59: ='BS workings'!K336 -> 0 | L59: ='BS workings'!L336 -> 0 | M59: ='BS workings'!M336 -> 0 | N59: ='BS workings'!N336 -> 0 | O59: ='BS workings'!O336 -> 0 | P59: ='BS workings'!P336 -> 0
A60: Cash Receipt of Income | E60: =SUM(E49:E59) -> 4363667.024 | G60: =SUM(G49:G59) -> 4872919.713 | H60: =SUM(H49:H59) -> 4814486.257 | I60: 4920950.876 | J60: 5038716.615 | K60: 5104490.305 | L60: 5207096.308 | M60: 5308600.943 | N60: 5422829.218 | O60: 5526735.25 | P60: 5637323.386
... 50 more rows

Sheet Equity Statement
A1: ='Cover Page'!$A$3 -> Burwood Council
A2: ='Cover Page'!$A$5 -> 10 Year Financial Plan for the Years ending 30 June 2029
A3: ="EQUITY STATEMENT - "&UPPER(general_fund_name) -> EQUITY STATEMENT - GENERAL FUND | C3: Actuals | E3: Current Year | G3: Projected Years
A4: ="Scenario: "&general_scenario_name -> Scenario: Burwood Council - SRV Scenario - 2% above Rate Peg for 4years | C4: =Starting_year_general-2&"/"&RIGHT(Starting_year_general-1,2) -> 2017/18 | E4: =Starting_year_general-1&"/"&RIGHT(Starting_year_general,2) -> 2018/19 | G4: =Starting_year_general&"/"&RIGHT(Starting_year_general+1,2) -> 2019/20 | H4: =Starting_year_general+1&"/"&RIGHT(Starting_year_general+2,2) -> 2020/21 | I4: =Starting_year_general+2&"/"&RIGHT(Starting_year_general+3,2) -> 2021/22 | J4: =Starting_year_general+3&"/"&RIGHT(Starting_year_general+4,2) -> 2022/23 | K4: =Starting_year_general+4&"/"&RIGHT(Starting_year_general+5,2) -> 2023/24 | L4: =Starting_year_general+5&"/"&RIGHT(Starting_year_general+6,2) -> 2024/25 | M4: =Starting_year_general+6&"/"&RIGHT(Starting_year_general+7,2) -> 2025/26 | N4: =Starting_year_general+7&"/"&RIGHT(Starting_year_general+8,2) -> 2026/27 | O4: =Starting_year_general+8&"/"&RIGHT(Starting_year_general+9,2) -> 2027/28 | P4: =Starting_year_general+9&"/"&RIGHT(Starting_year_general+10,2) -> 2028/29
C5: =IF('Cover Page'!$K$19=TRUE,"$","$'000") -> $ | E5: =IF('Cover Page'!$K$19=TRUE,"$","$'000") -> $ | G5: =IF('Cover Page'!$K$19=TRUE,"$","$'000") -> $ | H5: =IF('Cover Page'!$K$19=TRUE,"$","$'000") -> $ | I5: =IF('Cover Page'!$K$19=TRUE,"$","$'000") -> $ | J5: =IF('Cover Page'!$K$19=TRUE,"$","$'000") -> $ | K5: =IF('Cover Page'!$K$19=TRUE,"$","$'000") -> $ | L5: =IF('Cover Page'!$K$19=TRUE,"$","$'000") -> $ | M5: =IF('Cover Page'!$K$19=TRUE,"$","$'000") -> $ | N5: =IF('Cover Page'!$K$19=TRUE,"$","$'000") -> $ | O5: =IF('Cover Page'!$K$19=TRUE,"$","$'000") -> $ | P5: =IF('Cover Page'!$K$19=TRUE,"$","$'000") -> $
A7: Opening Balance | C7: =SUM('Historical Data'!C736)*1000 -> 397898000 | E7: =SUM('Historical Data'!C728)*1000 -> 499825000 | G7: =E23 -> 512875490 | H7: =G23 -> 519729252.8 | I7: =H23 -> 527670189.3 | J7: 536522326.8 | K7: 544746654.3 | L7: 553494197.3 | M7: 562404266.1 | N7: 571550756.2 | O7: 580930006 | P7: 590621497.2
A9: a. Current Year Income & Expenses Recognised direct to Equity
A10: - Transfers to/(from) Asset Revaluation Reserve | C10: =SUM('Historical Data'!C741)*1000 -> 85445000 | E10: ='IPP&E Reconciliation'!D793-'IPP&E Reconciliation'!D794 -> 0 | G10: ='IPP&E Reconciliation'!E793-'IPP&E Reconciliation'!E794 -> 0 | H10: ='IPP&E Reconciliation'!F793-'IPP&E Reconciliation'!F794 -> 0 | I10: ='IPP&E Reconciliation'!G793-'IPP&E Reconciliation'!G794 -> 0 | J10: ='IPP&E Reconciliation'!H793-'IPP&E Reconciliation'!H794 -> 0 | K10: ='IPP&E Reconciliation'!I793-'IPP&E Reconciliation'!I794 -> 0 | L10: ='IPP&E Reconciliation'!J793-'IPP&E Reconciliation'!J794 -> 0 | M10: ='IPP&E Reconciliation'!K793-'IPP&E Reconciliation'!K794 -> 0 | N10: ='IPP&E Reconciliation'!L793-'IPP&E Reconciliation'!L794 -> 0 | O10: ='IPP&E Reconciliation'!M793-'IPP&E Reconciliation'!M794 -> 0 | P10: ='IPP&E Reconciliation'!N793-'IPP&E Reconciliation'!N794 -> 0
A11: - Transfers to/(from) Other Reserves | C11: =SUM('Historical Data'!C742)*1000 -> 0
A12: - Other Income/Expenses recognised | C12: =SUM('Historical Data'!C743,'Historical Data'!C744)*1000 -> 0
A13: - Other Adjustments | C13: =SUM('Historical Data'!C745)*1000 -> 0
A14: Net Income Recognised Directly in Equity | C14: =SUM(C9:C13) -> 85445000 | E14: =SUM(E9:E13) -> 0 | G14: =SUM(G9:G13) -> 0 | H14: =SUM(H9:H13) -> 0 | I14: 0 | J14: 0 | K14: 0 | L14: 0 | M14: 0 | N14: 0 | O14: 0 | P14: 0
A16: b. Net Operating Result for the Year | C16: =SUM('Historical Data'!C738)*1000 -> 16482000 | E16: ='Income Statement'!F36 -> 13050490 | G16: ='Income Statement'!H36 -> 6853762.782 | H16: ='Income Statement'!I36 -> 7940936.523 | I16: ='Income Statement'!J36 -> 8852137.538 | J16: ='Income Statement'!K36 -> 8224327.466 | K16: ='Income Statement'!L36 -> 8747542.995 | L16: ='Income Statement'!M36 -> 8910068.791 | M16: ='Income Statement'!N36 -> 9146490.12 | N16: ='Income Statement'!O36 -> 9379249.803 | O16: ='Income Statement'!P36 -> 9691491.196 | P16: ='Income Statement'!Q36 -> 9951063.962
A18: Total Recognised Income & Expenses (c&d) | C18: =C14+C16 -> 101927000 | E18: =E14+E16 -> 13050490 | G18: =G14+G16 -> 6853762.782 | H18: =H14+H16 -> 7940936.523 | I18: 8852137.538 | J18: 8224327.466 | K18: 8747542.995 | L18: 8910068.791 | M18: 9146490.12 | N18: 9379249.803 | O18: 9691491.196 | P18: 9951063.962
A20: c. Distributions to/(Contributions from) Minority Interests | C20: =SUM('Historical Data'!C750)*1000 -> 0
A21: d. Transfers between Equity | C21: =SUM('Historical Data'!C751)*1000 -> 0
A23: Equity - Balance at end of the reporting period | C23: =C7+C18+C20+C21 -> 499825000 | E23: =E7+E18+E20+E21 -> 512875490 | G23: =G7+G18+G20+G21 -> 519729252.8 | H23: 527670189.3 | I23: 536522326.8 | J23: 544746654.3 | K23: 553494197.3 | L23: 562404266.1 | M23: 571550756.2 | N23: 580930006 | O23: 590621497.2 | P23: 600572561.2
A27: Equity per above | E27: =E23 -> 512875490 | G27: =G23 -> 519729252.8 | H27: 527670189.3 | I27: 536522326.8 | J27: 544746654.3 | K27: 553494197.3 | L27: 562404266.1 | M27: 571550756.2 | N27: 580930006 | O27: 590621497.2 | P27: 600572561.2
A28: per Balance Sheet | E28: ='Balance Sheet'!E56 -> 512875490 | G28: ='Balance Sheet'!G56 -> 519729252.8 | H28: ='Balance Sheet'!H56 -> 527670189.3 | I28: ='Balance Sheet'!I56 -> 536522326.8 | J28: ='Balance Sheet'!J56 -> 544746654.3 | K28: ='Balance Sheet'!K56 -> 553494197.3 | L28: ='Balance Sheet'!L56 -> 562404266.1 | M28: ='Balance Sheet'!M56 -> 571550756.2 | N28: ='Balance Sheet'!N56 -> 580930006 | O28: ='Balance Sheet'!O56 -> 590621497.2 | P28: ='Balance Sheet'!P56 -> 600572561.2
A29: Variance | E29: =E23-E28 -> 0 | G29: =G23-G28 -> 0 | H29: 0 | I29: 0 | J29: 0 | K29: 0 | L29: 0 | M29: 0 | N29: 0 | O29: 0 | P29: 0
A30: Check that variance above is NIL | E30: =IF(ABS(ROUND(E29,0))>0,E$4,"") ->  | G30: =IF(ABS(ROUND(G29,0))>0,IF(E30="",G$4,E30&", "&G$4),E30) ->  | H30: =IF(ABS(ROUND(H29,0))>0,IF(G30="",H$4,G30&", "&H$4),G30) -> 
A34: end | B34: end | C34: end | D34: end | E34: end | F34: end | G34: end | H34: end | I34: end | J34: end | K34: end | L34: end | M34: end | N34: end | O34: end | P34: end

Sheet TY-LY Comparison
A1: ='Cover Page'!$A$3 -> Burwood Council | S1: Paste the Primary Statement figures from LTFP V9 here
A2: ='Cover Page'!$A$5 -> 10 Year Financial Plan for the Years ending 30 June 2029
A3: ="PRIMARY STATEMENTS COMPARISON TO LAST YEAR'S LTFP - "&UPPER(general_fund_name) -> PRIMARY STATEMENTS COMPARISON TO LAST YEAR'S LTFP - GENERAL FUND | C3: Actuals | E3: Current Year | G3: Projected Years | U3: Projected Years
C4: =Starting_year_general-2&"/"&RIGHT(Starting_year_general-1,2) -> 2017/18 | E4: =Starting_year_general-1&"/"&RIGHT(Starting_year_general,2) -> 2018/19 | G4: =Starting_year_general&"/"&RIGHT(Starting_year_general+1,2) -> 2019/20 | H4: =Starting_year_general+1&"/"&RIGHT(Starting_year_general+2,2) -> 2020/21 | I4: =Starting_year_general+2&"/"&RIGHT(Starting_year_general+3,2) -> 2021/22 | J4: =Starting_year_general+3&"/"&RIGHT(Starting_year_general+4,2) -> 2022/23 | K4: =Starting_year_general+4&"/"&RIGHT(Starting_year_general+5,2) -> 2023/24 | L4: =Starting_year_general+5&"/"&RIGHT(Starting_year_general+6,2) -> 2024/25 | M4: =Starting_year_general+6&"/"&RIGHT(Starting_year_general+7,2) -> 2025/26 | N4: =Starting_year_general+7&"/"&RIGHT(Starting_year_general+8,2) -> 2026/27 | O4: =Starting_year_general+8&"/"&RIGHT(Starting_year_general+9,2) -> 2027/28 | S4: =Starting_year_general-2&"/"&RIGHT(Starting_year_general-1,2) -> 2017/18 | U4: =Starting_year_general-1&"/"&RIGHT(Starting_year_general,2) -> 2018/19 | V4: =Starting_year_general&"/"&RIGHT(Starting_year_general+1,2) -> 2019/20 | W4: =Starting_year_general+1&"/"&RIGHT(Starting_year_general+2,2) -> 2020/21 | X4: =Starting_year_general+2&"/"&RIGHT(Starting_year_general+3,2) -> 2021/22 | Y4: =Starting_year_general+3&"/"&RIGHT(Starting_year_general+4,2) -> 2022/23 | Z4: =Starting_year_general+4&"/"&RIGHT(Starting_year_general+5,2) -> 2023/24 | AA4: =Starting_year_general+5&"/"&RIGHT(Starting_year_general+6,2) -> 2024/25 | AB4: =Starting_year_general+6&"/"&RIGHT(Starting_year_general+7,2) -> 2025/26 | AC4: =Starting_year_general+7&"/"&RIGHT(Starting_year_general+8,2) -> 2026/27 | AD4: =Starting_year_general+8&"/"&RIGHT(Starting_year_general+9,2) -> 2027/28
A5: ="Scenario: "&general_scenario_name -> Scenario: Burwood Council - SRV Scenario - 2% above Rate Peg for 4years | C5: =IF('Cover Page'!$K$19=TRUE,"$","$'000") -> $ | E5: =IF('Cover Page'!$K$19=TRUE,"$","$'000") -> $ | G5: =IF('Cover Page'!$K$19=TRUE,"$","$'000") -> $ | H5: =IF('Cover Page'!$K$19=TRUE,"$","$'000") -> $ | I5: =IF('Cover Page'!$K$19=TRUE,"$","$'000") -> $ | J5: =IF('Cover Page'!$K$19=TRUE,"$","$'000") -> $ | K5: =IF('Cover Page'!$K$19=TRUE,"$","$'000") -> $ | L5: =IF('Cover Page'!$K$19=TRUE,"$","$'000") -> $ | M5: =IF('Cover Page'!$K$19=TRUE,"$","$'000") -> $ | N5: =IF('Cover Page'!$K$19=TRUE,"$","$'000") -> $ | O5: =IF('Cover Page'!$K$19=TRUE,"$","$'000") -> $ | S5: =IF('Cover Page'!$K$19=TRUE,"$","$'000") -> $ | U5: =IF('Cover Page'!$K$19=TRUE,"$","$'000") -> $ | V5: =IF('Cover Page'!$K$19=TRUE,"$","$'000") -> $ | W5: =IF('Cover Page'!$K$19=TRUE,"$","$'000") -> $ | X5: =IF('Cover Page'!$K$19=TRUE,"$","$'000") -> $ | Y5: =IF('Cover Page'!$K$19=TRUE,"$","$'000") -> $ | Z5: =IF('Cover Page'!$K$19=TRUE,"$","$'000") -> $ | AA5: =IF('Cover Page'!$K$19=TRUE,"$","$'000") -> $ | AB5: =IF('Cover Page'!$K$19=TRUE,"$","$'000") -> $ | AC5: =IF('Cover Page'!$K$19=TRUE,"$","$'000") -> $ | AD5: =IF('Cover Page'!$K$19=TRUE,"$","$'000") -> $
A7: INCOME STATEMENT
A9: Income from Continuing Operations
A10: Revenue:
A11: Rates & Annual Charges | C11: =ROUND('Income Statement'!D8-S11,0) -> 8236 | E11: =ROUND('Income Statement'!F8-U11,0) -> 213391 | G11: =ROUND('Income Statement'!H8-V11,0) -> 387218 | H11: =ROUND('Income Statement'!I8-W11,0) -> 679250 | I11: =ROUND('Income Statement'!J8-X11,0) -> 1163114 | J11: =ROUND('Income Statement'!K8-Y11,0) -> 1596776 | K11: =ROUND('Income Statement'!L8-Z11,0) -> 1629913 | L11: =ROUND('Income Statement'!M8-AA11,0) -> 1668707 | M11: =ROUND('Income Statement'!N8-AB11,0) -> 1698253 | N11: =ROUND('Income Statement'!O8-AC11,0) -> 1738579 | O11: =ROUND('Income Statement'!P8-AD11,0) -> 1779843 | S11: 26699764 | U11: 27641284 | V11: 28766774.79 | W11: 29984440.53 | X11: 31038261.26 | Y11: 32199509.08 | Z11: 33343081.87 | AA11: 34333811.83 | AB11: 35675263.7 | AC11: 36735809.11 | AD11: 38000670.86
A12: User Charges & Fees | C12: =ROUND('Income Statement'!D9-S12,0) -> 1161451 | E12: =ROUND('Income Statement'!F9-U12,0) -> 482000 | G12: =ROUND('Income Statement'!H9-V12,0) -> -120425 | H12: =ROUND('Income Statement'!I9-W12,0) -> -126915 | I12: =ROUND('Income Statement'!J9-X12,0) -> -43679 | J12: =ROUND('Income Statement'!K9-Y12,0) -> -58325 | K12: =ROUND('Income Statement'!L9-Z12,0) -> -64309 | L12: =ROUND('Income Statement'!M9-AA12,0) -> -70557 | M12: =ROUND('Income Statement'!N9-AB12,0) -> -77079 | N12: =ROUND('Income Statement'!O9-AC12,0) -> -83885 | O12: =ROUND('Income Statement'!P9-AD12,0) -> -90985 | S12: 10460549 | U12: 10361515 | V12: 10758552.88 | W12: 11173574.59 | X12: 11496247.45 | Y12: 11828293.66 | Z12: 12154827.65 | AA12: 12550591.36 | AB12: 12887350.36 | AC12: 13243923.02 | AD12: 13610591.8
A13: Interest & Investment Revenue | C13: =ROUND('Income Statement'!D10-S13,0) -> 242000 | E13: =ROUND('Income Statement'!F10-U13,0) -> 0 | G13: =ROUND('Income Statement'!H10-V13,0) -> 8500 | H13: =ROUND('Income Statement'!I10-W13,0) -> 108500 | I13: =ROUND('Income Statement'!J10-X13,0) -> 108500 | J13: =ROUND('Income Statement'!K10-Y13,0) -> 108500 | K13: =ROUND('Income Statement'!L10-Z13,0) -> 108500 | L13: =ROUND('Income Statement'!M10-AA13,0) -> 159500 | M13: =ROUND('Income Statement'!N10-AB13,0) -> 159500 | N13: =ROUND('Income Statement'!O10-AC13,0) -> 160500 | O13: =ROUND('Income Statement'!P10-AD13,0) -> 161500 | S13: 1150000 | U13: 1300000 | V13: 1421500 | W13: 1547500 | X13: 1728500 | Y13: 1879500 | Z13: 1930500 | AA13: 1985500 | AB13: 2010500 | AC13: 2045500 | AD13: 2070500
A14: Other Revenues | C14: =ROUND('Income Statement'!D11-S14,0) -> 1021625 | E14: =ROUND('Income Statement'!F11-U14,0) -> 60000 | G14: =ROUND('Income Statement'!H11-V14,0) -> -85033 | H14: =ROUND('Income Statement'!I11-W14,0) -> -86734 | I14: =ROUND('Income Statement'!J11-X14,0) -> -88469 | J14: =ROUND('Income Statement'!K11-Y14,0) -> -90238 | K14: =ROUND('Income Statement'!L11-Z14,0) -> -92043 | L14: =ROUND('Income Statement'!M11-AA14,0) -> -93884 | M14: =ROUND('Income Statement'!N11-AB14,0) -> -95761 | N14: =ROUND('Income Statement'!O11-AC14,0) -> -97676 | O14: =ROUND('Income Statement'!P11-AD14,0) -> -99630 | S14: 4598375 | U14: 4646813 | V14: 4808149.26 | W14: 4904312.24 | X14: 5002398.48 | Y14: 5102446.44 | Z14: 5204495.33 | AA14: 5308585.21 | AB14: 5414756.88 | AC14: 5523052 | AD14: 5633513.05
A15: Grants & Contributions provided for Operating Purposes | C15: =ROUND('Income Statement'!D12-S15,0) -> -219492 | E15: =ROUND('Income Statement'!F12-U15,0) -> 105500 | G15: =ROUND('Income Statement'!H12-V15,0) -> 154965 | H15: =ROUND('Income Statement'!I12-W15,0) -> 159691 | I15: =ROUND('Income Statement'!J12-X15,0) -> 164560 | J15: =ROUND('Income Statement'!K12-Y15,0) -> 169577 | K15: =ROUND('Income Statement'!L12-Z15,0) -> 174746 | L15: =ROUND('Income Statement'!M12-AA15,0) -> 180071 | M15: =ROUND('Income Statement'!N12-AB15,0) -> 185558 | N15: =ROUND('Income Statement'!O12-AC15,0) -> 191212 | O15: =ROUND('Income Statement'!P12-AD15,0) -> 197036 | S15: 3684492 | U15: 3286542 | V15: 3362203.08 | W15: 3447258.28 | X15: 3534695.61 | Y15: 3628835.82 | Z15: 3726854.27 | AA15: 3830613.48 | AB15: 3938104.85 | AC15: 4048672.45 | AD15: 4162405.56
A16: Grants & Contributions provided for Capital Purposes | C16: =ROUND('Income Statement'!D13-S16,0) -> 1680519 | E16: =ROUND('Income Statement'!F13-U16,0) -> 7827088 | G16: =ROUND('Income Statement'!H13-V16,0) -> 785000 | H16: =ROUND('Income Statement'!I13-W16,0) -> 685000 | I16: =ROUND('Income Statement'!J13-X16,0) -> 1484350 | J16: =ROUND('Income Statement'!K13-Y16,0) -> 83694 | K16: =ROUND('Income Statement'!L13-Z16,0) -> 83030 | L16: =ROUND('Income Statement'!M13-AA16,0) -> 132361 | M16: =ROUND('Income Statement'!N13-AB16,0) -> 181684 | N16: =ROUND('Income Statement'!O13-AC16,0) -> -18999 | O16: =ROUND('Income Statement'!P13-AD16,0) -> -219689 | S16: 12483481 | U16: 6930000 | V16: 6745000 | W16: 6855000 | X16: 5591570 | Y16: 5533485.7 | Z16: 5630790.56 | AA16: 5718469.46 | AB16: 5856524.16 | AC16: 5894959.4 | AD16: 6138809
A17: Other Income:
A18: Net gains from the disposal of assets | C18: =ROUND('Income Statement'!D15-S18,0) -> 0 | E18: =ROUND('Income Statement'!F15-U18,0) -> 0 | G18: =ROUND('Income Statement'!H15-V18,0) -> 0 | H18: =ROUND('Income Statement'!I15-W18,0) -> 0 | I18: =ROUND('Income Statement'!J15-X18,0) -> 0 | J18: =ROUND('Income Statement'!K15-Y18,0) -> 0 | K18: =ROUND('Income Statement'!L15-Z18,0) -> 0 | L18: =ROUND('Income Statement'!M15-AA18,0) -> 0 | M18: =ROUND('Income Statement'!N15-AB18,0) -> 0 | N18: =ROUND('Income Statement'!O15-AC18,0) -> 0 | O18: =ROUND('Income Statement'!P15-AD18,0) -> 0 | S18: 0 | U18: 0 | V18: 0 | W18: 0 | X18: 0 | Y18: 0 | Z18: 0 | AA18: 0 | AB18: 0 | AC18: 0 | AD18: 0
A19: Joint Ventures & Associated Entities | C19: =ROUND('Income Statement'!D16-S19,0) -> 104000 | E19: =ROUND('Income Statement'!F16-U19,0) -> 0 | G19: =ROUND('Income Statement'!H16-V19,0) -> 0 | H19: =ROUND('Income Statement'!I16-W19,0) -> 0 | I19: =ROUND('Income Statement'!J16-X19,0) -> 0 | J19: =ROUND('Income Statement'!K16-Y19,0) -> 0 | K19: =ROUND('Income Statement'!L16-Z19,0) -> 0 | L19: =ROUND('Income Statement'!M16-AA19,0) -> 0 | M19: =ROUND('Income Statement'!N16-AB19,0) -> 0 | N19: =ROUND('Income Statement'!O16-AC19,0) -> 0 | O19: =ROUND('Income Statement'!P16-AD19,0) -> 0 | S19: 0 | U19: 0 | V19: 0 | W19: 0 | X19: 0 | Y19: 0 | Z19: 0 | AA19: 0 | AB19: 0 | AC19: 0 | AD19: 0
A20: Total Income from Continuing Operations | C20: =SUM(C10:C19) -> 3998339 | E20: =SUM(E10:E19) -> 8687979 | G20: 1130225 | H20: 1418792 | I20: 2788376 | J20: 1809984 | K20: 1839837 | L20: 1976198 | M20: 2052155 | N20: 1889731 | O20: 1728075 | S20: 59076661 | U20: 54166154 | V20: 55862180.01 | W20: 57912085.64 | X20: 58391672.8 | Y20: 60172070.7 | Z20: 61990549.68 | AA20: 63727571.34 | AB20: 65782499.95 | AC20: 67491915.98 | AD20: 69616490.27
A22: Expenses from Continuing Operations
A23: Employee Benefits & On-Costs | C23: =ROUND('Income Statement'!D20-S23,0) -> -1248551 | E23: =ROUND('Income Statement'!F20-U23,0) -> -674416 | G23: =ROUND('Income Statement'!H20-V23,0) -> 483722 | H23: =ROUND('Income Statement'!I20-W23,0) -> 368851 | I23: =ROUND('Income Statement'!J20-X23,0) -> 227252 | J23: =ROUND('Income Statement'!K20-Y23,0) -> 126916 | K23: =ROUND('Income Statement'!L20-Z23,0) -> 92689 | L23: =ROUND('Income Statement'!M20-AA23,0) -> 52683 | M23: =ROUND('Income Statement'!N20-AB23,0) -> 36767 | N23: =ROUND('Income Statement'!O20-AC23,0) -> 49421 | O23: =ROUND('Income Statement'!P20-AD23,0) -> 62566 | S23: 19133551 | U23: 20651120 | V23: 21206830 | W23: 21812444.15 | X23: 22508574.81 | Y23: 23227307.08 | Z23: 23935660.65 | AA23: 24670766.52 | AB23: 25428386.5 | AC23: 26179687.09 | AD23: 26953415.82
A24: Borrowing Costs | C24: =ROUND('Income Statement'!D21-S24,0) -> 14780 | E24: =ROUND('Income Statement'!F21-U24,0) -> -15726 | G24: =ROUND('Income Statement'!H21-V24,0) -> -9250 | H24: =ROUND('Income Statement'!I21-W24,0) -> -8402 | I24: =ROUND('Income Statement'!J21-X24,0) -> -7487 | J24: =ROUND('Income Statement'!K21-Y24,0) -> -6502 | K24: =ROUND('Income Statement'!L21-Z24,0) -> -5443 | L24: =ROUND('Income Statement'!M21-AA24,0) -> -4307 | M24: =ROUND('Income Statement'!N21-AB24,0) -> -3087 | N24: =ROUND('Income Statement'!O21-AC24,0) -> -3161 | O24: =ROUND('Income Statement'!P21-AD24,0) -> 405 | S24: 310219.78 | U24: 345999.1486 | V24: 341172.1548 | W24: 315467.52 | X24: 288384.0808 | Y24: 265816.6863 | Z24: 244037.1944 | AA24: 227736.5545 | AB24: 221000.5809 | AC24: 211439.5339 | AD24: 206135.8018
A25: Materials & Contracts | C25: =ROUND('Income Statement'!D22-S25,0) -> -679639 | E25: =ROUND('Income Statement'!F22-U25,0) -> 1896285 | G25: =ROUND('Income Statement'!H22-V25,0) -> 197551 | H25: =ROUND('Income Statement'!I22-W25,0) -> 224549 | I25: =ROUND('Income Statement'!J22-X25,0) -> 48490 | J25: =ROUND('Income Statement'!K22-Y25,0) -> 280123 | K25: =ROUND('Income Statement'!L22-Z25,0) -> 388498 | L25: =ROUND('Income Statement'!M22-AA25,0) -> 363479 | M25: =ROUND('Income Statement'!N22-AB25,0) -> 589244 | N25: =ROUND('Income Statement'!O22-AC25,0) -> 483779 | O25: =ROUND('Income Statement'!P22-AD25,0) -> 494438 | S25: 12475639 | U25: 10730579 | V25: 10843365.2 | W25: 11282855.57 | X25: 11506754.85 | Y25: 11714718.96 | Z25: 11968548.03 | AA25: 12713892.59 | AB25: 13242032.53 | AC25: 13571497.43 | AD25: 14013421.84
A26: Depreciation & Amortisation | C26: =ROUND('Income Statement'!D23-S26,0) -> -106000 | E26: =ROUND('Income Statement'!F23-U26,0) -> 0 | G26: =ROUND('Income Statement'!H23-V26,0) -> 88250 | H26: =ROUND('Income Statement'!I23-W26,0) -> 89133 | I26: =ROUND('Income Statement'!J23-X26,0) -> 90024 | J26: =ROUND('Income Statement'!K23-Y26,0) -> 90924 | K26: =ROUND('Income Statement'!L23-Z26,0) -> 91833 | L26: =ROUND('Income Statement'!M23-AA26,0) -> 92752 | M26: =ROUND('Income Statement'!N23-AB26,0) -> 93679 | N26: =ROUND('Income Statement'!O23-AC26,0) -> 94616 | O26: =ROUND('Income Statement'!P23-AD26,0) -> 95562 | S26: 7075000 | U26: 7175000 | V26: 7246750 | W26: 7319217.5 | X26: 7392409.71 | Y26: 7466333.8 | Z26: 7540997.14 | AA26: 7616407.11 | AB26: 7692571.19 | AC26: 7769496.92 | AD26: 7847191.89
A27: Impairment | C27: =ROUND('Income Statement'!D24-S27,0) -> 0 | E27: =ROUND('Income Statement'!F24-U27,0) -> 0 | G27: =ROUND('Income Statement'!H24-V27,0) -> 0 | H27: =ROUND('Income Statement'!I24-W27,0) -> 0 | I27: =ROUND('Income Statement'!J24-X27,0) -> 0 | J27: =ROUND('Income Statement'!K24-Y27,0) -> 0 | K27: =ROUND('Income Statement'!L24-Z27,0) -> 0 | L27: =ROUND('Income Statement'!M24-AA27,0) -> 0 | M27: =ROUND('Income Statement'!N24-AB27,0) -> 0 | N27: =ROUND('Income Statement'!O24-AC27,0) -> 0 | O27: =ROUND('Income Statement'!P24-AD27,0) -> 0 | S27: 0 | U27: 0 | V27: 0 | W27: 0 | X27: 0 | Y27: 0 | Z27: 0 | AA27: 0 | AB27: 0 | AC27: 0 | AD27: 0
A28: Other Expenses | C28: =ROUND('Income Statement'!D25-S28,0) -> -1091993 | E28: =ROUND('Income Statement'!F25-U28,0) -> 24595 | G28: =ROUND('Income Statement'!H25-V28,0) -> -153620 | H28: =ROUND('Income Statement'!I25-W28,0) -> -397894 | I28: =ROUND('Income Statement'!J25-X28,0) -> -429122 | J28: =ROUND('Income Statement'!K25-Y28,0) -> -409247 | K28: =ROUND('Income Statement'!L25-Z28,0) -> -418252 | L28: =ROUND('Income Statement'!M25-AA28,0) -> -452471 | M28: =ROUND('Income Statement'!N25-AB28,0) -> -461753 | N28: =ROUND('Income Statement'!O25-AC28,0) -> -466129 | O28: =ROUND('Income Statement'!P25-AD28,0) -> -475699 | S28: 9323993 | U28: 9670207 | V28: 9893872.14 | W28: 10383718.42 | X28: 10702631.55 | Y28: 11001335.93 | Z28: 11244275.68 | AA28: 11512761.63 | AB28: 11849325.32 | AC28: 12111749.73 | AD28: 12455637.92
A29: Interest & Investment Losses | C29: =ROUND('Income Statement'!D26-S29,0) -> 0 | E29: =ROUND('Income Statement'!F26-U29,0) -> 0 | G29: =ROUND('Income Statement'!H26-V29,0) -> 0 | H29: =ROUND('Income Statement'!I26-W29,0) -> 0 | I29: =ROUND('Income Statement'!J26-X29,0) -> 0 | J29: =ROUND('Income Statement'!K26-Y29,0) -> 0 | K29: =ROUND('Income Statement'!L26-Z29,0) -> 0 | L29: =ROUND('Income Statement'!M26-AA29,0) -> 0 | M29: =ROUND('Income Statement'!N26-AB29,0) -> 0 | N29: =ROUND('Income Statement'!O26-AC29,0) -> 0 | O29: =ROUND('Income Statement'!P26-AD29,0) -> 0 | S29: 0 | U29: 0 | V29: 0 | W29: 0 | X29: 0 | Y29: 0 | Z29: 0 | AA29: 0 | AB29: 0 | AC29: 0 | AD29: 0
A30: Net Losses from the Disposal of Assets | C30: =ROUND('Income Statement'!D27-S30,0) -> 1386000 | E30: =ROUND('Income Statement'!F27-U30,0) -> 0 | G30: =ROUND('Income Statement'!H27-V30,0) -> 0 | H30: =ROUND('Income Statement'!I27-W30,0) -> 0 | I30: =ROUND('Income Statement'!J27-X30,0) -> 0 | J30: =ROUND('Income Statement'!K27-Y30,0) -> 0 | K30: =ROUND('Income Statement'!L27-Z30,0) -> 0 | L30: =ROUND('Income Statement'!M27-AA30,0) -> 0 | M30: =ROUND('Income Statement'!N27-AB30,0) -> 0 | N30: =ROUND('Income Statement'!O27-AC30,0) -> 0 | O30: =ROUND('Income Statement'!P27-AD30,0) -> 0 | S30: 0 | U30: 0 | V30: 0 | W30: 0 | X30: 0 | Y30: 0 | Z30: 0 | AA30: 0 | AB30: 0 | AC30: 0 | AD30: 0
A31: Joint Ventures & Associated Entities | C31: =ROUND('Income Statement'!D28-S31,0) -> 0 | E31: =ROUND('Income Statement'!F28-U31,0) -> 0 | G31: =ROUND('Income Statement'!H28-V31,0) -> 0 | H31: =ROUND('Income Statement'!I28-W31,0) -> 0 | I31: =ROUND('Income Statement'!J28-X31,0) -> 0 | J31: =ROUND('Income Statement'!K28-Y31,0) -> 0 | K31: =ROUND('Income Statement'!L28-Z31,0) -> 0 | L31: =ROUND('Income Statement'!M28-AA31,0) -> 0 | M31: =ROUND('Income Statement'!N28-AB31,0) -> 0 | N31: =ROUND('Income Statement'!O28-AC31,0) -> 0 | O31: =ROUND('Income Statement'!P28-AD31,0) -> 0 | S31: 0 | U31: 0 | V31: 0 | W31: 0 | X31: 0 | Y31: 0 | Z31: 0 | AA31: 0 | AB31: 0 | AC31: 0 | AD31: 0
A32: Total Expenses from Continuing Operations | C32: =SUM(C23:C31) -> -1725403 | E32: =SUM(E23:E31) -> 1230738 | G32: =SUM(G23:G31) -> 606653 | H32: =SUM(H23:H31) -> 276237 | I32: =SUM(I23:I31) -> -70843 | J32: 82214 | K32: 149325 | L32: 52136 | M32: 254850 | N32: 158526 | O32: 177272 | S32: 48318402.78 | U32: 48572905.15 | V32: 49531989.49 | W32: 51113703.16 | X32: 52398755 | Y32: 53675512.46 | Z32: 54933518.69 | AA32: 56741564.4 | AB32: 58433316.12 | AC32: 59843870.7 | AD32: 61475803.27
A34: Operating Result from Continuing Operations | C34: =C20-C32 -> 5723742 | E34: =E20-E32 -> 7457241 | G34: =G20-G32 -> 523572 | H34: 1142555 | I34: 2859219 | J34: 1727770 | K34: 1690512 | L34: 1924062 | M34: 1797305 | N34: 1731205 | O34: 1550803 | S34: 10758258.22 | U34: 5593248.851 | V34: 6330190.515 | W34: 6798382.48 | X34: 5992917.799 | Y34: 6496558.244 | Z34: 7057030.986 | AA34: 6986006.935 | AB34: 7349183.829 | AC34: 7648045.276 | AD34: 8140686.998
A36: Discontinued Operations - Profit/(Loss) | C36: =ROUND('Income Statement'!D33-S36,0) -> 0 | E36: =ROUND('Income Statement'!F33-U36,0) -> 0 | G36: =ROUND('Income Statement'!H33-V36,0) -> 0 | H36: =ROUND('Income Statement'!I33-W36,0) -> 0 | I36: =ROUND('Income Statement'!J33-X36,0) -> 0 | J36: =ROUND('Income Statement'!K33-Y36,0) -> 0 | K36: =ROUND('Income Statement'!L33-Z36,0) -> 0 | L36: =ROUND('Income Statement'!M33-AA36,0) -> 0 | M36: =ROUND('Income Statement'!N33-AB36,0) -> 0 | N36: =ROUND('Income Statement'!O33-AC36,0) -> 0 | O36: =ROUND('Income Statement'!P33-AD36,0) -> 0 | S36: 0 | U36: 0 | V36: 0 | W36: 0 | X36: 0 | Y36: 0 | Z36: 0 | AA36: 0 | AB36: 0 | AC36: 0 | AD36: 0
A37: Net Profit/(Loss) from Discontinued Operations | C37: =C36 -> 0 | E37: =E36 -> 0 | G37: =G36 -> 0 | H37: =H36 -> 0 | I37: 0 | J37: 0 | K37: 0 | L37: 0 | M37: 0 | N37: 0 | O37: 0 | S37: 0 | U37: 0 | V37: 0 | W37: 0 | X37: 0 | Y37: 0 | Z37: 0 | AA37: 0 | AB37: 0 | AC37: 0 | AD37: 0
A39: Net Operating Result for the Year | C39: =C37+C34 -> 5723742 | E39: =E37+E34 -> 7457241 | G39: =G37+G34 -> 523572 | H39: 1142555 | I39: 2859219 | J39: 1727770 | K39: 1690512 | L39: 1924062 | M39: 1797305 | N39: 1731205 | O39: 1550803 | S39: 10758258.22 | U39: 5593248.851 | V39: 6330190.515 | W39: 6798382.48 | X39: 5992917.799 | Y39: 6496558.244 | Z39: 7057030.986 | AA39: 6986006.935 | AB39: 7349183.829 | AC39: 7648045.276 | AD39: 8140686.998
A41: Net Operating Result before Grants and Contributions provided for
A42: Capital Purposes | C42: =C39-C16 -> 4043223 | E42: =E39-E16 -> -369847 | G42: =G39-G16 -> -261428 | H42: 457555 | I42: 1374869 | J42: 1644076 | K42: 1607482 | L42: 1791701 | M42: 1615621 | N42: 1750204 | O42: 1770492 | S42: -1725222.78 | U42: -1336751.149 | V42: -414809.4848 | W42: -56617.52004 | X42: 401347.7992 | Y42: 963072.5437 | Z42: 1426240.426 | AA42: 1267537.475 | AB42: 1492659.669 | AC42: 1753085.876 | AD42: 2001877.998
A46: BALANCE SHEET
A48: ASSETS
A49: Current Assets
A50: Cash & Cash Equivalents | C50: =ROUND('Balance Sheet'!C8-S50,0) -> 2498945 | E50: =ROUND('Balance Sheet'!E8-U50,0) -> 3048007 | G50: =ROUND('Balance Sheet'!G8-V50,0) -> 2396244 | H50: =ROUND('Balance Sheet'!H8-W50,0) -> 796448 | I50: =ROUND('Balance Sheet'!I8-X50,0) -> 1818698 | J50: =ROUND('Balance Sheet'!J8-Y50,0) -> 1647857 | K50: =ROUND('Balance Sheet'!K8-Z50,0) -> 1351466 | L50: =ROUND('Balance Sheet'!L8-AA50,0) -> 1008254 | M50: =ROUND('Balance Sheet'!M8-AB50,0) -> 721369 | N50: =ROUND('Balance Sheet'!N8-AC50,0) -> 327911 | O50: =ROUND('Balance Sheet'!O8-AD50,0) -> -289269 | S50: 4688054.943 | U50: 6696735.74 | V50: 9076004.997 | W50: 12478418.63 | X50: 15543841.77 | Y50: 20124170.41 | Z50: 25030356.01 | AA50: 30046851.36 | AB50: 35048085.64 | AC50: 40141911.59 | AD50: 45497710.82
A51: Investments | C51: =ROUND('Balance Sheet'!C9-S51,0) -> 250000 | E51: =ROUND('Balance Sheet'!E9-U51,0) -> 7750000 | G51: =ROUND('Balance Sheet'!G9-V51,0) -> 7750000 | H51: =ROUND('Balance Sheet'!H9-W51,0) -> 7750000 | I51: =ROUND('Balance Sheet'!I9-X51,0) -> 7750000 | J51: =ROUND('Balance Sheet'!J9-Y51,0) -> 7750000 | K51: =ROUND('Balance Sheet'!K9-Z51,0) -> 7750000 | L51: =ROUND('Balance Sheet'!L9-AA51,0) -> 7750000 | M51: =ROUND('Balance Sheet'!M9-AB51,0) -> 7750000 | N51: =ROUND('Balance Sheet'!N9-AC51,0) -> 7750000 | O51: =ROUND('Balance Sheet'!O9-AD51,0) -> 7750000 | S51: 39750000 | U51: 39750000 | V51: 39750000 | W51: 39750000 | X51: 39750000 | Y51: 39750000 | Z51: 39750000 | AA51: 39750000 | AB51: 39750000 | AC51: 39750000 | AD51: 39750000
A52: Receivables | C52: =ROUND('Balance Sheet'!C10-S52,0) -> 1127370 | E52: =ROUND('Balance Sheet'!E10-U52,0) -> 790522 | G52: =ROUND('Balance Sheet'!G10-V52,0) -> 300712 | H52: =ROUND('Balance Sheet'!H10-W52,0) -> 298754 | I52: =ROUND('Balance Sheet'!I10-X52,0) -> 354478 | J52: =ROUND('Balance Sheet'!J10-Y52,0) -> 280573 | K52: =ROUND('Balance Sheet'!K10-Z52,0) -> 285457 | L52: =ROUND('Balance Sheet'!L10-AA52,0) -> 292341 | M52: =ROUND('Balance Sheet'!M10-AB52,0) -> 300598 | N52: =ROUND('Balance Sheet'!N10-AC52,0) -> 291374 | O52: =ROUND('Balance Sheet'!O10-AD52,0) -> 284431 | S52: 3140629.731 | U52: 2907791.392 | V52: 3001371.312 | W52: 3105556.617 | X52: 3135981.933 | Y52: 3234000.959 | Z52: 3340199.922 | AA52: 3447827.317 | AB52: 3563339.519 | AC52: 3669356.546 | AD52: 3792732.729
A53: Inventories | C53: =ROUND('Balance Sheet'!C11-S53,0) -> 0 | E53: =ROUND('Balance Sheet'!E11-U53,0) -> 0 | G53: =ROUND('Balance Sheet'!G11-V53,0) -> 0 | H53: =ROUND('Balance Sheet'!H11-W53,0) -> 0 | I53: =ROUND('Balance Sheet'!I11-X53,0) -> 0 | J53: =ROUND('Balance Sheet'!J11-Y53,0) -> 0 | K53: =ROUND('Balance Sheet'!K11-Z53,0) -> 0 | L53: =ROUND('Balance Sheet'!L11-AA53,0) -> 0 | M53: =ROUND('Balance Sheet'!M11-AB53,0) -> 0 | N53: =ROUND('Balance Sheet'!N11-AC53,0) -> 0 | O53: =ROUND('Balance Sheet'!O11-AD53,0) -> 0 | S53: 0 | U53: 0 | V53: 0 | W53: 0 | X53: 0 | Y53: 0 | Z53: 0 | AA53: 0 | AB53: 0 | AC53: 0 | AD53: 0
A54: Other | C54: =ROUND('Balance Sheet'!C12-S54,0) -> 73790 | E54: =ROUND('Balance Sheet'!E12-U54,0) -> 97189 | G54: =ROUND('Balance Sheet'!G12-V54,0) -> 59898 | H54: =ROUND('Balance Sheet'!H12-W54,0) -> 58115 | I54: =ROUND('Balance Sheet'!I12-X54,0) -> 55435 | J54: =ROUND('Balance Sheet'!J12-Y54,0) -> 62002 | K54: =ROUND('Balance Sheet'!K12-Z54,0) -> 65440 | L54: =ROUND('Balance Sheet'!L12-AA54,0) -> 67118 | M54: =ROUND('Balance Sheet'!M12-AB54,0) -> 73989 | N54: =ROUND('Balance Sheet'!N12-AC54,0) -> 73435 | O54: =ROUND('Balance Sheet'!O12-AD54,0) -> 75693 | S54: 382209.5585 | U54: 357683.809 | V54: 363582.7581 | W54: 379876.6731 | X54: 389393.7186 | Y54: 398277.0585 | Z54: 406986.829 | AA54: 424762.1617 | AB54: 439922.876 | AC54: 450300.3792 | AD54: 464077.9094
A55: Non-current assets classified as "held for sale" | C55: =ROUND('Balance Sheet'!C13-S55,0) -> 0 | E55: =ROUND('Balance Sheet'!E13-U55,0) -> 0 | G55: =ROUND('Balance Sheet'!G13-V55,0) -> 0 | H55: =ROUND('Balance Sheet'!H13-W55,0) -> 0 | I55: =ROUND('Balance Sheet'!I13-X55,0) -> 0 | J55: =ROUND('Balance Sheet'!J13-Y55,0) -> 0 | K55: =ROUND('Balance Sheet'!K13-Z55,0) -> 0 | L55: =ROUND('Balance Sheet'!L13-AA55,0) -> 0 | M55: =ROUND('Balance Sheet'!M13-AB55,0) -> 0 | N55: =ROUND('Balance Sheet'!N13-AC55,0) -> 0 | O55: =ROUND('Balance Sheet'!O13-AD55,0) -> 0 | S55: 0 | U55: 0 | V55: 0 | W55: 0 | X55: 0 | Y55: 0 | Z55: 0 | AA55: 0 | AB55: 0 | AC55: 0 | AD55: 0
A56: Rounding adjustment (keep line always hidden!!!!!) | C56: =ROUND('Balance Sheet'!C14-S56,0) -> 0 | E56: =ROUND('Balance Sheet'!E14-U56,0) -> 0 | G56: =ROUND('Balance Sheet'!G14-V56,0) -> 0 | H56: =ROUND('Balance Sheet'!H14-W56,0) -> 0 | I56: =ROUND('Balance Sheet'!I14-X56,0) -> 0 | J56: =ROUND('Balance Sheet'!J14-Y56,0) -> 0 | K56: =ROUND('Balance Sheet'!K14-Z56,0) -> 0 | L56: =ROUND('Balance Sheet'!L14-AA56,0) -> 0 | M56: =ROUND('Balance Sheet'!M14-AB56,0) -> 0 | N56: =ROUND('Balance Sheet'!N14-AC56,0) -> 0 | O56: =ROUND('Balance Sheet'!O14-AD56,0) -> 0 | S56: 0 | U56: 0 | V56: 0 | W56: 0 | X56: 0 | Y56: 0 | Z56: 0 | AA56: 0 | AB56: 0 | AC56: 0 | AD56: 0
A57: Total Current Assets | C57: =SUM(C48:C56) -> 3950105 | E57: =SUM(E48:E56) -> 11685718 | G57: 10506854 | H57: 8903317 | I57: 9978611 | J57: 9740432 | K57: 9452363 | L57: 9117713 | M57: 8845956 | N57: 8442720 | O57: 7820855 | S57: 47960894.23 | U57: 49712210.94 | V57: 52190959.07 | W57: 55713851.92 | X57: 58819217.42 | Y57: 63506448.42 | Z57: 68527542.76 | AA57: 73669440.84 | AB57: 78801348.03 | AC57: 84011568.52 | AD57: 89504521.46
A59: Non-Current Assets
A60: Investments | C60: =ROUND('Balance Sheet'!C18-S60,0) -> 10000000 | E60: =ROUND('Balance Sheet'!E18-U60,0) -> 2500000 | G60: =ROUND('Balance Sheet'!G18-V60,0) -> 2500000 | H60: =ROUND('Balance Sheet'!H18-W60,0) -> 2500000 | I60: =ROUND('Balance Sheet'!I18-X60,0) -> 2500000 | J60: =ROUND('Balance Sheet'!J18-Y60,0) -> 2500000 | K60: =ROUND('Balance Sheet'!K18-Z60,0) -> 2500000 | L60: =ROUND('Balance Sheet'!L18-AA60,0) -> 2500000 | M60: =ROUND('Balance Sheet'!M18-AB60,0) -> 2500000 | N60: =ROUND('Balance Sheet'!N18-AC60,0) -> 2500000 | O60: =ROUND('Balance Sheet'!O18-AD60,0) -> 2500000 | S60: 0 | U60: 0 | V60: 0 | W60: 0 | X60: 0 | Y60: 0 | Z60: 0 | AA60: 0 | AB60: 0 | AC60: 0 | AD60: 0
A61: Receivables | C61: =ROUND('Balance Sheet'!C19-S61,0) -> 0 | E61: =ROUND('Balance Sheet'!E19-U61,0) -> 0 | G61: =ROUND('Balance Sheet'!G19-V61,0) -> 0 | H61: =ROUND('Balance Sheet'!H19-W61,0) -> 0 | I61: =ROUND('Balance Sheet'!I19-X61,0) -> 0 | J61: =ROUND('Balance Sheet'!J19-Y61,0) -> 0 | K61: =ROUND('Balance Sheet'!K19-Z61,0) -> 0 | L61: =ROUND('Balance Sheet'!L19-AA61,0) -> 0 | M61: =ROUND('Balance Sheet'!M19-AB61,0) -> 0 | N61: =ROUND('Balance Sheet'!N19-AC61,0) -> 0 | O61: =ROUND('Balance Sheet'!O19-AD61,0) -> 0 | S61: 0 | U61: 0 | V61: 0 | W61: 0 | X61: 0 | Y61: 0 | Z61: 0 | AA61: 0 | AB61: 0 | AC61: 0 | AD61: 0
A62: Inventories | C62: =ROUND('Balance Sheet'!C20-S62,0) -> 0 | E62: =ROUND('Balance Sheet'!E20-U62,0) -> 0 | G62: =ROUND('Balance Sheet'!G20-V62,0) -> 0 | H62: =ROUND('Balance Sheet'!H20-W62,0) -> 0 | I62: =ROUND('Balance Sheet'!I20-X62,0) -> 0 | J62: =ROUND('Balance Sheet'!J20-Y62,0) -> 0 | K62: =ROUND('Balance Sheet'!K20-Z62,0) -> 0 | L62: =ROUND('Balance Sheet'!L20-AA62,0) -> 0 | M62: =ROUND('Balance Sheet'!M20-AB62,0) -> 0 | N62: =ROUND('Balance Sheet'!N20-AC62,0) -> 0 | O62: =ROUND('Balance Sheet'!O20-AD62,0) -> 0 | S62: 0 | U62: 0 | V62: 0 | W62: 0 | X62: 0 | Y62: 0 | Z62: 0 | AA62: 0 | AB62: 0 | AC62: 0 | AD62: 0
... 58 more rows

Sheet Interest Calculation
A1: ='Cover Page'!$A$3 -> Burwood Council
A2: ='Cover Page'!$A$5 -> 10 Year Financial Plan for the Years ending 30 June 2029
A3: Cash & Investment Balance prediction
A4: and Calculation of Investment Revenue | D4: =Starting_year_general-1&"/"&RIGHT(Starting_year_general,2) -> 2018/19 | S4: =Starting_year_general&"/"&RIGHT(Starting_year_general+1,2) -> 2019/20 | AH4: =Starting_year_general+1&"/"&RIGHT(Starting_year_general+2,2) -> 2020/21 | AW4: =Starting_year_general+2&"/"&RIGHT(Starting_year_general+3,2) -> 2021/22 | BL4: =Starting_year_general+3&"/"&RIGHT(Starting_year_general+4,2) -> 2022/23 | CA4: =Starting_year_general+4&"/"&RIGHT(Starting_year_general+5,2) -> 2023/24 | CP4: =Starting_year_general+5&"/"&RIGHT(Starting_year_general+6,2) -> 2024/25 | DE4: =Starting_year_general+6&"/"&RIGHT(Starting_year_general+7,2) -> 2025/26 | DT4: =Starting_year_general+7&"/"&RIGHT(Starting_year_general+8,2) -> 2026/27 | EI4: =Starting_year_general+8&"/"&RIGHT(Starting_year_general+9,2) -> 2027/28 | EX4: =Starting_year_general+9&"/"&RIGHT(Starting_year_general+10,2) -> 2028/29
A5: ="Scenario: "&general_scenario_name -> Scenario: Burwood Council - SRV Scenario - 2% above Rate Peg for 4years | B5: Time | C5: CF | D5: July | E5: August | F5: September | G5: October | H5: November | I5: December | J5: January | K5: February | L5: March | M5: April | N5: May | O5: June | P5: Total | S5: July | T5: August | U5: September | V5: October | W5: November | X5: December | Y5: January | Z5: February | AA5: March | AB5: April | AC5: May | AD5: June | AE5: Total | AH5: July | AI5: August | AJ5: September | AK5: October | AL5: November | AM5: December | AN5: January | AO5: February | AP5: March | AQ5: April | AR5: May | AS5: June | AT5: Total | AW5: July | AX5: August | AY5: September | AZ5: October | BA5: November | BB5: December | BC5: January | BD5: February | BE5: March | BF5: April | BG5: May | BH5: June | BI5: Total | BL5: July | BM5: August | BN5: September | BO5: October | BP5: November | BQ5: December | BR5: January | BS5: February | BT5: March | BU5: April | BV5: May | BW5: June | BX5: Total | CA5: July | CB5: August | CC5: September | CD5: October | CE5: November | CF5: December | CG5: January | CH5: February | CI5: March | CJ5: April | CK5: May | CL5: June | CM5: Total | CP5: July | CQ5: August | CR5: September | CS5: October | CT5: November | CU5: December | CV5: January | CW5: February | CX5: March | CY5: April | CZ5: May | DA5: June | DB5: Total | DE5: July | DF5: August | DG5: September | DH5: October | DI5: November | DJ5: December | DK5: January | DL5: February | DM5: March | DN5: April | DO5: May | DP5: June | DQ5: Total | DT5: July | DU5: August | DV5: September | DW5: October | DX5: November | DY5: December | DZ5: January | EA5: February | EB5: March | EC5: April | ED5: May | EE5: June | EF5: Total | EI5: July | EJ5: August | EK5: September | EL5: October | EM5: November | EN5: December | EO5: January | EP5: February | EQ5: March | ER5: April | ES5: May | ET5: June | EU5: Total | EX5: July | EY5: August | EZ5: September | FA5: October | FB5: November | FC5: December | FD5: January | FE5: February | FF5: March | FG5: April | FH5: May | FI5: June | FJ5: Total | GI5: ='Income Statement'!F4 -> 2018/19 | GJ5: ='Income Statement'!H4 -> 2019/20 | GK5: ='Income Statement'!I4 -> 2020/21 | GL5: ='Income Statement'!J4 -> 2021/22 | GM5: ='Income Statement'!K4 -> 2022/23 | GN5: ='Income Statement'!L4 -> 2023/24 | GO5: ='Income Statement'!M4 -> 2024/25 | GP5: ='Income Statement'!N4 -> 2025/26 | GQ5: ='Income Statement'!O4 -> 2026/27 | GR5: ='Income Statement'!P4 -> 2027/28 | GS5: ='Income Statement'!Q4 -> 2028/29 | GT5: ='Income Statement'!AG4 -> 2029/30 | GU5: ='Income Statement'!AH4 -> 2030/31 | GV5: ='Income Statement'!AI4 -> 2031/32 | GW5: ='Income Statement'!AJ4 -> 2032/33 | GX5: ='Income Statement'!AK4 -> 2033/34 | GY5: ='Income Statement'!AL4 -> 2034/35 | GZ5: ='Income Statement'!AM4 -> 2035/36 | HA5: ='Income Statement'!AN4 -> 2036/37 | HB5: ='Income Statement'!AO4 -> 2037/38 | HC5: ='Income Statement'!AP4 -> 2038/39
A6: Opening Balance Cash & Investments | B6: a) | C6: b) | D6: =('BS workings'!E9+'BS workings'!E56) -> 57187000 | E6: =D64 -> 55074964.43 | F6: 64102313.94 | G6: 61517131.69 | H6: 59405096.12 | I6: 65647599.36 | J6: 63535563.79 | K6: 61423528.22 | L6: 63488762.06 | M6: 60903579.81 | N6: 58791544.24 | O6: 60856778.08 | S6: =('BS workings'!$E48-'BS workings'!$E49+'Balance Sheet'!$E9+'Balance Sheet'!$E18) -> 59744742.51 | T6: =S64 -> 57548589.26 | U6: =T64 -> 67001789.26 | V6: 64284617.21 | W6: 62088463.96 | X6: 68629325.65 | Y6: 66433172.4 | Z6: 64237019.15 | AA6: 66409373.37 | AB6: 63692201.32 | AC6: 61496048.07 | AD6: 63668402.29 | AH6: =('BS workings'!$G48-'BS workings'!$G49+'Balance Sheet'!$G9+'Balance Sheet'!$G18) -> 61472249.04 | AI6: =AH64 -> 59157548.62 | AJ6: 69094097.84 | AK6: 66254846.5 | AL6: 63940146.08 | AM6: 70813882.89 | AN6: 68499182.46 | AO6: 66184482.03 | AP6: 68464000.22 | AQ6: 65624748.89 | AR6: 63310048.46 | AS6: 65589566.66 | AW6: =('BS workings'!$H48-'BS workings'!$H49+'Balance Sheet'!$H9+'Balance Sheet'!$H18) -> 63274866.23 | AX6: =AW64 -> 61017232.4 | AY6: 71625658.67 | AZ6: 68875089.22 | BA6: 66617455.39 | BB6: 74009366.64 | BC6: 71751732.81 | BD6: 69494098.98 | BE6: 72061237.69 | BF6: 69310668.24 | BG6: 67053034.41 | BH6: 69620173.12 | BL6: =('BS workings'!$I48-'BS workings'!$I49+'Balance Sheet'!$I9+'Balance Sheet'!$I18) -> 67362539.29 | BM6: =BL64 -> 64993671.13 | BN6: 76128287.58 | BO6: 73298016.77 | BP6: 70929148.62 | BQ6: 78687893.91 | BR6: 76319025.76 | BS6: 73950157.6 | BT6: 76645096.17 | BU6: 73814825.37 | BV6: 71445957.21 | BW6: 74140895.78 | CA6: =('BS workings'!$J48-'BS workings'!$J49+'Balance Sheet'!$J9+'Balance Sheet'!$J18) -> 71772027.63 | CB6: =CA64 -> 69316016.27 | CC6: 80838114.34 | CD6: 77950431.45 | CE6: 75494420.09 | CF6: 83521990.8 | CG6: 81065979.44 | CH6: 78609968.07 | CI6: 81395747.75 | CJ6: 78508064.87 | CK6: 76052053.5 | CL6: 78837833.18 | CP6: =('BS workings'!$K48-'BS workings'!$K49+'Balance Sheet'!$K9+'Balance Sheet'!$K18) -> 76381821.81 | CQ6: =CP64 -> 73829613.01 | CR6: 85668710.16 | CS6: 82777263.47 | CT6: 80225054.67 | CU6: 88466325.33 | CV6: 85914116.53 | CW6: 83361907.73 | CX6: 86206438.66 | CY6: 83314991.97 | CZ6: 80762783.17 | DA6: 83607314.11 | DE6: =('BS workings'!$L48-'BS workings'!$L49+'Balance Sheet'!$L9+'Balance Sheet'!$L18) -> 81055105.3 | DF6: =DE64 -> 78382935.32 | DG6: 90647252.76 | DH6: 87694668.07 | DI6: 85022498.09 | DJ6: 93552693.68 | DK6: 90880523.7 | DL6: 88208353.71 | DM6: 91137366.52 | DN6: 88184781.83 | DO6: 85512611.85 | DP6: 88441624.65 | DT6: =('BS workings'!$M48-'BS workings'!$M49+'Balance Sheet'!$M9+'Balance Sheet'!$M18) -> 85769454.67 | DU6: =DT64 -> 83004023.29 | DV6: 95617973.11 | DW6: 92571087.66 | DX6: 89805656.28 | DY6: 98574760.8 | DZ6: 95809329.43 | EA6: 93043898.05 | EB6: 96045734.62 | EC6: 92998849.17 | ED6: 90233417.8 | EE6: 93235254.37 | EI6: =('BS workings'!$N48-'BS workings'!$N49+'Balance Sheet'!$N9+'Balance Sheet'!$N18) -> 90469823 | EJ6: =EI64 -> 87600003 | EK6: 100630080.3 | EL6: 97473618.26 | EM6: 94603798.26 | EN6: 103658901.2 | EO6: 100789081.2 | EP6: 97919261.22 | EQ6: 101011902.7 | ER6: 97855440.69 | ES6: 94985620.69 | ET6: 98078262.17 | EX6: =('BS workings'!$O48-'BS workings'!$O49+'Balance Sheet'!$O9+'Balance Sheet'!$O18) -> 95208442.17 | EY6: =EX64 -> 92239052.45 | EZ6: 105639802.6 | FA6: 102455620.1 | FB6: 99486230.42 | FC6: 108794445.6 | FD6: 105825055.9 | FE6: 102855666.1 | FF6: 106025078.9 | FG6: 102840896.4 | FH6: 99871506.7 | FI6: 103040919.4
A8: Operating Inflow
A9: Rates & Annual Charges | B9: 1 | D9: ='Cash Flow'!$E8*SUMIF($B$80:$B$92,$B9,D$80:D$92) -> 0 | E9: ='Cash Flow'!$E8*SUMIF($B$80:$B$92,$B9,E$80:E$92) -> 11139385.07 | F9: ='Cash Flow'!$E8*SUMIF($B$80:$B$92,$B9,F$80:F$92) -> 0 | G9: ='Cash Flow'!$E8*SUMIF($B$80:$B$92,$B9,G$80:G$92) -> 0 | H9: ='Cash Flow'!$E8*SUMIF($B$80:$B$92,$B9,H$80:H$92) -> 8354538.803 | I9: ='Cash Flow'!$E8*SUMIF($B$80:$B$92,$B9,I$80:I$92) -> 0 | J9: ='Cash Flow'!$E8*SUMIF($B$80:$B$92,$B9,J$80:J$92) -> 0 | K9: ='Cash Flow'!$E8*SUMIF($B$80:$B$92,$B9,K$80:K$92) -> 4177269.402 | L9: ='Cash Flow'!$E8*SUMIF($B$80:$B$92,$B9,L$80:L$92) -> 0 | M9: ='Cash Flow'!$E8*SUMIF($B$80:$B$92,$B9,M$80:M$92) -> 0 | N9: ='Cash Flow'!$E8*SUMIF($B$80:$B$92,$B9,N$80:N$92) -> 4177269.402 | O9: ='Cash Flow'!$E8*SUMIF($B$80:$B$92,$B9,O$80:O$92) -> 0 | P9: =SUM(D9:O9) -> 27848462.68 | S9: ='Cash Flow'!$G8*SUMIF($B$80:$B$92,$B9,S$80:S$92) -> 0 | T9: ='Cash Flow'!$G8*SUMIF($B$80:$B$92,$B9,T$80:T$92) -> 11649353.24 | U9: ='Cash Flow'!$G8*SUMIF($B$80:$B$92,$B9,U$80:U$92) -> 0 | V9: ='Cash Flow'!$G8*SUMIF($B$80:$B$92,$B9,V$80:V$92) -> 0 | W9: ='Cash Flow'!$G8*SUMIF($B$80:$B$92,$B9,W$80:W$92) -> 8737014.934 | X9: ='Cash Flow'!$G8*SUMIF($B$80:$B$92,$B9,X$80:X$92) -> 0 | Y9: ='Cash Flow'!$G8*SUMIF($B$80:$B$92,$B9,Y$80:Y$92) -> 0 | Z9: ='Cash Flow'!$G8*SUMIF($B$80:$B$92,$B9,Z$80:Z$92) -> 4368507.467 | AA9: ='Cash Flow'!$G8*SUMIF($B$80:$B$92,$B9,AA$80:AA$92) -> 0 | AB9: ='Cash Flow'!$G8*SUMIF($B$80:$B$92,$B9,AB$80:AB$92) -> 0 | AC9: ='Cash Flow'!$G8*SUMIF($B$80:$B$92,$B9,AC$80:AC$92) -> 4368507.467 | AD9: ='Cash Flow'!$G8*SUMIF($B$80:$B$92,$B9,AD$80:AD$92) -> 0 | AE9: =SUM(S9:AD9) -> 29123383.11 | AH9: ='Cash Flow'!$H8*SUMIF($B$80:$B$92,$B9,AH$80:AH$92) -> 0 | AI9: ='Cash Flow'!$H8*SUMIF($B$80:$B$92,$B9,AI$80:AI$92) -> 12251249.65 | AJ9: ='Cash Flow'!$H8*SUMIF($B$80:$B$92,$B9,AJ$80:AJ$92) -> 0 | AK9: ='Cash Flow'!$H8*SUMIF($B$80:$B$92,$B9,AK$80:AK$92) -> 0 | AL9: ='Cash Flow'!$H8*SUMIF($B$80:$B$92,$B9,AL$80:AL$92) -> 9188437.236 | AM9: ='Cash Flow'!$H8*SUMIF($B$80:$B$92,$B9,AM$80:AM$92) -> 0 | AN9: ='Cash Flow'!$H8*SUMIF($B$80:$B$92,$B9,AN$80:AN$92) -> 0 | AO9: ='Cash Flow'!$H8*SUMIF($B$80:$B$92,$B9,AO$80:AO$92) -> 4594218.618 | AP9: ='Cash Flow'!$H8*SUMIF($B$80:$B$92,$B9,AP$80:AP$92) -> 0 | AQ9: ='Cash Flow'!$H8*SUMIF($B$80:$B$92,$B9,AQ$80:AQ$92) -> 0 | AR9: ='Cash Flow'!$H8*SUMIF($B$80:$B$92,$B9,AR$80:AR$92) -> 4594218.618 | AS9: ='Cash Flow'!$H8*SUMIF($B$80:$B$92,$B9,AS$80:AS$92) -> 0 | AT9: =SUM(AH9:AS9) -> 30628124.12 | AW9: ='Cash Flow'!$I8*SUMIF($B$80:$B$92,$B9,AW$80:AW$92) -> 0 | AX9: ='Cash Flow'!$I8*SUMIF($B$80:$B$92,$B9,AX$80:AX$92) -> 12866060.1 | AY9: ='Cash Flow'!$I8*SUMIF($B$80:$B$92,$B9,AY$80:AY$92) -> 0 | AZ9: ='Cash Flow'!$I8*SUMIF($B$80:$B$92,$B9,AZ$80:AZ$92) -> 0 | BA9: ='Cash Flow'!$I8*SUMIF($B$80:$B$92,$B9,BA$80:BA$92) -> 9649545.075 | BB9: ='Cash Flow'!$I8*SUMIF($B$80:$B$92,$B9,BB$80:BB$92) -> 0 | BC9: ='Cash Flow'!$I8*SUMIF($B$80:$B$92,$B9,BC$80:BC$92) -> 0 | BD9: ='Cash Flow'!$I8*SUMIF($B$80:$B$92,$B9,BD$80:BD$92) -> 4824772.537 | BE9: ='Cash Flow'!$I8*SUMIF($B$80:$B$92,$B9,BE$80:BE$92) -> 0 | BF9: ='Cash Flow'!$I8*SUMIF($B$80:$B$92,$B9,BF$80:BF$92) -> 0 | BG9: ='Cash Flow'!$I8*SUMIF($B$80:$B$92,$B9,BG$80:BG$92) -> 4824772.537 | BH9: ='Cash Flow'!$I8*SUMIF($B$80:$B$92,$B9,BH$80:BH$92) -> 0 | BI9: =SUM(AW9:BH9) -> 32165150.25 | BL9: ='Cash Flow'!$J8*SUMIF($B$80:$B$92,$B9,BL$80:BL$92) -> 0 | BM9: ='Cash Flow'!$J8*SUMIF($B$80:$B$92,$B9,BM$80:BM$92) -> 13503484.59 | BN9: ='Cash Flow'!$J8*SUMIF($B$80:$B$92,$B9,BN$80:BN$92) -> 0 | BO9: ='Cash Flow'!$J8*SUMIF($B$80:$B$92,$B9,BO$80:BO$92) -> 0 | BP9: ='Cash Flow'!$J8*SUMIF($B$80:$B$92,$B9,BP$80:BP$92) -> 10127613.45 | BQ9: ='Cash Flow'!$J8*SUMIF($B$80:$B$92,$B9,BQ$80:BQ$92) -> 0 | BR9: ='Cash Flow'!$J8*SUMIF($B$80:$B$92,$B9,BR$80:BR$92) -> 0 | BS9: ='Cash Flow'!$J8*SUMIF($B$80:$B$92,$B9,BS$80:BS$92) -> 5063806.723 | BT9: ='Cash Flow'!$J8*SUMIF($B$80:$B$92,$B9,BT$80:BT$92) -> 0 | BU9: ='Cash Flow'!$J8*SUMIF($B$80:$B$92,$B9,BU$80:BU$92) -> 0 | BV9: ='Cash Flow'!$J8*SUMIF($B$80:$B$92,$B9,BV$80:BV$92) -> 5063806.723 | BW9: ='Cash Flow'!$J8*SUMIF($B$80:$B$92,$B9,BW$80:BW$92) -> 0 | BX9: =SUM(BL9:BW9) -> 33758711.49 | CA9: ='Cash Flow'!$K8*SUMIF($B$80:$B$92,$B9,CA$80:CA$92) -> 0 | CB9: ='Cash Flow'!$K8*SUMIF($B$80:$B$92,$B9,CB$80:CB$92) -> 13978109.43 | CC9: ='Cash Flow'!$K8*SUMIF($B$80:$B$92,$B9,CC$80:CC$92) -> 0 | CD9: ='Cash Flow'!$K8*SUMIF($B$80:$B$92,$B9,CD$80:CD$92) -> 0 | CE9: ='Cash Flow'!$K8*SUMIF($B$80:$B$92,$B9,CE$80:CE$92) -> 10483582.08 | CF9: ='Cash Flow'!$K8*SUMIF($B$80:$B$92,$B9,CF$80:CF$92) -> 0 | CG9: ='Cash Flow'!$K8*SUMIF($B$80:$B$92,$B9,CG$80:CG$92) -> 0 | CH9: ='Cash Flow'!$K8*SUMIF($B$80:$B$92,$B9,CH$80:CH$92) -> 5241791.038 | CI9: ='Cash Flow'!$K8*SUMIF($B$80:$B$92,$B9,CI$80:CI$92) -> 0 | CJ9: ='Cash Flow'!$K8*SUMIF($B$80:$B$92,$B9,CJ$80:CJ$92) -> 0 | CK9: ='Cash Flow'!$K8*SUMIF($B$80:$B$92,$B9,CK$80:CK$92) -> 5241791.038 | CL9: ='Cash Flow'!$K8*SUMIF($B$80:$B$92,$B9,CL$80:CL$92) -> 0 | CM9: =SUM(CA9:CL9) -> 34945273.58 | CP9: ='Cash Flow'!$L8*SUMIF($B$80:$B$92,$B9,CP$80:CP$92) -> 0 | CQ9: ='Cash Flow'!$L8*SUMIF($B$80:$B$92,$B9,CQ$80:CQ$92) -> 14391305.95 | CR9: ='Cash Flow'!$L8*SUMIF($B$80:$B$92,$B9,CR$80:CR$92) -> 0 | CS9: ='Cash Flow'!$L8*SUMIF($B$80:$B$92,$B9,CS$80:CS$92) -> 0 | CT9: ='Cash Flow'!$L8*SUMIF($B$80:$B$92,$B9,CT$80:CT$92) -> 10793479.46 | CU9: ='Cash Flow'!$L8*SUMIF($B$80:$B$92,$B9,CU$80:CU$92) -> 0 | CV9: ='Cash Flow'!$L8*SUMIF($B$80:$B$92,$B9,CV$80:CV$92) -> 0 | CW9: ='Cash Flow'!$L8*SUMIF($B$80:$B$92,$B9,CW$80:CW$92) -> 5396739.732 | CX9: ='Cash Flow'!$L8*SUMIF($B$80:$B$92,$B9,CX$80:CX$92) -> 0 | CY9: ='Cash Flow'!$L8*SUMIF($B$80:$B$92,$B9,CY$80:CY$92) -> 0 | CZ9: ='Cash Flow'!$L8*SUMIF($B$80:$B$92,$B9,CZ$80:CZ$92) -> 5396739.732 | DA9: ='Cash Flow'!$L8*SUMIF($B$80:$B$92,$B9,DA$80:DA$92) -> 0 | DB9: =SUM(CP9:DA9) -> 35978264.88 | DE9: ='Cash Flow'!$M8*SUMIF($B$80:$B$92,$B9,DE$80:DE$92) -> 0 | DF9: ='Cash Flow'!$M8*SUMIF($B$80:$B$92,$B9,DF$80:DF$92) -> 14936487.42 | DG9: ='Cash Flow'!$M8*SUMIF($B$80:$B$92,$B9,DG$80:DG$92) -> 0 | DH9: ='Cash Flow'!$M8*SUMIF($B$80:$B$92,$B9,DH$80:DH$92) -> 0 | DI9: ='Cash Flow'!$M8*SUMIF($B$80:$B$92,$B9,DI$80:DI$92) -> 11202365.56 | DJ9: ='Cash Flow'!$M8*SUMIF($B$80:$B$92,$B9,DJ$80:DJ$92) -> 0 | DK9: ='Cash Flow'!$M8*SUMIF($B$80:$B$92,$B9,DK$80:DK$92) -> 0 | DL9: ='Cash Flow'!$M8*SUMIF($B$80:$B$92,$B9,DL$80:DL$92) -> 5601182.782 | DM9: ='Cash Flow'!$M8*SUMIF($B$80:$B$92,$B9,DM$80:DM$92) -> 0 | DN9: ='Cash Flow'!$M8*SUMIF($B$80:$B$92,$B9,DN$80:DN$92) -> 0 | DO9: ='Cash Flow'!$M8*SUMIF($B$80:$B$92,$B9,DO$80:DO$92) -> 5601182.782 | DP9: ='Cash Flow'!$M8*SUMIF($B$80:$B$92,$B9,DP$80:DP$92) -> 0 | DQ9: =SUM(DE9:DP9) -> 37341218.55 | DT9: ='Cash Flow'!$N8*SUMIF($B$80:$B$92,$B9,DT$80:DT$92) -> 0 | DU9: ='Cash Flow'!$N8*SUMIF($B$80:$B$92,$B9,DU$80:DU$92) -> 15379381.19 | DV9: ='Cash Flow'!$N8*SUMIF($B$80:$B$92,$B9,DV$80:DV$92) -> 0 | DW9: ='Cash Flow'!$N8*SUMIF($B$80:$B$92,$B9,DW$80:DW$92) -> 0 | DX9: ='Cash Flow'!$N8*SUMIF($B$80:$B$92,$B9,DX$80:DX$92) -> 11534535.89 | DY9: ='Cash Flow'!$N8*SUMIF($B$80:$B$92,$B9,DY$80:DY$92) -> 0 | DZ9: ='Cash Flow'!$N8*SUMIF($B$80:$B$92,$B9,DZ$80:DZ$92) -> 0 | EA9: ='Cash Flow'!$N8*SUMIF($B$80:$B$92,$B9,EA$80:EA$92) -> 5767267.947 | EB9: ='Cash Flow'!$N8*SUMIF($B$80:$B$92,$B9,EB$80:EB$92) -> 0 | EC9: ='Cash Flow'!$N8*SUMIF($B$80:$B$92,$B9,EC$80:EC$92) -> 0 | ED9: ='Cash Flow'!$N8*SUMIF($B$80:$B$92,$B9,ED$80:ED$92) -> 5767267.947 | EE9: ='Cash Flow'!$N8*SUMIF($B$80:$B$92,$B9,EE$80:EE$92) -> 0 | EF9: =SUM(DT9:EE9) -> 38448452.98 | EI9: ='Cash Flow'!$O8*SUMIF($B$80:$B$92,$B9,EI$80:EI$92) -> 0 | EJ9: ='Cash Flow'!$O8*SUMIF($B$80:$B$92,$B9,EJ$80:EJ$92) -> 15899897.26 | EK9: ='Cash Flow'!$O8*SUMIF($B$80:$B$92,$B9,EK$80:EK$92) -> 0 | EL9: ='Cash Flow'!$O8*SUMIF($B$80:$B$92,$B9,EL$80:EL$92) -> 0 | EM9: ='Cash Flow'!$O8*SUMIF($B$80:$B$92,$B9,EM$80:EM$92) -> 11924922.94 | EN9: ='Cash Flow'!$O8*SUMIF($B$80:$B$92,$B9,EN$80:EN$92) -> 0 | EO9: ='Cash Flow'!$O8*SUMIF($B$80:$B$92,$B9,EO$80:EO$92) -> 0 | EP9: ='Cash Flow'!$O8*SUMIF($B$80:$B$92,$B9,EP$80:EP$92) -> 5962461.472 | EQ9: ='Cash Flow'!$O8*SUMIF($B$80:$B$92,$B9,EQ$80:EQ$92) -> 0 | ER9: ='Cash Flow'!$O8*SUMIF($B$80:$B$92,$B9,ER$80:ER$92) -> 0 | ES9: ='Cash Flow'!$O8*SUMIF($B$80:$B$92,$B9,ES$80:ES$92) -> 5962461.472 | ET9: ='Cash Flow'!$O8*SUMIF($B$80:$B$92,$B9,ET$80:ET$92) -> 0 | EU9: =SUM(EI9:ET9) -> 39749743.14 | EX9: ='Cash Flow'!$P8*SUMIF($B$80:$B$92,$B9,EX$80:EX$92) -> 0 | EY9: ='Cash Flow'!$P8*SUMIF($B$80:$B$92,$B9,EY$80:EY$92) -> 16370139.87 | EZ9: ='Cash Flow'!$P8*SUMIF($B$80:$B$92,$B9,EZ$80:EZ$92) -> 0 | FA9: ='Cash Flow'!$P8*SUMIF($B$80:$B$92,$B9,FA$80:FA$92) -> 0 | FB9: ='Cash Flow'!$P8*SUMIF($B$80:$B$92,$B9,FB$80:FB$92) -> 12277604.9 | FC9: ='Cash Flow'!$P8*SUMIF($B$80:$B$92,$B9,FC$80:FC$92) -> 0 | FD9: ='Cash Flow'!$P8*SUMIF($B$80:$B$92,$B9,FD$80:FD$92) -> 0 | FE9: ='Cash Flow'!$P8*SUMIF($B$80:$B$92,$B9,FE$80:FE$92) -> 6138802.45 | FF9: ='Cash Flow'!$P8*SUMIF($B$80:$B$92,$B9,FF$80:FF$92) -> 0 | FG9: ='Cash Flow'!$P8*SUMIF($B$80:$B$92,$B9,FG$80:FG$92) -> 0 | FH9: ='Cash Flow'!$P8*SUMIF($B$80:$B$92,$B9,FH$80:FH$92) -> 6138802.45 | FI9: ='Cash Flow'!$P8*SUMIF($B$80:$B$92,$B9,FI$80:FI$92) -> 0 | FJ9: =SUM(EX9:FI9) -> 40925349.67
A10: User Charges & Fees | B10: 4 | D10: ='Cash Flow'!$E9*SUMIF($B$80:$B$92,$B10,D$80:D$92) -> 893939.2266 | E10: ='Cash Flow'!$E9*SUMIF($B$80:$B$92,$B10,E$80:E$92) -> 893939.2266 | F10: ='Cash Flow'!$E9*SUMIF($B$80:$B$92,$B10,F$80:F$92) -> 893939.2266 | G10: ='Cash Flow'!$E9*SUMIF($B$80:$B$92,$B10,G$80:G$92) -> 893939.2266 | H10: ='Cash Flow'!$E9*SUMIF($B$80:$B$92,$B10,H$80:H$92) -> 893939.2266 | I10: ='Cash Flow'!$E9*SUMIF($B$80:$B$92,$B10,I$80:I$92) -> 893939.2266 | J10: ='Cash Flow'!$E9*SUMIF($B$80:$B$92,$B10,J$80:J$92) -> 893939.2266 | K10: ='Cash Flow'!$E9*SUMIF($B$80:$B$92,$B10,K$80:K$92) -> 893939.2266 | L10: ='Cash Flow'!$E9*SUMIF($B$80:$B$92,$B10,L$80:L$92) -> 893939.2266 | M10: ='Cash Flow'!$E9*SUMIF($B$80:$B$92,$B10,M$80:M$92) -> 893939.2266 | N10: ='Cash Flow'!$E9*SUMIF($B$80:$B$92,$B10,N$80:N$92) -> 893939.2266 | O10: ='Cash Flow'!$E9*SUMIF($B$80:$B$92,$B10,O$80:O$92) -> 893939.2266 | P10: 10727270.72 | S10: ='Cash Flow'!$G9*SUMIF($B$80:$B$92,$B10,S$80:S$92) -> 886937.2247 | T10: ='Cash Flow'!$G9*SUMIF($B$80:$B$92,$B10,T$80:T$92) -> 886937.2247 | U10: ='Cash Flow'!$G9*SUMIF($B$80:$B$92,$B10,U$80:U$92) -> 886937.2247 | V10: ='Cash Flow'!$G9*SUMIF($B$80:$B$92,$B10,V$80:V$92) -> 886937.2247 | W10: ='Cash Flow'!$G9*SUMIF($B$80:$B$92,$B10,W$80:W$92) -> 886937.2247 | X10: ='Cash Flow'!$G9*SUMIF($B$80:$B$92,$B10,X$80:X$92) -> 886937.2247 | Y10: ='Cash Flow'!$G9*SUMIF($B$80:$B$92,$B10,Y$80:Y$92) -> 886937.2247 | Z10: ='Cash Flow'!$G9*SUMIF($B$80:$B$92,$B10,Z$80:Z$92) -> 886937.2247 | AA10: ='Cash Flow'!$G9*SUMIF($B$80:$B$92,$B10,AA$80:AA$92) -> 886937.2247 | AB10: ='Cash Flow'!$G9*SUMIF($B$80:$B$92,$B10,AB$80:AB$92) -> 886937.2247 | AC10: ='Cash Flow'!$G9*SUMIF($B$80:$B$92,$B10,AC$80:AC$92) -> 886937.2247 | AD10: ='Cash Flow'!$G9*SUMIF($B$80:$B$92,$B10,AD$80:AD$92) -> 886937.2247 | AE10: =SUM(S10:AD10) -> 10643246.7 | AH10: ='Cash Flow'!$H9*SUMIF($B$80:$B$92,$B10,AH$80:AH$92) -> 919706.4866 | AI10: ='Cash Flow'!$H9*SUMIF($B$80:$B$92,$B10,AI$80:AI$92) -> 919706.4866 | AJ10: ='Cash Flow'!$H9*SUMIF($B$80:$B$92,$B10,AJ$80:AJ$92) -> 919706.4866 | AK10: ='Cash Flow'!$H9*SUMIF($B$80:$B$92,$B10,AK$80:AK$92) -> 919706.4866 | AL10: ='Cash Flow'!$H9*SUMIF($B$80:$B$92,$B10,AL$80:AL$92) -> 919706.4866 | AM10: ='Cash Flow'!$H9*SUMIF($B$80:$B$92,$B10,AM$80:AM$92) -> 919706.4866 | AN10: ='Cash Flow'!$H9*SUMIF($B$80:$B$92,$B10,AN$80:AN$92) -> 919706.4866 | AO10: ='Cash Flow'!$H9*SUMIF($B$80:$B$92,$B10,AO$80:AO$92) -> 919706.4866 | AP10: ='Cash Flow'!$H9*SUMIF($B$80:$B$92,$B10,AP$80:AP$92) -> 919706.4866 | AQ10: ='Cash Flow'!$H9*SUMIF($B$80:$B$92,$B10,AQ$80:AQ$92) -> 919706.4866 | AR10: ='Cash Flow'!$H9*SUMIF($B$80:$B$92,$B10,AR$80:AR$92) -> 919706.4866 | AS10: ='Cash Flow'!$H9*SUMIF($B$80:$B$92,$B10,AS$80:AS$92) -> 919706.4866 | AT10: =SUM(AH10:AS10) -> 11036477.84 | AW10: ='Cash Flow'!$I9*SUMIF($B$80:$B$92,$B10,AW$80:AW$92) -> 953537.7226 | AX10: ='Cash Flow'!$I9*SUMIF($B$80:$B$92,$B10,AX$80:AX$92) -> 953537.7226 | AY10: ='Cash Flow'!$I9*SUMIF($B$80:$B$92,$B10,AY$80:AY$92) -> 953537.7226 | AZ10: ='Cash Flow'!$I9*SUMIF($B$80:$B$92,$B10,AZ$80:AZ$92) -> 953537.7226 | BA10: ='Cash Flow'!$I9*SUMIF($B$80:$B$92,$B10,BA$80:BA$92) -> 953537.7226 | BB10: ='Cash Flow'!$I9*SUMIF($B$80:$B$92,$B10,BB$80:BB$92) -> 953537.7226 | BC10: ='Cash Flow'!$I9*SUMIF($B$80:$B$92,$B10,BC$80:BC$92) -> 953537.7226 | BD10: ='Cash Flow'!$I9*SUMIF($B$80:$B$92,$B10,BD$80:BD$92) -> 953537.7226 | BE10: ='Cash Flow'!$I9*SUMIF($B$80:$B$92,$B10,BE$80:BE$92) -> 953537.7226 | BF10: ='Cash Flow'!$I9*SUMIF($B$80:$B$92,$B10,BF$80:BF$92) -> 953537.7226 | BG10: ='Cash Flow'!$I9*SUMIF($B$80:$B$92,$B10,BG$80:BG$92) -> 953537.7226 | BH10: ='Cash Flow'!$I9*SUMIF($B$80:$B$92,$B10,BH$80:BH$92) -> 953537.7226 | BI10: =SUM(AW10:BH10) -> 11442452.67 | BL10: ='Cash Flow'!$J9*SUMIF($B$80:$B$92,$B10,BL$80:BL$92) -> 980171.5038 | BM10: ='Cash Flow'!$J9*SUMIF($B$80:$B$92,$B10,BM$80:BM$92) -> 980171.5038 | BN10: ='Cash Flow'!$J9*SUMIF($B$80:$B$92,$B10,BN$80:BN$92) -> 980171.5038 | BO10: ='Cash Flow'!$J9*SUMIF($B$80:$B$92,$B10,BO$80:BO$92) -> 980171.5038 | BP10: ='Cash Flow'!$J9*SUMIF($B$80:$B$92,$B10,BP$80:BP$92) -> 980171.5038 | BQ10: ='Cash Flow'!$J9*SUMIF($B$80:$B$92,$B10,BQ$80:BQ$92) -> 980171.5038 | BR10: ='Cash Flow'!$J9*SUMIF($B$80:$B$92,$B10,BR$80:BR$92) -> 980171.5038 | BS10: ='Cash Flow'!$J9*SUMIF($B$80:$B$92,$B10,BS$80:BS$92) -> 980171.5038 | BT10: ='Cash Flow'!$J9*SUMIF($B$80:$B$92,$B10,BT$80:BT$92) -> 980171.5038 | BU10: ='Cash Flow'!$J9*SUMIF($B$80:$B$92,$B10,BU$80:BU$92) -> 980171.5038 | BV10: ='Cash Flow'!$J9*SUMIF($B$80:$B$92,$B10,BV$80:BV$92) -> 980171.5038 | BW10: ='Cash Flow'!$J9*SUMIF($B$80:$B$92,$B10,BW$80:BW$92) -> 980171.5038 | BX10: =SUM(BL10:BW10) -> 11762058.05 | CA10: ='Cash Flow'!$K9*SUMIF($B$80:$B$92,$B10,CA$80:CA$92) -> 1006877.466 | CB10: ='Cash Flow'!$K9*SUMIF($B$80:$B$92,$B10,CB$80:CB$92) -> 1006877.466 | CC10: ='Cash Flow'!$K9*SUMIF($B$80:$B$92,$B10,CC$80:CC$92) -> 1006877.466 | CD10: ='Cash Flow'!$K9*SUMIF($B$80:$B$92,$B10,CD$80:CD$92) -> 1006877.466 | CE10: ='Cash Flow'!$K9*SUMIF($B$80:$B$92,$B10,CE$80:CE$92) -> 1006877.466 | CF10: ='Cash Flow'!$K9*SUMIF($B$80:$B$92,$B10,CF$80:CF$92) -> 1006877.466 | CG10: ='Cash Flow'!$K9*SUMIF($B$80:$B$92,$B10,CG$80:CG$92) -> 1006877.466 | CH10: ='Cash Flow'!$K9*SUMIF($B$80:$B$92,$B10,CH$80:CH$92) -> 1006877.466 | CI10: ='Cash Flow'!$K9*SUMIF($B$80:$B$92,$B10,CI$80:CI$92) -> 1006877.466 | CJ10: ='Cash Flow'!$K9*SUMIF($B$80:$B$92,$B10,CJ$80:CJ$92) -> 1006877.466 | CK10: ='Cash Flow'!$K9*SUMIF($B$80:$B$92,$B10,CK$80:CK$92) -> 1006877.466 | CL10: ='Cash Flow'!$K9*SUMIF($B$80:$B$92,$B10,CL$80:CL$92) -> 1006877.466 | CM10: =SUM(CA10:CL10) -> 12082529.59 | CP10: ='Cash Flow'!$L9*SUMIF($B$80:$B$92,$B10,CP$80:CP$92) -> 1039193.865 | CQ10: ='Cash Flow'!$L9*SUMIF($B$80:$B$92,$B10,CQ$80:CQ$92) -> 1039193.865 | CR10: ='Cash Flow'!$L9*SUMIF($B$80:$B$92,$B10,CR$80:CR$92) -> 1039193.865 | CS10: ='Cash Flow'!$L9*SUMIF($B$80:$B$92,$B10,CS$80:CS$92) -> 1039193.865 | CT10: ='Cash Flow'!$L9*SUMIF($B$80:$B$92,$B10,CT$80:CT$92) -> 1039193.865 | CU10: ='Cash Flow'!$L9*SUMIF($B$80:$B$92,$B10,CU$80:CU$92) -> 1039193.865 | CV10: ='Cash Flow'!$L9*SUMIF($B$80:$B$92,$B10,CV$80:CV$92) -> 1039193.865 | CW10: ='Cash Flow'!$L9*SUMIF($B$80:$B$92,$B10,CW$80:CW$92) -> 1039193.865 | CX10: ='Cash Flow'!$L9*SUMIF($B$80:$B$92,$B10,CX$80:CX$92) -> 1039193.865 | CY10: ='Cash Flow'!$L9*SUMIF($B$80:$B$92,$B10,CY$80:CY$92) -> 1039193.865 | CZ10: ='Cash Flow'!$L9*SUMIF($B$80:$B$92,$B10,CZ$80:CZ$92) -> 1039193.865 | DA10: ='Cash Flow'!$L9*SUMIF($B$80:$B$92,$B10,DA$80:DA$92) -> 1039193.865 | DB10: =SUM(CP10:DA10) -> 12470326.38 | DE10: ='Cash Flow'!$M9*SUMIF($B$80:$B$92,$B10,DE$80:DE$92) -> 1066836.733 | DF10: ='Cash Flow'!$M9*SUMIF($B$80:$B$92,$B10,DF$80:DF$92) -> 1066836.733 | DG10: ='Cash Flow'!$M9*SUMIF($B$80:$B$92,$B10,DG$80:DG$92) -> 1066836.733 | DH10: ='Cash Flow'!$M9*SUMIF($B$80:$B$92,$B10,DH$80:DH$92) -> 1066836.733 | DI10: ='Cash Flow'!$M9*SUMIF($B$80:$B$92,$B10,DI$80:DI$92) -> 1066836.733 | DJ10: ='Cash Flow'!$M9*SUMIF($B$80:$B$92,$B10,DJ$80:DJ$92) -> 1066836.733 | DK10: ='Cash Flow'!$M9*SUMIF($B$80:$B$92,$B10,DK$80:DK$92) -> 1066836.733 | DL10: ='Cash Flow'!$M9*SUMIF($B$80:$B$92,$B10,DL$80:DL$92) -> 1066836.733 | DM10: ='Cash Flow'!$M9*SUMIF($B$80:$B$92,$B10,DM$80:DM$92) -> 1066836.733 | DN10: ='Cash Flow'!$M9*SUMIF($B$80:$B$92,$B10,DN$80:DN$92) -> 1066836.733 | DO10: ='Cash Flow'!$M9*SUMIF($B$80:$B$92,$B10,DO$80:DO$92) -> 1066836.733 | DP10: ='Cash Flow'!$M9*SUMIF($B$80:$B$92,$B10,DP$80:DP$92) -> 1066836.733 | DQ10: =SUM(DE10:DP10) -> 12802040.79 | DT10: ='Cash Flow'!$N9*SUMIF($B$80:$B$92,$B10,DT$80:DT$92) -> 1095943.408 | DU10: ='Cash Flow'!$N9*SUMIF($B$80:$B$92,$B10,DU$80:DU$92) -> 1095943.408 | DV10: ='Cash Flow'!$N9*SUMIF($B$80:$B$92,$B10,DV$80:DV$92) -> 1095943.408 | DW10: ='Cash Flow'!$N9*SUMIF($B$80:$B$92,$B10,DW$80:DW$92) -> 1095943.408 | DX10: ='Cash Flow'!$N9*SUMIF($B$80:$B$92,$B10,DX$80:DX$92) -> 1095943.408 | DY10: ='Cash Flow'!$N9*SUMIF($B$80:$B$92,$B10,DY$80:DY$92) -> 1095943.408 | DZ10: ='Cash Flow'!$N9*SUMIF($B$80:$B$92,$B10,DZ$80:DZ$92) -> 1095943.408 | EA10: ='Cash Flow'!$N9*SUMIF($B$80:$B$92,$B10,EA$80:EA$92) -> 1095943.408 | EB10: ='Cash Flow'!$N9*SUMIF($B$80:$B$92,$B10,EB$80:EB$92) -> 1095943.408 | EC10: ='Cash Flow'!$N9*SUMIF($B$80:$B$92,$B10,EC$80:EC$92) -> 1095943.408 | ED10: ='Cash Flow'!$N9*SUMIF($B$80:$B$92,$B10,ED$80:ED$92) -> 1095943.408 | EE10: ='Cash Flow'!$N9*SUMIF($B$80:$B$92,$B10,EE$80:EE$92) -> 1095943.408 | EF10: =SUM(DT10:EE10) -> 13151320.9 | EI10: ='Cash Flow'!$O9*SUMIF($B$80:$B$92,$B10,EI$80:EI$92) -> 1125887.137 | EJ10: ='Cash Flow'!$O9*SUMIF($B$80:$B$92,$B10,EJ$80:EJ$92) -> 1125887.137 | EK10: ='Cash Flow'!$O9*SUMIF($B$80:$B$92,$B10,EK$80:EK$92) -> 1125887.137 | EL10: ='Cash Flow'!$O9*SUMIF($B$80:$B$92,$B10,EL$80:EL$92) -> 1125887.137 | EM10: ='Cash Flow'!$O9*SUMIF($B$80:$B$92,$B10,EM$80:EM$92) -> 1125887.137 | EN10: ='Cash Flow'!$O9*SUMIF($B$80:$B$92,$B10,EN$80:EN$92) -> 1125887.137 | EO10: ='Cash Flow'!$O9*SUMIF($B$80:$B$92,$B10,EO$80:EO$92) -> 1125887.137 | EP10: ='Cash Flow'!$O9*SUMIF($B$80:$B$92,$B10,EP$80:EP$92) -> 1125887.137 | EQ10: ='Cash Flow'!$O9*SUMIF($B$80:$B$92,$B10,EQ$80:EQ$92) -> 1125887.137 | ER10: ='Cash Flow'!$O9*SUMIF($B$80:$B$92,$B10,ER$80:ER$92) -> 1125887.137 | ES10: ='Cash Flow'!$O9*SUMIF($B$80:$B$92,$B10,ES$80:ES$92) -> 1125887.137 | ET10: ='Cash Flow'!$O9*SUMIF($B$80:$B$92,$B10,ET$80:ET$92) -> 1125887.137 | EU10: =SUM(EI10:ET10) -> 13510645.65 | EX10: ='Cash Flow'!$P9*SUMIF($B$80:$B$92,$B10,EX$80:EX$92) -> 1156670.487 | EY10: ='Cash Flow'!$P9*SUMIF($B$80:$B$92,$B10,EY$80:EY$92) -> 1156670.487 | EZ10: ='Cash Flow'!$P9*SUMIF($B$80:$B$92,$B10,EZ$80:EZ$92) -> 1156670.487 | FA10: ='Cash Flow'!$P9*SUMIF($B$80:$B$92,$B10,FA$80:FA$92) -> 1156670.487 | FB10: ='Cash Flow'!$P9*SUMIF($B$80:$B$92,$B10,FB$80:FB$92) -> 1156670.487 | FC10: ='Cash Flow'!$P9*SUMIF($B$80:$B$92,$B10,FC$80:FC$92) -> 1156670.487 | FD10: ='Cash Flow'!$P9*SUMIF($B$80:$B$92,$B10,FD$80:FD$92) -> 1156670.487 | FE10: ='Cash Flow'!$P9*SUMIF($B$80:$B$92,$B10,FE$80:FE$92) -> 1156670.487 | FF10: ='Cash Flow'!$P9*SUMIF($B$80:$B$92,$B10,FF$80:FF$92) -> 1156670.487 | FG10: ='Cash Flow'!$P9*SUMIF($B$80:$B$92,$B10,FG$80:FG$92) -> 1156670.487 | FH10: ='Cash Flow'!$P9*SUMIF($B$80:$B$92,$B10,FH$80:FH$92) -> 1156670.487 | FI10: ='Cash Flow'!$P9*SUMIF($B$80:$B$92,$B10,FI$80:FI$92) -> 1156670.487 | FJ10: =SUM(EX10:FI10) -> 13880045.84
A11: Interest & Investment Revenue | B11: 4 | D11: ='Cash Flow'!$E10*SUMIF($B$80:$B$92,$B11,D$80:D$92) -> 111511.0682 | E11: ='Cash Flow'!$E10*SUMIF($B$80:$B$92,$B11,E$80:E$92) -> 111511.0682 | F11: ='Cash Flow'!$E10*SUMIF($B$80:$B$92,$B11,F$80:F$92) -> 111511.0682 | G11: ='Cash Flow'!$E10*SUMIF($B$80:$B$92,$B11,G$80:G$92) -> 111511.0682 | H11: ='Cash Flow'!$E10*SUMIF($B$80:$B$92,$B11,H$80:H$92) -> 111511.0682 | I11: ='Cash Flow'!$E10*SUMIF($B$80:$B$92,$B11,I$80:I$92) -> 111511.0682 | J11: ='Cash Flow'!$E10*SUMIF($B$80:$B$92,$B11,J$80:J$92) -> 111511.0682 | K11: ='Cash Flow'!$E10*SUMIF($B$80:$B$92,$B11,K$80:K$92) -> 111511.0682 | L11: ='Cash Flow'!$E10*SUMIF($B$80:$B$92,$B11,L$80:L$92) -> 111511.0682 | M11: ='Cash Flow'!$E10*SUMIF($B$80:$B$92,$B11,M$80:M$92) -> 111511.0682 | N11: ='Cash Flow'!$E10*SUMIF($B$80:$B$92,$B11,N$80:N$92) -> 111511.0682 | O11: ='Cash Flow'!$E10*SUMIF($B$80:$B$92,$B11,O$80:O$92) -> 111511.0682 | P11: 1338132.819 | S11: ='Cash Flow'!$G10*SUMIF($B$80:$B$92,$B11,S$80:S$92) -> 117824.4857 | T11: ='Cash Flow'!$G10*SUMIF($B$80:$B$92,$B11,T$80:T$92) -> 117824.4857 | U11: ='Cash Flow'!$G10*SUMIF($B$80:$B$92,$B11,U$80:U$92) -> 117824.4857 | V11: ='Cash Flow'!$G10*SUMIF($B$80:$B$92,$B11,V$80:V$92) -> 117824.4857 | W11: ='Cash Flow'!$G10*SUMIF($B$80:$B$92,$B11,W$80:W$92) -> 117824.4857 | X11: ='Cash Flow'!$G10*SUMIF($B$80:$B$92,$B11,X$80:X$92) -> 117824.4857 | Y11: ='Cash Flow'!$G10*SUMIF($B$80:$B$92,$B11,Y$80:Y$92) -> 117824.4857 | Z11: ='Cash Flow'!$G10*SUMIF($B$80:$B$92,$B11,Z$80:Z$92) -> 117824.4857 | AA11: ='Cash Flow'!$G10*SUMIF($B$80:$B$92,$B11,AA$80:AA$92) -> 117824.4857 | AB11: ='Cash Flow'!$G10*SUMIF($B$80:$B$92,$B11,AB$80:AB$92) -> 117824.4857 | AC11: ='Cash Flow'!$G10*SUMIF($B$80:$B$92,$B11,AC$80:AC$92) -> 117824.4857 | AD11: ='Cash Flow'!$G10*SUMIF($B$80:$B$92,$B11,AD$80:AD$92) -> 117824.4857 | AE11: =SUM(S11:AD11) -> 1413893.828 | AH11: ='Cash Flow'!$H10*SUMIF($B$80:$B$92,$B11,AH$80:AH$92) -> 136389.3091 | AI11: ='Cash Flow'!$H10*SUMIF($B$80:$B$92,$B11,AI$80:AI$92) -> 136389.3091 | AJ11: ='Cash Flow'!$H10*SUMIF($B$80:$B$92,$B11,AJ$80:AJ$92) -> 136389.3091 | AK11: ='Cash Flow'!$H10*SUMIF($B$80:$B$92,$B11,AK$80:AK$92) -> 136389.3091 | AL11: ='Cash Flow'!$H10*SUMIF($B$80:$B$92,$B11,AL$80:AL$92) -> 136389.3091 | AM11: ='Cash Flow'!$H10*SUMIF($B$80:$B$92,$B11,AM$80:AM$92) -> 136389.3091 | AN11: ='Cash Flow'!$H10*SUMIF($B$80:$B$92,$B11,AN$80:AN$92) -> 136389.3091 | AO11: ='Cash Flow'!$H10*SUMIF($B$80:$B$92,$B11,AO$80:AO$92) -> 136389.3091 | AP11: ='Cash Flow'!$H10*SUMIF($B$80:$B$92,$B11,AP$80:AP$92) -> 136389.3091 | AQ11: ='Cash Flow'!$H10*SUMIF($B$80:$B$92,$B11,AQ$80:AQ$92) -> 136389.3091 | AR11: ='Cash Flow'!$H10*SUMIF($B$80:$B$92,$B11,AR$80:AR$92) -> 136389.3091 | AS11: ='Cash Flow'!$H10*SUMIF($B$80:$B$92,$B11,AS$80:AS$92) -> 136389.3091 | AT11: 1636671.709 | AW11: ='Cash Flow'!$I10*SUMIF($B$80:$B$92,$B11,AW$80:AW$92) -> 150484.668 | AX11: ='Cash Flow'!$I10*SUMIF($B$80:$B$92,$B11,AX$80:AX$92) -> 150484.668 | AY11: ='Cash Flow'!$I10*SUMIF($B$80:$B$92,$B11,AY$80:AY$92) -> 150484.668 | AZ11: ='Cash Flow'!$I10*SUMIF($B$80:$B$92,$B11,AZ$80:AZ$92) -> 150484.668 | BA11: ='Cash Flow'!$I10*SUMIF($B$80:$B$92,$B11,BA$80:BA$92) -> 150484.668 | BB11: ='Cash Flow'!$I10*SUMIF($B$80:$B$92,$B11,BB$80:BB$92) -> 150484.668 | BC11: ='Cash Flow'!$I10*SUMIF($B$80:$B$92,$B11,BC$80:BC$92) -> 150484.668 | BD11: ='Cash Flow'!$I10*SUMIF($B$80:$B$92,$B11,BD$80:BD$92) -> 150484.668 | BE11: ='Cash Flow'!$I10*SUMIF($B$80:$B$92,$B11,BE$80:BE$92) -> 150484.668 | BF11: ='Cash Flow'!$I10*SUMIF($B$80:$B$92,$B11,BF$80:BF$92) -> 150484.668 | BG11: ='Cash Flow'!$I10*SUMIF($B$80:$B$92,$B11,BG$80:BG$92) -> 150484.668 | BH11: ='Cash Flow'!$I10*SUMIF($B$80:$B$92,$B11,BH$80:BH$92) -> 150484.668 | BI11: 1805816.016 | BL11: ='Cash Flow'!$J10*SUMIF($B$80:$B$92,$B11,BL$80:BL$92) -> 162902.3474 | BM11: ='Cash Flow'!$J10*SUMIF($B$80:$B$92,$B11,BM$80:BM$92) -> 162902.3474 | BN11: ='Cash Flow'!$J10*SUMIF($B$80:$B$92,$B11,BN$80:BN$92) -> 162902.3474 | BO11: ='Cash Flow'!$J10*SUMIF($B$80:$B$92,$B11,BO$80:BO$92) -> 162902.3474 | BP11: ='Cash Flow'!$J10*SUMIF($B$80:$B$92,$B11,BP$80:BP$92) -> 162902.3474 | BQ11: ='Cash Flow'!$J10*SUMIF($B$80:$B$92,$B11,BQ$80:BQ$92) -> 162902.3474 | BR11: ='Cash Flow'!$J10*SUMIF($B$80:$B$92,$B11,BR$80:BR$92) -> 162902.3474 | BS11: ='Cash Flow'!$J10*SUMIF($B$80:$B$92,$B11,BS$80:BS$92) -> 162902.3474 | BT11: ='Cash Flow'!$J10*SUMIF($B$80:$B$92,$B11,BT$80:BT$92) -> 162902.3474 | BU11: ='Cash Flow'!$J10*SUMIF($B$80:$B$92,$B11,BU$80:BU$92) -> 162902.3474 | BV11: ='Cash Flow'!$J10*SUMIF($B$80:$B$92,$B11,BV$80:BV$92) -> 162902.3474 | BW11: ='Cash Flow'!$J10*SUMIF($B$80:$B$92,$B11,BW$80:BW$92) -> 162902.3474 | BX11: 1954828.169 | CA11: ='Cash Flow'!$K10*SUMIF($B$80:$B$92,$B11,CA$80:CA$92) -> 167051.375 | CB11: ='Cash Flow'!$K10*SUMIF($B$80:$B$92,$B11,CB$80:CB$92) -> 167051.375 | CC11: ='Cash Flow'!$K10*SUMIF($B$80:$B$92,$B11,CC$80:CC$92) -> 167051.375 | CD11: ='Cash Flow'!$K10*SUMIF($B$80:$B$92,$B11,CD$80:CD$92) -> 167051.375 | CE11: ='Cash Flow'!$K10*SUMIF($B$80:$B$92,$B11,CE$80:CE$92) -> 167051.375 | CF11: ='Cash Flow'!$K10*SUMIF($B$80:$B$92,$B11,CF$80:CF$92) -> 167051.375 | CG11: ='Cash Flow'!$K10*SUMIF($B$80:$B$92,$B11,CG$80:CG$92) -> 167051.375 | CH11: ='Cash Flow'!$K10*SUMIF($B$80:$B$92,$B11,CH$80:CH$92) -> 167051.375 | CI11: ='Cash Flow'!$K10*SUMIF($B$80:$B$92,$B11,CI$80:CI$92) -> 167051.375 | CJ11: ='Cash Flow'!$K10*SUMIF($B$80:$B$92,$B11,CJ$80:CJ$92) -> 167051.375 | CK11: ='Cash Flow'!$K10*SUMIF($B$80:$B$92,$B11,CK$80:CK$92) -> 167051.375 | CL11: ='Cash Flow'!$K10*SUMIF($B$80:$B$92,$B11,CL$80:CL$92) -> 167051.375 | CM11: 2004616.5 | CP11: ='Cash Flow'!$L10*SUMIF($B$80:$B$92,$B11,CP$80:CP$92) -> 175928.4596 | CQ11: ='Cash Flow'!$L10*SUMIF($B$80:$B$92,$B11,CQ$80:CQ$92) -> 175928.4596 | CR11: ='Cash Flow'!$L10*SUMIF($B$80:$B$92,$B11,CR$80:CR$92) -> 175928.4596 | CS11: ='Cash Flow'!$L10*SUMIF($B$80:$B$92,$B11,CS$80:CS$92) -> 175928.4596 | CT11: ='Cash Flow'!$L10*SUMIF($B$80:$B$92,$B11,CT$80:CT$92) -> 175928.4596 | CU11: ='Cash Flow'!$L10*SUMIF($B$80:$B$92,$B11,CU$80:CU$92) -> 175928.4596 | CV11: ='Cash Flow'!$L10*SUMIF($B$80:$B$92,$B11,CV$80:CV$92) -> 175928.4596 | CW11: ='Cash Flow'!$L10*SUMIF($B$80:$B$92,$B11,CW$80:CW$92) -> 175928.4596 | CX11: ='Cash Flow'!$L10*SUMIF($B$80:$B$92,$B11,CX$80:CX$92) -> 175928.4596 | CY11: ='Cash Flow'!$L10*SUMIF($B$80:$B$92,$B11,CY$80:CY$92) -> 175928.4596 | CZ11: ='Cash Flow'!$L10*SUMIF($B$80:$B$92,$B11,CZ$80:CZ$92) -> 175928.4596 | DA11: ='Cash Flow'!$L10*SUMIF($B$80:$B$92,$B11,DA$80:DA$92) -> 175928.4596 | DB11: 2111141.516 | DE11: ='Cash Flow'!$M10*SUMIF($B$80:$B$92,$B11,DE$80:DE$92) -> 177910.0786 | DF11: ='Cash Flow'!$M10*SUMIF($B$80:$B$92,$B11,DF$80:DF$92) -> 177910.0786 | DG11: ='Cash Flow'!$M10*SUMIF($B$80:$B$92,$B11,DG$80:DG$92) -> 177910.0786 | DH11: ='Cash Flow'!$M10*SUMIF($B$80:$B$92,$B11,DH$80:DH$92) -> 177910.0786 | DI11: ='Cash Flow'!$M10*SUMIF($B$80:$B$92,$B11,DI$80:DI$92) -> 177910.0786 | DJ11: ='Cash Flow'!$M10*SUMIF($B$80:$B$92,$B11,DJ$80:DJ$92) -> 177910.0786 | DK11: ='Cash Flow'!$M10*SUMIF($B$80:$B$92,$B11,DK$80:DK$92) -> 177910.0786 | DL11: ='Cash Flow'!$M10*SUMIF($B$80:$B$92,$B11,DL$80:DL$92) -> 177910.0786 | DM11: ='Cash Flow'!$M10*SUMIF($B$80:$B$92,$B11,DM$80:DM$92) -> 177910.0786 | DN11: ='Cash Flow'!$M10*SUMIF($B$80:$B$92,$B11,DN$80:DN$92) -> 177910.0786 | DO11: ='Cash Flow'!$M10*SUMIF($B$80:$B$92,$B11,DO$80:DO$92) -> 177910.0786 | DP11: ='Cash Flow'!$M10*SUMIF($B$80:$B$92,$B11,DP$80:DP$92) -> 177910.0786 | DQ11: 2134920.943 | DT11: ='Cash Flow'!$N10*SUMIF($B$80:$B$92,$B11,DT$80:DT$92) -> 180997.8153 | DU11: ='Cash Flow'!$N10*SUMIF($B$80:$B$92,$B11,DU$80:DU$92) -> 180997.8153 | DV11: ='Cash Flow'!$N10*SUMIF($B$80:$B$92,$B11,DV$80:DV$92) -> 180997.8153 | DW11: ='Cash Flow'!$N10*SUMIF($B$80:$B$92,$B11,DW$80:DW$92) -> 180997.8153 | DX11: ='Cash Flow'!$N10*SUMIF($B$80:$B$92,$B11,DX$80:DX$92) -> 180997.8153 | DY11: ='Cash Flow'!$N10*SUMIF($B$80:$B$92,$B11,DY$80:DY$92) -> 180997.8153 | DZ11: ='Cash Flow'!$N10*SUMIF($B$80:$B$92,$B11,DZ$80:DZ$92) -> 180997.8153 | EA11: ='Cash Flow'!$N10*SUMIF($B$80:$B$92,$B11,EA$80:EA$92) -> 180997.8153 | EB11: ='Cash Flow'!$N10*SUMIF($B$80:$B$92,$B11,EB$80:EB$92) -> 180997.8153 | EC11: ='Cash Flow'!$N10*SUMIF($B$80:$B$92,$B11,EC$80:EC$92) -> 180997.8153 | ED11: ='Cash Flow'!$N10*SUMIF($B$80:$B$92,$B11,ED$80:ED$92) -> 180997.8153 | EE11: ='Cash Flow'!$N10*SUMIF($B$80:$B$92,$B11,EE$80:EE$92) -> 180997.8153 | EF11: 2171973.783 | EI11: ='Cash Flow'!$O10*SUMIF($B$80:$B$92,$B11,EI$80:EI$92) -> 183071.9139 | EJ11: ='Cash Flow'!$O10*SUMIF($B$80:$B$92,$B11,EJ$80:EJ$92) -> 183071.9139 | EK11: ='Cash Flow'!$O10*SUMIF($B$80:$B$92,$B11,EK$80:EK$92) -> 183071.9139 | EL11: ='Cash Flow'!$O10*SUMIF($B$80:$B$92,$B11,EL$80:EL$92) -> 183071.9139 | EM11: ='Cash Flow'!$O10*SUMIF($B$80:$B$92,$B11,EM$80:EM$92) -> 183071.9139 | EN11: ='Cash Flow'!$O10*SUMIF($B$80:$B$92,$B11,EN$80:EN$92) -> 183071.9139 | EO11: ='Cash Flow'!$O10*SUMIF($B$80:$B$92,$B11,EO$80:EO$92) -> 183071.9139 | EP11: ='Cash Flow'!$O10*SUMIF($B$80:$B$92,$B11,EP$80:EP$92) -> 183071.9139 | EQ11: ='Cash Flow'!$O10*SUMIF($B$80:$B$92,$B11,EQ$80:EQ$92) -> 183071.9139 | ER11: ='Cash Flow'!$O10*SUMIF($B$80:$B$92,$B11,ER$80:ER$92) -> 183071.9139 | ES11: ='Cash Flow'!$O10*SUMIF($B$80:$B$92,$B11,ES$80:ES$92) -> 183071.9139 | ET11: ='Cash Flow'!$O10*SUMIF($B$80:$B$92,$B11,ET$80:ET$92) -> 183071.9139 | EU11: 2196862.967 | EX11: ='Cash Flow'!$P10*SUMIF($B$80:$B$92,$B11,EX$80:EX$92) -> 183127.6379 | EY11: ='Cash Flow'!$P10*SUMIF($B$80:$B$92,$B11,EY$80:EY$92) -> 183127.6379 | EZ11: ='Cash Flow'!$P10*SUMIF($B$80:$B$92,$B11,EZ$80:EZ$92) -> 183127.6379 | FA11: ='Cash Flow'!$P10*SUMIF($B$80:$B$92,$B11,FA$80:FA$92) -> 183127.6379 | FB11: ='Cash Flow'!$P10*SUMIF($B$80:$B$92,$B11,FB$80:FB$92) -> 183127.6379 | FC11: ='Cash Flow'!$P10*SUMIF($B$80:$B$92,$B11,FC$80:FC$92) -> 183127.6379 | FD11: ='Cash Flow'!$P10*SUMIF($B$80:$B$92,$B11,FD$80:FD$92) -> 183127.6379 | FE11: ='Cash Flow'!$P10*SUMIF($B$80:$B$92,$B11,FE$80:FE$92) -> 183127.6379 | FF11: ='Cash Flow'!$P10*SUMIF($B$80:$B$92,$B11,FF$80:FF$92) -> 183127.6379 | FG11: ='Cash Flow'!$P10*SUMIF($B$80:$B$92,$B11,FG$80:FG$92) -> 183127.6379 | FH11: ='Cash Flow'!$P10*SUMIF($B$80:$B$92,$B11,FH$80:FH$92) -> 183127.6379 | FI11: ='Cash Flow'!$P10*SUMIF($B$80:$B$92,$B11,FI$80:FI$92) -> 183127.6379 | FJ11: 2197531.655
A12: Other Revenues | B12: 4 | D12: ='Cash Flow'!$E13*SUMIF($B$80:$B$92,$B12,D$80:D$92) -> 363638.9187 | E12: ='Cash Flow'!$E13*SUMIF($B$80:$B$92,$B12,E$80:E$92) -> 363638.9187 | F12: ='Cash Flow'!$E13*SUMIF($B$80:$B$92,$B12,F$80:F$92) -> 363638.9187 | G12: ='Cash Flow'!$E13*SUMIF($B$80:$B$92,$B12,G$80:G$92) -> 363638.9187 | H12: ='Cash Flow'!$E13*SUMIF($B$80:$B$92,$B12,H$80:H$92) -> 363638.9187 | I12: ='Cash Flow'!$E13*SUMIF($B$80:$B$92,$B12,I$80:I$92) -> 363638.9187 | J12: ='Cash Flow'!$E13*SUMIF($B$80:$B$92,$B12,J$80:J$92) -> 363638.9187 | K12: ='Cash Flow'!$E13*SUMIF($B$80:$B$92,$B12,K$80:K$92) -> 363638.9187 | L12: ='Cash Flow'!$E13*SUMIF($B$80:$B$92,$B12,L$80:L$92) -> 363638.9187 | M12: ='Cash Flow'!$E13*SUMIF($B$80:$B$92,$B12,M$80:M$92) -> 363638.9187 | N12: ='Cash Flow'!$E13*SUMIF($B$80:$B$92,$B12,N$80:N$92) -> 363638.9187 | O12: ='Cash Flow'!$E13*SUMIF($B$80:$B$92,$B12,O$80:O$92) -> 363638.9187 | P12: 4363667.024 | S12: ='Cash Flow'!$G13*SUMIF($B$80:$B$92,$B12,S$80:S$92) -> 406076.6427 | T12: ='Cash Flow'!$G13*SUMIF($B$80:$B$92,$B12,T$80:T$92) -> 406076.6427 | U12: ='Cash Flow'!$G13*SUMIF($B$80:$B$92,$B12,U$80:U$92) -> 406076.6427 | V12: ='Cash Flow'!$G13*SUMIF($B$80:$B$92,$B12,V$80:V$92) -> 406076.6427 | W12: ='Cash Flow'!$G13*SUMIF($B$80:$B$92,$B12,W$80:W$92) -> 406076.6427 | X12: ='Cash Flow'!$G13*SUMIF($B$80:$B$92,$B12,X$80:X$92) -> 406076.6427 | Y12: ='Cash Flow'!$G13*SUMIF($B$80:$B$92,$B12,Y$80:Y$92) -> 406076.6427 | Z12: ='Cash Flow'!$G13*SUMIF($B$80:$B$92,$B12,Z$80:Z$92) -> 406076.6427 | AA12: ='Cash Flow'!$G13*SUMIF($B$80:$B$92,$B12,AA$80:AA$92) -> 406076.6427 | AB12: ='Cash Flow'!$G13*SUMIF($B$80:$B$92,$B12,AB$80:AB$92) -> 406076.6427 | AC12: ='Cash Flow'!$G13*SUMIF($B$80:$B$92,$B12,AC$80:AC$92) -> 406076.6427 | AD12: ='Cash Flow'!$G13*SUMIF($B$80:$B$92,$B12,AD$80:AD$92) -> 406076.6427 | AE12: 4872919.713 | AH12: ='Cash Flow'!$H13*SUMIF($B$80:$B$92,$B12,AH$80:AH$92) -> 401207.1881 | AI12: ='Cash Flow'!$H13*SUMIF($B$80:$B$92,$B12,AI$80:AI$92) -> 401207.1881 | AJ12: ='Cash Flow'!$H13*SUMIF($B$80:$B$92,$B12,AJ$80:AJ$92) -> 401207.1881 | AK12: ='Cash Flow'!$H13*SUMIF($B$80:$B$92,$B12,AK$80:AK$92) -> 401207.1881 | AL12: ='Cash Flow'!$H13*SUMIF($B$80:$B$92,$B12,AL$80:AL$92) -> 401207.1881 | AM12: ='Cash Flow'!$H13*SUMIF($B$80:$B$92,$B12,AM$80:AM$92) -> 401207.1881 | AN12: ='Cash Flow'!$H13*SUMIF($B$80:$B$92,$B12,AN$80:AN$92) -> 401207.1881 | AO12: ='Cash Flow'!$H13*SUMIF($B$80:$B$92,$B12,AO$80:AO$92) -> 401207.1881 | AP12: ='Cash Flow'!$H13*SUMIF($B$80:$B$92,$B12,AP$80:AP$92) -> 401207.1881 | AQ12: ='Cash Flow'!$H13*SUMIF($B$80:$B$92,$B12,AQ$80:AQ$92) -> 401207.1881 | AR12: ='Cash Flow'!$H13*SUMIF($B$80:$B$92,$B12,AR$80:AR$92) -> 401207.1881 | AS12: ='Cash Flow'!$H13*SUMIF($B$80:$B$92,$B12,AS$80:AS$92) -> 401207.1881 | AT12: 4814486.257 | AW12: ='Cash Flow'!$I13*SUMIF($B$80:$B$92,$B12,AW$80:AW$92) -> 410079.2397 | AX12: ='Cash Flow'!$I13*SUMIF($B$80:$B$92,$B12,AX$80:AX$92) -> 410079.2397 | AY12: ='Cash Flow'!$I13*SUMIF($B$80:$B$92,$B12,AY$80:AY$92) -> 410079.2397 | AZ12: ='Cash Flow'!$I13*SUMIF($B$80:$B$92,$B12,AZ$80:AZ$92) -> 410079.2397 | BA12: ='Cash Flow'!$I13*SUMIF($B$80:$B$92,$B12,BA$80:BA$92) -> 410079.2397 | BB12: ='Cash Flow'!$I13*SUMIF($B$80:$B$92,$B12,BB$80:BB$92) -> 410079.2397 | BC12: ='Cash Flow'!$I13*SUMIF($B$80:$B$92,$B12,BC$80:BC$92) -> 410079.2397 | BD12: ='Cash Flow'!$I13*SUMIF($B$80:$B$92,$B12,BD$80:BD$92) -> 410079.2397 | BE12: ='Cash Flow'!$I13*SUMIF($B$80:$B$92,$B12,BE$80:BE$92) -> 410079.2397 | BF12: ='Cash Flow'!$I13*SUMIF($B$80:$B$92,$B12,BF$80:BF$92) -> 410079.2397 | BG12: ='Cash Flow'!$I13*SUMIF($B$80:$B$92,$B12,BG$80:BG$92) -> 410079.2397 | BH12: ='Cash Flow'!$I13*SUMIF($B$80:$B$92,$B12,BH$80:BH$92) -> 410079.2397 | BI12: 4920950.876 | BL12: ='Cash Flow'!$J13*SUMIF($B$80:$B$92,$B12,BL$80:BL$92) -> 419893.0513 | BM12: ='Cash Flow'!$J13*SUMIF($B$80:$B$92,$B12,BM$80:BM$92) -> 419893.0513 | BN12: ='Cash Flow'!$J13*SUMIF($B$80:$B$92,$B12,BN$80:BN$92) -> 419893.0513 | BO12: ='Cash Flow'!$J13*SUMIF($B$80:$B$92,$B12,BO$80:BO$92) -> 419893.0513 | BP12: ='Cash Flow'!$J13*SUMIF($B$80:$B$92,$B12,BP$80:BP$92) -> 419893.0513 | BQ12: ='Cash Flow'!$J13*SUMIF($B$80:$B$92,$B12,BQ$80:BQ$92) -> 419893.0513 | BR12: ='Cash Flow'!$J13*SUMIF($B$80:$B$92,$B12,BR$80:BR$92) -> 419893.0513 | BS12: ='Cash Flow'!$J13*SUMIF($B$80:$B$92,$B12,BS$80:BS$92) -> 419893.0513 | BT12: ='Cash Flow'!$J13*SUMIF($B$80:$B$92,$B12,BT$80:BT$92) -> 419893.0513 | BU12: ='Cash Flow'!$J13*SUMIF($B$80:$B$92,$B12,BU$80:BU$92) -> 419893.0513 | BV12: ='Cash Flow'!$J13*SUMIF($B$80:$B$92,$B12,BV$80:BV$92) -> 419893.0513 | BW12: ='Cash Flow'!$J13*SUMIF($B$80:$B$92,$B12,BW$80:BW$92) -> 419893.0513 | BX12: 5038716.615 | CA12: ='Cash Flow'!$K13*SUMIF($B$80:$B$92,$B12,CA$80:CA$92) -> 425374.192 | CB12: ='Cash Flow'!$K13*SUMIF($B$80:$B$92,$B12,CB$80:CB$92) -> 425374.192 | CC12: ='Cash Flow'!$K13*SUMIF($B$80:$B$92,$B12,CC$80:CC$92) -> 425374.192 | CD12: ='Cash Flow'!$K13*SUMIF($B$80:$B$92,$B12,CD$80:CD$92) -> 425374.192 | CE12: ='Cash Flow'!$K13*SUMIF($B$80:$B$92,$B12,CE$80:CE$92) -> 425374.192 | CF12: ='Cash Flow'!$K13*SUMIF($B$80:$B$92,$B12,CF$80:CF$92) -> 425374.192 | CG12: ='Cash Flow'!$K13*SUMIF($B$80:$B$92,$B12,CG$80:CG$92) -> 425374.192 | CH12: ='Cash Flow'!$K13*SUMIF($B$80:$B$92,$B12,CH$80:CH$92) -> 425374.192 | CI12: ='Cash Flow'!$K13*SUMIF($B$80:$B$92,$B12,CI$80:CI$92) -> 425374.192 | CJ12: ='Cash Flow'!$K13*SUMIF($B$80:$B$92,$B12,CJ$80:CJ$92) -> 425374.192 | CK12: ='Cash Flow'!$K13*SUMIF($B$80:$B$92,$B12,CK$80:CK$92) -> 425374.192 | CL12: ='Cash Flow'!$K13*SUMIF($B$80:$B$92,$B12,CL$80:CL$92) -> 425374.192 | CM12: 5104490.305 | CP12: ='Cash Flow'!$L13*SUMIF($B$80:$B$92,$B12,CP$80:CP$92) -> 433924.6924 | CQ12: ='Cash Flow'!$L13*SUMIF($B$80:$B$92,$B12,CQ$80:CQ$92) -> 433924.6924 | CR12: ='Cash Flow'!$L13*SUMIF($B$80:$B$92,$B12,CR$80:CR$92) -> 433924.6924 | CS12: ='Cash Flow'!$L13*SUMIF($B$80:$B$92,$B12,CS$80:CS$92) -> 433924.6924 | CT12: ='Cash Flow'!$L13*SUMIF($B$80:$B$92,$B12,CT$80:CT$92) -> 433924.6924 | CU12: ='Cash Flow'!$L13*SUMIF($B$80:$B$92,$B12,CU$80:CU$92) -> 433924.6924 | CV12: ='Cash Flow'!$L13*SUMIF($B$80:$B$92,$B12,CV$80:CV$92) -> 433924.6924 | CW12: ='Cash Flow'!$L13*SUMIF($B$80:$B$92,$B12,CW$80:CW$92) -> 433924.6924 | CX12: ='Cash Flow'!$L13*SUMIF($B$80:$B$92,$B12,CX$80:CX$92) -> 433924.6924 | CY12: ='Cash Flow'!$L13*SUMIF($B$80:$B$92,$B12,CY$80:CY$92) -> 433924.6924 | CZ12: ='Cash Flow'!$L13*SUMIF($B$80:$B$92,$B12,CZ$80:CZ$92) -> 433924.6924 | DA12: ='Cash Flow'!$L13*SUMIF($B$80:$B$92,$B12,DA$80:DA$92) -> 433924.6924 | DB12: 5207096.308 | DE12: ='Cash Flow'!$M13*SUMIF($B$80:$B$92,$B12,DE$80:DE$92) -> 442383.4119 | DF12: ='Cash Flow'!$M13*SUMIF($B$80:$B$92,$B12,DF$80:DF$92) -> 442383.4119 | DG12: ='Cash Flow'!$M13*SUMIF($B$80:$B$92,$B12,DG$80:DG$92) -> 442383.4119 | DH12: ='Cash Flow'!$M13*SUMIF($B$80:$B$92,$B12,DH$80:DH$92) -> 442383.4119 | DI12: ='Cash Flow'!$M13*SUMIF($B$80:$B$92,$B12,DI$80:DI$92) -> 442383.4119 | DJ12: ='Cash Flow'!$M13*SUMIF($B$80:$B$92,$B12,DJ$80:DJ$92) -> 442383.4119 | DK12: ='Cash Flow'!$M13*SUMIF($B$80:$B$92,$B12,DK$80:DK$92) -> 442383.4119 | DL12: ='Cash Flow'!$M13*SUMIF($B$80:$B$92,$B12,DL$80:DL$92) -> 442383.4119 | DM12: ='Cash Flow'!$M13*SUMIF($B$80:$B$92,$B12,DM$80:DM$92) -> 442383.4119 | DN12: ='Cash Flow'!$M13*SUMIF($B$80:$B$92,$B12,DN$80:DN$92) -> 442383.4119 | DO12: ='Cash Flow'!$M13*SUMIF($B$80:$B$92,$B12,DO$80:DO$92) -> 442383.4119 | DP12: ='Cash Flow'!$M13*SUMIF($B$80:$B$92,$B12,DP$80:DP$92) -> 442383.4119 | DQ12: 5308600.943 | DT12: ='Cash Flow'!$N13*SUMIF($B$80:$B$92,$B12,DT$80:DT$92) -> 451902.4348 | DU12: ='Cash Flow'!$N13*SUMIF($B$80:$B$92,$B12,DU$80:DU$92) -> 451902.4348 | DV12: ='Cash Flow'!$N13*SUMIF($B$80:$B$92,$B12,DV$80:DV$92) -> 451902.4348 | DW12: ='Cash Flow'!$N13*SUMIF($B$80:$B$92,$B12,DW$80:DW$92) -> 451902.4348 | DX12: ='Cash Flow'!$N13*SUMIF($B$80:$B$92,$B12,DX$80:DX$92) -> 451902.4348 | DY12: ='Cash Flow'!$N13*SUMIF($B$80:$B$92,$B12,DY$80:DY$92) -> 451902.4348 | DZ12: ='Cash Flow'!$N13*SUMIF($B$80:$B$92,$B12,DZ$80:DZ$92) -> 451902.4348 | EA12: ='Cash Flow'!$N13*SUMIF($B$80:$B$92,$B12,EA$80:EA$92) -> 451902.4348 | EB12: ='Cash Flow'!$N13*SUMIF($B$80:$B$92,$B12,EB$80:EB$92) -> 451902.4348 | EC12: ='Cash Flow'!$N13*SUMIF($B$80:$B$92,$B12,EC$80:EC$92) -> 451902.4348 | ED12: ='Cash Flow'!$N13*SUMIF($B$80:$B$92,$B12,ED$80:ED$92) -> 451902.4348 | EE12: ='Cash Flow'!$N13*SUMIF($B$80:$B$92,$B12,EE$80:EE$92) -> 451902.4348 | EF12: 5422829.218 | EI12: ='Cash Flow'!$O13*SUMIF($B$80:$B$92,$B12,EI$80:EI$92) -> 460561.2708 | EJ12: ='Cash Flow'!$O13*SUMIF($B$80:$B$92,$B12,EJ$80:EJ$92) -> 460561.2708 | EK12: ='Cash Flow'!$O13*SUMIF($B$80:$B$92,$B12,EK$80:EK$92) -> 460561.2708 | EL12: ='Cash Flow'!$O13*SUMIF($B$80:$B$92,$B12,EL$80:EL$92) -> 460561.2708 | EM12: ='Cash Flow'!$O13*SUMIF($B$80:$B$92,$B12,EM$80:EM$92) -> 460561.2708 | EN12: ='Cash Flow'!$O13*SUMIF($B$80:$B$92,$B12,EN$80:EN$92) -> 460561.2708 | EO12: ='Cash Flow'!$O13*SUMIF($B$80:$B$92,$B12,EO$80:EO$92) -> 460561.2708 | EP12: ='Cash Flow'!$O13*SUMIF($B$80:$B$92,$B12,EP$80:EP$92) -> 460561.2708 | EQ12: ='Cash Flow'!$O13*SUMIF($B$80:$B$92,$B12,EQ$80:EQ$92) -> 460561.2708 | ER12: ='Cash Flow'!$O13*SUMIF($B$80:$B$92,$B12,ER$80:ER$92) -> 460561.2708 | ES12: ='Cash Flow'!$O13*SUMIF($B$80:$B$92,$B12,ES$80:ES$92) -> 460561.2708 | ET12: ='Cash Flow'!$O13*SUMIF($B$80:$B$92,$B12,ET$80:ET$92) -> 460561.2708 | EU12: 5526735.25 | EX12: ='Cash Flow'!$P13*SUMIF($B$80:$B$92,$B12,EX$80:EX$92) -> 469776.9489 | EY12: ='Cash Flow'!$P13*SUMIF($B$80:$B$92,$B12,EY$80:EY$92) -> 469776.9489 | EZ12: ='Cash Flow'!$P13*SUMIF($B$80:$B$92,$B12,EZ$80:EZ$92) -> 469776.9489 | FA12: ='Cash Flow'!$P13*SUMIF($B$80:$B$92,$B12,FA$80:FA$92) -> 469776.9489 | FB12: ='Cash Flow'!$P13*SUMIF($B$80:$B$92,$B12,FB$80:FB$92) -> 469776.9489 | FC12: ='Cash Flow'!$P13*SUMIF($B$80:$B$92,$B12,FC$80:FC$92) -> 469776.9489 | FD12: ='Cash Flow'!$P13*SUMIF($B$80:$B$92,$B12,FD$80:FD$92) -> 469776.9489 | FE12: ='Cash Flow'!$P13*SUMIF($B$80:$B$92,$B12,FE$80:FE$92) -> 469776.9489 | FF12: ='Cash Flow'!$P13*SUMIF($B$80:$B$92,$B12,FF$80:FF$92) -> 469776.9489 | FG12: ='Cash Flow'!$P13*SUMIF($B$80:$B$92,$B12,FG$80:FG$92) -> 469776.9489 | FH12: ='Cash Flow'!$P13*SUMIF($B$80:$B$92,$B12,FH$80:FH$92) -> 469776.9489 | FI12: ='Cash Flow'!$P13*SUMIF($B$80:$B$92,$B12,FI$80:FI$92) -> 469776.9489 | FJ12: 5637323.386
A13: Grants & Contributions provided for Operating Purposes | B13: 2 | D13: ='Cash Flow'!$E11*SUMIF($B$80:$B$92,$B13,D$80:D$92) -> 1567755.661 | E13: ='Cash Flow'!$E11*SUMIF($B$80:$B$92,$B13,E$80:E$92) -> 1567755.661 | F13: ='Cash Flow'!$E11*SUMIF($B$80:$B$92,$B13,F$80:F$92) -> 1567755.661 | G13: ='Cash Flow'!$E11*SUMIF($B$80:$B$92,$B13,G$80:G$92) -> 1567755.661 | H13: ='Cash Flow'!$E11*SUMIF($B$80:$B$92,$B13,H$80:H$92) -> 1567755.661 | I13: ='Cash Flow'!$E11*SUMIF($B$80:$B$92,$B13,I$80:I$92) -> 1567755.661 | J13: ='Cash Flow'!$E11*SUMIF($B$80:$B$92,$B13,J$80:J$92) -> 1567755.661 | K13: ='Cash Flow'!$E11*SUMIF($B$80:$B$92,$B13,K$80:K$92) -> 1567755.661 | L13: ='Cash Flow'!$E11*SUMIF($B$80:$B$92,$B13,L$80:L$92) -> 1567755.661 | M13: ='Cash Flow'!$E11*SUMIF($B$80:$B$92,$B13,M$80:M$92) -> 1567755.661 | N13: ='Cash Flow'!$E11*SUMIF($B$80:$B$92,$B13,N$80:N$92) -> 1567755.661 | O13: ='Cash Flow'!$E11*SUMIF($B$80:$B$92,$B13,O$80:O$92) -> 1567755.661 | P13: 18813067.93 | S13: ='Cash Flow'!$G11*SUMIF($B$80:$B$92,$B13,S$80:S$92) -> 943654.1225 | T13: ='Cash Flow'!$G11*SUMIF($B$80:$B$92,$B13,T$80:T$92) -> 943654.1225 | U13: ='Cash Flow'!$G11*SUMIF($B$80:$B$92,$B13,U$80:U$92) -> 943654.1225 | V13: ='Cash Flow'!$G11*SUMIF($B$80:$B$92,$B13,V$80:V$92) -> 943654.1225 | W13: ='Cash Flow'!$G11*SUMIF($B$80:$B$92,$B13,W$80:W$92) -> 943654.1225 | X13: ='Cash Flow'!$G11*SUMIF($B$80:$B$92,$B13,X$80:X$92) -> 943654.1225 | Y13: ='Cash Flow'!$G11*SUMIF($B$80:$B$92,$B13,Y$80:Y$92) -> 943654.1225 | Z13: ='Cash Flow'!$G11*SUMIF($B$80:$B$92,$B13,Z$80:Z$92) -> 943654.1225 | AA13: ='Cash Flow'!$G11*SUMIF($B$80:$B$92,$B13,AA$80:AA$92) -> 943654.1225 | AB13: ='Cash Flow'!$G11*SUMIF($B$80:$B$92,$B13,AB$80:AB$92) -> 943654.1225 | AC13: ='Cash Flow'!$G11*SUMIF($B$80:$B$92,$B13,AC$80:AC$92) -> 943654.1225 | AD13: ='Cash Flow'!$G11*SUMIF($B$80:$B$92,$B13,AD$80:AD$92) -> 943654.1225 | AE13: 11323849.47 | AH13: ='Cash Flow'!$H11*SUMIF($B$80:$B$92,$B13,AH$80:AH$92) -> 928588.4771 | AI13: ='Cash Flow'!$H11*SUMIF($B$80:$B$92,$B13,AI$80:AI$92) -> 928588.4771 | AJ13: ='Cash Flow'!$H11*SUMIF($B$80:$B$92,$B13,AJ$80:AJ$92) -> 928588.4771 | AK13: ='Cash Flow'!$H11*SUMIF($B$80:$B$92,$B13,AK$80:AK$92) -> 928588.4771 | AL13: ='Cash Flow'!$H11*SUMIF($B$80:$B$92,$B13,AL$80:AL$92) -> 928588.4771 | AM13: ='Cash Flow'!$H11*SUMIF($B$80:$B$92,$B13,AM$80:AM$92) -> 928588.4771 | AN13: ='Cash Flow'!$H11*SUMIF($B$80:$B$92,$B13,AN$80:AN$92) -> 928588.4771 | AO13: ='Cash Flow'!$H11*SUMIF($B$80:$B$92,$B13,AO$80:AO$92) -> 928588.4771 | AP13: ='Cash Flow'!$H11*SUMIF($B$80:$B$92,$B13,AP$80:AP$92) -> 928588.4771 | AQ13: ='Cash Flow'!$H11*SUMIF($B$80:$B$92,$B13,AQ$80:AQ$92) -> 928588.4771 | AR13: ='Cash Flow'!$H11*SUMIF($B$80:$B$92,$B13,AR$80:AR$92) -> 928588.4771 | AS13: ='Cash Flow'!$H11*SUMIF($B$80:$B$92,$B13,AS$80:AS$92) -> 928588.4771 | AT13: 11143061.72 | AW13: ='Cash Flow'!$I11*SUMIF($B$80:$B$92,$B13,AW$80:AW$92) -> 899138.2686 | AX13: ='Cash Flow'!$I11*SUMIF($B$80:$B$92,$B13,AX$80:AX$92) -> 899138.2686 | AY13: ='Cash Flow'!$I11*SUMIF($B$80:$B$92,$B13,AY$80:AY$92) -> 899138.2686 | AZ13: ='Cash Flow'!$I11*SUMIF($B$80:$B$92,$B13,AZ$80:AZ$92) -> 899138.2686 | BA13: ='Cash Flow'!$I11*SUMIF($B$80:$B$92,$B13,BA$80:BA$92) -> 899138.2686 | BB13: ='Cash Flow'!$I11*SUMIF($B$80:$B$92,$B13,BB$80:BB$92) -> 899138.2686 | BC13: ='Cash Flow'!$I11*SUMIF($B$80:$B$92,$B13,BC$80:BC$92) -> 899138.2686 | BD13: ='Cash Flow'!$I11*SUMIF($B$80:$B$92,$B13,BD$80:BD$92) -> 899138.2686 | BE13: ='Cash Flow'!$I11*SUMIF($B$80:$B$92,$B13,BE$80:BE$92) -> 899138.2686 | BF13: ='Cash Flow'!$I11*SUMIF($B$80:$B$92,$B13,BF$80:BF$92) -> 899138.2686 | BG13: ='Cash Flow'!$I11*SUMIF($B$80:$B$92,$B13,BG$80:BG$92) -> 899138.2686 | BH13: ='Cash Flow'!$I11*SUMIF($B$80:$B$92,$B13,BH$80:BH$92) -> 899138.2686 | BI13: 10789659.22 | BL13: ='Cash Flow'!$J11*SUMIF($B$80:$B$92,$B13,BL$80:BL$92) -> 789046.5821 | BM13: ='Cash Flow'!$J11*SUMIF($B$80:$B$92,$B13,BM$80:BM$92) -> 789046.5821 | BN13: ='Cash Flow'!$J11*SUMIF($B$80:$B$92,$B13,BN$80:BN$92) -> 789046.5821 | BO13: ='Cash Flow'!$J11*SUMIF($B$80:$B$92,$B13,BO$80:BO$92) -> 789046.5821 | BP13: ='Cash Flow'!$J11*SUMIF($B$80:$B$92,$B13,BP$80:BP$92) -> 789046.5821 | BQ13: ='Cash Flow'!$J11*SUMIF($B$80:$B$92,$B13,BQ$80:BQ$92) -> 789046.5821 | BR13: ='Cash Flow'!$J11*SUMIF($B$80:$B$92,$B13,BR$80:BR$92) -> 789046.5821 | BS13: ='Cash Flow'!$J11*SUMIF($B$80:$B$92,$B13,BS$80:BS$92) -> 789046.5821 | BT13: ='Cash Flow'!$J11*SUMIF($B$80:$B$92,$B13,BT$80:BT$92) -> 789046.5821 | BU13: ='Cash Flow'!$J11*SUMIF($B$80:$B$92,$B13,BU$80:BU$92) -> 789046.5821 | BV13: ='Cash Flow'!$J11*SUMIF($B$80:$B$92,$B13,BV$80:BV$92) -> 789046.5821 | BW13: ='Cash Flow'!$J11*SUMIF($B$80:$B$92,$B13,BW$80:BW$92) -> 789046.5821 | BX13: 9468558.985 | CA13: ='Cash Flow'!$K11*SUMIF($B$80:$B$92,$B13,CA$80:CA$92) -> 800636.3163 | CB13: ='Cash Flow'!$K11*SUMIF($B$80:$B$92,$B13,CB$80:CB$92) -> 800636.3163 | CC13: ='Cash Flow'!$K11*SUMIF($B$80:$B$92,$B13,CC$80:CC$92) -> 800636.3163 | CD13: ='Cash Flow'!$K11*SUMIF($B$80:$B$92,$B13,CD$80:CD$92) -> 800636.3163 | CE13: ='Cash Flow'!$K11*SUMIF($B$80:$B$92,$B13,CE$80:CE$92) -> 800636.3163 | CF13: ='Cash Flow'!$K11*SUMIF($B$80:$B$92,$B13,CF$80:CF$92) -> 800636.3163 | CG13: ='Cash Flow'!$K11*SUMIF($B$80:$B$92,$B13,CG$80:CG$92) -> 800636.3163 | CH13: ='Cash Flow'!$K11*SUMIF($B$80:$B$92,$B13,CH$80:CH$92) -> 800636.3163 | CI13: ='Cash Flow'!$K11*SUMIF($B$80:$B$92,$B13,CI$80:CI$92) -> 800636.3163 | CJ13: ='Cash Flow'!$K11*SUMIF($B$80:$B$92,$B13,CJ$80:CJ$92) -> 800636.3163 | CK13: ='Cash Flow'!$K11*SUMIF($B$80:$B$92,$B13,CK$80:CK$92) -> 800636.3163 | CL13: ='Cash Flow'!$K11*SUMIF($B$80:$B$92,$B13,CL$80:CL$92) -> 800636.3163 | CM13: 9607635.796 | CP13: ='Cash Flow'!$L11*SUMIF($B$80:$B$92,$B13,CP$80:CP$92) -> 820993.9514 | CQ13: ='Cash Flow'!$L11*SUMIF($B$80:$B$92,$B13,CQ$80:CQ$92) -> 820993.9514 | CR13: ='Cash Flow'!$L11*SUMIF($B$80:$B$92,$B13,CR$80:CR$92) -> 820993.9514 | CS13: ='Cash Flow'!$L11*SUMIF($B$80:$B$92,$B13,CS$80:CS$92) -> 820993.9514 | CT13: ='Cash Flow'!$L11*SUMIF($B$80:$B$92,$B13,CT$80:CT$92) -> 820993.9514 | CU13: ='Cash Flow'!$L11*SUMIF($B$80:$B$92,$B13,CU$80:CU$92) -> 820993.9514 | CV13: ='Cash Flow'!$L11*SUMIF($B$80:$B$92,$B13,CV$80:CV$92) -> 820993.9514 | CW13: ='Cash Flow'!$L11*SUMIF($B$80:$B$92,$B13,CW$80:CW$92) -> 820993.9514 | CX13: ='Cash Flow'!$L11*SUMIF($B$80:$B$92,$B13,CX$80:CX$92) -> 820993.9514 | CY13: ='Cash Flow'!$L11*SUMIF($B$80:$B$92,$B13,CY$80:CY$92) -> 820993.9514 | CZ13: ='Cash Flow'!$L11*SUMIF($B$80:$B$92,$B13,CZ$80:CZ$92) -> 820993.9514 | DA13: ='Cash Flow'!$L11*SUMIF($B$80:$B$92,$B13,DA$80:DA$92) -> 820993.9514 | DB13: 9851927.417 | DE13: ='Cash Flow'!$M11*SUMIF($B$80:$B$92,$B13,DE$80:DE$92) -> 845847.5114 | DF13: ='Cash Flow'!$M11*SUMIF($B$80:$B$92,$B13,DF$80:DF$92) -> 845847.5114 | DG13: ='Cash Flow'!$M11*SUMIF($B$80:$B$92,$B13,DG$80:DG$92) -> 845847.5114 | DH13: ='Cash Flow'!$M11*SUMIF($B$80:$B$92,$B13,DH$80:DH$92) -> 845847.5114 | DI13: ='Cash Flow'!$M11*SUMIF($B$80:$B$92,$B13,DI$80:DI$92) -> 845847.5114 | DJ13: ='Cash Flow'!$M11*SUMIF($B$80:$B$92,$B13,DJ$80:DJ$92) -> 845847.5114 | DK13: ='Cash Flow'!$M11*SUMIF($B$80:$B$92,$B13,DK$80:DK$92) -> 845847.5114 | DL13: ='Cash Flow'!$M11*SUMIF($B$80:$B$92,$B13,DL$80:DL$92) -> 845847.5114 | DM13: ='Cash Flow'!$M11*SUMIF($B$80:$B$92,$B13,DM$80:DM$92) -> 845847.5114 | DN13: ='Cash Flow'!$M11*SUMIF($B$80:$B$92,$B13,DN$80:DN$92) -> 845847.5114 | DO13: ='Cash Flow'!$M11*SUMIF($B$80:$B$92,$B13,DO$80:DO$92) -> 845847.5114 | DP13: ='Cash Flow'!$M11*SUMIF($B$80:$B$92,$B13,DP$80:DP$92) -> 845847.5114 | DQ13: 10150170.14 | DT13: ='Cash Flow'!$N11*SUMIF($B$80:$B$92,$B13,DT$80:DT$92) -> 843136.4751 | DU13: ='Cash Flow'!$N11*SUMIF($B$80:$B$92,$B13,DU$80:DU$92) -> 843136.4751 | DV13: ='Cash Flow'!$N11*SUMIF($B$80:$B$92,$B13,DV$80:DV$92) -> 843136.4751 | DW13: ='Cash Flow'!$N11*SUMIF($B$80:$B$92,$B13,DW$80:DW$92) -> 843136.4751 | DX13: ='Cash Flow'!$N11*SUMIF($B$80:$B$92,$B13,DX$80:DX$92) -> 843136.4751 | DY13: ='Cash Flow'!$N11*SUMIF($B$80:$B$92,$B13,DY$80:DY$92) -> 843136.4751 | DZ13: ='Cash Flow'!$N11*SUMIF($B$80:$B$92,$B13,DZ$80:DZ$92) -> 843136.4751 | EA13: ='Cash Flow'!$N11*SUMIF($B$80:$B$92,$B13,EA$80:EA$92) -> 843136.4751 | EB13: ='Cash Flow'!$N11*SUMIF($B$80:$B$92,$B13,EB$80:EB$92) -> 843136.4751 | EC13: ='Cash Flow'!$N11*SUMIF($B$80:$B$92,$B13,EC$80:EC$92) -> 843136.4751 | ED13: ='Cash Flow'!$N11*SUMIF($B$80:$B$92,$B13,ED$80:ED$92) -> 843136.4751 | EE13: ='Cash Flow'!$N11*SUMIF($B$80:$B$92,$B13,EE$80:EE$92) -> 843136.4751 | EF13: 10117637.7 | EI13: ='Cash Flow'!$O11*SUMIF($B$80:$B$92,$B13,EI$80:EI$92) -> 856018.5602 | EJ13: ='Cash Flow'!$O11*SUMIF($B$80:$B$92,$B13,EJ$80:EJ$92) -> 856018.5602 | EK13: ='Cash Flow'!$O11*SUMIF($B$80:$B$92,$B13,EK$80:EK$92) -> 856018.5602 | EL13: ='Cash Flow'!$O11*SUMIF($B$80:$B$92,$B13,EL$80:EL$92) -> 856018.5602 | EM13: ='Cash Flow'!$O11*SUMIF($B$80:$B$92,$B13,EM$80:EM$92) -> 856018.5602 | EN13: ='Cash Flow'!$O11*SUMIF($B$80:$B$92,$B13,EN$80:EN$92) -> 856018.5602 | EO13: ='Cash Flow'!$O11*SUMIF($B$80:$B$92,$B13,EO$80:EO$92) -> 856018.5602 | EP13: ='Cash Flow'!$O11*SUMIF($B$80:$B$92,$B13,EP$80:EP$92) -> 856018.5602 | EQ13: ='Cash Flow'!$O11*SUMIF($B$80:$B$92,$B13,EQ$80:EQ$92) -> 856018.5602 | ER13: ='Cash Flow'!$O11*SUMIF($B$80:$B$92,$B13,ER$80:ER$92) -> 856018.5602 | ES13: ='Cash Flow'!$O11*SUMIF($B$80:$B$92,$B13,ES$80:ES$92) -> 856018.5602 | ET13: ='Cash Flow'!$O11*SUMIF($B$80:$B$92,$B13,ET$80:ET$92) -> 856018.5602 | EU13: 10272222.72 | EX13: ='Cash Flow'!$P11*SUMIF($B$80:$B$92,$B13,EX$80:EX$92) -> 869887.9206 | EY13: ='Cash Flow'!$P11*SUMIF($B$80:$B$92,$B13,EY$80:EY$92) -> 869887.9206 | EZ13: ='Cash Flow'!$P11*SUMIF($B$80:$B$92,$B13,EZ$80:EZ$92) -> 869887.9206 | FA13: ='Cash Flow'!$P11*SUMIF($B$80:$B$92,$B13,FA$80:FA$92) -> 869887.9206 | FB13: ='Cash Flow'!$P11*SUMIF($B$80:$B$92,$B13,FB$80:FB$92) -> 869887.9206 | FC13: ='Cash Flow'!$P11*SUMIF($B$80:$B$92,$B13,FC$80:FC$92) -> 869887.9206 | FD13: ='Cash Flow'!$P11*SUMIF($B$80:$B$92,$B13,FD$80:FD$92) -> 869887.9206 | FE13: ='Cash Flow'!$P11*SUMIF($B$80:$B$92,$B13,FE$80:FE$92) -> 869887.9206 | FF13: ='Cash Flow'!$P11*SUMIF($B$80:$B$92,$B13,FF$80:FF$92) -> 869887.9206 | FG13: ='Cash Flow'!$P11*SUMIF($B$80:$B$92,$B13,FG$80:FG$92) -> 869887.9206 | FH13: ='Cash Flow'!$P11*SUMIF($B$80:$B$92,$B13,FH$80:FH$92) -> 869887.9206 | FI13: ='Cash Flow'!$P11*SUMIF($B$80:$B$92,$B13,FI$80:FI$92) -> 869887.9206 | FJ13: 10438655.05
A14: Grants & Contributions provided for Capital Purposes | B14: 2 | P14: 0 | AE14: 0 | AT14: 0 | BI14: 0 | BX14: 0 | CM14: 0 | DB14: 0 | DQ14: 0 | EF14: 0 | EU14: 0 | FJ14: 0
A15: Bonds & Deposits | B15: 4 | D15: ='Cash Flow'!$E12*SUMIF($B$80:$B$92,$B15,D$80:D$92) -> 0 | E15: ='Cash Flow'!$E12*SUMIF($B$80:$B$92,$B15,E$80:E$92) -> 0 | F15: ='Cash Flow'!$E12*SUMIF($B$80:$B$92,$B15,F$80:F$92) -> 0 | G15: ='Cash Flow'!$E12*SUMIF($B$80:$B$92,$B15,G$80:G$92) -> 0 | H15: ='Cash Flow'!$E12*SUMIF($B$80:$B$92,$B15,H$80:H$92) -> 0 | I15: ='Cash Flow'!$E12*SUMIF($B$80:$B$92,$B15,I$80:I$92) -> 0 | J15: ='Cash Flow'!$E12*SUMIF($B$80:$B$92,$B15,J$80:J$92) -> 0 | K15: ='Cash Flow'!$E12*SUMIF($B$80:$B$92,$B15,K$80:K$92) -> 0 | L15: ='Cash Flow'!$E12*SUMIF($B$80:$B$92,$B15,L$80:L$92) -> 0 | M15: ='Cash Flow'!$E12*SUMIF($B$80:$B$92,$B15,M$80:M$92) -> 0 | N15: ='Cash Flow'!$E12*SUMIF($B$80:$B$92,$B15,N$80:N$92) -> 0 | O15: ='Cash Flow'!$E12*SUMIF($B$80:$B$92,$B15,O$80:O$92) -> 0 | P15: =SUM(D15:O15) -> 0 | S15: ='Cash Flow'!$G12*SUMIF($B$80:$B$92,$B15,S$80:S$92) -> 0 | T15: ='Cash Flow'!$G12*SUMIF($B$80:$B$92,$B15,T$80:T$92) -> 0 | U15: ='Cash Flow'!$G12*SUMIF($B$80:$B$92,$B15,U$80:U$92) -> 0 | V15: ='Cash Flow'!$G12*SUMIF($B$80:$B$92,$B15,V$80:V$92) -> 0 | W15: ='Cash Flow'!$G12*SUMIF($B$80:$B$92,$B15,W$80:W$92) -> 0 | X15: ='Cash Flow'!$G12*SUMIF($B$80:$B$92,$B15,X$80:X$92) -> 0 | Y15: ='Cash Flow'!$G12*SUMIF($B$80:$B$92,$B15,Y$80:Y$92) -> 0 | Z15: ='Cash Flow'!$G12*SUMIF($B$80:$B$92,$B15,Z$80:Z$92) -> 0 | AA15: ='Cash Flow'!$G12*SUMIF($B$80:$B$92,$B15,AA$80:AA$92) -> 0 | AB15: ='Cash Flow'!$G12*SUMIF($B$80:$B$92,$B15,AB$80:AB$92) -> 0 | AC15: ='Cash Flow'!$G12*SUMIF($B$80:$B$92,$B15,AC$80:AC$92) -> 0 | AD15: ='Cash Flow'!$G12*SUMIF($B$80:$B$92,$B15,AD$80:AD$92) -> 0 | AE15: 0 | AH15: ='Cash Flow'!$H12*SUMIF($B$80:$B$92,$B15,AH$80:AH$92) -> 0 | AI15: ='Cash Flow'!$H12*SUMIF($B$80:$B$92,$B15,AI$80:AI$92) -> 0 | AJ15: ='Cash Flow'!$H12*SUMIF($B$80:$B$92,$B15,AJ$80:AJ$92) -> 0 | AK15: ='Cash Flow'!$H12*SUMIF($B$80:$B$92,$B15,AK$80:AK$92) -> 0 | AL15: ='Cash Flow'!$H12*SUMIF($B$80:$B$92,$B15,AL$80:AL$92) -> 0 | AM15: ='Cash Flow'!$H12*SUMIF($B$80:$B$92,$B15,AM$80:AM$92) -> 0 | AN15: ='Cash Flow'!$H12*SUMIF($B$80:$B$92,$B15,AN$80:AN$92) -> 0 | AO15: ='Cash Flow'!$H12*SUMIF($B$80:$B$92,$B15,AO$80:AO$92) -> 0 | AP15: ='Cash Flow'!$H12*SUMIF($B$80:$B$92,$B15,AP$80:AP$92) -> 0 | AQ15: ='Cash Flow'!$H12*SUMIF($B$80:$B$92,$B15,AQ$80:AQ$92) -> 0 | AR15: ='Cash Flow'!$H12*SUMIF($B$80:$B$92,$B15,AR$80:AR$92) -> 0 | AS15: ='Cash Flow'!$H12*SUMIF($B$80:$B$92,$B15,AS$80:AS$92) -> 0 | AT15: 0 | AW15: ='Cash Flow'!$I12*SUMIF($B$80:$B$92,$B15,AW$80:AW$92) -> 0 | AX15: ='Cash Flow'!$I12*SUMIF($B$80:$B$92,$B15,AX$80:AX$92) -> 0 | AY15: ='Cash Flow'!$I12*SUMIF($B$80:$B$92,$B15,AY$80:AY$92) -> 0 | AZ15: ='Cash Flow'!$I12*SUMIF($B$80:$B$92,$B15,AZ$80:AZ$92) -> 0 | BA15: ='Cash Flow'!$I12*SUMIF($B$80:$B$92,$B15,BA$80:BA$92) -> 0 | BB15: ='Cash Flow'!$I12*SUMIF($B$80:$B$92,$B15,BB$80:BB$92) -> 0 | BC15: ='Cash Flow'!$I12*SUMIF($B$80:$B$92,$B15,BC$80:BC$92) -> 0 | BD15: ='Cash Flow'!$I12*SUMIF($B$80:$B$92,$B15,BD$80:BD$92) -> 0 | BE15: ='Cash Flow'!$I12*SUMIF($B$80:$B$92,$B15,BE$80:BE$92) -> 0 | BF15: ='Cash Flow'!$I12*SUMIF($B$80:$B$92,$B15,BF$80:BF$92) -> 0 | BG15: ='Cash Flow'!$I12*SUMIF($B$80:$B$92,$B15,BG$80:BG$92) -> 0 | BH15: ='Cash Flow'!$I12*SUMIF($B$80:$B$92,$B15,BH$80:BH$92) -> 0 | BI15: 0 | BL15: ='Cash Flow'!$J12*SUMIF($B$80:$B$92,$B15,BL$80:BL$92) -> 0 | BM15: ='Cash Flow'!$J12*SUMIF($B$80:$B$92,$B15,BM$80:BM$92) -> 0 | BN15: ='Cash Flow'!$J12*SUMIF($B$80:$B$92,$B15,BN$80:BN$92) -> 0 | BO15: ='Cash Flow'!$J12*SUMIF($B$80:$B$92,$B15,BO$80:BO$92) -> 0 | BP15: ='Cash Flow'!$J12*SUMIF($B$80:$B$92,$B15,BP$80:BP$92) -> 0 | BQ15: ='Cash Flow'!$J12*SUMIF($B$80:$B$92,$B15,BQ$80:BQ$92) -> 0 | BR15: ='Cash Flow'!$J12*SUMIF($B$80:$B$92,$B15,BR$80:BR$92) -> 0 | BS15: ='Cash Flow'!$J12*SUMIF($B$80:$B$92,$B15,BS$80:BS$92) -> 0 | BT15: ='Cash Flow'!$J12*SUMIF($B$80:$B$92,$B15,BT$80:BT$92) -> 0 | BU15: ='Cash Flow'!$J12*SUMIF($B$80:$B$92,$B15,BU$80:BU$92) -> 0 | BV15: ='Cash Flow'!$J12*SUMIF($B$80:$B$92,$B15,BV$80:BV$92) -> 0 | BW15: ='Cash Flow'!$J12*SUMIF($B$80:$B$92,$B15,BW$80:BW$92) -> 0 | BX15: 0 | CA15: ='Cash Flow'!$K12*SUMIF($B$80:$B$92,$B15,CA$80:CA$92) -> 0 | CB15: ='Cash Flow'!$K12*SUMIF($B$80:$B$92,$B15,CB$80:CB$92) -> 0 | CC15: ='Cash Flow'!$K12*SUMIF($B$80:$B$92,$B15,CC$80:CC$92) -> 0 | CD15: ='Cash Flow'!$K12*SUMIF($B$80:$B$92,$B15,CD$80:CD$92) -> 0 | CE15: ='Cash Flow'!$K12*SUMIF($B$80:$B$92,$B15,CE$80:CE$92) -> 0 | CF15: ='Cash Flow'!$K12*SUMIF($B$80:$B$92,$B15,CF$80:CF$92) -> 0 | CG15: ='Cash Flow'!$K12*SUMIF($B$80:$B$92,$B15,CG$80:CG$92) -> 0 | CH15: ='Cash Flow'!$K12*SUMIF($B$80:$B$92,$B15,CH$80:CH$92) -> 0 | CI15: ='Cash Flow'!$K12*SUMIF($B$80:$B$92,$B15,CI$80:CI$92) -> 0 | CJ15: ='Cash Flow'!$K12*SUMIF($B$80:$B$92,$B15,CJ$80:CJ$92) -> 0 | CK15: ='Cash Flow'!$K12*SUMIF($B$80:$B$92,$B15,CK$80:CK$92) -> 0 | CL15: ='Cash Flow'!$K12*SUMIF($B$80:$B$92,$B15,CL$80:CL$92) -> 0 | CM15: 0 | CP15: ='Cash Flow'!$L12*SUMIF($B$80:$B$92,$B15,CP$80:CP$92) -> 0 | CQ15: ='Cash Flow'!$L12*SUMIF($B$80:$B$92,$B15,CQ$80:CQ$92) -> 0 | CR15: ='Cash Flow'!$L12*SUMIF($B$80:$B$92,$B15,CR$80:CR$92) -> 0 | CS15: ='Cash Flow'!$L12*SUMIF($B$80:$B$92,$B15,CS$80:CS$92) -> 0 | CT15: ='Cash Flow'!$L12*SUMIF($B$80:$B$92,$B15,CT$80:CT$92) -> 0 | CU15: ='Cash Flow'!$L12*SUMIF($B$80:$B$92,$B15,CU$80:CU$92) -> 0 | CV15: ='Cash Flow'!$L12*SUMIF($B$80:$B$92,$B15,CV$80:CV$92) -> 0 | CW15: ='Cash Flow'!$L12*SUMIF($B$80:$B$92,$B15,CW$80:CW$92) -> 0 | CX15: ='Cash Flow'!$L12*SUMIF($B$80:$B$92,$B15,CX$80:CX$92) -> 0 | CY15: ='Cash Flow'!$L12*SUMIF($B$80:$B$92,$B15,CY$80:CY$92) -> 0 | CZ15: ='Cash Flow'!$L12*SUMIF($B$80:$B$92,$B15,CZ$80:CZ$92) -> 0 | DA15: ='Cash Flow'!$L12*SUMIF($B$80:$B$92,$B15,DA$80:DA$92) -> 0 | DB15: 0 | DE15: ='Cash Flow'!$M12*SUMIF($B$80:$B$92,$B15,DE$80:DE$92) -> 0 | DF15: ='Cash Flow'!$M12*SUMIF($B$80:$B$92,$B15,DF$80:DF$92) -> 0 | DG15: ='Cash Flow'!$M12*SUMIF($B$80:$B$92,$B15,DG$80:DG$92) -> 0 | DH15: ='Cash Flow'!$M12*SUMIF($B$80:$B$92,$B15,DH$80:DH$92) -> 0 | DI15: ='Cash Flow'!$M12*SUMIF($B$80:$B$92,$B15,DI$80:DI$92) -> 0 | DJ15: ='Cash Flow'!$M12*SUMIF($B$80:$B$92,$B15,DJ$80:DJ$92) -> 0 | DK15: ='Cash Flow'!$M12*SUMIF($B$80:$B$92,$B15,DK$80:DK$92) -> 0 | DL15: ='Cash Flow'!$M12*SUMIF($B$80:$B$92,$B15,DL$80:DL$92) -> 0 | DM15: ='Cash Flow'!$M12*SUMIF($B$80:$B$92,$B15,DM$80:DM$92) -> 0 | DN15: ='Cash Flow'!$M12*SUMIF($B$80:$B$92,$B15,DN$80:DN$92) -> 0 | DO15: ='Cash Flow'!$M12*SUMIF($B$80:$B$92,$B15,DO$80:DO$92) -> 0 | DP15: ='Cash Flow'!$M12*SUMIF($B$80:$B$92,$B15,DP$80:DP$92) -> 0 | DQ15: 0 | DT15: ='Cash Flow'!$N12*SUMIF($B$80:$B$92,$B15,DT$80:DT$92) -> 0 | DU15: ='Cash Flow'!$N12*SUMIF($B$80:$B$92,$B15,DU$80:DU$92) -> 0 | DV15: ='Cash Flow'!$N12*SUMIF($B$80:$B$92,$B15,DV$80:DV$92) -> 0 | DW15: ='Cash Flow'!$N12*SUMIF($B$80:$B$92,$B15,DW$80:DW$92) -> 0 | DX15: ='Cash Flow'!$N12*SUMIF($B$80:$B$92,$B15,DX$80:DX$92) -> 0 | DY15: ='Cash Flow'!$N12*SUMIF($B$80:$B$92,$B15,DY$80:DY$92) -> 0 | DZ15: ='Cash Flow'!$N12*SUMIF($B$80:$B$92,$B15,DZ$80:DZ$92) -> 0 | EA15: ='Cash Flow'!$N12*SUMIF($B$80:$B$92,$B15,EA$80:EA$92) -> 0 | EB15: ='Cash Flow'!$N12*SUMIF($B$80:$B$92,$B15,EB$80:EB$92) -> 0 | EC15: ='Cash Flow'!$N12*SUMIF($B$80:$B$92,$B15,EC$80:EC$92) -> 0 | ED15: ='Cash Flow'!$N12*SUMIF($B$80:$B$92,$B15,ED$80:ED$92) -> 0 | EE15: ='Cash Flow'!$N12*SUMIF($B$80:$B$92,$B15,EE$80:EE$92) -> 0 | EF15: 0 | EI15: ='Cash Flow'!$O12*SUMIF($B$80:$B$92,$B15,EI$80:EI$92) -> 0 | EJ15: ='Cash Flow'!$O12*SUMIF($B$80:$B$92,$B15,EJ$80:EJ$92) -> 0 | EK15: ='Cash Flow'!$O12*SUMIF($B$80:$B$92,$B15,EK$80:EK$92) -> 0 | EL15: ='Cash Flow'!$O12*SUMIF($B$80:$B$92,$B15,EL$80:EL$92) -> 0 | EM15: ='Cash Flow'!$O12*SUMIF($B$80:$B$92,$B15,EM$80:EM$92) -> 0 | EN15: ='Cash Flow'!$O12*SUMIF($B$80:$B$92,$B15,EN$80:EN$92) -> 0 | EO15: ='Cash Flow'!$O12*SUMIF($B$80:$B$92,$B15,EO$80:EO$92) -> 0 | EP15: ='Cash Flow'!$O12*SUMIF($B$80:$B$92,$B15,EP$80:EP$92) -> 0 | EQ15: ='Cash Flow'!$O12*SUMIF($B$80:$B$92,$B15,EQ$80:EQ$92) -> 0 | ER15: ='Cash Flow'!$O12*SUMIF($B$80:$B$92,$B15,ER$80:ER$92) -> 0 | ES15: ='Cash Flow'!$O12*SUMIF($B$80:$B$92,$B15,ES$80:ES$92) -> 0 | ET15: ='Cash Flow'!$O12*SUMIF($B$80:$B$92,$B15,ET$80:ET$92) -> 0 | EU15: 0 | EX15: ='Cash Flow'!$P12*SUMIF($B$80:$B$92,$B15,EX$80:EX$92) -> 0 | EY15: ='Cash Flow'!$P12*SUMIF($B$80:$B$92,$B15,EY$80:EY$92) -> 0 | EZ15: ='Cash Flow'!$P12*SUMIF($B$80:$B$92,$B15,EZ$80:EZ$92) -> 0 | FA15: ='Cash Flow'!$P12*SUMIF($B$80:$B$92,$B15,FA$80:FA$92) -> 0 | FB15: ='Cash Flow'!$P12*SUMIF($B$80:$B$92,$B15,FB$80:FB$92) -> 0 | FC15: ='Cash Flow'!$P12*SUMIF($B$80:$B$92,$B15,FC$80:FC$92) -> 0 | FD15: ='Cash Flow'!$P12*SUMIF($B$80:$B$92,$B15,FD$80:FD$92) -> 0 | FE15: ='Cash Flow'!$P12*SUMIF($B$80:$B$92,$B15,FE$80:FE$92) -> 0 | FF15: ='Cash Flow'!$P12*SUMIF($B$80:$B$92,$B15,FF$80:FF$92) -> 0 | FG15: ='Cash Flow'!$P12*SUMIF($B$80:$B$92,$B15,FG$80:FG$92) -> 0 | FH15: ='Cash Flow'!$P12*SUMIF($B$80:$B$92,$B15,FH$80:FH$92) -> 0 | FI15: ='Cash Flow'!$P12*SUMIF($B$80:$B$92,$B15,FI$80:FI$92) -> 0 | FJ15: 0
A16: Total Operting Inflow | D16: =SUM(D9:D15) -> 2936844.874 | E16: 14076229.95 | F16: 2936844.874 | G16: 2936844.874 | H16: 11291383.68 | I16: 2936844.874 | J16: 2936844.874 | K16: 7114114.276 | L16: 2936844.874 | M16: 2936844.874 | N16: 7114114.276 | O16: 2936844.874 | P16: 63090601.17 | S16: =SUM(S9:S15) -> 2354492.476 | T16: 14003845.72 | U16: 2354492.476 | V16: 2354492.476 | W16: 11091507.41 | X16: 2354492.476 | Y16: 2354492.476 | Z16: 6722999.942 | AA16: 2354492.476 | AB16: 2354492.476 | AC16: 6722999.942 | AD16: 2354492.476 | AE16: 57377292.82 | AH16: =SUM(AH9:AH15) -> 2385891.461 | AI16: 14637141.11 | AJ16: 2385891.461 | AK16: 2385891.461 | AL16: 11574328.7 | AM16: 2385891.461 | AN16: 2385891.461 | AO16: 6980110.079 | AP16: 2385891.461 | AQ16: 2385891.461 | AR16: 6980110.079 | AS16: 2385891.461 | AT16: 59258821.65 | AW16: =SUM(AW9:AW15) -> 2413239.899 | AX16: 15279300 | AY16: 2413239.899 | AZ16: 2413239.899 | BA16: 12062784.97 | BB16: 2413239.899 | BC16: 2413239.899 | BD16: 7238012.436 | BE16: 2413239.899 | BF16: 2413239.899 | BG16: 7238012.436 | BH16: 2413239.899 | BI16: 61124029.03 | BL16: =SUM(BL9:BL15) -> 2352013.485 | BM16: 15855498.08 | BN16: 2352013.485 | BO16: 2352013.485 | BP16: 12479626.93 | BQ16: 2352013.485 | BR16: 2352013.485 | BS16: 7415820.207 | BT16: 2352013.485 | BU16: 2352013.485 | BV16: 7415820.207 | BW16: 2352013.485 | BX16: 61982873.3 | CA16: =SUM(CA9:CA15) -> 2399939.349 | CB16: 16378048.78 | CC16: 2399939.349 | CD16: 2399939.349 | CE16: 12883521.42 | CF16: 2399939.349 | CG16: 2399939.349 | CH16: 7641730.386 | CI16: 2399939.349 | CJ16: 2399939.349 | CK16: 7641730.386 | CL16: 2399939.349 | CM16: 63744545.77 | CP16: =SUM(CP9:CP15) -> 2470040.969 | CQ16: 16861346.92 | CR16: 2470040.969 | CS16: 2470040.969 | CT16: 13263520.43 | CU16: 2470040.969 | CV16: 2470040.969 | CW16: 7866780.7 | CX16: 2470040.969 | CY16: 2470040.969 | CZ16: 7866780.7 | DA16: 2470040.969 | DB16: 65618756.5 | DE16: =SUM(DE9:DE15) -> 2532977.735 | DF16: 17469465.15 | DG16: 2532977.735 | DH16: 2532977.735 | DI16: 13735343.3 | DJ16: 2532977.735 | DK16: 2532977.735 | DL16: 8134160.517 | DM16: 2532977.735 | DN16: 2532977.735 | DO16: 8134160.517 | DP16: 2532977.735 | DQ16: 67736951.37 | DT16: =SUM(DT9:DT15) -> 2571980.134 | DU16: 17951361.33 | DV16: 2571980.134 | DW16: 2571980.134 | DX16: 14106516.03 | DY16: 2571980.134 | DZ16: 2571980.134 | EA16: 8339248.08 | EB16: 2571980.134 | EC16: 2571980.134 | ED16: 8339248.08 | EE16: 2571980.134 | EF16: 69312214.58 | EI16: =SUM(EI9:EI15) -> 2625538.882 | EJ16: 18525436.14 | EK16: 2625538.882 | EL16: 2625538.882 | EM16: 14550461.83 | EN16: 2625538.882 | EO16: 2625538.882 | EP16: 8588000.354 | EQ16: 2625538.882 | ER16: 2625538.882 | ES16: 8588000.354 | ET16: 2625538.882 | EU16: 71256209.73 | EX16: =SUM(EX9:EX15) -> 2679462.994 | EY16: 19049602.86 | EZ16: 2679462.994 | FA16: 2679462.994 | FB16: 14957067.89 | FC16: 2679462.994 | FD16: 2679462.994 | FE16: 8818265.444 | FF16: 2679462.994 | FG16: 2679462.994 | FH16: 8818265.444 | FI16: 2679462.994 | FJ16: 73078905.59
A18: Capital Inflow
